Workbook

Sheet Example Data
A1: =Data_Input!A1 -> Groundwater Statistics Tool
A2: Example data worksheet
A3: This worksheet contains example data sets. Users may want to use the example data sets for practice, or to illustrate how the tool works in different situations. See the User Guide for additional discussion.
A5: Example Data Set 1: Remediation example (trichloroethene data set from EPA 2013b). | E5: Example Data Set 2: Attenuation example (trichlorethene data set from EPA 2013b). | I5: Example Data Set 3: Remediation example (vinyl chloride data set from EPA 2013b). | M5: Example Data Set 4: Data set with high outlier (Example 12-3 of EPA 2009).
A6: Date | B6: Concentration | C6: Data Qualifier | E6: Date | F6: Concentration | G6: Data Qualifier | I6: Date | J6: Concentration | K6: Data Qualifier | M6: Date | N6: Concentration | O6: Data Qualifier
A7: 1 | B7: 93 | E7: 9 | F7: 4.3 | I7: 1 | J7: 0.15 | M7: 1 | N7: 0.531
A8: 2 | B8: 82 | E8: 10 | F8: 6.1 | I8: 2 | J8: 0.21 | M8: 2 | N8: 1.163
A9: 3 | B9: 52 | E9: 11 | F9: 4.6 | I9: 3 | J9: 0.41 | M9: 3 | N9: 1.872
A10: 4 | B10: 19 | E10: 12 | F10: 4.5 | I10: 4 | J10: 0.82 | M10: 4 | N10: 1.988
A11: 5 | B11: 6.1 | E11: 13 | F11: 5.3 | I11: 5 | J11: 1.1 | M11: 5 | N11: 2.493
A12: 6 | B12: 4.2 | E12: 14 | F12: 3.9 | I12: 6 | J12: 1.3 | M12: 6 | N12: 2.617
A13: 7 | B13: 2.8 | E13: 15 | F13: 3.3 | I13: 7 | J13: 2.1 | M13: 7 | N13: 2.747
A14: 8 | B14: 1.8 | E14: 16 | F14: 2.1 | I14: 8 | J14: 1.7 | M14: 8 | N14: 2.785
E15: 17 | F15: 1.4 | M15: 9 | N15: 3.558
E16: 18 | F16: 0.85 | M16: 10 | N16: 3.728
M17: 11 | N17: 4.059
M18: 12 | N18: 4.089
M19: 13 | N19: 4.225
M20: 14 | N20: 4.25
M21: 15 | N21: 4.323
M22: 16 | N22: 5.293
M23: 17 | N23: 5.617
M24: 18 | N24: 5.71
M25: 19 | N25: 5.858
M26: 20 | N26: 8.863
A29: Example Data Set 5: Data set with low outlier (modified Example 12-3 of EPA 2009). | E29: Example Data Set 6: Non-normal data set (Example 10-2 of EPA 2009). | I29: Example Data Set 7: Data set illustrating linear regression (Example 17-5 of EPA 2009). | M29: Example Data Set 8: Normal data set used for confidence band example (Example 21-7 of EPA 2009).
A30: Date | B30: Concentration | C30: Data Qualifier | E30: Date | F30: Concentration | G30: Data Qualifier | I30: Date | J30: Concentration | K30: Data Qualifier | M30: Date | N30: Concentration | O30: Data Qualifier
A31: 1 | B31: 9.469 | E31: 1 | F31: 1 | I31: 76 | J31: 11.5 | M31: 2 | N31: 54.2
A32: 2 | B32: 8.837 | E32: 2 | F32: 3.1 | I32: 133 | J32: 12.6 | M32: 4 | N32: 44.3
A33: 3 | B33: 8.128 | E33: 3 | F33: 8.7 | I33: 233 | J33: 13.8 | M33: 8 | N33: 45.4
A34: 4 | B34: 8.012 | E34: 4 | F34: 10 | I34: 407 | J34: 12.3 | M34: 11 | N34: 38.3
A35: 5 | B35: 7.507 | E35: 5 | F35: 14 | I35: 513 | J35: 12.8 | M35: 13 | N35: 27.1
A36: 6 | B36: 7.383 | E36: 6 | F36: 19 | I36: 594 | J36: 13.2 | M36: 16 | N36: 30.2
A37: 7 | B37: 7.253 | E37: 7 | F37: 21.4 | I37: 688 | J37: 14.1 | M37: 20 | N37: 28.3
A38: 8 | B38: 7.215 | E38: 8 | F38: 27 | I38: 779 | J38: 13.3 | M38: 23 | N38: 17.6
A39: 9 | B39: 6.442 | E39: 9 | F39: 39 | I39: 846 | J39: 13.1 | M39: 26 | N39: 14.7
A40: 10 | B40: 6.272 | E40: 10 | F40: 56 | I40: 940 | J40: 13.2 | M40: 30 | N40: 4.1
A41: 11 | B41: 5.941 | E41: 11 | F41: 58.8 | I41: 1043 | J41: 15.3
A42: 12 | B42: 5.911 | E42: 12 | F42: 64.4 | I42: 1150 | J42: 15
A43: 13 | B43: 5.775 | E43: 13 | F43: 81.5 | I43: 1260 | J43: 15.2
A44: 14 | B44: 5.75 | E44: 14 | F44: 85.6 | I44: 1330 | J44: 15.8
A45: 15 | B45: 5.677 | E45: 15 | F45: 151 | I45: 1385 | J45: 16.1
A46: 16 | B46: 4.707 | E46: 16 | F46: 262 | I46: 1499 | J46: 15.1
A47: 17 | B47: 4.383 | E47: 17 | F47: 331 | I47: 1577 | J47: 16.4
A48: 18 | B48: 4.29 | E48: 18 | F48: 578 | I48: 1682 | J48: 17.7
A49: 19 | B49: 4.142 | E49: 19 | F49: 637 | I49: 1759 | J49: 17.7
A50: 20 | B50: 1.137 | E50: 20 | F50: 942
A53: Example Data Set 9: Example data set 9 with one nondetect result added | E53: Example Data Set 10: Normal data set without a statistically significant trend.
A54: Date | B54: Concentration | C54: Data Qualifier | E54: Date | F54: Concentration | G54: Data Qualifier
A55: 2 | B55: 54.2 | E55: 89.6 | F55: 56
A56: 4 | B56: 44.3 | E56: 90.1 | F56: 53
A57: 8 | B57: 45.4 | E57: 90.8 | F57: 51
A58: 11 | B58: 38.3 | E58: 91.1 | F58: 55
A59: 13 | B59: 27.1 | E59: 92.1 | F59: 52
A60: 16 | B60: 30.2 | E60: 93.1 | F60: 60
A61: 20 | B61: 28.3 | E61: 94.1 | F61: 51
A62: 23 | B62: 17.6 | E62: 95.6 | F62: 53
A63: 26 | B63: 14.7 | E63: 96.1 | F63: 61
A64: 30 | B64: 4.1 | E64: 96.3 | F64: 56
A65: 33 | B65: 2 | C65: U

Sheet Data_Input
A1: Groundwater Statistics Tool
A2: Data input worksheet
A4: Site Name | B4: Test | D4: ="Date (" & B12 & ")" -> Date (Date) | E4: =B10 & " Conc. (" & B13 & ")" -> VC Conc. (ug/L) | F4: Data Qualifier | G4: Detected? (Yes or No)
A5: Operable Unit (OU) | B5: Test
A6: Type of Evaluation | B6: Attainment
A7: Date of Evaluation | B7: 2018-03-26 | D7: 2018-01-01 | E7: 4.3 | G7: =IF(D7="","",IF(F7="","Yes",IF(ISERROR(FIND("ND",UPPER(F7))),IF(ISERROR(FIND("U",UPPER(F7))),"Yes","No"),"No"))) -> Yes
A8: Person performing analysis | B8: DW | D8: 2018-02-01 | E8: 6.1 | G8: =IF(D8="","",IF(F8="","Yes",IF(ISERROR(FIND("ND",UPPER(F8))),IF(ISERROR(FIND("U",UPPER(F8))),"Yes","No"),"No"))) -> Yes
D9: 2018-03-01 | E9: 4.6 | G9: Yes
A10: Chemical of Concern | B10: VC | D10: 2018-04-01 | E10: 4.5 | G10: Yes
A11: Well Name/Number | B11: 1 | D11: 2018-05-01 | E11: 5.3 | G11: Yes
A12: Date Units | B12: Date | D12: 2018-06-01 | E12: 3.9 | G12: Yes
A13: Concentration Units | B13: ug/L | D13: 2018-07-01 | E13: 4 | G13: Yes
A15: Confidence Level Desired | B15: 0.95
A16: Cleanup Level | B16: 5
A17: Source of cleanup level (e.g. MCL or risk-based concentration) | B17: MCL
A19: Risk of False Outlier Rejection | B19: 0.01
A20: Random Seed (may be left blank) | B20: 62311.42188
A21: Significant figures to use | B21: 3
A23: Number of data points: | B23: =COUNT(E7:E26) -> 7
A24: Number of detected results: | B24: =COUNTIF(DetInput,"=Yes") -> 7
A25: Number of nondetect results: | B25: =B23-B24 -> 0
A26: Detection frequency: | B26: =IF(NPoints=0,"NA",B24/B23) -> 1
A28: Data Review | D28: Recommendations | J28: Axis Values
A29: Are all necessary data fields entered, and in proper format? | C29: =IF(SUM(Check_Input)=0,"Yes","No") -> Yes | D29: =IF(C29="Yes","None","Fill in date, concentration, and detected fields for each data point, in chronological order with no duplicate dates") -> None | J29: Time | L29: Concentration
A30: ="Are at least 4 data points present for statistical analysis?" -> Are at least 4 data points present for statistical analysis? | C30: =IF(AND(B23>3,B24>3),"Yes","No") -> Yes | D30: =IF(C30="Yes",IF(AND(Eval_Type="Attainment", NPoints>3,NPoints<8),"Eight data points are recommended for the attainment evaluation.","None"),"This tool cannot be used with fewer than 4 data points, and 4 detected data points.") -> Eight data points are recommended for the attainment evaluation. | J30: Min | K30: Max | L30: Min | M30: Max
A31: Are at least 8 data points present for an attainment evaluation? | C31: =IF(OR(B23>7,B6="Remediation"),"Yes","No") -> No | D31: =IF(C31="No","Eight data points are recommended for the attainment evaluation.","None") -> Eight data points are recommended for the attainment evaluation. | J31: Auto | K31: Auto | L31: Auto | M31: Auto
A32: Are detection limits for nondetects ≤ maximum detected value? | C32: =IF(MAX(HiddenInput!S7:S26)<=MAX(HiddenInput!N7:N26),"Yes","No") -> Yes | D32: =IF(C32="Yes","None","Remove all nondetected results with detection limits above " & MAX(HiddenInput!N7:N26) & ".") -> None
A33: Are all data within chart axis limits? | C33: =IF(OR(AND(J31<>"Auto",MIN(DateInput)<J31),MAX(DateInput)>K31,AND(L31<>"Auto",MIN(ConcInput)<L31),MAX(ConcInput)>M31),"No","Yes") -> Yes | D33: =IF(C33="Yes","None","Check Axis Value Settings") -> None
A34: Select Axis Values and Press "Reset Axes" after entering data.
A37: Pressing the "Check for Outliers" button to the right will open a worksheet that shows the results of a Dixons's test for outliers.

Sheet Sheet5 (hidden)

Sheet Outliers (hidden)
A1: =Data_Input!A1 -> Groundwater Statistics Tool
A2: Outlier testing worksheet
A4: Dixon's Outlier Test Results
A5: Number of data points | B5: =Data_Input!B23 -> 7
A6: Risk of false rejection | B6: =Data_Input!B19 -> 0.01
A7: Critical value | B7: =OFFSET(HiddenOutliers!T3,HiddenNormal2!J10-3,MATCH(B6,HiddenOutliers!T2:W2,0)-1,1,1) -> 0.637
A8: Outlier type | B8: Low | C8: High
A9: Test statistic | B9: =VLOOKUP(HiddenNormal2!J10,HiddenOutliers!A3:J20,10,0) -> 0.04545454545 | C9: =VLOOKUP(HiddenNormal2!J10,HiddenOutliers!A3:S20,19,0) -> 0.3636363636
A10: Potential outlier? | B10: =IF(ISERROR(OFFSET(HiddenOutliers!X3,HiddenNormal2!J10-3,MATCH(B6,HiddenOutliers!T2:W2,0)-1,1,1)),"No",OFFSET(HiddenOutliers!X3,HiddenNormal2!J10-3,MATCH(B6,HiddenOutliers!T2:W2,0)-1,1,1)) -> No | C10: =IF(ISERROR(OFFSET(HiddenOutliers!AB3,HiddenNormal2!J10-3,MATCH(B6,HiddenOutliers!T2:W2,0)-1,1,1)),"No",OFFSET(HiddenOutliers!AB3,HiddenNormal2!J10-3,MATCH(B6,HiddenOutliers!T2:W2,0)-1,1,1)) -> No
A11: Validity of Dixon's Test | B11: =IF(AND(B10="No",C10="No"),"Valid",IF(Normality!C14="Appears normal","Valid","Not Valid - data do not appear normal after removal of outlier.")) -> Valid

Sheet Trend-Normal (hidden)
A1: =Data_Input!A1 -> Groundwater Statistics Tool
A2: Trend test results for datasets with normally distributed residuals
A6: i | B6: ="t ( " & Data_Input!B12 & ")" -> t ( Date) | C6: ="C (" &Data_Input!B13 & ")" -> C (ug/L) | D6: C Predicted | E6: Fit residual | F6: Upper Confidence Band | H6: Ordinary Least Squares
A7: 1 | B7: =IF(Data_Input!D7=0,NA(),Data_Input!D7) -> 2018-01-01 | C7: =IF(ConcInput=0,NA(),ConcImputeds) -> 4.3 | D7: =IF(B7="",NA(),ROUND(DataTransforms!O3,SigFigs-1-INT(LOG(ABS(DataTransforms!O3))))) -> 5.16 | E7: =IF(ISNA(B7),NA(),C7-D7) -> -0.86 | F7: =IF(ISNA(B7),NA(),ROUND(DataTransforms!P3,SigFigs-1-INT(LOG(ABS(DataTransforms!P3))))) -> 6.59 | H7: Slope | I7: =ROUND(DataTransforms!AM18,SigFigs-1-INT(LOG(ABS(DataTransforms!AM18)))) -> -0.00542
A8: 2 | B8: =IF(Data_Input!D8=0,NA(),Data_Input!D8) -> 2018-02-01 | C8: 6.1 | D8: =IF(B8="",NA(),ROUND(DataTransforms!O4,SigFigs-1-INT(LOG(ABS(DataTransforms!O4))))) -> 4.99 | E8: =IF(ISNA(B8),NA(),C8-D8) -> 1.11 | F8: =IF(ISNA(B8),NA(),ROUND(DataTransforms!P4,SigFigs-1-INT(LOG(ABS(DataTransforms!P4))))) -> 6.1 | H8: Intercept | I8: =ROUND(DataTransforms!AM19,SigFigs-1-INT(LOG(ABS(DataTransforms!AM19)))) -> 239
A9: 3 | B9: =IF(Data_Input!D9=0,NA(),Data_Input!D9) -> 2018-03-01 | C9: 4.6 | D9: =IF(B9="",NA(),ROUND(DataTransforms!O5,SigFigs-1-INT(LOG(ABS(DataTransforms!O5))))) -> 4.84 | E9: -0.24 | F9: =IF(ISNA(B9),NA(),ROUND(DataTransforms!P5,SigFigs-1-INT(LOG(ABS(DataTransforms!P5))))) -> 5.73 | H9: R2 | I9: =CORREL(ConcImputeds,HiddenInput!M7:M26)^2 -> 0.2046540298
A10: 4 | B10: =IF(Data_Input!D10=0,NA(),Data_Input!D10) -> 2018-04-01 | C10: 4.5 | D10: =IF(B10="",NA(),ROUND(DataTransforms!O6,SigFigs-1-INT(LOG(ABS(DataTransforms!O6))))) -> 4.67 | E10: -0.17 | F10: =IF(ISNA(B10),NA(),ROUND(DataTransforms!P6,SigFigs-1-INT(LOG(ABS(DataTransforms!P6))))) -> 5.47 | H10: Test result | I10: =IF(I11<-I12,"Decreasing",IF(I11>I12,"Increasing","No trend")) -> No trend
A11: 5 | B11: =IF(Data_Input!D11=0,NA(),Data_Input!D11) -> 2018-05-01 | C11: 5.3 | D11: =IF(B11="",NA(),ROUND(DataTransforms!O7,SigFigs-1-INT(LOG(ABS(DataTransforms!O7))))) -> 4.51 | E11: 0.79 | F11: =IF(ISNA(B11),NA(),ROUND(DataTransforms!P7,SigFigs-1-INT(LOG(ABS(DataTransforms!P7))))) -> 5.39 | H11: Test statistic | I11: =DataTransforms!AM22 -> -1.134271735
A12: 6 | B12: =IF(Data_Input!D12=0,NA(),Data_Input!D12) -> 2018-06-01 | C12: 3.9 | D12: =IF(B12="",NA(),ROUND(DataTransforms!O8,SigFigs-1-INT(LOG(ABS(DataTransforms!O8))))) -> 4.34 | E12: -0.44 | F12: =IF(ISNA(B12),NA(),ROUND(DataTransforms!P8,SigFigs-1-INT(LOG(ABS(DataTransforms!P8))))) -> 5.47 | H12: Critical value | I12: =TINV((1-Data_Input!B15)*2,DataTransforms!AI4-2) -> 2.015048373
A13: 7 | B13: =IF(Data_Input!D13=0,NA(),Data_Input!D13) -> 2018-07-01 | C13: 4 | D13: =IF(B13="",NA(),ROUND(DataTransforms!O9,SigFigs-1-INT(LOG(ABS(DataTransforms!O9))))) -> 4.18 | E13: -0.18 | F13: =IF(ISNA(B13),NA(),ROUND(DataTransforms!P9,SigFigs-1-INT(LOG(ABS(DataTransforms!P9))))) -> 5.61 | H13: Trend type | I13: Normal
A14: 8 | B14: =IF(Data_Input!D14=0,NA(),Data_Input!D14) ->  | D14: =IF(B14="",NA(),ROUND(DataTransforms!O10,SigFigs-1-INT(LOG(ABS(DataTransforms!O10))))) ->  | F14: =IF(ISNA(B14),NA(),ROUND(DataTransforms!P10,SigFigs-1-INT(LOG(ABS(DataTransforms!P10))))) ->  | H14: When concentration is predicted to achieve the cleanup level | I14: =IF(DataTransforms!AM18=0,"NA",IF(AND(DataTransforms!AM18 < 0,(Data_Input!B16-DataTransforms!AM19)/DataTransforms!AM18 > MAX(Data_Input!D7:D26)),(Data_Input!B16-DataTransforms!AM19)/DataTransforms!AM18,"NA")) -> NA
A15: 9 | B15: =IF(Data_Input!D15=0,NA(),Data_Input!D15) ->  | D15: =IF(B15="",NA(),ROUND(DataTransforms!O11,SigFigs-1-INT(LOG(ABS(DataTransforms!O11))))) ->  | F15: =IF(ISNA(B15),NA(),ROUND(DataTransforms!P11,SigFigs-1-INT(LOG(ABS(DataTransforms!P11))))) ->  | H15: When concentration is predicted to exceed the cleanup level | I15: =IF(DataTransforms!AM18=0,"NA",IF(AND(DataTransforms!AM18 > 0,(Data_Input!B16-DataTransforms!AM19)/DataTransforms!AM18 > MAX(Data_Input!D7:D26)),(Data_Input!B16-DataTransforms!AM19)/DataTransforms!AM18,"NA")) -> NA
A16: 10 | B16: =IF(Data_Input!D16=0,NA(),Data_Input!D16) ->  | D16: =IF(B16="",NA(),ROUND(DataTransforms!O12,SigFigs-1-INT(LOG(ABS(DataTransforms!O12))))) ->  | F16: =IF(ISNA(B16),NA(),ROUND(DataTransforms!P12,SigFigs-1-INT(LOG(ABS(DataTransforms!P12))))) -> 
A17: 11 | B17: =IF(Data_Input!D17=0,NA(),Data_Input!D17) ->  | D17: =IF(B17="",NA(),ROUND(DataTransforms!O13,SigFigs-1-INT(LOG(ABS(DataTransforms!O13))))) ->  | F17: =IF(ISNA(B17),NA(),ROUND(DataTransforms!P13,SigFigs-1-INT(LOG(ABS(DataTransforms!P13))))) -> 
A18: 12 | B18: =IF(Data_Input!D18=0,NA(),Data_Input!D18) ->  | D18: =IF(B18="",NA(),ROUND(DataTransforms!O14,SigFigs-1-INT(LOG(ABS(DataTransforms!O14))))) ->  | F18: =IF(ISNA(B18),NA(),ROUND(DataTransforms!P14,SigFigs-1-INT(LOG(ABS(DataTransforms!P14))))) -> 
A19: 13 | B19: =IF(Data_Input!D19=0,NA(),Data_Input!D19) ->  | D19: =IF(B19="",NA(),ROUND(DataTransforms!O15,SigFigs-1-INT(LOG(ABS(DataTransforms!O15))))) ->  | F19: =IF(ISNA(B19),NA(),ROUND(DataTransforms!P15,SigFigs-1-INT(LOG(ABS(DataTransforms!P15))))) -> 
A20: 14 | B20: =IF(Data_Input!D20=0,NA(),Data_Input!D20) ->  | D20: =IF(B20="",NA(),ROUND(DataTransforms!O16,SigFigs-1-INT(LOG(ABS(DataTransforms!O16))))) ->  | F20: =IF(ISNA(B20),NA(),ROUND(DataTransforms!P16,SigFigs-1-INT(LOG(ABS(DataTransforms!P16))))) -> 
A21: 15 | B21: =IF(Data_Input!D21=0,NA(),Data_Input!D21) ->  | D21: =IF(B21="",NA(),ROUND(DataTransforms!O17,SigFigs-1-INT(LOG(ABS(DataTransforms!O17))))) ->  | F21: =IF(ISNA(B21),NA(),ROUND(DataTransforms!P17,SigFigs-1-INT(LOG(ABS(DataTransforms!P17))))) -> 
A22: 16 | B22: =IF(Data_Input!D22=0,NA(),Data_Input!D22) ->  | D22: =IF(B22="",NA(),ROUND(DataTransforms!O18,SigFigs-1-INT(LOG(ABS(DataTransforms!O18))))) ->  | F22: =IF(ISNA(B22),NA(),ROUND(DataTransforms!P18,SigFigs-1-INT(LOG(ABS(DataTransforms!P18))))) -> 
A23: 17 | B23: =IF(Data_Input!D23=0,NA(),Data_Input!D23) ->  | D23: =IF(B23="",NA(),ROUND(DataTransforms!O19,SigFigs-1-INT(LOG(ABS(DataTransforms!O19))))) ->  | F23: =IF(ISNA(B23),NA(),ROUND(DataTransforms!P19,SigFigs-1-INT(LOG(ABS(DataTransforms!P19))))) -> 
A24: 18 | B24: =IF(Data_Input!D24=0,NA(),Data_Input!D24) ->  | D24: =IF(B24="",NA(),ROUND(DataTransforms!O20,SigFigs-1-INT(LOG(ABS(DataTransforms!O20))))) ->  | F24: =IF(ISNA(B24),NA(),ROUND(DataTransforms!P20,SigFigs-1-INT(LOG(ABS(DataTransforms!P20))))) -> 
A25: 19 | B25: =IF(Data_Input!D25=0,NA(),Data_Input!D25) ->  | D25: =IF(B25="",NA(),ROUND(DataTransforms!O21,SigFigs-1-INT(LOG(ABS(DataTransforms!O21))))) ->  | F25: =IF(ISNA(B25),NA(),ROUND(DataTransforms!P21,SigFigs-1-INT(LOG(ABS(DataTransforms!P21))))) -> 
A26: 20 | B26: =IF(Data_Input!D26=0,NA(),Data_Input!D26) ->  | D26: =IF(B26="",NA(),ROUND(DataTransforms!O22,SigFigs-1-INT(LOG(ABS(DataTransforms!O22))))) ->  | F26: =IF(ISNA(B26),NA(),ROUND(DataTransforms!P22,SigFigs-1-INT(LOG(ABS(DataTransforms!P22))))) -> 
B27: =IF(AND(I14="NA",I15="NA"),NA(),IF(I14="NA",I15,I14)) ->  | D27: =IF(B27="",NA(),Data_Input!B16) ->  | E27: Cleanup
B29: Select Axis Values and press "Reset Axes" to see future trends.
B31: Axis Values
B32: Time | D32: Concentration
B33: Min | C33: Max | D33: Min | E33: Max
B34: AUTO | C34: AUTO | D34: AUTO | E34: AUTO

Sheet Trend-NP (hidden)
A1: =Data_Input!A1 -> Groundwater Statistics Tool
A2: Trend test results for datasets with nonparametrically distributed residuals
A6: i | B6: ="t ( " & Data_Input!B12 & ")" -> t ( Date) | C6: ="C (" &Data_Input!B13 & ")" -> C (ug/L) | D6: C Predicted | E6: Residual | F6: Upper Confidence Band | H6: Mann-Kendall | K6: Theil-Sen
A7: 1 | B7: =IF(DateInput=0,NA(),DateInput) -> 2018-01-01 | C7: =IF(ConcInput=0,NA(),ConcImputeds) -> 4.3 | D7: =IF(B7="",NA(),IF(B7*HiddenTrend!$E$27+HiddenTrend!$E$30=0,0,ROUND(B7*HiddenTrend!$E$27+HiddenTrend!$E$30,SigFigs-1-INT(LOG(ABS(B7*HiddenTrend!$E$27+HiddenTrend!$E$30)))))) -> 4.94 | E7: =IF(ISNA(B7),NA(),C7-D7) -> -0.64 | F7: =IF(B7="",NA(),HLOOKUP(A7,HiddenTSBootstrap!$CL$3:$DE$6,4,0)) -> 1.32 | H7: Test result | I7: =IF(I9>I10,"Increasing",IF(I9<-I10,"Decreasing","No trend")) -> No trend | K7: Slope | L7: =IF(HiddenTrend!E27=0,0,ROUND(HiddenTrend!E27,SigFigs-1-INT(LOG(ABS(HiddenTrend!E27))))) -> -0.00492
A8: 2 | B8: 2018-02-01 | C8: 6.1 | D8: =IF(B8="",NA(),IF(B8*HiddenTrend!$E$27+HiddenTrend!$E$30=0,0,ROUND(B8*HiddenTrend!$E$27+HiddenTrend!$E$30,SigFigs-1-INT(LOG(ABS(B8*HiddenTrend!$E$27+HiddenTrend!$E$30)))))) -> 4.79 | E8: =IF(ISNA(B8),NA(),C8-D8) -> 1.31 | F8: =IF(B8="",NA(),HLOOKUP(A8,HiddenTSBootstrap!$CL$3:$DE$6,4,0)) -> 1.25 | H8: Test statistic (S) | I8: =HiddenTrend!E25 -> -7 | K8: Intercept | L8: =IF(HiddenTrend!E30=0,0,ROUND(HiddenTrend!E30,SigFigs-1-INT(LOG(ABS(HiddenTrend!E30))))) -> 217
A9: 3 | B9: 2018-03-01 | C9: 4.6 | D9: =IF(B9="",NA(),IF(B9*HiddenTrend!$E$27+HiddenTrend!$E$30=0,0,ROUND(B9*HiddenTrend!$E$27+HiddenTrend!$E$30,SigFigs-1-INT(LOG(ABS(B9*HiddenTrend!$E$27+HiddenTrend!$E$30)))))) -> 4.65 | E9: -0.05 | F9: =IF(B9="",NA(),HLOOKUP(A9,HiddenTSBootstrap!$CL$3:$DE$6,4,0)) -> 1.15 | H9: Normalized S | I9: =HiddenTrend!E32 -> -0.9011271138 | K9: When concentration is predicted to achieve the cleanup level | L9: =IF(HiddenTrend!E27=0,"NA",IF(AND(HiddenTrend!E27 < 0,(Data_Input!B16-HiddenTrend!E30)/HiddenTrend!E27 > MAX(Data_Input!D7:'Data_Input'!D26)),(Data_Input!B16-HiddenTrend!E30)/HiddenTrend!E27,"NA")) -> NA
A10: 4 | B10: 2018-04-01 | C10: 4.5 | D10: =IF(B10="",NA(),IF(B10*HiddenTrend!$E$27+HiddenTrend!$E$30=0,0,ROUND(B10*HiddenTrend!$E$27+HiddenTrend!$E$30,SigFigs-1-INT(LOG(ABS(B10*HiddenTrend!$E$27+HiddenTrend!$E$30)))))) -> 4.5 | E10: 0 | F10: =IF(B10="",NA(),HLOOKUP(A10,HiddenTSBootstrap!$CL$3:$DE$6,4,0)) -> 1.08 | H10: Critical value | I10: =_xlfn.NORM.INV(Data_Input!B15,0,1) -> 1.644853627 | K10: When concentration is predicted to exceed the cleanup level | L10: =IF(HiddenTrend!E27=0,"NA",IF(AND(HiddenTrend!E27 > 0,(Data_Input!B16-HiddenTrend!E30)/HiddenTrend!E27 > MAX(Data_Input!D7:'Data_Input'!D26)),(Data_Input!B16-HiddenTrend!E30)/HiddenTrend!E27,"NA")) -> NA
A11: 5 | B11: 2018-05-01 | C11: 5.3 | D11: =IF(B11="",NA(),IF(B11*HiddenTrend!$E$27+HiddenTrend!$E$30=0,0,ROUND(B11*HiddenTrend!$E$27+HiddenTrend!$E$30,SigFigs-1-INT(LOG(ABS(B11*HiddenTrend!$E$27+HiddenTrend!$E$30)))))) -> 4.35 | E11: 0.95 | F11: =IF(B11="",NA(),HLOOKUP(A11,HiddenTSBootstrap!$CL$3:$DE$6,4,0)) -> 1 | H11: Trend type | I11: Nonparametric
A12: 6 | B12: 2018-06-01 | C12: 3.9 | D12: =IF(B12="",NA(),IF(B12*HiddenTrend!$E$27+HiddenTrend!$E$30=0,0,ROUND(B12*HiddenTrend!$E$27+HiddenTrend!$E$30,SigFigs-1-INT(LOG(ABS(B12*HiddenTrend!$E$27+HiddenTrend!$E$30)))))) -> 4.2 | E12: -0.3 | F12: =IF(B12="",NA(),HLOOKUP(A12,HiddenTSBootstrap!$CL$3:$DE$6,4,0)) -> 1
A13: 7 | B13: =IF(DateInput=0,NA(),DateInput) -> 2018-07-01 | C13: 4 | D13: =IF(B13="",NA(),IF(B13*HiddenTrend!$E$27+HiddenTrend!$E$30=0,0,ROUND(B13*HiddenTrend!$E$27+HiddenTrend!$E$30,SigFigs-1-INT(LOG(ABS(B13*HiddenTrend!$E$27+HiddenTrend!$E$30)))))) -> 4.05 | E13: -0.05 | F13: =IF(B13="",NA(),HLOOKUP(A13,HiddenTSBootstrap!$CL$3:$DE$6,4,0)) -> 1
A14: 8 | D14: =IF(B14="",NA(),IF(B14*HiddenTrend!$E$27+HiddenTrend!$E$30=0,0,ROUND(B14*HiddenTrend!$E$27+HiddenTrend!$E$30,SigFigs-1-INT(LOG(ABS(B14*HiddenTrend!$E$27+HiddenTrend!$E$30)))))) ->  | F14: =IF(B14="",NA(),HLOOKUP(A14,HiddenTSBootstrap!$CL$3:$DE$6,4,0)) -> 
A15: 9 | D15: =IF(B15="",NA(),IF(B15*HiddenTrend!$E$27+HiddenTrend!$E$30=0,0,ROUND(B15*HiddenTrend!$E$27+HiddenTrend!$E$30,SigFigs-1-INT(LOG(ABS(B15*HiddenTrend!$E$27+HiddenTrend!$E$30)))))) ->  | F15: =IF(B15="",NA(),HLOOKUP(A15,HiddenTSBootstrap!$CL$3:$DE$6,4,0)) -> 
A16: 10 | D16: =IF(B16="",NA(),IF(B16*HiddenTrend!$E$27+HiddenTrend!$E$30=0,0,ROUND(B16*HiddenTrend!$E$27+HiddenTrend!$E$30,SigFigs-1-INT(LOG(ABS(B16*HiddenTrend!$E$27+HiddenTrend!$E$30)))))) ->  | F16: =IF(B16="",NA(),HLOOKUP(A16,HiddenTSBootstrap!$CL$3:$DE$6,4,0)) -> 
A17: 11 | D17: =IF(B17="",NA(),IF(B17*HiddenTrend!$E$27+HiddenTrend!$E$30=0,0,ROUND(B17*HiddenTrend!$E$27+HiddenTrend!$E$30,SigFigs-1-INT(LOG(ABS(B17*HiddenTrend!$E$27+HiddenTrend!$E$30)))))) ->  | F17: =IF(B17="",NA(),HLOOKUP(A17,HiddenTSBootstrap!$CL$3:$DE$6,4,0)) -> 
A18: 12 | D18: =IF(B18="",NA(),IF(B18*HiddenTrend!$E$27+HiddenTrend!$E$30=0,0,ROUND(B18*HiddenTrend!$E$27+HiddenTrend!$E$30,SigFigs-1-INT(LOG(ABS(B18*HiddenTrend!$E$27+HiddenTrend!$E$30)))))) ->  | F18: =IF(B18="",NA(),HLOOKUP(A18,HiddenTSBootstrap!$CL$3:$DE$6,4,0)) -> 
A19: 13 | D19: =IF(B19="",NA(),IF(B19*HiddenTrend!$E$27+HiddenTrend!$E$30=0,0,ROUND(B19*HiddenTrend!$E$27+HiddenTrend!$E$30,SigFigs-1-INT(LOG(ABS(B19*HiddenTrend!$E$27+HiddenTrend!$E$30)))))) ->  | F19: =IF(B19="",NA(),HLOOKUP(A19,HiddenTSBootstrap!$CL$3:$DE$6,4,0)) -> 
A20: 14 | D20: =IF(B20="",NA(),IF(B20*HiddenTrend!$E$27+HiddenTrend!$E$30=0,0,ROUND(B20*HiddenTrend!$E$27+HiddenTrend!$E$30,SigFigs-1-INT(LOG(ABS(B20*HiddenTrend!$E$27+HiddenTrend!$E$30)))))) ->  | F20: =IF(B20="",NA(),HLOOKUP(A20,HiddenTSBootstrap!$CL$3:$DE$6,4,0)) -> 
A21: 15 | D21: =IF(B21="",NA(),IF(B21*HiddenTrend!$E$27+HiddenTrend!$E$30=0,0,ROUND(B21*HiddenTrend!$E$27+HiddenTrend!$E$30,SigFigs-1-INT(LOG(ABS(B21*HiddenTrend!$E$27+HiddenTrend!$E$30)))))) ->  | F21: =IF(B21="",NA(),HLOOKUP(A21,HiddenTSBootstrap!$CL$3:$DE$6,4,0)) -> 
A22: 16 | D22: =IF(B22="",NA(),IF(B22*HiddenTrend!$E$27+HiddenTrend!$E$30=0,0,ROUND(B22*HiddenTrend!$E$27+HiddenTrend!$E$30,SigFigs-1-INT(LOG(ABS(B22*HiddenTrend!$E$27+HiddenTrend!$E$30)))))) ->  | F22: =IF(B22="",NA(),HLOOKUP(A22,HiddenTSBootstrap!$CL$3:$DE$6,4,0)) -> 
A23: 17 | D23: =IF(B23="",NA(),IF(B23*HiddenTrend!$E$27+HiddenTrend!$E$30=0,0,ROUND(B23*HiddenTrend!$E$27+HiddenTrend!$E$30,SigFigs-1-INT(LOG(ABS(B23*HiddenTrend!$E$27+HiddenTrend!$E$30)))))) ->  | F23: =IF(B23="",NA(),HLOOKUP(A23,HiddenTSBootstrap!$CL$3:$DE$6,4,0)) -> 
A24: 18 | D24: =IF(B24="",NA(),IF(B24*HiddenTrend!$E$27+HiddenTrend!$E$30=0,0,ROUND(B24*HiddenTrend!$E$27+HiddenTrend!$E$30,SigFigs-1-INT(LOG(ABS(B24*HiddenTrend!$E$27+HiddenTrend!$E$30)))))) ->  | F24: =IF(B24="",NA(),HLOOKUP(A24,HiddenTSBootstrap!$CL$3:$DE$6,4,0)) -> 
A25: 19 | D25: =IF(B25="",NA(),IF(B25*HiddenTrend!$E$27+HiddenTrend!$E$30=0,0,ROUND(B25*HiddenTrend!$E$27+HiddenTrend!$E$30,SigFigs-1-INT(LOG(ABS(B25*HiddenTrend!$E$27+HiddenTrend!$E$30)))))) ->  | F25: =IF(B25="",NA(),HLOOKUP(A25,HiddenTSBootstrap!$CL$3:$DE$6,4,0)) -> 
A26: 20 | D26: =IF(B26="",NA(),IF(B26*HiddenTrend!$E$27+HiddenTrend!$E$30=0,0,ROUND(B26*HiddenTrend!$E$27+HiddenTrend!$E$30,SigFigs-1-INT(LOG(ABS(B26*HiddenTrend!$E$27+HiddenTrend!$E$30)))))) ->  | F26: =IF(B26="",NA(),HLOOKUP(A26,HiddenTSBootstrap!$CL$3:$DE$6,4,0)) -> 
B27: =IF(AND(L9="NA",L10="NA"),NA(),IF(L9="NA",L10,L9)) ->  | D27: =IF(B27="",NA(),Data_Input!B16) ->  | E27: Cleanup
B29: Select Axis Values and press "Reset Axes" to see future trends.
B31: Axis Values
B32: Time | D32: Concentration
B33: Min | C33: Max | D33: Min | E33: Max
B34: AUTO | C34: AUTO | D34: AUTO | E34: AUTO

Sheet UCL-Normal (hidden)
A1: =Data_Input!A1 -> Groundwater Statistics Tool
A2: UCL calculations for normal data sets
A4: Confidence Level | B4: =Data_Input!B15 -> 0.95
A5: Cleanup level | B5: =Data_Input!B16 -> 5
A6: Source of cleanup level | B6: =Data_Input!B17 -> MCL
A7: Number of results | B7: =DataTransforms!AI4 -> 7
A8: Number < cleanup level | B8: =COUNTIF(ConcInput,"<"&Data_Input!B16) -> 5
A9: Number of non-detects present | B9: =Data_Input!B25 -> 0
A10: Are any potential outliers present? | B10: =IF(OR(Outliers!B10="Yes",Outliers!C10="Yes"),"Yes","No") -> No
A11: Distribution Type | B11: Normal
A12: Method for calculating UCL | B12: Student's t UCL
A14: Mean of concentration | B14: =ROUND(DataTransforms!AJ32,SigFigs-1-INT(LOG(DataTransforms!AJ32))) -> 4.67
A15: Standard deviation of concentration | B15: =ROUND(DataTransforms!AJ33,SigFigs-1-INT(LOG(DataTransforms!AJ33))) -> 0.78
A16: t-value for UCL calculation | B16: =TINV((1-B4)*2,B7-1) -> 1.943180281
A17: =TEXT(B4,"0%") & " Upper Confidence Limit (UCL)" -> 95% Upper Confidence Limit (UCL) | B17: =ROUND(B14+B16*B15/SQRT(B7),SigFigs-1-INT(LOG(B14+B16*B15/SQRT(B7)))) -> 5.24
A18: ="Is the " & TEXT(B4, "0%") & " UCL greater than the cleanup level?" -> Is the 95% UCL greater than the cleanup level? | B18: =IF(B17>B5, "Yes", "No") -> Yes

Sheet UCL-NP (hidden)
A1: =Data_Input!A1 -> Groundwater Statistics Tool
A2: UCL calculations for nonparametric data sets
A4: Confidence Level | B4: =Data_Input!B15 -> 0.95
A5: Cleanup level | B5: =Data_Input!B16 -> 5
A6: Source of cleanup level | B6: =Data_Input!B17 -> MCL
A7: Number of results | B7: =DataTransforms!AI4 -> 7
A8: Number < cleanup level | B8: =COUNTIF(ConcInput,"<"&Data_Input!B16) -> 5
A9: Number of non-detects | B9: =Data_Input!B25 -> 0
A10: Are any potential outliers present? | B10: =IF(OR(Outliers!B10="Yes",Outliers!C10="Yes"),"Yes","No") -> No
A11: Distrbution Type | B11: Nonparametric
A12: Method for calculating UCL | B12: Chebyshev UCL
A14: Mean of concentration | B14: =ROUND(DataTransforms!AJ32,SigFigs-1-INT(LOG(DataTransforms!AJ32))) -> 4.67
A15: Standard deviation of concentration | B15: =ROUND(DataTransforms!AJ33,SigFigs-1-INT(LOG(DataTransforms!AJ33))) -> 0.78
A16: =TEXT(B4,"0%") & " Upper Confidence Limit (UCL)" -> 95% Upper Confidence Limit (UCL) | B16: =ROUND(B14+SQRT(1/(1-B4)-1)*B15/SQRT(B7),SigFigs-1-INT(LOG(B14+SQRT(1/(1-B4)-1)*B15/SQRT(B7)))) -> 5.96
A17: ="Is the " & TEXT(B4, "0%") & " UCL greater than the cleanup level?" -> Is the 95% UCL greater than the cleanup level? | B17: =IF(B16>B5, "Yes", "No") -> Yes

Sheet UCL-NP-ND (hidden)
A1: =Data_Input!A1 -> Groundwater Statistics Tool
A2: UCL calculations data sets with non-detects | I2: Data, including imputed values
A4: Confidence Level | B4: =Data_Input!B15 -> 0.95 | I4: =Data_Input!D4 -> Date (Date) | J4: =Data_Input!E4 -> VC Conc. (ug/L) | K4: =Data_Input!F4 -> Data Qualifier | L4: Imputed value*
A5: Cleanup level | B5: =Data_Input!B16 -> 5
A6: Source of cleanup level | B6: =Data_Input!B17 -> MCL
A7: Number of results | B7: =DataTransforms!AI4 -> 7 | I7: =IF(Data_Input!D7="","",Data_Input!D7) -> 2018-01-01 | J7: =IF(Data_Input!E7="","",Data_Input!E7) -> 4.3 | K7: =IF(Data_Input!F7="","",Data_Input!F7) ->  | L7: =IF(OR(Data_Input!G7="Yes",Data_Input!G7=""),J7,ConcImputeds) -> 4.3
A8: Number of detected results | B8: =B7-B9 -> 7 | I8: =IF(Data_Input!D8="","",Data_Input!D8) -> 2018-02-01 | J8: =IF(Data_Input!E8="","",Data_Input!E8) -> 6.1 | K8: =IF(Data_Input!F8="","",Data_Input!F8) ->  | L8: =IF(OR(Data_Input!G8="Yes",Data_Input!G8=""),J8,ConcImputeds) -> 6.1
A9: Number of non-detected results | B9: =COUNT(HiddenInput!L7:L26) -> 0 | I9: =IF(Data_Input!D9="","",Data_Input!D9) -> 2018-03-01 | J9: =IF(Data_Input!E9="","",Data_Input!E9) -> 4.6 | K9: =IF(Data_Input!F9="","",Data_Input!F9) ->  | L9: =IF(OR(Data_Input!G9="Yes",Data_Input!G9=""),J9,ConcImputeds) -> 4.6
A10: Detection frequency | B10: =B8/B7 -> 1 | I10: =IF(Data_Input!D10="","",Data_Input!D10) -> 2018-04-01 | J10: =IF(Data_Input!E10="","",Data_Input!E10) -> 4.5 | K10: =IF(Data_Input!F10="","",Data_Input!F10) ->  | L10: =IF(OR(Data_Input!G10="Yes",Data_Input!G10=""),J10,ConcImputeds) -> 4.5
A11: Number at or below cleanup level | B11: =COUNTIF(ConcInput,"<="&Data_Input!B16) -> 5 | I11: =IF(Data_Input!D11="","",Data_Input!D11) -> 2018-05-01 | J11: =IF(Data_Input!E11="","",Data_Input!E11) -> 5.3 | K11: =IF(Data_Input!F11="","",Data_Input!F11) ->  | L11: =IF(OR(Data_Input!G11="Yes",Data_Input!G11=""),J11,ConcImputeds) -> 5.3
A12: Are any potential outliers present? | B12: =IF(OR(Outliers!B10="Yes",Outliers!C10="Yes"),"Yes","No") -> No | I12: =IF(Data_Input!D12="","",Data_Input!D12) -> 2018-06-01 | J12: =IF(Data_Input!E12="","",Data_Input!E12) -> 3.9 | K12: =IF(Data_Input!F12="","",Data_Input!F12) ->  | L12: =IF(OR(Data_Input!G12="Yes",Data_Input!G12=""),J12,ConcImputeds) -> 3.9
A13: Distribution type | B13: Nonparametric | I13: =IF(Data_Input!D13="","",Data_Input!D13) -> 2018-07-01 | J13: =IF(Data_Input!E13="","",Data_Input!E13) -> 4 | K13: =IF(Data_Input!F13="","",Data_Input!F13) ->  | L13: =IF(OR(Data_Input!G13="Yes",Data_Input!G13=""),J13,ConcImputeds) -> 4
A14: Method for calculating UCL | B14: KM Chebyshev UCL | I14: =IF(Data_Input!D14="","",Data_Input!D14) ->  | J14: =IF(Data_Input!E14="","",Data_Input!E14) ->  | K14: =IF(Data_Input!F14="","",Data_Input!F14) ->  | L14: =IF(OR(Data_Input!G14="Yes",Data_Input!G14=""),J14,ConcImputeds) -> 
I15: =IF(Data_Input!D15="","",Data_Input!D15) ->  | J15: =IF(Data_Input!E15="","",Data_Input!E15) ->  | K15: =IF(Data_Input!F15="","",Data_Input!F15) ->  | L15: =IF(OR(Data_Input!G15="Yes",Data_Input!G15=""),J15,ConcImputeds) -> 
A16: Mean of concentration | B16: =KM_Mean -> 27.9 | I16: =IF(Data_Input!D16="","",Data_Input!D16) ->  | J16: =IF(Data_Input!E16="","",Data_Input!E16) ->  | K16: =IF(Data_Input!F16="","",Data_Input!F16) ->  | L16: =IF(OR(Data_Input!G16="Yes",Data_Input!G16=""),J16,ConcImputeds) -> 
A17: Standard deviation of concentration | B17: =KM_SD -> 16.1 | I17: =IF(Data_Input!D17="","",Data_Input!D17) ->  | J17: =IF(Data_Input!E17="","",Data_Input!E17) ->  | K17: =IF(Data_Input!F17="","",Data_Input!F17) ->  | L17: =IF(OR(Data_Input!G17="Yes",Data_Input!G17=""),J17,ConcImputeds) -> 
A18: =TEXT(B4,"0%") & " Upper Confidence Limit (UCL)" -> 95% Upper Confidence Limit (UCL) | B18: =KM_Cheb95 -> 55.7 | I18: =IF(Data_Input!D18="","",Data_Input!D18) ->  | J18: =IF(Data_Input!E18="","",Data_Input!E18) ->  | K18: =IF(Data_Input!F18="","",Data_Input!F18) ->  | L18: =IF(OR(Data_Input!G18="Yes",Data_Input!G18=""),J18,ConcImputeds) -> 
A19: ="Is the " & TEXT(B4, "0%") & " UCL greater than the cleanup level?" -> Is the 95% UCL greater than the cleanup level? | B19: =IF(B18>B5, "Yes", "No") -> Yes | I19: =IF(Data_Input!D19="","",Data_Input!D19) ->  | J19: =IF(Data_Input!E19="","",Data_Input!E19) ->  | K19: =IF(Data_Input!F19="","",Data_Input!F19) ->  | L19: =IF(OR(Data_Input!G19="Yes",Data_Input!G19=""),J19,ConcImputeds) -> 
I20: =IF(Data_Input!D20="","",Data_Input!D20) ->  | J20: =IF(Data_Input!E20="","",Data_Input!E20) ->  | K20: =IF(Data_Input!F20="","",Data_Input!F20) ->  | L20: =IF(OR(Data_Input!G20="Yes",Data_Input!G20=""),J20,ConcImputeds) -> 
I21: =IF(Data_Input!D21="","",Data_Input!D21) ->  | J21: =IF(Data_Input!E21="","",Data_Input!E21) ->  | K21: =IF(Data_Input!F21="","",Data_Input!F21) ->  | L21: =IF(OR(Data_Input!G21="Yes",Data_Input!G21=""),J21,ConcImputeds) -> 
I22: =IF(Data_Input!D22="","",Data_Input!D22) ->  | J22: =IF(Data_Input!E22="","",Data_Input!E22) ->  | K22: =IF(Data_Input!F22="","",Data_Input!F22) ->  | L22: =IF(OR(Data_Input!G22="Yes",Data_Input!G22=""),J22,ConcImputeds) -> 
I23: =IF(Data_Input!D23="","",Data_Input!D23) ->  | J23: =IF(Data_Input!E23="","",Data_Input!E23) ->  | K23: =IF(Data_Input!F23="","",Data_Input!F23) ->  | L23: =IF(OR(Data_Input!G23="Yes",Data_Input!G23=""),J23,ConcImputeds) -> 
I24: =IF(Data_Input!D24="","",Data_Input!D24) ->  | J24: =IF(Data_Input!E24="","",Data_Input!E24) ->  | K24: =IF(Data_Input!F24="","",Data_Input!F24) ->  | L24: =IF(OR(Data_Input!G24="Yes",Data_Input!G24=""),J24,ConcImputeds) -> 
I26: =IF(Data_Input!D25="","",Data_Input!D25) ->  | J26: =IF(Data_Input!E25="","",Data_Input!E25) ->  | K26: =IF(Data_Input!F25="","",Data_Input!F25) ->  | L26: =IF(OR(Data_Input!G25="Yes",Data_Input!G25=""),J26,ConcImputeds) -> 
I27: * Note that the imputed value column also includes the actual value for detected samples. This is for convenience in copying and pasting the data.
I29: Random Seed Used | K29: =Data_Input!B20 -> 62311.42188

Sheet Version Notes (hidden)
A1: Version | B1: Date | C1: Changes
A2: 1.0 | C2: Original Version
A3: 1.1 | B3: 2016-02-09 | C3: Added version comments tracking sheet Added Site Summary sheets Changed graphs on UCL sheets Minor edits to all other sheets (reorganizing cells, resizing graphs, etc)
A4: 2.0 | B4: 2018-09-11 | C4: Added estimated timeframe analysis Added color coding Minor edits Removed Examples 4 and 11 from Example Data sheet

Sheet Normality (hidden)
A1: =Data_Input!A1 -> Groundwater Statistics Tool
A2: Normality Testing Worksheet
A4: Normality Test Results
A5: Parameter | B5: All Data | C5: Minus Outliers | D5: Residuals
A7: Number of data points | B7: =Data_Input!B23 -> 7 | C7: =B7-COUNTIF(Outliers!B10:C10,"=Yes") -> 7 | D7: =B7 -> 7
A8: Shapiro-Wilk alpha value | B8: =IF(COUNT(HiddenNormal2!A7:A26)<10,0.1,IF(COUNT(HiddenNormal2!A7:A26)<20,0.05,0.01)) -> 0.1 | C8: =IF(COUNTIF(Outliers!B10:C10,"Yes")=0,"N/A",IF(COUNT(HiddenNormal2!M7:M26)<10,0.1,IF(COUNT(HiddenNormal2!M7:M26)<20,0.05,0.01))) -> N/A | D8: =DataTransforms!AM5 -> 0.1
A9: Slope | B9: =SLOPE(HiddenNormal2!E7:E26,HiddenNormal2!D7:D26) -> 0.9318147836 | C9: =IF(COUNTIF(Outliers!B10:C10,"Yes")=0,"N/A",SLOPE(HiddenNormal2!Q7:Q26,HiddenNormal2!P7:P26)) -> N/A | D9: =DataTransforms!AM6 -> 0.828978705
A10: Intercept | B10: =INTERCEPT(HiddenNormal2!E7:E26,HiddenNormal2!D7:D26) -> 4.671428571 | C10: =IF(COUNTIF(Outliers!B10:C10,"Yes")=0,"N/A",INTERCEPT(HiddenNormal2!Q7:Q26,HiddenNormal2!P7:P26)) -> N/A | D10: =DataTransforms!AM7 -> -3.172065785e-17
A11: Correlation, R | B11: =SQRT(RSQ(HiddenNormal2!E7:E26,HiddenNormal2!D7:D26)) -> 0.94513933 | C11: =IF(COUNTIF(Outliers!B10:C10,"Yes")=0,"N/A",SQRT(RSQ(HiddenNormal2!Q7:Q26,HiddenNormal2!P7:P26))) -> N/A | D11: =DataTransforms!AM8 -> 0.9428260455
A12: Test statistic | B12: =HiddenNormal1!H3 -> 0.8938561015 | C12: =IF(COUNTIF(Outliers!B10:C10,"Yes")=0,"N/A",HiddenNormal1!H25) -> N/A | D12: =DataTransforms!AM9 -> 0.8914448321
A13: Critical value | B13: =VLOOKUP(HiddenNormal2!J10,HiddenNormal1!K$27:N$44,MATCH(B$8,HiddenNormal1!L$26:N$26,0)+1,0) -> 0.838 | C13: =IF(COUNTIF(Outliers!B10:C10,"Yes")=0,"N/A",VLOOKUP(HiddenNormal2!V10,HiddenNormal1!K$27:N$44,MATCH(C$8,HiddenNormal1!L$26:N$26,0)+1,0)) -> N/A | D13: =DataTransforms!AM10 -> 0.838
A14: Sample distribution: | B14: =IF(B12<B13,"Does not appear normal", "Appears normal") -> Appears normal | C14: =IF(COUNTIF(Outliers!B10:C10,"Yes")=0,"N/A",IF(C12<C13,"Does not appear normal","Appears normal")) -> N/A | D14: =IF(D12<D13,"Does not appear normal", "Appears normal") -> Appears normal

Sheet DataTransforms (hidden)
A1: Transformation: | C1: 1 | D1: Untransformed | K1: Start Row | M1: =(C1-1)*25+28 -> 28 | W1: For plots | AC1: Normality of residuals | AM1: No | AO1: Successful tranformation? | AR1: =IF(COUNTIF(AR3:AR11,"=Yes"),"Yes","No") -> Yes
A2: i | B2: t | C2: C | D2: tt | E2: tC | F2: CC | G2: (T-t)^2 | H2: (C-c)^2 | I2: (T-t)(C-c) | J2: C-predicted - transform space | K2: Residual (C-Cpred) | L2: Squared Residual | M2: LCL - transform space | N2: UCL - transform space | O2: C-predicted - backtransformed | P2: UCL - backtransformed | Q2: Residual Rank | R2: Ordered Residual Rank | S2: Percentile | T2: Cumulative Probability | U2: Quantile * | V2: Ordered Residual | W2: Quantile * | X2: Ordered Residual | Y2: t | Z2: C | AA2: C-predicted - backtransformed | AB2: UCL - backtransformed | AC2: x(n-i+1) | AD2: X(n-i+1)-x(i) | AE2: a(n-i+1) | AF2: b(i) | AO2: Fit type | AP2: Normal? | AQ2: Neg Conc? | AR2: Usable?
A3: 1 | B3: =OFFSET(B$1,$M$1+$A3-1,0,1,1) -> 43101 | C3: =OFFSET(C$1,$M$1+$A3-1,0,1,1) -> 4.3 | D3: 1857696201 | E3: 185334.3 | F3: 18.49 | G3: 8151.510204 | H3: 0.1379591837 | I3: 33.53469388 | J3: 5.160917217 | K3: -0.8609172169 | L3: 0.7411784544 | M3: 3.73419461 | N3: 6.587639824 | O3: 5.160917217 | P3: 6.587639824 | Q3: 1 | R3: 1 | S3: =OFFSET(S$1,$M$1+$A3-1,0,1,1) -> 7.142857143 | T3: 0.125 | U3: -1.15034938 | V3: -0.8609172169 | W3: -1.15034938 | X3: -0.8609172169 | Y3: 43101 | Z3: 4.3 | AA3: 5.160917217 | AB3: 6.587639824 | AC3: 1.107150878 | AD3: 1.968068095 | AE3: 0.6233 | AF3: 1.226696844 | AH3: General Statistics | AI3: Time | AJ3: Conc | AL3: Parameter | AM3: Residuals | AO3: None | AP3: =AM37 -> Yes | AQ3: =AM38 -> No | AR3: =IF(AND(AP3="Yes", AQ3="No"),"Yes","No") -> Yes
A4: 2 | B4: =OFFSET(B$1,$M$1+$A4-1,0,1,1) -> 43132 | C4: 6.1 | D4: 1860369424 | E4: 263105.2 | F4: 37.21 | G4: 3514.795918 | H4: 2.040816327 | I4: -84.69387755 | J4: 4.992849122 | K4: 1.107150878 | L4: 1.225783067 | M4: 3.881652109 | N4: 6.104046135 | O4: 4.992849122 | P4: 6.104046135 | Q4: 7 | R4: 2 | S4: 21.42857143 | T4: 0.25 | U4: -0.6744897502 | V4: -0.4422629475 | W4: -0.6744897502 | X4: -0.4422629475 | Y4: 43132 | Z4: 6.1 | AA4: 4.992849122 | AB4: 6.104046135 | AC4: 0.7896689575 | AD4: 1.231931905 | AE4: 0.3031 | AF4: 0.3733985604 | AH4: N | AI4: =COUNT(B3:B22) -> 7 | AJ4: =COUNT(C3:C22) -> 7 | AL4: b | AM4: =SUM(AF3:AF22) -> 1.609631744
A5: 3 | B5: 43160 | C5: 4.6 | D5: 1862785600 | E5: 198536 | F5: 21.16 | G5: 978.7959184 | H5: 0.005102040816 | I5: 2.234693878 | J5: 4.841045681 | K5: -0.2410456812 | L5: 0.05810302043 | M5: 3.948419368 | N5: 5.733671994 | O5: 4.841045681 | P5: 5.733671994 | Q5: 3 | R5: 3 | S5: 35.71428571 | T5: 0.375 | U5: -0.318639364 | V5: -0.2410456812 | W5: -0.318639364 | X5: -0.2410456812 | Y5: 43160 | Z5: 4.6 | AA5: 4.841045681 | AB5: 5.733671994 | AC5: -0.1729775861 | AD5: 0.0680680951 | AE5: 0.1401 | AF5: 0.009536340124 | AH5: Sum | AI5: =SUM(B3:B22) -> 302339 | AJ5: =SUM(C3:C22) -> 32.7 | AL5: Shapiro-Wilk alpha value | AM5: =IF(AJ4<10,0.1,IF(AJ4<20,0.05,0.01)) -> 0.1
A6: 4 | B6: 43191 | C6: 4.5 | D6: 1865462481 | E6: 194359.5 | F6: 20.25 | G6: 0.08163265306 | H6: 0.0293877551 | I6: 0.04897959184 | J6: 4.672977586 | K6: -0.1729775861 | L6: 0.02992124529 | M6: 3.880668322 | N6: 5.46528685 | O6: 4.672977586 | P6: 5.46528685 | Q6: 5 | R6: 4 | S6: 50 | T6: 0.5 | U6: 0 | V6: -0.1796164039 | W6: 0 | X6: -0.1796164039 | Y6: 43191 | Z6: 4.5 | AA6: 4.672977586 | AB6: 5.46528685 | AC6: -0.1796164039 | AD6: 0 | AE6: 0 | AF6: 0 | AH6: Mean | AI6: =AI5/AI4 -> 43191.28571 | AJ6: =AJ5/AI4 -> 4.671428571 | AL6: Slope | AM6: =SLOPE(V3:V22,U3:U22) -> 0.828978705
A7: 5 | B7: 43221 | C7: 5.3 | D7: 1868054841 | E7: 229071.3 | F7: 28.09 | G7: 882.9387755 | H7: 0.3951020408 | I7: 18.67755102 | J7: 4.510331043 | K7: 0.7896689575 | L7: 0.6235770624 | M7: 3.627026546 | N7: 5.393635539 | O7: 4.510331043 | P7: 5.393635539 | Q7: 6 | R7: 5 | S7: 64.28571429 | T7: 0.625 | U7: 0.318639364 | V7: -0.1729775861 | W7: 0.318639364 | X7: -0.1729775861 | Y7: 43221 | Z7: 5.3 | AA7: 4.510331043 | AB7: 5.393635539 | AC7: -0.2410456812 | AD7: -0.0680680951 | AE7: 0 | AF7: 0 | AH7: Standard deviation | AI7: =SQRT(G23/(AI4-1)) -> 65.11967006 | AJ7: =SQRT(H23/(AI4-1)) -> 0.78041503 | AL7: Intercept | AM7: =INTERCEPT(V3:V22,U3:U22) -> -3.172065785e-17
A8: 6 | B8: 43252 | C8: 3.9 | D8: 1870735504 | E8: 168682.8 | F8: 15.21 | G8: 3686.22449 | H8: 0.5951020408 | I8: -46.83673469 | J8: 4.342262947 | K8: -0.4422629475 | L8: 0.1955965147 | M8: 3.217823006 | N8: 5.466702889 | O8: 4.342262947 | P8: 5.466702889 | Q8: 2 | R8: 6 | S8: 78.57142857 | T8: 0.75 | U8: 0.6744897502 | V8: 0.7896689575 | W8: 0.6744897502 | X8: 0.7896689575 | Y8: 43252 | Z8: 3.9 | AA8: 4.342262947 | AB8: 5.466702889 | AC8: -0.4422629475 | AD8: -1.231931905 | AE8: 0 | AF8: 0 | AL8: Correlation, R | AM8: =SQRT(RSQ(V3:V22,U3:U22)) -> 0.9428260455
A9: 7 | B9: 43282 | C9: 4 | D9: 1873331524 | E9: 173128 | F9: 16 | G9: 8229.081633 | H9: 0.4508163265 | I9: -60.90816327 | J9: 4.179616404 | K9: -0.1796164039 | L9: 0.03226205255 | M9: 2.748206509 | N9: 5.611026298 | O9: 4.179616404 | P9: 5.611026298 | Q9: 4 | R9: 7 | S9: 92.85714286 | T9: 0.875 | U9: 1.15034938 | V9: 1.107150878 | W9: 1.15034938 | X9: 1.107150878 | Y9: 43282 | Z9: 4 | AA9: 4.179616404 | AB9: 5.611026298 | AC9: -0.8609172169 | AD9: -1.968068095 | AE9: 0 | AF9: 0 | AL9: Exact Shapiro-Wilk test value | AM9: =(AM4/(STDEV(V3:V22)*SQRT(AJ4-1)))^2 -> 0.8914448321
A10: 8 | AL10: Critical Value | AM10: =VLOOKUP(AJ4,HiddenNormal1!K$27:N$44,MATCH(AM5,HiddenNormal1!L$26:N$26,0)+1,0) -> 0.838
A11: 9 | AL11: Fit normal? | AM11: =IF(AM9<AM10,"No", "Yes") -> Yes
A12: 10 | AL12: Negative conc? | AM12: =IF(COUNTIF(O3:P22,"<0")>0,"Yes","No") -> No
A13: 11
A14: 12 | AL14: Regression Statistics | AM14: Value
A15: 13 | Q15: =OFFSET(Q$1,$M$1+$A15-1,0,1,1) ->  | AL15: Sxx | AM15: =G23 -> 25443.42857
A16: 14 | J16: =OFFSET(J$1,$M$1+$A16-1,0,1,1) ->  | AL16: Sxy | AM16: =I23 -> -137.9428571
A17: 15 | AL17: Syy | AM17: =H23 -> 3.654285714
A18: 16 | AL18: slope (b) | AM18: =AM16/AM15 -> -0.005421551453
A19: 17 | AL19: y intercept | AM19: =C24-AM18*B24 -> 238.8352064
A20: 18 | B20: =OFFSET(B$1,$M$1+$A20-1,0,1,1) ->  | AL20: MSE | AM20: =L23/(AI4-2) -> 0.5812842833
A21: 19 | B21: =OFFSET(B$1,$M$1+$A21-1,0,1,1) ->  | AL21: SE | AM21: =SQRT(AM20/G23) -> 0.004779764218
A22: 20 | B22: =OFFSET(B$1,$M$1+$A22-1,0,1,1) ->  | AL22: tb | AM22: =AM18/AM21 -> -1.134271735
A23: Sum | B23: =SUM(B3:B22) -> 302339 | C23: 32.7 | D23: 13058435575 | E23: 1412217.1 | F23: 156.41 | G23: 25443.42857 | H23: 3.654285714 | I23: -137.9428571 | L23: =SUM(L3:L22) -> 2.906421417
A24: Mean | B24: =IF(COUNT(B3:B22)>0,B23/COUNT(B3:B22),"") -> 43191.28571 | C24: =IF(COUNT(C3:C22)>0,C23/COUNT(C3:C22),"") -> 4.671428571
A27: Untransformed Data | W27: For plots | AC27: Normality of residuals
A28: i | B28: t | C28: C | D28: tt | E28: tC | F28: CC | G28: (T-t)^2 | H28: (C-c)^2 | I28: (T-t)(C-c) | J28: C-predicted - transform space | K28: Residual (C-Cpred) | L28: Squared Residual | M28: LCL - transform space | N28: UCL - transform space | O28: C-predicted - backtransformed | P28: UCL - backtransformed | Q28: Residual Rank | R28: Ordered Residual Rank | S28: Percentile | T28: Cumulative Probability | U28: Quantile * | V28: Ordered Residual | W28: Quantile * | X28: Ordered Residual | Y28: t | Z28: C | AA28: C-predicted | AB28: UCL | AC28: x(n-i+1) | AD28: X(n-i+1)-x(i) | AE28: a(n-i+1) | AF28: b(i)
A29: 1 | B29: =IF(Data_Input!D7="","",Data_Input!D7) -> 43101 | C29: =IF(Data_Input!E7="","",HiddenInput!R7) -> 4.3 | D29: =IF(B29="","",B29^2) -> 1857696201 | E29: =IF(OR(B29="",C29=""),"",B29*C29) -> 185334.3 | F29: =IF(C29="","",C29^2) -> 18.49 | G29: =IF(B29="","",(B29-B$50)^2) -> 8151.510204 | H29: =IF(B29="","",(C29-C$50)^2) -> 0.1379591837 | I29: =IF(B29="","",(B29-B$24)*(C29-C$24)) -> 33.53469388 | J29: =IF(B29="","",B29*AM$44+AM$45) -> 5.160917217 | K29: =IF(B29="","",ROUND(C29-J29,10)) -> -0.8609172169 | L29: =IF(B29="","",K29^2) -> 0.7411784544 | M29: =IF(C29="","",J29-SQRT(2*AM$46*FINV((1-Data_Input!B$15)*2,2,AJ$4-2)*(1/AJ$4+G29/((AJ$4-1)*AI$33^2)))) -> 3.73419461 | N29: =IF(C29="","",J29+SQRT(2*AM$46*FINV((1-Data_Input!B$15)*2,2,AJ$4-2)*(1/AJ$4+G29/((AJ$4-1)*AI$33^2)))) -> 6.587639824 | O29: =J29 -> 5.160917217 | P29: =N29 -> 6.587639824 | Q29: =IF(B29="","",RANK(K29,K$29:K$48,1)+COUNTIF(K29:K$48,K29)-1) -> 1 | R29: =IF(B29="","",A29) -> 1 | S29: =IF(R29="","",100/AJ$4*(R29-0.5)) -> 7.142857143 | T29: =IF(R29="","",R29/(AJ$4+1)) -> 0.125 | U29: =IF(R29="","",NORMINV(T29,0,1)) -> -1.15034938 | V29: =IF(B29="","",INDEX(K$29:K$48,MATCH(R29,Q$29:Q$48,0))) -> -0.8609172169 | W29: =IF(R29="",NA(),U29) -> -1.15034938 | X29: =IF(B29="",NA(),V29) -> -0.8609172169 | Y29: =IF(B29="",NA(),B29) -> 43101 | Z29: =IF(C29="",NA(),C29) -> 4.3 | AA29: =IF(J29="",NA(),J29) -> 5.160917217 | AB29: =IF(N29="",NA(),N29) -> 6.587639824 | AC29: =IF(A29>AJ$4,"",OFFSET(V$28,AJ$4-A29+1,0,1,1)) -> 1.107150878 | AD29: =IF(C29="","",AC29-V29) -> 1.968068095 | AE29: =IF(C29="","",IF(AD29>=0,OFFSET(HiddenNormal1!K$3,A29,AJ$4-1,1,1),0)) -> 0.6233 | AF29: =IF(C29="","",AE29*AD29) -> 1.226696844 | AH29: General Statistics | AI29: Time | AJ29: Conc | AL29: Residual Parameters | AM29: Values
A30: 2 | B30: =IF(Data_Input!D8="","",Data_Input!D8) -> 43132 | C30: =IF(Data_Input!E8="","",HiddenInput!R8) -> 6.1 | D30: =IF(B30="","",B30^2) -> 1860369424 | E30: =IF(OR(B30="",C30=""),"",B30*C30) -> 263105.2 | F30: =IF(C30="","",C30^2) -> 37.21 | G30: =IF(B30="","",(B30-B$50)^2) -> 3514.795918 | H30: =IF(B30="","",(C30-C$50)^2) -> 2.040816327 | I30: =IF(B30="","",(B30-B$24)*(C30-C$24)) -> -84.69387755 | J30: 4.992849122 | K30: =IF(B30="","",ROUND(C30-J30,10)) -> 1.107150878 | L30: 1.225783067 | M30: =IF(C30="","",J30-SQRT(2*AM$46*FINV((1-Data_Input!B$15)*2,2,AJ$4-2)*(1/AJ$4+G30/((AJ$4-1)*AI$33^2)))) -> 3.881652109 | N30: =IF(C30="","",J30+SQRT(2*AM$46*FINV((1-Data_Input!B$15)*2,2,AJ$4-2)*(1/AJ$4+G30/((AJ$4-1)*AI$33^2)))) -> 6.104046135 | O30: =J30 -> 4.992849122 | P30: =N30 -> 6.104046135 | Q30: =IF(B30="","",RANK(K30,K$29:K$48,1)+COUNTIF(K30:K$48,K30)-1) -> 7 | R30: =IF(B30="","",A30) -> 2 | S30: 21.42857143 | T30: 0.25 | U30: =IF(R30="","",NORMINV(T30,0,1)) -> -0.6744897502 | V30: =IF(B30="","",INDEX(K$29:K$48,MATCH(R30,Q$29:Q$48,0))) -> -0.4422629475 | W30: =IF(R30="",NA(),U30) -> -0.6744897502 | X30: =IF(B30="",NA(),V30) -> -0.4422629475 | Y30: =IF(B30="",NA(),B30) -> 43132 | Z30: =IF(C30="",NA(),C30) -> 6.1 | AA30: =IF(J30="",NA(),J30) -> 4.992849122 | AB30: =IF(N30="",NA(),N30) -> 6.104046135 | AC30: =IF(A30>AJ$4,"",OFFSET(V$28,AJ$4-A30+1,0,1,1)) -> 0.7896689575 | AD30: =IF(C30="","",AC30-V30) -> 1.231931905 | AE30: =IF(C30="","",IF(AD30>=0,OFFSET(HiddenNormal1!K$3,A30,AJ$4-1,1,1),0)) -> 0.3031 | AF30: =IF(C30="","",AE30*AD30) -> 0.3733985604 | AH30: N | AI30: =COUNT(B29:B48) -> 7 | AJ30: =COUNT(C29:C48) -> 7 | AL30: b | AM30: =SUM(AF29:AF48) -> 1.609631744
A31: 3 | B31: =IF(Data_Input!D9="","",Data_Input!D9) -> 43160 | C31: =IF(Data_Input!E9="","",HiddenInput!R9) -> 4.6 | D31: 1862785600 | E31: 198536 | F31: 21.16 | G31: 978.7959184 | H31: 0.005102040816 | I31: 2.234693878 | J31: 4.841045681 | K31: -0.2410456812 | L31: 0.05810302043 | M31: =IF(C31="","",J31-SQRT(2*AM$46*FINV((1-Data_Input!B$15)*2,2,AJ$4-2)*(1/AJ$4+G31/((AJ$4-1)*AI$33^2)))) -> 3.948419368 | N31: =IF(C31="","",J31+SQRT(2*AM$46*FINV((1-Data_Input!B$15)*2,2,AJ$4-2)*(1/AJ$4+G31/((AJ$4-1)*AI$33^2)))) -> 5.733671994 | O31: 4.841045681 | P31: 5.733671994 | Q31: =IF(B31="","",RANK(K31,K$29:K$48,1)+COUNTIF(K31:K$48,K31)-1) -> 3 | R31: 3 | S31: 35.71428571 | T31: 0.375 | U31: -0.318639364 | V31: -0.2410456812 | W31: -0.318639364 | X31: -0.2410456812 | Y31: 43160 | Z31: 4.6 | AA31: 4.841045681 | AB31: 5.733671994 | AC31: -0.1729775861 | AD31: 0.0680680951 | AE31: =IF(C31="","",IF(AD31>=0,OFFSET(HiddenNormal1!K$3,A31,AJ$4-1,1,1),0)) -> 0.1401 | AF31: 0.009536340124 | AH31: Sum | AI31: =SUM(B29:B48) -> 302339 | AJ31: =SUM(C29:C48) -> 32.7 | AL31: Shapiro-Wilk alpha value | AM31: =IF(AJ30<10,0.1,IF(AJ30<20,0.05,0.01)) -> 0.1
A32: 4 | B32: =IF(Data_Input!D10="","",Data_Input!D10) -> 43191 | C32: =IF(Data_Input!E10="","",HiddenInput!R10) -> 4.5 | D32: 1865462481 | E32: 194359.5 | F32: 20.25 | G32: 0.08163265306 | H32: 0.0293877551 | I32: 0.04897959184 | J32: 4.672977586 | K32: -0.1729775861 | L32: 0.02992124529 | M32: =IF(C32="","",J32-SQRT(2*AM$46*FINV((1-Data_Input!B$15)*2,2,AJ$4-2)*(1/AJ$4+G32/((AJ$4-1)*AI$33^2)))) -> 3.880668322 | N32: =IF(C32="","",J32+SQRT(2*AM$46*FINV((1-Data_Input!B$15)*2,2,AJ$4-2)*(1/AJ$4+G32/((AJ$4-1)*AI$33^2)))) -> 5.46528685 | O32: 4.672977586 | P32: 5.46528685 | Q32: =IF(B32="","",RANK(K32,K$29:K$48,1)+COUNTIF(K32:K$48,K32)-1) -> 5 | R32: 4 | S32: 50 | T32: 0.5 | U32: 0 | V32: -0.1796164039 | W32: 0 | X32: -0.1796164039 | Y32: 43191 | Z32: 4.5 | AA32: 4.672977586 | AB32: 5.46528685 | AC32: -0.1796164039 | AD32: 0 | AE32: =IF(C32="","",IF(AD32>=0,OFFSET(HiddenNormal1!K$3,A32,AJ$4-1,1,1),0)) -> 0 | AF32: 0 | AH32: Mean | AI32: =AI31/AI30 -> 43191.28571 | AJ32: =AJ31/AI30 -> 4.671428571 | AL32: Slope | AM32: =SLOPE(V29:V48,U29:U48) -> 0.828978705
A33: 5 | B33: =IF(Data_Input!D11="","",Data_Input!D11) -> 43221 | C33: =IF(Data_Input!E11="","",HiddenInput!R11) -> 5.3 | D33: 1868054841 | E33: 229071.3 | F33: 28.09 | G33: 882.9387755 | H33: 0.3951020408 | I33: 18.67755102 | J33: 4.510331043 | K33: 0.7896689575 | L33: 0.6235770624 | M33: =IF(C33="","",J33-SQRT(2*AM$46*FINV((1-Data_Input!B$15)*2,2,AJ$4-2)*(1/AJ$4+G33/((AJ$4-1)*AI$33^2)))) -> 3.627026546 | N33: =IF(C33="","",J33+SQRT(2*AM$46*FINV((1-Data_Input!B$15)*2,2,AJ$4-2)*(1/AJ$4+G33/((AJ$4-1)*AI$33^2)))) -> 5.393635539 | O33: 4.510331043 | P33: 5.393635539 | Q33: =IF(B33="","",RANK(K33,K$29:K$48,1)+COUNTIF(K33:K$48,K33)-1) -> 6 | R33: 5 | S33: 64.28571429 | T33: 0.625 | U33: 0.318639364 | V33: -0.1729775861 | W33: 0.318639364 | X33: -0.1729775861 | Y33: 43221 | Z33: 5.3 | AA33: 4.510331043 | AB33: 5.393635539 | AC33: -0.2410456812 | AD33: -0.0680680951 | AE33: =IF(C33="","",IF(AD33>=0,OFFSET(HiddenNormal1!K$3,A33,AJ$4-1,1,1),0)) -> 0 | AF33: 0 | AH33: Standard deviation | AI33: =SQRT(G49/(AI30-1)) -> 65.11967006 | AJ33: =SQRT(H49/(AI30-1)) -> 0.78041503 | AL33: Intercept | AM33: =INTERCEPT(V29:V48,U29:U48) -> -3.172065785e-17
A34: 6 | B34: =IF(Data_Input!D12="","",Data_Input!D12) -> 43252 | C34: =IF(Data_Input!E12="","",HiddenInput!R12) -> 3.9 | D34: 1870735504 | E34: 168682.8 | F34: 15.21 | G34: 3686.22449 | H34: 0.5951020408 | I34: -46.83673469 | J34: 4.342262947 | K34: -0.4422629475 | L34: 0.1955965147 | M34: =IF(C34="","",J34-SQRT(2*AM$46*FINV((1-Data_Input!B$15)*2,2,AJ$4-2)*(1/AJ$4+G34/((AJ$4-1)*AI$33^2)))) -> 3.217823006 | N34: =IF(C34="","",J34+SQRT(2*AM$46*FINV((1-Data_Input!B$15)*2,2,AJ$4-2)*(1/AJ$4+G34/((AJ$4-1)*AI$33^2)))) -> 5.466702889 | O34: 4.342262947 | P34: 5.466702889 | Q34: =IF(B34="","",RANK(K34,K$29:K$48,1)+COUNTIF(K34:K$48,K34)-1) -> 2 | R34: 6 | S34: 78.57142857 | T34: 0.75 | U34: 0.6744897502 | V34: 0.7896689575 | W34: 0.6744897502 | X34: 0.7896689575 | Y34: 43252 | Z34: 3.9 | AA34: 4.342262947 | AB34: 5.466702889 | AC34: -0.4422629475 | AD34: -1.231931905 | AE34: =IF(C34="","",IF(AD34>=0,OFFSET(HiddenNormal1!K$3,A34,AJ$4-1,1,1),0)) -> 0 | AF34: 0 | AL34: Correlation, R | AM34: =SQRT(RSQ(V29:V48,U29:U48)) -> 0.9428260455
A35: 7 | B35: =IF(Data_Input!D13="","",Data_Input!D13) -> 43282 | C35: =IF(Data_Input!E13="","",HiddenInput!R13) -> 4 | D35: 1873331524 | E35: 173128 | F35: 16 | G35: 8229.081633 | H35: 0.4508163265 | I35: -60.90816327 | J35: 4.179616404 | K35: -0.1796164039 | L35: 0.03226205255 | M35: =IF(C35="","",J35-SQRT(2*AM$46*FINV((1-Data_Input!B$15)*2,2,AJ$4-2)*(1/AJ$4+G35/((AJ$4-1)*AI$33^2)))) -> 2.748206509 | N35: =IF(C35="","",J35+SQRT(2*AM$46*FINV((1-Data_Input!B$15)*2,2,AJ$4-2)*(1/AJ$4+G35/((AJ$4-1)*AI$33^2)))) -> 5.611026298 | O35: 4.179616404 | P35: 5.611026298 | Q35: =IF(B35="","",RANK(K35,K$29:K$48,1)+COUNTIF(K35:K$48,K35)-1) -> 4 | R35: 7 | S35: 92.85714286 | T35: 0.875 | U35: 1.15034938 | V35: 1.107150878 | W35: 1.15034938 | X35: 1.107150878 | Y35: 43282 | Z35: 4 | AA35: 4.179616404 | AB35: 5.611026298 | AC35: -0.8609172169 | AD35: -1.968068095 | AE35: =IF(C35="","",IF(AD35>=0,OFFSET(HiddenNormal1!K$3,A35,AJ$4-1,1,1),0)) -> 0 | AF35: 0 | AL35: Exact Shapiro-Wilk test value | AM35: =(AM30/(STDEV(V29:V48)*SQRT(AJ30-1)))^2 -> 0.8914448321
A36: 8 | B36: =IF(Data_Input!D14="","",Data_Input!D14) ->  | C36: =IF(Data_Input!E14="","",HiddenInput!R14) ->  | M36: =IF(C36="","",J36-SQRT(2*AM$46*FINV((1-Data_Input!B$15)*2,2,AJ$4-2)*(1/AJ$4+G36/((AJ$4-1)*AI$33^2)))) ->  | N36: =IF(C36="","",J36+SQRT(2*AM$46*FINV((1-Data_Input!B$15)*2,2,AJ$4-2)*(1/AJ$4+G36/((AJ$4-1)*AI$33^2)))) ->  | Q36: =IF(B36="","",RANK(K36,K$29:K$48,1)+COUNTIF(K36:K$48,K36)-1) ->  | AE36: =IF(C36="","",IF(AD36>=0,OFFSET(HiddenNormal1!K$3,A36,AJ$4-1,1,1),0)) ->  | AL36: Critical Value | AM36: =VLOOKUP(AJ30,HiddenNormal1!K$27:N$44,MATCH(AM31,HiddenNormal1!L$26:N$26,0)+1,0) -> 0.838
A37: 9 | B37: =IF(Data_Input!D15="","",Data_Input!D15) ->  | C37: =IF(Data_Input!E15="","",HiddenInput!R15) ->  | M37: =IF(C37="","",J37-SQRT(2*AM$46*FINV((1-Data_Input!B$15)*2,2,AJ$4-2)*(1/AJ$4+G37/((AJ$4-1)*AI$33^2)))) ->  | N37: =IF(C37="","",J37+SQRT(2*AM$46*FINV((1-Data_Input!B$15)*2,2,AJ$4-2)*(1/AJ$4+G37/((AJ$4-1)*AI$33^2)))) ->  | Q37: =IF(B37="","",RANK(K37,K$29:K$48,1)+COUNTIF(K37:K$48,K37)-1) ->  | AE37: =IF(C37="","",IF(AD37>=0,OFFSET(HiddenNormal1!K$3,A37,AJ$4-1,1,1),0)) ->  | AL37: Fit normal? | AM37: =IF(AM35<AM36,"No", "Yes") -> Yes
A38: 10 | B38: =IF(Data_Input!D16="","",Data_Input!D16) ->  | C38: =IF(Data_Input!E16="","",HiddenInput!R16) ->  | M38: =IF(C38="","",J38-SQRT(2*AM$46*FINV((1-Data_Input!B$15)*2,2,AJ$4-2)*(1/AJ$4+G38/((AJ$4-1)*AI$33^2)))) ->  | N38: =IF(C38="","",J38+SQRT(2*AM$46*FINV((1-Data_Input!B$15)*2,2,AJ$4-2)*(1/AJ$4+G38/((AJ$4-1)*AI$33^2)))) ->  | Q38: =IF(B38="","",RANK(K38,K$29:K$48,1)+COUNTIF(K38:K$48,K38)-1) ->  | AE38: =IF(C38="","",IF(AD38>=0,OFFSET(HiddenNormal1!K$3,A38,AJ$4-1,1,1),0)) ->  | AL38: Negative conc? | AM38: =IF(COUNTIF(O29:P48,"<0")>0,"Yes","No") -> No
A39: 11 | B39: =IF(Data_Input!D17="","",Data_Input!D17) ->  | C39: =IF(Data_Input!E17="","",HiddenInput!R17) ->  | M39: =IF(C39="","",J39-SQRT(2*AM$46*FINV((1-Data_Input!B$15)*2,2,AJ$4-2)*(1/AJ$4+G39/((AJ$4-1)*AI$33^2)))) ->  | N39: =IF(C39="","",J39+SQRT(2*AM$46*FINV((1-Data_Input!B$15)*2,2,AJ$4-2)*(1/AJ$4+G39/((AJ$4-1)*AI$33^2)))) ->  | Q39: =IF(B39="","",RANK(K39,K$29:K$48,1)+COUNTIF(K39:K$48,K39)-1) ->  | AE39: =IF(C39="","",IF(AD39>=0,OFFSET(HiddenNormal1!K$3,A39,AJ$4-1,1,1),0)) -> 
A40: 12 | B40: =IF(Data_Input!D18="","",Data_Input!D18) ->  | C40: =IF(Data_Input!E18="","",HiddenInput!R18) ->  | M40: =IF(C40="","",J40-SQRT(2*AM$46*FINV((1-Data_Input!B$15)*2,2,AJ$4-2)*(1/AJ$4+G40/((AJ$4-1)*AI$33^2)))) ->  | N40: =IF(C40="","",J40+SQRT(2*AM$46*FINV((1-Data_Input!B$15)*2,2,AJ$4-2)*(1/AJ$4+G40/((AJ$4-1)*AI$33^2)))) ->  | Q40: =IF(B40="","",RANK(K40,K$29:K$48,1)+COUNTIF(K40:K$48,K40)-1) ->  | AE40: =IF(C40="","",IF(AD40>=0,OFFSET(HiddenNormal1!K$3,A40,AJ$4-1,1,1),0)) ->  | AL40: Regression Statistics | AM40: Value
A41: 13 | B41: =IF(Data_Input!D19="","",Data_Input!D19) ->  | C41: =IF(Data_Input!E19="","",HiddenInput!R19) ->  | M41: =IF(C41="","",J41-SQRT(2*AM$46*FINV((1-Data_Input!B$15)*2,2,AJ$4-2)*(1/AJ$4+G41/((AJ$4-1)*AI$33^2)))) ->  | N41: =IF(C41="","",J41+SQRT(2*AM$46*FINV((1-Data_Input!B$15)*2,2,AJ$4-2)*(1/AJ$4+G41/((AJ$4-1)*AI$33^2)))) ->  | Q41: =IF(B41="","",RANK(K41,K$29:K$48,1)+COUNTIF(K41:K$48,K41)-1) ->  | AE41: =IF(C41="","",IF(AD41>=0,OFFSET(HiddenNormal1!K$3,A41,AJ$4-1,1,1),0)) ->  | AL41: Sxx | AM41: =G49 -> 25443.42857
A42: 14 | B42: =IF(Data_Input!D20="","",Data_Input!D20) ->  | C42: =IF(Data_Input!E20="","",HiddenInput!R20) ->  | M42: =IF(C42="","",J42-SQRT(2*AM$46*FINV((1-Data_Input!B$15)*2,2,AJ$4-2)*(1/AJ$4+G42/((AJ$4-1)*AI$33^2)))) ->  | N42: =IF(C42="","",J42+SQRT(2*AM$46*FINV((1-Data_Input!B$15)*2,2,AJ$4-2)*(1/AJ$4+G42/((AJ$4-1)*AI$33^2)))) ->  | Q42: =IF(B42="","",RANK(K42,K$29:K$48,1)+COUNTIF(K42:K$48,K42)-1) ->  | AE42: =IF(C42="","",IF(AD42>=0,OFFSET(HiddenNormal1!K$3,A42,AJ$4-1,1,1),0)) ->  | AL42: Sxy | AM42: =I49 -> -137.9428571
A43: 15 | B43: =IF(Data_Input!D21="","",Data_Input!D21) ->  | C43: =IF(Data_Input!E21="","",HiddenInput!R21) ->  | M43: =IF(C43="","",J43-SQRT(2*AM$46*FINV((1-Data_Input!B$15)*2,2,AJ$4-2)*(1/AJ$4+G43/((AJ$4-1)*AI$33^2)))) ->  | N43: =IF(C43="","",J43+SQRT(2*AM$46*FINV((1-Data_Input!B$15)*2,2,AJ$4-2)*(1/AJ$4+G43/((AJ$4-1)*AI$33^2)))) ->  | Q43: =IF(B43="","",RANK(K43,K$29:K$48,1)+COUNTIF(K43:K$48,K43)-1) ->  | AE43: =IF(C43="","",IF(AD43>=0,OFFSET(HiddenNormal1!K$3,A43,AJ$4-1,1,1),0)) ->  | AL43: Syy | AM43: =H49 -> 3.654285714
A44: 16 | B44: =IF(Data_Input!D22="","",Data_Input!D22) ->  | C44: =IF(Data_Input!E22="","",HiddenInput!R22) ->  | M44: =IF(C44="","",J44-SQRT(2*AM$46*FINV((1-Data_Input!B$15)*2,2,AJ$4-2)*(1/AJ$4+G44/((AJ$4-1)*AI$33^2)))) ->  | N44: =IF(C44="","",J44+SQRT(2*AM$46*FINV((1-Data_Input!B$15)*2,2,AJ$4-2)*(1/AJ$4+G44/((AJ$4-1)*AI$33^2)))) ->  | Q44: =IF(B44="","",RANK(K44,K$29:K$48,1)+COUNTIF(K44:K$48,K44)-1) ->  | AE44: =IF(C44="","",IF(AD44>=0,OFFSET(HiddenNormal1!K$3,A44,AJ$4-1,1,1),0)) ->  | AL44: slope (b) | AM44: =AM42/AM41 -> -0.005421551453
A45: 17 | B45: =IF(Data_Input!D23="","",Data_Input!D23) ->  | C45: =IF(Data_Input!E23="","",HiddenInput!R23) ->  | M45: =IF(C45="","",J45-SQRT(2*AM$46*FINV((1-Data_Input!B$15)*2,2,AJ$4-2)*(1/AJ$4+G45/((AJ$4-1)*AI$33^2)))) ->  | N45: =IF(C45="","",J45+SQRT(2*AM$46*FINV((1-Data_Input!B$15)*2,2,AJ$4-2)*(1/AJ$4+G45/((AJ$4-1)*AI$33^2)))) ->  | Q45: =IF(B45="","",RANK(K45,K$29:K$48,1)+COUNTIF(K45:K$48,K45)-1) ->  | AE45: =IF(C45="","",IF(AD45>=0,OFFSET(HiddenNormal1!K$3,A45,AJ$4-1,1,1),0)) ->  | AL45: y intercept | AM45: =C50-AM44*B50 -> 238.8352064
A46: 18 | B46: =IF(Data_Input!D24="","",Data_Input!D24) ->  | C46: =IF(Data_Input!E24="","",HiddenInput!R24) ->  | M46: =IF(C46="","",J46-SQRT(2*AM$46*FINV((1-Data_Input!B$15)*2,2,AJ$4-2)*(1/AJ$4+G46/((AJ$4-1)*AI$33^2)))) ->  | N46: =IF(C46="","",J46+SQRT(2*AM$46*FINV((1-Data_Input!B$15)*2,2,AJ$4-2)*(1/AJ$4+G46/((AJ$4-1)*AI$33^2)))) ->  | Q46: =IF(B46="","",RANK(K46,K$29:K$48,1)+COUNTIF(K46:K$48,K46)-1) ->  | AE46: =IF(C46="","",IF(AD46>=0,OFFSET(HiddenNormal1!K$3,A46,AJ$4-1,1,1),0)) ->  | AL46: MSE | AM46: =L49/(AI30-2) -> 0.5812842833
A47: 19 | B47: =IF(Data_Input!D25="","",Data_Input!D25) ->  | C47: =IF(Data_Input!E25="","",HiddenInput!R25) ->  | M47: =IF(C47="","",J47-SQRT(2*AM$46*FINV((1-Data_Input!B$15)*2,2,AJ$4-2)*(1/AJ$4+G47/((AJ$4-1)*AI$33^2)))) ->  | N47: =IF(C47="","",J47+SQRT(2*AM$46*FINV((1-Data_Input!B$15)*2,2,AJ$4-2)*(1/AJ$4+G47/((AJ$4-1)*AI$33^2)))) ->  | Q47: =IF(B47="","",RANK(K47,K$29:K$48,1)+COUNTIF(K47:K$48,K47)-1) ->  | AE47: =IF(C47="","",IF(AD47>=0,OFFSET(HiddenNormal1!K$3,A47,AJ$4-1,1,1),0)) ->  | AL47: SE | AM47: =SQRT(AM46/G49) -> 0.004779764218
A48: 20 | B48: =IF(Data_Input!D26="","",Data_Input!D26) ->  | C48: =IF(Data_Input!E26="","",HiddenInput!R26) ->  | M48: =IF(C48="","",J48-SQRT(2*AM$46*FINV((1-Data_Input!B$15)*2,2,AJ$4-2)*(1/AJ$4+G48/((AJ$4-1)*AI$33^2)))) ->  | N48: =IF(C48="","",J48+SQRT(2*AM$46*FINV((1-Data_Input!B$15)*2,2,AJ$4-2)*(1/AJ$4+G48/((AJ$4-1)*AI$33^2)))) ->  | Q48: =IF(B48="","",RANK(K48,K$29:K$48,1)+COUNTIF(K48:K$48,K48)-1) ->  | AE48: =IF(C48="","",IF(AD48>=0,OFFSET(HiddenNormal1!K$3,A48,AJ$4-1,1,1),0)) ->  | AL48: tb | AM48: =AM44/AM47 -> -1.134271735
A49: Sum | B49: =SUM(B29:B48) -> 302339 | C49: 32.7 | D49: 13058435575 | E49: 1412217.1 | F49: 156.41 | G49: 25443.42857 | H49: 3.654285714 | I49: -137.9428571 | L49: =SUM(L29:L48) -> 2.906421417
A50: Mean | B50: =IF(COUNT(B29:B48)>0,B49/COUNT(B29:B48),"") -> 43191.28571 | C50: =IF(COUNT(C29:C48)>0,C49/COUNT(C29:C48),"") -> 4.671428571

Sheet HiddenInput (hidden)
A1: Number of samples | B1: =NPoints -> 7 | U1: use these 3 values to make the short lines for the mean, UCL, and cleanup level
A2: Random Seed | B2: =RandomSeed -> 62311.42188 | U2: UCL X-axis
U3: 0.45
U4: 0.5 | AE4: Sorted data
I5: For charting purposes | M5: For calcuation purposes | U5: 0.55 | AI5: Raw times
A6: =Data_Input!D4 -> Date (Date) | B6: =Data_Input!E4 -> VC Conc. (ug/L) | C6: =Data_Input!G4 -> Detected? (Yes or No) | D6: Check Input | I6: Detected Date | J6: Detected Concentration | K6: Nondetect Date | L6: Detection Limit | M6: Detected Date | N6: Detected Concentration | O6: Nondetect Date | P6: Detection Limit | Q6: Imputed Values for NDs | R6: Data Set Including Imputed Values | S6: ND=DL Concentration for Trend Analysis | T6: Regulatory Level | U6: UCL X-axis | V6: Max | W6: Min | X6: Mean-Normal | Y6: Mean-NP | Z6: Mean-NP-ND | AA6: UCL-Normal | AB6: UCL-NP | AC6: UCL-NP-ND | AE6: Conc | AF6: Detected1 | AG6: Detected2 | AI6: Used in bootstrap
A7: =IF(DateInput="",NA(),DateInput) -> 43101 | B7: =IF(ConcInput="","",ConcInput) -> 4.3 | C7: =IF(DetInput="","",DetInput) -> Yes | D7: =IF(ISNA(A7),0,1) -> 1 | E7: =IF(B7="",0,1) -> 1 | F7: =IF(C7="",0,1) -> 1 | G7: =IF(ISNA(A8),0,IF(A8="",0,IF(ISNA(A7),1,IF(A7>=A8,1,0)))) -> 0 | H7: =IF(OR(SUM(D7:F7)=3,SUM(D7:F7)=0),0,1)+G7 -> 0 | I7: =IF(DetInput="Yes",DateInput,NA()) -> 43101 | J7: =IF(DetInput="Yes",ConcInput,NA()) -> 4.3 | K7: =IF(DetInput="No",DateInput,NA()) ->  | L7: =IF(DetInput="No",ConcInput,NA()) ->  | M7: =IF(DetInput="Yes",DateInput,"") -> 43101 | N7: =IF(DetInput="Yes",ConcInput,"") -> 4.3 | O7: =IF(DetInput="No",DateInput,"") ->  | P7: =IF(DetInput="No",ConcImputeds,"") ->  | R7: =IF(DetInput="","",IF(DetInput="Yes",ConcInput,ImpValues)) -> 4.3 | S7: =IF(DetInput="","",ConcInput) -> 4.3 | T7: =Data_Input!$B$16 -> 5 | U7: 0.5 | V7: =MAX($B$7:$B$26) -> 6.1 | W7: =MIN($B$7:$B$26) -> 3.9 | X7: ='UCL-Normal'!$B$14 -> 4.67 | Y7: ='UCL-NP'!B$14 -> 4.67 | Z7: ='UCL-NP-ND'!B$16 -> 27.9 | AA7: ='UCL-Normal'!B$17 -> 5.24 | AB7: ='UCL-NP'!B$16 -> 5.96 | AC7: ='UCL-NP-ND'!$B$18 -> 55.7 | AE7: 0.85 | AF7: Yes | AG7: =IF(AF7="","",IF(AF7="Yes",1,0)) -> 1 | AI7: =IF(Data_Input!D7="","",Data_Input!D7) -> 43101
A8: 43132 | B8: 6.1 | C8: Yes | D8: 1 | E8: =IF(B8="",0,1) -> 1 | F8: =IF(C8="",0,1) -> 1 | G8: =IF(ISNA(A9),0,IF(A9="",0,IF(ISNA(A8),1,IF(A8>=A9,1,0)))) -> 0 | H8: 0 | I8: 43132 | J8: 6.1 | M8: 43132 | N8: 6.1 | R8: 6.1 | S8: 6.1 | T8: =Data_Input!$B$16 -> 5 | U8: 0.5 | V8: =MAX($B$7:$B$26) -> 6.1 | W8: =MIN($B$7:$B$26) -> 3.9 | X8: ='UCL-Normal'!$B$14 -> 4.67 | Y8: ='UCL-NP'!B$14 -> 4.67 | Z8: ='UCL-NP-ND'!B$16 -> 27.9 | AA8: ='UCL-Normal'!B$17 -> 5.24 | AB8: ='UCL-NP'!B$16 -> 5.96 | AC8: ='UCL-NP-ND'!$B$18 -> 55.7 | AE8: 1.4 | AF8: Yes | AG8: =IF(AF8="","",IF(AF8="Yes",1,0)) -> 1 | AI8: =IF(Data_Input!D8="","",Data_Input!D8) -> 43132
A9: 43160 | B9: 4.6 | C9: Yes | D9: 1 | E9: 1 | F9: 1 | G9: 0 | H9: 0 | I9: 43160 | J9: 4.6 | M9: 43160 | N9: 4.6 | R9: 4.6 | S9: 4.6 | T9: =Data_Input!$B$16 -> 5 | U9: 0.5 | V9: =MAX($B$7:$B$26) -> 6.1 | W9: =MIN($B$7:$B$26) -> 3.9 | X9: ='UCL-Normal'!$B$14 -> 4.67 | Y9: ='UCL-NP'!B$14 -> 4.67 | Z9: ='UCL-NP-ND'!B$16 -> 27.9 | AA9: ='UCL-Normal'!B$17 -> 5.24 | AB9: ='UCL-NP'!B$16 -> 5.96 | AC9: ='UCL-NP-ND'!$B$18 -> 55.7 | AE9: 2.1 | AF9: Yes | AG9: 1 | AI9: =IF(Data_Input!D9="","",Data_Input!D9) -> 43160
A10: 43191 | B10: 4.5 | C10: Yes | D10: 1 | E10: 1 | F10: 1 | G10: 0 | H10: 0 | I10: 43191 | J10: 4.5 | M10: 43191 | N10: 4.5 | R10: 4.5 | S10: 4.5 | T10: =Data_Input!$B$16 -> 5 | U10: 0.5 | AE10: 3.3 | AF10: Yes | AG10: 1 | AI10: =IF(Data_Input!D10="","",Data_Input!D10) -> 43191
A11: 43221 | B11: 5.3 | C11: Yes | D11: 1 | E11: 1 | F11: 1 | G11: 0 | H11: 0 | I11: 43221 | J11: 5.3 | M11: 43221 | N11: 5.3 | R11: 5.3 | S11: 5.3 | T11: =Data_Input!$B$16 -> 5 | U11: 0.5 | AE11: 3.9 | AF11: Yes | AG11: 1 | AI11: =IF(Data_Input!D11="","",Data_Input!D11) -> 43221
A12: 43252 | B12: 3.9 | C12: Yes | D12: 1 | E12: 1 | F12: 1 | G12: 0 | H12: 0 | I12: 43252 | J12: 3.9 | M12: 43252 | N12: 3.9 | R12: 3.9 | S12: 3.9 | T12: =Data_Input!$B$16 -> 5 | U12: 0.5 | AE12: 4.3 | AF12: Yes | AG12: 1 | AI12: =IF(Data_Input!D12="","",Data_Input!D12) -> 43252
A13: 43282 | B13: 4 | C13: Yes | D13: 1 | E13: 1 | F13: 1 | G13: 0 | H13: 0 | I13: 43282 | J13: 4 | M13: 43282 | N13: 4 | R13: 4 | S13: 4 | T13: =Data_Input!$B$16 -> 5 | U13: 0.5 | AE13: 4.5 | AF13: Yes | AG13: 1 | AI13: =IF(Data_Input!D13="","",Data_Input!D13) -> 43282
D14: 0 | E14: 0 | F14: 0 | G14: 0 | H14: 0 | T14: =Data_Input!$B$16 -> 5 | U14: 0.5 | AE14: 4.6 | AF14: Yes | AG14: 1 | AI14: =IF(Data_Input!D14="","",Data_Input!D14) -> 
D15: 0 | E15: 0 | F15: 0 | G15: 0 | H15: 0 | T15: =Data_Input!$B$16 -> 5 | U15: 0.5 | AE15: 5.3 | AF15: Yes | AG15: 1 | AI15: =IF(Data_Input!D15="","",Data_Input!D15) -> 
D16: 0 | E16: 0 | F16: 0 | G16: 0 | H16: 0 | T16: =Data_Input!$B$16 -> 5 | U16: 0.5 | AE16: 6.1 | AF16: Yes | AG16: 1 | AI16: =IF(Data_Input!D16="","",Data_Input!D16) -> 
D17: 0 | E17: 0 | F17: 0 | G17: 0 | H17: 0 | Q17: 1.68 | T17: =Data_Input!$B$16 -> 5 | U17: 0.5 | AI17: =IF(Data_Input!D17="","",Data_Input!D17) -> 
D18: 0 | E18: 0 | F18: 0 | G18: 0 | H18: 0 | T18: =Data_Input!$B$16 -> 5 | U18: 0.5 | AI18: =IF(Data_Input!D18="","",Data_Input!D18) -> 
D19: =IF(ISNA(A19),0,1) -> 0 | E19: 0 | F19: 0 | G19: 0 | H19: 0 | T19: =Data_Input!$B$16 -> 5 | U19: 0.5 | AI19: =IF(Data_Input!D19="","",Data_Input!D19) -> 
D20: =IF(ISNA(A20),0,1) -> 0 | E20: 0 | F20: 0 | G20: 0 | H20: 0 | T20: =Data_Input!$B$16 -> 5 | U20: 0.5 | AI20: =IF(Data_Input!D20="","",Data_Input!D20) -> 
D21: 0 | E21: 0 | F21: 0 | G21: 0 | H21: 0 | T21: =Data_Input!$B$16 -> 5 | U21: 0.5 | AI21: =IF(Data_Input!D21="","",Data_Input!D21) -> 
D22: 0 | E22: 0 | F22: 0 | G22: 0 | H22: 0 | T22: =Data_Input!$B$16 -> 5 | U22: 0.5 | AI22: =IF(Data_Input!D22="","",Data_Input!D22) -> 
D23: 0 | E23: 0 | F23: 0 | G23: 0 | H23: 0 | T23: =Data_Input!$B$16 -> 5 | U23: 0.5 | AI23: =IF(Data_Input!D23="","",Data_Input!D23) -> 
D24: 0 | E24: 0 | F24: 0 | G24: 0 | H24: 0 | T24: =Data_Input!$B$16 -> 5 | U24: 0.5 | AI24: =IF(Data_Input!D24="","",Data_Input!D24) -> 
D25: 0 | E25: 0 | F25: 0 | G25: 0 | H25: 0 | T25: =Data_Input!$B$16 -> 5 | U25: 0.5 | AI25: =IF(Data_Input!D25="","",Data_Input!D25) -> 
D26: 0 | E26: 0 | F26: 0 | G26: 0 | H26: 0 | T26: =Data_Input!$B$16 -> 5 | U26: 0.5 | AI26: =IF(Data_Input!D26="","",Data_Input!D26) -> 
A27: =IF(Normality!D14="Appears Normal",'Trend-Normal'!B27,'Trend-NP'!B27) ->  | D27: 0 | T27: =Data_Input!$B$16 -> 5

Sheet HiddenOutliers (hidden)
B1: Low outlier terms | K1: High outlier terms | T1: Critical values | X1: Comparisons - low outlier | AB1: Comparisons - high outlier | AF1: Step1 | AG1: Step2
A2: n | B2: i(Num1) | C2: i(Num2) | D2: i(Den1) | E2: i(Den2) | F2: Num1 | G2: Num2 | H2: Den1 | I2: Den2 | J2: Test Statistic | K2: i(Num1) | L2: i(Num2) | M2: i(Den1) | N2: i(Den2) | O2: Num1 | P2: Num2 | Q2: Den1 | R2: Den2 | S2: Test Statistic | T2: 0.005 | U2: 0.01 | V2: 0.05 | W2: 0.1 | X2: 0.005 | Y2: 0.01 | Z2: 0.05 | AA2: 0.1 | AB2: 0.005 | AC2: 0.01 | AD2: 0.05 | AE2: 0.1
A3: 3 | B3: 2 | C3: 1 | D3: =A3-AG3 -> 3 | E3: 1 | F3: =VLOOKUP(B3,HiddenNormal2!$A$7:$E$26,5) -> 4 | G3: =VLOOKUP(C3,HiddenNormal2!$A$7:$E$26,5) -> 3.9 | H3: =VLOOKUP(D3,HiddenNormal2!$A$7:$E$26,5) -> 4.3 | I3: =VLOOKUP(E3,HiddenNormal2!$A$7:$E$26,5) -> 3.9 | J3: =(F3-G3)/(H3-I3) -> 0.25 | K3: =A3 -> 3 | L3: =A3-AF3 -> 2 | M3: =A3 -> 3 | N3: 1 | O3: =VLOOKUP(K3,HiddenNormal2!$A$7:$E$26,5) -> 4.3 | P3: =VLOOKUP(L3,HiddenNormal2!$A$7:$E$26,5) -> 4 | Q3: =VLOOKUP(M3,HiddenNormal2!$A$7:$E$26,5) -> 4.3 | R3: =VLOOKUP(N3,HiddenNormal2!$A$7:$E$26,5) -> 3.9 | S3: =(O3-P3)/(Q3-R3) -> 0.75 | T3: 0.994 | U3: 0.988 | V3: 0.941 | W3: 0.886 | X3: =IF($J3>T3,"Yes","No") -> No | Y3: =IF($J3>U3,"Yes","No") -> No | Z3: =IF($J3>V3,"Yes","No") -> No | AA3: =IF($J3>W3,"Yes","No") -> No | AB3: =IF($S3>T3,"Yes","No") -> No | AC3: =IF($S3>U3,"Yes","No") -> No | AD3: =IF($S3>V3,"Yes","No") -> No | AE3: =IF($S3>W3,"Yes","No") -> No | AF3: 1 | AG3: 0
A4: 4 | B4: 2 | C4: 1 | D4: =A4-AG4 -> 4 | E4: 1 | F4: =VLOOKUP(B4,HiddenNormal2!$A$7:$E$26,5) -> 4 | G4: =VLOOKUP(C4,HiddenNormal2!$A$7:$E$26,5) -> 3.9 | H4: =VLOOKUP(D4,HiddenNormal2!$A$7:$E$26,5) -> 4.5 | I4: =VLOOKUP(E4,HiddenNormal2!$A$7:$E$26,5) -> 3.9 | J4: =(F4-G4)/(H4-I4) -> 0.1666666667 | K4: =A4 -> 4 | L4: =A4-AF4 -> 3 | M4: =A4 -> 4 | N4: 1 | O4: =VLOOKUP(K4,HiddenNormal2!$A$7:$E$26,5) -> 4.5 | P4: =VLOOKUP(L4,HiddenNormal2!$A$7:$E$26,5) -> 4.3 | Q4: =VLOOKUP(M4,HiddenNormal2!$A$7:$E$26,5) -> 4.5 | R4: =VLOOKUP(N4,HiddenNormal2!$A$7:$E$26,5) -> 3.9 | S4: =(O4-P4)/(Q4-R4) -> 0.3333333333 | T4: 0.926 | U4: 0.889 | V4: 0.765 | W4: 0.679 | X4: =IF($J4>T4,"Yes","No") -> No | Y4: No | Z4: No | AA4: No | AB4: =IF($S4>T4,"Yes","No") -> No | AC4: No | AD4: No | AE4: No | AF4: 1 | AG4: 0
A5: 5 | B5: 2 | C5: 1 | D5: 5 | E5: 1 | F5: =VLOOKUP(B5,HiddenNormal2!$A$7:$E$26,5) -> 4 | G5: =VLOOKUP(C5,HiddenNormal2!$A$7:$E$26,5) -> 3.9 | H5: =VLOOKUP(D5,HiddenNormal2!$A$7:$E$26,5) -> 4.6 | I5: =VLOOKUP(E5,HiddenNormal2!$A$7:$E$26,5) -> 3.9 | J5: 0.1428571429 | K5: 5 | L5: 4 | M5: 5 | N5: 1 | O5: =VLOOKUP(K5,HiddenNormal2!$A$7:$E$26,5) -> 4.6 | P5: =VLOOKUP(L5,HiddenNormal2!$A$7:$E$26,5) -> 4.5 | Q5: =VLOOKUP(M5,HiddenNormal2!$A$7:$E$26,5) -> 4.6 | R5: =VLOOKUP(N5,HiddenNormal2!$A$7:$E$26,5) -> 3.9 | S5: 0.1428571429 | T5: 0.821 | U5: 0.78 | V5: 0.642 | W5: 0.557 | X5: No | Y5: No | Z5: No | AA5: No | AB5: No | AC5: No | AD5: No | AE5: No | AF5: 1 | AG5: 0
A6: 6 | B6: 2 | C6: 1 | D6: 6 | E6: 1 | F6: =VLOOKUP(B6,HiddenNormal2!$A$7:$E$26,5) -> 4 | G6: =VLOOKUP(C6,HiddenNormal2!$A$7:$E$26,5) -> 3.9 | H6: =VLOOKUP(D6,HiddenNormal2!$A$7:$E$26,5) -> 5.3 | I6: =VLOOKUP(E6,HiddenNormal2!$A$7:$E$26,5) -> 3.9 | J6: 0.07142857143 | K6: 6 | L6: 5 | M6: 6 | N6: 1 | O6: =VLOOKUP(K6,HiddenNormal2!$A$7:$E$26,5) -> 5.3 | P6: =VLOOKUP(L6,HiddenNormal2!$A$7:$E$26,5) -> 4.6 | Q6: =VLOOKUP(M6,HiddenNormal2!$A$7:$E$26,5) -> 5.3 | R6: =VLOOKUP(N6,HiddenNormal2!$A$7:$E$26,5) -> 3.9 | S6: 0.5 | T6: 0.74 | U6: 0.698 | V6: 0.56 | W6: 0.482 | X6: No | Y6: No | Z6: No | AA6: No | AB6: No | AC6: No | AD6: No | AE6: Yes | AF6: 1 | AG6: 0
A7: 7 | B7: 2 | C7: 1 | D7: 7 | E7: 1 | F7: =VLOOKUP(B7,HiddenNormal2!$A$7:$E$26,5) -> 4 | G7: =VLOOKUP(C7,HiddenNormal2!$A$7:$E$26,5) -> 3.9 | H7: =VLOOKUP(D7,HiddenNormal2!$A$7:$E$26,5) -> 6.1 | I7: =VLOOKUP(E7,HiddenNormal2!$A$7:$E$26,5) -> 3.9 | J7: 0.04545454545 | K7: 7 | L7: 6 | M7: 7 | N7: 1 | O7: =VLOOKUP(K7,HiddenNormal2!$A$7:$E$26,5) -> 6.1 | P7: =VLOOKUP(L7,HiddenNormal2!$A$7:$E$26,5) -> 5.3 | Q7: =VLOOKUP(M7,HiddenNormal2!$A$7:$E$26,5) -> 6.1 | R7: =VLOOKUP(N7,HiddenNormal2!$A$7:$E$26,5) -> 3.9 | S7: 0.3636363636 | T7: 0.68 | U7: 0.637 | V7: 0.507 | W7: 0.434 | X7: No | Y7: No | Z7: No | AA7: No | AB7: No | AC7: No | AD7: No | AE7: No | AF7: 1 | AG7: 0
A8: 8 | B8: 2 | C8: 1 | D8: 7 | E8: 1 | F8: =VLOOKUP(B8,HiddenNormal2!$A$7:$E$26,5) -> 4 | G8: =VLOOKUP(C8,HiddenNormal2!$A$7:$E$26,5) -> 3.9 | H8: =VLOOKUP(D8,HiddenNormal2!$A$7:$E$26,5) -> 6.1 | I8: =VLOOKUP(E8,HiddenNormal2!$A$7:$E$26,5) -> 3.9 | J8: 0.04545454545 | K8: 8 | L8: 7 | M8: 8 | N8: 2 | O8: =VLOOKUP(K8,HiddenNormal2!$A$7:$E$26,5) -> 6.1 | P8: =VLOOKUP(L8,HiddenNormal2!$A$7:$E$26,5) -> 6.1 | Q8: =VLOOKUP(M8,HiddenNormal2!$A$7:$E$26,5) -> 6.1 | R8: =VLOOKUP(N8,HiddenNormal2!$A$7:$E$26,5) -> 4 | S8: 0 | T8: 0.725 | U8: 0.683 | V8: 0.554 | W8: 0.479 | X8: No | Y8: No | Z8: No | AA8: No | AB8: No | AC8: No | AD8: No | AE8: No | AF8: 1 | AG8: 1
A9: 9 | B9: 2 | C9: 1 | D9: 8 | E9: 1 | F9: =VLOOKUP(B9,HiddenNormal2!$A$7:$E$26,5) -> 4 | G9: =VLOOKUP(C9,HiddenNormal2!$A$7:$E$26,5) -> 3.9 | H9: =VLOOKUP(D9,HiddenNormal2!$A$7:$E$26,5) -> 6.1 | I9: =VLOOKUP(E9,HiddenNormal2!$A$7:$E$26,5) -> 3.9 | J9: 0.04545454545 | K9: 9 | L9: 8 | M9: 9 | N9: 2 | O9: =VLOOKUP(K9,HiddenNormal2!$A$7:$E$26,5) -> 6.1 | P9: =VLOOKUP(L9,HiddenNormal2!$A$7:$E$26,5) -> 6.1 | Q9: =VLOOKUP(M9,HiddenNormal2!$A$7:$E$26,5) -> 6.1 | R9: =VLOOKUP(N9,HiddenNormal2!$A$7:$E$26,5) -> 4 | S9: 0 | T9: 0.677 | U9: 0.635 | V9: 0.512 | W9: 0.441 | X9: No | Y9: No | Z9: No | AA9: No | AB9: No | AC9: No | AD9: No | AE9: No | AF9: 1 | AG9: 1
A10: 10 | B10: 2 | C10: 1 | D10: 9 | E10: 1 | F10: =VLOOKUP(B10,HiddenNormal2!$A$7:$E$26,5) -> 4 | G10: =VLOOKUP(C10,HiddenNormal2!$A$7:$E$26,5) -> 3.9 | H10: =VLOOKUP(D10,HiddenNormal2!$A$7:$E$26,5) -> 6.1 | I10: =VLOOKUP(E10,HiddenNormal2!$A$7:$E$26,5) -> 3.9 | J10: 0.04545454545 | K10: 10 | L10: 9 | M10: 10 | N10: 2 | O10: =VLOOKUP(K10,HiddenNormal2!$A$7:$E$26,5) -> 6.1 | P10: =VLOOKUP(L10,HiddenNormal2!$A$7:$E$26,5) -> 6.1 | Q10: =VLOOKUP(M10,HiddenNormal2!$A$7:$E$26,5) -> 6.1 | R10: =VLOOKUP(N10,HiddenNormal2!$A$7:$E$26,5) -> 4 | S10: 0 | T10: 0.639 | U10: 0.597 | V10: 0.477 | W10: 0.409 | X10: No | Y10: No | Z10: No | AA10: No | AB10: No | AC10: No | AD10: No | AE10: No | AF10: 1 | AG10: 1
A11: 11 | B11: 3 | C11: 1 | D11: 10 | E11: 1 | F11: =VLOOKUP(B11,HiddenNormal2!$A$7:$E$26,5) -> 4.3 | G11: =VLOOKUP(C11,HiddenNormal2!$A$7:$E$26,5) -> 3.9 | H11: =VLOOKUP(D11,HiddenNormal2!$A$7:$E$26,5) -> 6.1 | I11: =VLOOKUP(E11,HiddenNormal2!$A$7:$E$26,5) -> 3.9 | J11: 0.1818181818 | K11: 11 | L11: 9 | M11: 11 | N11: 2 | O11: =VLOOKUP(K11,HiddenNormal2!$A$7:$E$26,5) -> 6.1 | P11: =VLOOKUP(L11,HiddenNormal2!$A$7:$E$26,5) -> 6.1 | Q11: =VLOOKUP(M11,HiddenNormal2!$A$7:$E$26,5) -> 6.1 | R11: =VLOOKUP(N11,HiddenNormal2!$A$7:$E$26,5) -> 4 | S11: 0 | T11: 0.713 | U11: 0.679 | V11: 0.576 | W11: 0.517 | X11: No | Y11: No | Z11: No | AA11: No | AB11: No | AC11: No | AD11: No | AE11: No | AF11: 2 | AG11: 1
A12: 12 | B12: 3 | C12: 1 | D12: 11 | E12: 1 | F12: =VLOOKUP(B12,HiddenNormal2!$A$7:$E$26,5) -> 4.3 | G12: =VLOOKUP(C12,HiddenNormal2!$A$7:$E$26,5) -> 3.9 | H12: =VLOOKUP(D12,HiddenNormal2!$A$7:$E$26,5) -> 6.1 | I12: =VLOOKUP(E12,HiddenNormal2!$A$7:$E$26,5) -> 3.9 | J12: 0.1818181818 | K12: 12 | L12: 10 | M12: 12 | N12: 2 | O12: =VLOOKUP(K12,HiddenNormal2!$A$7:$E$26,5) -> 6.1 | P12: =VLOOKUP(L12,HiddenNormal2!$A$7:$E$26,5) -> 6.1 | Q12: =VLOOKUP(M12,HiddenNormal2!$A$7:$E$26,5) -> 6.1 | R12: =VLOOKUP(N12,HiddenNormal2!$A$7:$E$26,5) -> 4 | S12: 0 | T12: 0.675 | U12: 0.642 | V12: 0.546 | W12: 0.49 | X12: No | Y12: No | Z12: No | AA12: No | AB12: No | AC12: No | AD12: No | AE12: No | AF12: 2 | AG12: 1
A13: 13 | B13: 3 | C13: 1 | D13: 12 | E13: 1 | F13: =VLOOKUP(B13,HiddenNormal2!$A$7:$E$26,5) -> 4.3 | G13: =VLOOKUP(C13,HiddenNormal2!$A$7:$E$26,5) -> 3.9 | H13: =VLOOKUP(D13,HiddenNormal2!$A$7:$E$26,5) -> 6.1 | I13: =VLOOKUP(E13,HiddenNormal2!$A$7:$E$26,5) -> 3.9 | J13: 0.1818181818 | K13: 13 | L13: 11 | M13: 13 | N13: 2 | O13: =VLOOKUP(K13,HiddenNormal2!$A$7:$E$26,5) -> 6.1 | P13: =VLOOKUP(L13,HiddenNormal2!$A$7:$E$26,5) -> 6.1 | Q13: =VLOOKUP(M13,HiddenNormal2!$A$7:$E$26,5) -> 6.1 | R13: =VLOOKUP(N13,HiddenNormal2!$A$7:$E$26,5) -> 4 | S13: 0 | T13: 0.649 | U13: 0.615 | V13: 0.521 | W13: 0.467 | X13: No | Y13: No | Z13: No | AA13: No | AB13: No | AC13: No | AD13: No | AE13: No | AF13: 2 | AG13: 1
A14: 14 | B14: 3 | C14: 1 | D14: 12 | E14: 1 | F14: =VLOOKUP(B14,HiddenNormal2!$A$7:$E$26,5) -> 4.3 | G14: =VLOOKUP(C14,HiddenNormal2!$A$7:$E$26,5) -> 3.9 | H14: =VLOOKUP(D14,HiddenNormal2!$A$7:$E$26,5) -> 6.1 | I14: =VLOOKUP(E14,HiddenNormal2!$A$7:$E$26,5) -> 3.9 | J14: 0.1818181818 | K14: 14 | L14: 12 | M14: 14 | N14: 3 | O14: =VLOOKUP(K14,HiddenNormal2!$A$7:$E$26,5) -> 6.1 | P14: =VLOOKUP(L14,HiddenNormal2!$A$7:$E$26,5) -> 6.1 | Q14: =VLOOKUP(M14,HiddenNormal2!$A$7:$E$26,5) -> 6.1 | R14: =VLOOKUP(N14,HiddenNormal2!$A$7:$E$26,5) -> 4.3 | S14: 0 | T14: 0.674 | U14: 0.641 | V14: 0.546 | W14: 0.492 | X14: No | Y14: No | Z14: No | AA14: No | AB14: No | AC14: No | AD14: No | AE14: No | AF14: 2 | AG14: 2
A15: 15 | B15: 3 | C15: 1 | D15: 13 | E15: 1 | F15: =VLOOKUP(B15,HiddenNormal2!$A$7:$E$26,5) -> 4.3 | G15: =VLOOKUP(C15,HiddenNormal2!$A$7:$E$26,5) -> 3.9 | H15: =VLOOKUP(D15,HiddenNormal2!$A$7:$E$26,5) -> 6.1 | I15: =VLOOKUP(E15,HiddenNormal2!$A$7:$E$26,5) -> 3.9 | J15: 0.1818181818 | K15: 15 | L15: 13 | M15: 15 | N15: 3 | O15: =VLOOKUP(K15,HiddenNormal2!$A$7:$E$26,5) -> 6.1 | P15: =VLOOKUP(L15,HiddenNormal2!$A$7:$E$26,5) -> 6.1 | Q15: =VLOOKUP(M15,HiddenNormal2!$A$7:$E$26,5) -> 6.1 | R15: =VLOOKUP(N15,HiddenNormal2!$A$7:$E$26,5) -> 4.3 | S15: 0 | T15: 0.647 | U15: 0.616 | V15: 0.525 | W15: 0.472 | X15: No | Y15: No | Z15: No | AA15: No | AB15: No | AC15: No | AD15: No | AE15: No | AF15: 2 | AG15: 2
A16: 16 | B16: 3 | C16: 1 | D16: 14 | E16: 1 | F16: =VLOOKUP(B16,HiddenNormal2!$A$7:$E$26,5) -> 4.3 | G16: =VLOOKUP(C16,HiddenNormal2!$A$7:$E$26,5) -> 3.9 | H16: =VLOOKUP(D16,HiddenNormal2!$A$7:$E$26,5) -> 6.1 | I16: =VLOOKUP(E16,HiddenNormal2!$A$7:$E$26,5) -> 3.9 | J16: 0.1818181818 | K16: 16 | L16: 14 | M16: 16 | N16: 3 | O16: =VLOOKUP(K16,HiddenNormal2!$A$7:$E$26,5) -> 6.1 | P16: =VLOOKUP(L16,HiddenNormal2!$A$7:$E$26,5) -> 6.1 | Q16: =VLOOKUP(M16,HiddenNormal2!$A$7:$E$26,5) -> 6.1 | R16: =VLOOKUP(N16,HiddenNormal2!$A$7:$E$26,5) -> 4.3 | S16: 0 | T16: 0.624 | U16: 0.595 | V16: 0.507 | W16: 0.454 | X16: No | Y16: No | Z16: No | AA16: No | AB16: No | AC16: No | AD16: No | AE16: No | AF16: 2 | AG16: 2
A17: 17 | B17: 3 | C17: 1 | D17: 15 | E17: 1 | F17: =VLOOKUP(B17,HiddenNormal2!$A$7:$E$26,5) -> 4.3 | G17: =VLOOKUP(C17,HiddenNormal2!$A$7:$E$26,5) -> 3.9 | H17: =VLOOKUP(D17,HiddenNormal2!$A$7:$E$26,5) -> 6.1 | I17: =VLOOKUP(E17,HiddenNormal2!$A$7:$E$26,5) -> 3.9 | J17: 0.1818181818 | K17: 17 | L17: 15 | M17: 17 | N17: 3 | O17: =VLOOKUP(K17,HiddenNormal2!$A$7:$E$26,5) -> 6.1 | P17: =VLOOKUP(L17,HiddenNormal2!$A$7:$E$26,5) -> 6.1 | Q17: =VLOOKUP(M17,HiddenNormal2!$A$7:$E$26,5) -> 6.1 | R17: =VLOOKUP(N17,HiddenNormal2!$A$7:$E$26,5) -> 4.3 | S17: 0 | T17: 0.605 | U17: 0.577 | V17: 0.49 | W17: 0.438 | X17: No | Y17: No | Z17: No | AA17: No | AB17: No | AC17: No | AD17: No | AE17: No | AF17: 2 | AG17: 2
A18: 18 | B18: 3 | C18: 1 | D18: 16 | E18: 1 | F18: =VLOOKUP(B18,HiddenNormal2!$A$7:$E$26,5) -> 4.3 | G18: =VLOOKUP(C18,HiddenNormal2!$A$7:$E$26,5) -> 3.9 | H18: =VLOOKUP(D18,HiddenNormal2!$A$7:$E$26,5) -> 6.1 | I18: =VLOOKUP(E18,HiddenNormal2!$A$7:$E$26,5) -> 3.9 | J18: 0.1818181818 | K18: 18 | L18: 16 | M18: 18 | N18: 3 | O18: =VLOOKUP(K18,HiddenNormal2!$A$7:$E$26,5) -> 6.1 | P18: =VLOOKUP(L18,HiddenNormal2!$A$7:$E$26,5) -> 6.1 | Q18: =VLOOKUP(M18,HiddenNormal2!$A$7:$E$26,5) -> 6.1 | R18: =VLOOKUP(N18,HiddenNormal2!$A$7:$E$26,5) -> 4.3 | S18: 0 | T18: 0.589 | U18: 0.561 | V18: 0.475 | W18: 0.424 | X18: No | Y18: No | Z18: No | AA18: No | AB18: No | AC18: No | AD18: No | AE18: No | AF18: 2 | AG18: 2
A19: 19 | B19: 3 | C19: 1 | D19: 17 | E19: 1 | F19: =VLOOKUP(B19,HiddenNormal2!$A$7:$E$26,5) -> 4.3 | G19: =VLOOKUP(C19,HiddenNormal2!$A$7:$E$26,5) -> 3.9 | H19: =VLOOKUP(D19,HiddenNormal2!$A$7:$E$26,5) -> 6.1 | I19: =VLOOKUP(E19,HiddenNormal2!$A$7:$E$26,5) -> 3.9 | J19: 0.1818181818 | K19: 19 | L19: 17 | M19: 19 | N19: 3 | O19: =VLOOKUP(K19,HiddenNormal2!$A$7:$E$26,5) -> 6.1 | P19: =VLOOKUP(L19,HiddenNormal2!$A$7:$E$26,5) -> 6.1 | Q19: =VLOOKUP(M19,HiddenNormal2!$A$7:$E$26,5) -> 6.1 | R19: =VLOOKUP(N19,HiddenNormal2!$A$7:$E$26,5) -> 4.3 | S19: 0 | T19: 0.575 | U19: 0.547 | V19: 0.462 | W19: 0.412 | X19: No | Y19: No | Z19: No | AA19: No | AB19: No | AC19: No | AD19: No | AE19: No | AF19: 2 | AG19: 2
A20: 20 | B20: 3 | C20: 1 | D20: 18 | E20: 1 | F20: =VLOOKUP(B20,HiddenNormal2!$A$7:$E$26,5) -> 4.3 | G20: =VLOOKUP(C20,HiddenNormal2!$A$7:$E$26,5) -> 3.9 | H20: =VLOOKUP(D20,HiddenNormal2!$A$7:$E$26,5) -> 6.1 | I20: =VLOOKUP(E20,HiddenNormal2!$A$7:$E$26,5) -> 3.9 | J20: 0.1818181818 | K20: 20 | L20: 18 | M20: 20 | N20: 3 | O20: =VLOOKUP(K20,HiddenNormal2!$A$7:$E$26,5) -> 6.1 | P20: =VLOOKUP(L20,HiddenNormal2!$A$7:$E$26,5) -> 6.1 | Q20: =VLOOKUP(M20,HiddenNormal2!$A$7:$E$26,5) -> 6.1 | R20: =VLOOKUP(N20,HiddenNormal2!$A$7:$E$26,5) -> 4.3 | S20: 0 | T20: 0.562 | U20: 0.535 | V20: 0.45 | W20: 0.401 | X20: No | Y20: No | Z20: No | AA20: No | AB20: No | AC20: No | AD20: No | AE20: No | AF20: 2 | AG20: 2

Sheet HiddenBoxPlots (hidden)
A4: Full dataset
A5: Detected Values | F5: Nondetected Values | L5: Potential outlier? | M5: Detected Values | R5: Nondetected Values
A6: Date | B6: Concentration | C6: Values Within 1.5 IQR | D6: Values Outside 1.5 IQR | E6: Values Outside 3 IQR | F6: Date | G6: Concentration | H6: Values Within 1.5 IQR | I6: Values Outside 1.5 IQR | J6: Values Outside 3 IQR | M6: Date | N6: Concentration | O6: Values Within 1.5 IQR | P6: Values Outside 1.5 IQR | Q6: Values Outside 3 IQR | R6: Date | S6: Concentration | T6: Values Within 1.5 IQR | U6: Values Outside 1.5 IQR | V6: Values Outside 3 IQR
A7: =IF(DetInput="Yes",DateInput,NA()) -> 43101 | B7: =IF(DetInput="Yes",ConcImputeds,NA()) -> 4.3 | C7: =IF(ISNA(B7),NA(),IF(AND(B7>=HiddenNormal2!J$14,B7<=HiddenNormal2!J$15),B7,NA())) -> 4.3 | D7: =IF(ISNA(B7),NA(),IF(OR(AND(B7<HiddenNormal2!J$14,B7>=HiddenNormal2!J$16),AND(B7>HiddenNormal2!J$15,B7<=HiddenNormal2!J$17)),B7,NA())) ->  | E7: =IF(ISNA(B7),NA(),IF(OR(B7>HiddenNormal2!J$17,B7<HiddenNormal2!J$16),B7,NA())) ->  | F7: =IF(DetInput="No",DateInput,NA()) ->  | G7: =IF(DetInput="No",ConcImputeds,NA()) ->  | H7: =IF(ISNA(G7),NA(),IF(AND(G7>HiddenNormal2!J$14,G7<HiddenNormal2!J$15),G7,NA())) ->  | I7: =IF(ISNA(G7),NA(),IF(OR(AND(G7<HiddenNormal2!J$14,G7>HiddenNormal2!J$16),AND(G7>HiddenNormal2!J$15,G7<HiddenNormal2!J$17)),G7,NA())) ->  | J7: =IF(ISNA(G7),NA(),IF(OR(G7>HiddenNormal2!J$17,G7<HiddenNormal2!J$16),G7,NA())) ->  | L7: =VLOOKUP(ConcImputeds,HiddenNormal2!E$7:F$26,2,0) -> No | M7: =IF($L7="Yes",NA(),A7) -> 43101 | N7: =IF($L7="Yes",NA(),B7) -> 4.3 | O7: =IF(ISNA(N7),NA(),IF(AND(N7>=HiddenNormal2!V$14,N7<=HiddenNormal2!V$15),N7,NA())) -> 4.3 | P7: =IF(ISNA(N7),NA(),IF(OR(AND(N7<HiddenNormal2!V$14,N7>=HiddenNormal2!V$16),AND(N7>HiddenNormal2!V$15,N7<=HiddenNormal2!V$17)),N7,NA())) ->  | Q7: =IF(ISNA(N7),NA(),IF(OR(N7>HiddenNormal2!V$17,N7<HiddenNormal2!V$16),N7,NA())) ->  | R7: =IF($L7="Yes",NA(),F7) ->  | S7: =IF($L7="Yes",NA(),G7) ->  | T7: =IF(ISNA(S7),NA(),IF(AND(S7>HiddenNormal2!V$14,S7<HiddenNormal2!V$15),S7,NA())) ->  | U7: =IF(ISNA(S7),NA(),IF(OR(AND(S7<HiddenNormal2!V$14,S7>HiddenNormal2!V$16),AND(S7>HiddenNormal2!V$15,S7<HiddenNormal2!V$17)),S7,NA())) ->  | V7: =IF(ISNA(S7),NA(),IF(OR(S7>HiddenNormal2!V$17,S7<HiddenNormal2!V$16),S7,NA())) -> 
A8: 43132 | B8: 6.1 | C8: =IF(ISNA(B8),NA(),IF(AND(B8>=HiddenNormal2!J$14,B8<=HiddenNormal2!J$15),B8,NA())) -> 6.1 | D8: =IF(ISNA(B8),NA(),IF(OR(AND(B8<HiddenNormal2!J$14,B8>=HiddenNormal2!J$16),AND(B8>HiddenNormal2!J$15,B8<=HiddenNormal2!J$17)),B8,NA())) ->  | E8: =IF(ISNA(B8),NA(),IF(OR(B8>HiddenNormal2!J$17,B8<HiddenNormal2!J$16),B8,NA())) ->  | H8: =IF(ISNA(G8),NA(),IF(AND(G8>HiddenNormal2!J$14,G8<HiddenNormal2!J$15),G8,NA())) ->  | I8: =IF(ISNA(G8),NA(),IF(OR(AND(G8<HiddenNormal2!J$14,G8>HiddenNormal2!J$16),AND(G8>HiddenNormal2!J$15,G8<HiddenNormal2!J$17)),G8,NA())) ->  | J8: =IF(ISNA(G8),NA(),IF(OR(G8>HiddenNormal2!J$17,G8<HiddenNormal2!J$16),G8,NA())) ->  | L8: =VLOOKUP(ConcImputeds,HiddenNormal2!E$7:F$26,2,0) -> No | M8: 43132 | N8: 6.1 | O8: =IF(ISNA(N8),NA(),IF(AND(N8>=HiddenNormal2!V$14,N8<=HiddenNormal2!V$15),N8,NA())) -> 6.1 | P8: =IF(ISNA(N8),NA(),IF(OR(AND(N8<HiddenNormal2!V$14,N8>=HiddenNormal2!V$16),AND(N8>HiddenNormal2!V$15,N8<=HiddenNormal2!V$17)),N8,NA())) ->  | Q8: =IF(ISNA(N8),NA(),IF(OR(N8>HiddenNormal2!V$17,N8<HiddenNormal2!V$16),N8,NA())) ->  | R8: =IF($L8="Yes",NA(),F8) ->  | S8: =IF($L8="Yes",NA(),G8) ->  | T8: =IF(ISNA(S8),NA(),IF(AND(S8>HiddenNormal2!V$14,S8<HiddenNormal2!V$15),S8,NA())) ->  | U8: =IF(ISNA(S8),NA(),IF(OR(AND(S8<HiddenNormal2!V$14,S8>HiddenNormal2!V$16),AND(S8>HiddenNormal2!V$15,S8<HiddenNormal2!V$17)),S8,NA())) ->  | V8: =IF(ISNA(S8),NA(),IF(OR(S8>HiddenNormal2!V$17,S8<HiddenNormal2!V$16),S8,NA())) -> 
A9: 43160 | B9: 4.6 | C9: =IF(ISNA(B9),NA(),IF(AND(B9>=HiddenNormal2!J$14,B9<=HiddenNormal2!J$15),B9,NA())) -> 4.6 | D9: =IF(ISNA(B9),NA(),IF(OR(AND(B9<HiddenNormal2!J$14,B9>=HiddenNormal2!J$16),AND(B9>HiddenNormal2!J$15,B9<=HiddenNormal2!J$17)),B9,NA())) ->  | E9: =IF(ISNA(B9),NA(),IF(OR(B9>HiddenNormal2!J$17,B9<HiddenNormal2!J$16),B9,NA())) ->  | H9: =IF(ISNA(G9),NA(),IF(AND(G9>HiddenNormal2!J$14,G9<HiddenNormal2!J$15),G9,NA())) ->  | I9: =IF(ISNA(G9),NA(),IF(OR(AND(G9<HiddenNormal2!J$14,G9>HiddenNormal2!J$16),AND(G9>HiddenNormal2!J$15,G9<HiddenNormal2!J$17)),G9,NA())) ->  | J9: =IF(ISNA(G9),NA(),IF(OR(G9>HiddenNormal2!J$17,G9<HiddenNormal2!J$16),G9,NA())) ->  | L9: =VLOOKUP(ConcImputeds,HiddenNormal2!E$7:F$26,2,0) -> No | M9: 43160 | N9: 4.6 | O9: =IF(ISNA(N9),NA(),IF(AND(N9>=HiddenNormal2!V$14,N9<=HiddenNormal2!V$15),N9,NA())) -> 4.6 | P9: =IF(ISNA(N9),NA(),IF(OR(AND(N9<HiddenNormal2!V$14,N9>=HiddenNormal2!V$16),AND(N9>HiddenNormal2!V$15,N9<=HiddenNormal2!V$17)),N9,NA())) ->  | Q9: =IF(ISNA(N9),NA(),IF(OR(N9>HiddenNormal2!V$17,N9<HiddenNormal2!V$16),N9,NA())) ->  | T9: =IF(ISNA(S9),NA(),IF(AND(S9>HiddenNormal2!V$14,S9<HiddenNormal2!V$15),S9,NA())) ->  | U9: =IF(ISNA(S9),NA(),IF(OR(AND(S9<HiddenNormal2!V$14,S9>HiddenNormal2!V$16),AND(S9>HiddenNormal2!V$15,S9<HiddenNormal2!V$17)),S9,NA())) ->  | V9: =IF(ISNA(S9),NA(),IF(OR(S9>HiddenNormal2!V$17,S9<HiddenNormal2!V$16),S9,NA())) -> 
A10: 43191 | B10: 4.5 | C10: =IF(ISNA(B10),NA(),IF(AND(B10>=HiddenNormal2!J$14,B10<=HiddenNormal2!J$15),B10,NA())) -> 4.5 | D10: =IF(ISNA(B10),NA(),IF(OR(AND(B10<HiddenNormal2!J$14,B10>=HiddenNormal2!J$16),AND(B10>HiddenNormal2!J$15,B10<=HiddenNormal2!J$17)),B10,NA())) ->  | E10: =IF(ISNA(B10),NA(),IF(OR(B10>HiddenNormal2!J$17,B10<HiddenNormal2!J$16),B10,NA())) ->  | H10: =IF(ISNA(G10),NA(),IF(AND(G10>HiddenNormal2!J$14,G10<HiddenNormal2!J$15),G10,NA())) ->  | I10: =IF(ISNA(G10),NA(),IF(OR(AND(G10<HiddenNormal2!J$14,G10>HiddenNormal2!J$16),AND(G10>HiddenNormal2!J$15,G10<HiddenNormal2!J$17)),G10,NA())) ->  | J10: =IF(ISNA(G10),NA(),IF(OR(G10>HiddenNormal2!J$17,G10<HiddenNormal2!J$16),G10,NA())) ->  | L10: =VLOOKUP(ConcImputeds,HiddenNormal2!E$7:F$26,2,0) -> No | M10: 43191 | N10: 4.5 | O10: =IF(ISNA(N10),NA(),IF(AND(N10>=HiddenNormal2!V$14,N10<=HiddenNormal2!V$15),N10,NA())) -> 4.5 | P10: =IF(ISNA(N10),NA(),IF(OR(AND(N10<HiddenNormal2!V$14,N10>=HiddenNormal2!V$16),AND(N10>HiddenNormal2!V$15,N10<=HiddenNormal2!V$17)),N10,NA())) ->  | Q10: =IF(ISNA(N10),NA(),IF(OR(N10>HiddenNormal2!V$17,N10<HiddenNormal2!V$16),N10,NA())) ->  | T10: =IF(ISNA(S10),NA(),IF(AND(S10>HiddenNormal2!V$14,S10<HiddenNormal2!V$15),S10,NA())) ->  | U10: =IF(ISNA(S10),NA(),IF(OR(AND(S10<HiddenNormal2!V$14,S10>HiddenNormal2!V$16),AND(S10>HiddenNormal2!V$15,S10<HiddenNormal2!V$17)),S10,NA())) ->  | V10: =IF(ISNA(S10),NA(),IF(OR(S10>HiddenNormal2!V$17,S10<HiddenNormal2!V$16),S10,NA())) -> 
A11: 43221 | B11: 5.3 | C11: =IF(ISNA(B11),NA(),IF(AND(B11>=HiddenNormal2!J$14,B11<=HiddenNormal2!J$15),B11,NA())) -> 5.3 | D11: =IF(ISNA(B11),NA(),IF(OR(AND(B11<HiddenNormal2!J$14,B11>=HiddenNormal2!J$16),AND(B11>HiddenNormal2!J$15,B11<=HiddenNormal2!J$17)),B11,NA())) ->  | E11: =IF(ISNA(B11),NA(),IF(OR(B11>HiddenNormal2!J$17,B11<HiddenNormal2!J$16),B11,NA())) ->  | H11: =IF(ISNA(G11),NA(),IF(AND(G11>HiddenNormal2!J$14,G11<HiddenNormal2!J$15),G11,NA())) ->  | I11: =IF(ISNA(G11),NA(),IF(OR(AND(G11<HiddenNormal2!J$14,G11>HiddenNormal2!J$16),AND(G11>HiddenNormal2!J$15,G11<HiddenNormal2!J$17)),G11,NA())) ->  | J11: =IF(ISNA(G11),NA(),IF(OR(G11>HiddenNormal2!J$17,G11<HiddenNormal2!J$16),G11,NA())) ->  | L11: =VLOOKUP(ConcImputeds,HiddenNormal2!E$7:F$26,2,0) -> No | M11: 43221 | N11: 5.3 | O11: =IF(ISNA(N11),NA(),IF(AND(N11>=HiddenNormal2!V$14,N11<=HiddenNormal2!V$15),N11,NA())) -> 5.3 | P11: =IF(ISNA(N11),NA(),IF(OR(AND(N11<HiddenNormal2!V$14,N11>=HiddenNormal2!V$16),AND(N11>HiddenNormal2!V$15,N11<=HiddenNormal2!V$17)),N11,NA())) ->  | Q11: =IF(ISNA(N11),NA(),IF(OR(N11>HiddenNormal2!V$17,N11<HiddenNormal2!V$16),N11,NA())) ->  | T11: =IF(ISNA(S11),NA(),IF(AND(S11>HiddenNormal2!V$14,S11<HiddenNormal2!V$15),S11,NA())) ->  | U11: =IF(ISNA(S11),NA(),IF(OR(AND(S11<HiddenNormal2!V$14,S11>HiddenNormal2!V$16),AND(S11>HiddenNormal2!V$15,S11<HiddenNormal2!V$17)),S11,NA())) ->  | V11: =IF(ISNA(S11),NA(),IF(OR(S11>HiddenNormal2!V$17,S11<HiddenNormal2!V$16),S11,NA())) -> 
A12: 43252 | B12: 3.9 | C12: =IF(ISNA(B12),NA(),IF(AND(B12>=HiddenNormal2!J$14,B12<=HiddenNormal2!J$15),B12,NA())) -> 3.9 | D12: =IF(ISNA(B12),NA(),IF(OR(AND(B12<HiddenNormal2!J$14,B12>=HiddenNormal2!J$16),AND(B12>HiddenNormal2!J$15,B12<=HiddenNormal2!J$17)),B12,NA())) ->  | E12: =IF(ISNA(B12),NA(),IF(OR(B12>HiddenNormal2!J$17,B12<HiddenNormal2!J$16),B12,NA())) ->  | H12: =IF(ISNA(G12),NA(),IF(AND(G12>HiddenNormal2!J$14,G12<HiddenNormal2!J$15),G12,NA())) ->  | I12: =IF(ISNA(G12),NA(),IF(OR(AND(G12<HiddenNormal2!J$14,G12>HiddenNormal2!J$16),AND(G12>HiddenNormal2!J$15,G12<HiddenNormal2!J$17)),G12,NA())) ->  | J12: =IF(ISNA(G12),NA(),IF(OR(G12>HiddenNormal2!J$17,G12<HiddenNormal2!J$16),G12,NA())) ->  | L12: =VLOOKUP(ConcImputeds,HiddenNormal2!E$7:F$26,2,0) -> No | M12: 43252 | N12: 3.9 | O12: =IF(ISNA(N12),NA(),IF(AND(N12>=HiddenNormal2!V$14,N12<=HiddenNormal2!V$15),N12,NA())) -> 3.9 | P12: =IF(ISNA(N12),NA(),IF(OR(AND(N12<HiddenNormal2!V$14,N12>=HiddenNormal2!V$16),AND(N12>HiddenNormal2!V$15,N12<=HiddenNormal2!V$17)),N12,NA())) ->  | Q12: =IF(ISNA(N12),NA(),IF(OR(N12>HiddenNormal2!V$17,N12<HiddenNormal2!V$16),N12,NA())) ->  | T12: =IF(ISNA(S12),NA(),IF(AND(S12>HiddenNormal2!V$14,S12<HiddenNormal2!V$15),S12,NA())) ->  | U12: =IF(ISNA(S12),NA(),IF(OR(AND(S12<HiddenNormal2!V$14,S12>HiddenNormal2!V$16),AND(S12>HiddenNormal2!V$15,S12<HiddenNormal2!V$17)),S12,NA())) ->  | V12: =IF(ISNA(S12),NA(),IF(OR(S12>HiddenNormal2!V$17,S12<HiddenNormal2!V$16),S12,NA())) -> 
A13: 43282 | B13: 4 | C13: =IF(ISNA(B13),NA(),IF(AND(B13>=HiddenNormal2!J$14,B13<=HiddenNormal2!J$15),B13,NA())) -> 4 | D13: =IF(ISNA(B13),NA(),IF(OR(AND(B13<HiddenNormal2!J$14,B13>=HiddenNormal2!J$16),AND(B13>HiddenNormal2!J$15,B13<=HiddenNormal2!J$17)),B13,NA())) ->  | E13: =IF(ISNA(B13),NA(),IF(OR(B13>HiddenNormal2!J$17,B13<HiddenNormal2!J$16),B13,NA())) ->  | H13: =IF(ISNA(G13),NA(),IF(AND(G13>HiddenNormal2!J$14,G13<HiddenNormal2!J$15),G13,NA())) ->  | I13: =IF(ISNA(G13),NA(),IF(OR(AND(G13<HiddenNormal2!J$14,G13>HiddenNormal2!J$16),AND(G13>HiddenNormal2!J$15,G13<HiddenNormal2!J$17)),G13,NA())) ->  | J13: =IF(ISNA(G13),NA(),IF(OR(G13>HiddenNormal2!J$17,G13<HiddenNormal2!J$16),G13,NA())) ->  | L13: =VLOOKUP(ConcImputeds,HiddenNormal2!E$7:F$26,2,0) -> No | M13: 43282 | N13: 4 | O13: =IF(ISNA(N13),NA(),IF(AND(N13>=HiddenNormal2!V$14,N13<=HiddenNormal2!V$15),N13,NA())) -> 4 | P13: =IF(ISNA(N13),NA(),IF(OR(AND(N13<HiddenNormal2!V$14,N13>=HiddenNormal2!V$16),AND(N13>HiddenNormal2!V$15,N13<=HiddenNormal2!V$17)),N13,NA())) ->  | Q13: =IF(ISNA(N13),NA(),IF(OR(N13>HiddenNormal2!V$17,N13<HiddenNormal2!V$16),N13,NA())) ->  | T13: =IF(ISNA(S13),NA(),IF(AND(S13>HiddenNormal2!V$14,S13<HiddenNormal2!V$15),S13,NA())) ->  | U13: =IF(ISNA(S13),NA(),IF(OR(AND(S13<HiddenNormal2!V$14,S13>HiddenNormal2!V$16),AND(S13>HiddenNormal2!V$15,S13<HiddenNormal2!V$17)),S13,NA())) ->  | V13: =IF(ISNA(S13),NA(),IF(OR(S13>HiddenNormal2!V$17,S13<HiddenNormal2!V$16),S13,NA())) -> 
C14: =IF(ISNA(B14),NA(),IF(AND(B14>=HiddenNormal2!J$14,B14<=HiddenNormal2!J$15),B14,NA())) ->  | D14: =IF(ISNA(B14),NA(),IF(OR(AND(B14<HiddenNormal2!J$14,B14>=HiddenNormal2!J$16),AND(B14>HiddenNormal2!J$15,B14<=HiddenNormal2!J$17)),B14,NA())) ->  | E14: =IF(ISNA(B14),NA(),IF(OR(B14>HiddenNormal2!J$17,B14<HiddenNormal2!J$16),B14,NA())) ->  | H14: =IF(ISNA(G14),NA(),IF(AND(G14>HiddenNormal2!J$14,G14<HiddenNormal2!J$15),G14,NA())) ->  | I14: =IF(ISNA(G14),NA(),IF(OR(AND(G14<HiddenNormal2!J$14,G14>HiddenNormal2!J$16),AND(G14>HiddenNormal2!J$15,G14<HiddenNormal2!J$17)),G14,NA())) ->  | J14: =IF(ISNA(G14),NA(),IF(OR(G14>HiddenNormal2!J$17,G14<HiddenNormal2!J$16),G14,NA())) ->  | L14: =VLOOKUP(ConcImputeds,HiddenNormal2!E$7:F$26,2,0) ->  | O14: =IF(ISNA(N14),NA(),IF(AND(N14>=HiddenNormal2!V$14,N14<=HiddenNormal2!V$15),N14,NA())) ->  | P14: =IF(ISNA(N14),NA(),IF(OR(AND(N14<HiddenNormal2!V$14,N14>=HiddenNormal2!V$16),AND(N14>HiddenNormal2!V$15,N14<=HiddenNormal2!V$17)),N14,NA())) ->  | Q14: =IF(ISNA(N14),NA(),IF(OR(N14>HiddenNormal2!V$17,N14<HiddenNormal2!V$16),N14,NA())) ->  | T14: =IF(ISNA(S14),NA(),IF(AND(S14>HiddenNormal2!V$14,S14<HiddenNormal2!V$15),S14,NA())) ->  | U14: =IF(ISNA(S14),NA(),IF(OR(AND(S14<HiddenNormal2!V$14,S14>HiddenNormal2!V$16),AND(S14>HiddenNormal2!V$15,S14<HiddenNormal2!V$17)),S14,NA())) ->  | V14: =IF(ISNA(S14),NA(),IF(OR(S14>HiddenNormal2!V$17,S14<HiddenNormal2!V$16),S14,NA())) -> 
C15: =IF(ISNA(B15),NA(),IF(AND(B15>=HiddenNormal2!J$14,B15<=HiddenNormal2!J$15),B15,NA())) ->  | D15: =IF(ISNA(B15),NA(),IF(OR(AND(B15<HiddenNormal2!J$14,B15>=HiddenNormal2!J$16),AND(B15>HiddenNormal2!J$15,B15<=HiddenNormal2!J$17)),B15,NA())) ->  | E15: =IF(ISNA(B15),NA(),IF(OR(B15>HiddenNormal2!J$17,B15<HiddenNormal2!J$16),B15,NA())) ->  | H15: =IF(ISNA(G15),NA(),IF(AND(G15>HiddenNormal2!J$14,G15<HiddenNormal2!J$15),G15,NA())) ->  | I15: =IF(ISNA(G15),NA(),IF(OR(AND(G15<HiddenNormal2!J$14,G15>HiddenNormal2!J$16),AND(G15>HiddenNormal2!J$15,G15<HiddenNormal2!J$17)),G15,NA())) ->  | J15: =IF(ISNA(G15),NA(),IF(OR(G15>HiddenNormal2!J$17,G15<HiddenNormal2!J$16),G15,NA())) ->  | L15: =VLOOKUP(ConcImputeds,HiddenNormal2!E$7:F$26,2,0) ->  | O15: =IF(ISNA(N15),NA(),IF(AND(N15>=HiddenNormal2!V$14,N15<=HiddenNormal2!V$15),N15,NA())) ->  | P15: =IF(ISNA(N15),NA(),IF(OR(AND(N15<HiddenNormal2!V$14,N15>=HiddenNormal2!V$16),AND(N15>HiddenNormal2!V$15,N15<=HiddenNormal2!V$17)),N15,NA())) ->  | Q15: =IF(ISNA(N15),NA(),IF(OR(N15>HiddenNormal2!V$17,N15<HiddenNormal2!V$16),N15,NA())) ->  | T15: =IF(ISNA(S15),NA(),IF(AND(S15>HiddenNormal2!V$14,S15<HiddenNormal2!V$15),S15,NA())) ->  | U15: =IF(ISNA(S15),NA(),IF(OR(AND(S15<HiddenNormal2!V$14,S15>HiddenNormal2!V$16),AND(S15>HiddenNormal2!V$15,S15<HiddenNormal2!V$17)),S15,NA())) ->  | V15: =IF(ISNA(S15),NA(),IF(OR(S15>HiddenNormal2!V$17,S15<HiddenNormal2!V$16),S15,NA())) -> 
C16: =IF(ISNA(B16),NA(),IF(AND(B16>=HiddenNormal2!J$14,B16<=HiddenNormal2!J$15),B16,NA())) ->  | D16: =IF(ISNA(B16),NA(),IF(OR(AND(B16<HiddenNormal2!J$14,B16>=HiddenNormal2!J$16),AND(B16>HiddenNormal2!J$15,B16<=HiddenNormal2!J$17)),B16,NA())) ->  | E16: =IF(ISNA(B16),NA(),IF(OR(B16>HiddenNormal2!J$17,B16<HiddenNormal2!J$16),B16,NA())) ->  | H16: =IF(ISNA(G16),NA(),IF(AND(G16>HiddenNormal2!J$14,G16<HiddenNormal2!J$15),G16,NA())) ->  | I16: =IF(ISNA(G16),NA(),IF(OR(AND(G16<HiddenNormal2!J$14,G16>HiddenNormal2!J$16),AND(G16>HiddenNormal2!J$15,G16<HiddenNormal2!J$17)),G16,NA())) ->  | J16: =IF(ISNA(G16),NA(),IF(OR(G16>HiddenNormal2!J$17,G16<HiddenNormal2!J$16),G16,NA())) ->  | L16: =VLOOKUP(ConcImputeds,HiddenNormal2!E$7:F$26,2,0) ->  | O16: =IF(ISNA(N16),NA(),IF(AND(N16>=HiddenNormal2!V$14,N16<=HiddenNormal2!V$15),N16,NA())) ->  | P16: =IF(ISNA(N16),NA(),IF(OR(AND(N16<HiddenNormal2!V$14,N16>=HiddenNormal2!V$16),AND(N16>HiddenNormal2!V$15,N16<=HiddenNormal2!V$17)),N16,NA())) ->  | Q16: =IF(ISNA(N16),NA(),IF(OR(N16>HiddenNormal2!V$17,N16<HiddenNormal2!V$16),N16,NA())) ->  | T16: =IF(ISNA(S16),NA(),IF(AND(S16>HiddenNormal2!V$14,S16<HiddenNormal2!V$15),S16,NA())) ->  | U16: =IF(ISNA(S16),NA(),IF(OR(AND(S16<HiddenNormal2!V$14,S16>HiddenNormal2!V$16),AND(S16>HiddenNormal2!V$15,S16<HiddenNormal2!V$17)),S16,NA())) ->  | V16: =IF(ISNA(S16),NA(),IF(OR(S16>HiddenNormal2!V$17,S16<HiddenNormal2!V$16),S16,NA())) -> 
C17: =IF(ISNA(B17),NA(),IF(AND(B17>=HiddenNormal2!J$14,B17<=HiddenNormal2!J$15),B17,NA())) ->  | D17: =IF(ISNA(B17),NA(),IF(OR(AND(B17<HiddenNormal2!J$14,B17>=HiddenNormal2!J$16),AND(B17>HiddenNormal2!J$15,B17<=HiddenNormal2!J$17)),B17,NA())) ->  | E17: =IF(ISNA(B17),NA(),IF(OR(B17>HiddenNormal2!J$17,B17<HiddenNormal2!J$16),B17,NA())) ->  | H17: =IF(ISNA(G17),NA(),IF(AND(G17>HiddenNormal2!J$14,G17<HiddenNormal2!J$15),G17,NA())) ->  | I17: =IF(ISNA(G17),NA(),IF(OR(AND(G17<HiddenNormal2!J$14,G17>HiddenNormal2!J$16),AND(G17>HiddenNormal2!J$15,G17<HiddenNormal2!J$17)),G17,NA())) ->  | J17: =IF(ISNA(G17),NA(),IF(OR(G17>HiddenNormal2!J$17,G17<HiddenNormal2!J$16),G17,NA())) ->  | L17: =VLOOKUP(ConcImputeds,HiddenNormal2!E$7:F$26,2,0) ->  | O17: =IF(ISNA(N17),NA(),IF(AND(N17>=HiddenNormal2!V$14,N17<=HiddenNormal2!V$15),N17,NA())) ->  | P17: =IF(ISNA(N17),NA(),IF(OR(AND(N17<HiddenNormal2!V$14,N17>=HiddenNormal2!V$16),AND(N17>HiddenNormal2!V$15,N17<=HiddenNormal2!V$17)),N17,NA())) ->  | Q17: =IF(ISNA(N17),NA(),IF(OR(N17>HiddenNormal2!V$17,N17<HiddenNormal2!V$16),N17,NA())) ->  | T17: =IF(ISNA(S17),NA(),IF(AND(S17>HiddenNormal2!V$14,S17<HiddenNormal2!V$15),S17,NA())) ->  | U17: =IF(ISNA(S17),NA(),IF(OR(AND(S17<HiddenNormal2!V$14,S17>HiddenNormal2!V$16),AND(S17>HiddenNormal2!V$15,S17<HiddenNormal2!V$17)),S17,NA())) ->  | V17: =IF(ISNA(S17),NA(),IF(OR(S17>HiddenNormal2!V$17,S17<HiddenNormal2!V$16),S17,NA())) -> 
C18: =IF(ISNA(B18),NA(),IF(AND(B18>=HiddenNormal2!J$14,B18<=HiddenNormal2!J$15),B18,NA())) ->  | D18: =IF(ISNA(B18),NA(),IF(OR(AND(B18<HiddenNormal2!J$14,B18>=HiddenNormal2!J$16),AND(B18>HiddenNormal2!J$15,B18<=HiddenNormal2!J$17)),B18,NA())) ->  | E18: =IF(ISNA(B18),NA(),IF(OR(B18>HiddenNormal2!J$17,B18<HiddenNormal2!J$16),B18,NA())) ->  | H18: =IF(ISNA(G18),NA(),IF(AND(G18>HiddenNormal2!J$14,G18<HiddenNormal2!J$15),G18,NA())) ->  | I18: =IF(ISNA(G18),NA(),IF(OR(AND(G18<HiddenNormal2!J$14,G18>HiddenNormal2!J$16),AND(G18>HiddenNormal2!J$15,G18<HiddenNormal2!J$17)),G18,NA())) ->  | J18: =IF(ISNA(G18),NA(),IF(OR(G18>HiddenNormal2!J$17,G18<HiddenNormal2!J$16),G18,NA())) ->  | L18: =VLOOKUP(ConcImputeds,HiddenNormal2!E$7:F$26,2,0) ->  | O18: =IF(ISNA(N18),NA(),IF(AND(N18>=HiddenNormal2!V$14,N18<=HiddenNormal2!V$15),N18,NA())) ->  | P18: =IF(ISNA(N18),NA(),IF(OR(AND(N18<HiddenNormal2!V$14,N18>=HiddenNormal2!V$16),AND(N18>HiddenNormal2!V$15,N18<=HiddenNormal2!V$17)),N18,NA())) ->  | Q18: =IF(ISNA(N18),NA(),IF(OR(N18>HiddenNormal2!V$17,N18<HiddenNormal2!V$16),N18,NA())) ->  | T18: =IF(ISNA(S18),NA(),IF(AND(S18>HiddenNormal2!V$14,S18<HiddenNormal2!V$15),S18,NA())) ->  | U18: =IF(ISNA(S18),NA(),IF(OR(AND(S18<HiddenNormal2!V$14,S18>HiddenNormal2!V$16),AND(S18>HiddenNormal2!V$15,S18<HiddenNormal2!V$17)),S18,NA())) ->  | V18: =IF(ISNA(S18),NA(),IF(OR(S18>HiddenNormal2!V$17,S18<HiddenNormal2!V$16),S18,NA())) -> 
C19: =IF(ISNA(B19),NA(),IF(AND(B19>=HiddenNormal2!J$14,B19<=HiddenNormal2!J$15),B19,NA())) ->  | D19: =IF(ISNA(B19),NA(),IF(OR(AND(B19<HiddenNormal2!J$14,B19>=HiddenNormal2!J$16),AND(B19>HiddenNormal2!J$15,B19<=HiddenNormal2!J$17)),B19,NA())) ->  | E19: =IF(ISNA(B19),NA(),IF(OR(B19>HiddenNormal2!J$17,B19<HiddenNormal2!J$16),B19,NA())) ->  | H19: =IF(ISNA(G19),NA(),IF(AND(G19>HiddenNormal2!J$14,G19<HiddenNormal2!J$15),G19,NA())) ->  | I19: =IF(ISNA(G19),NA(),IF(OR(AND(G19<HiddenNormal2!J$14,G19>HiddenNormal2!J$16),AND(G19>HiddenNormal2!J$15,G19<HiddenNormal2!J$17)),G19,NA())) ->  | J19: =IF(ISNA(G19),NA(),IF(OR(G19>HiddenNormal2!J$17,G19<HiddenNormal2!J$16),G19,NA())) ->  | L19: =VLOOKUP(ConcImputeds,HiddenNormal2!E$7:F$26,2,0) ->  | O19: =IF(ISNA(N19),NA(),IF(AND(N19>=HiddenNormal2!V$14,N19<=HiddenNormal2!V$15),N19,NA())) ->  | P19: =IF(ISNA(N19),NA(),IF(OR(AND(N19<HiddenNormal2!V$14,N19>=HiddenNormal2!V$16),AND(N19>HiddenNormal2!V$15,N19<=HiddenNormal2!V$17)),N19,NA())) ->  | Q19: =IF(ISNA(N19),NA(),IF(OR(N19>HiddenNormal2!V$17,N19<HiddenNormal2!V$16),N19,NA())) ->  | T19: =IF(ISNA(S19),NA(),IF(AND(S19>HiddenNormal2!V$14,S19<HiddenNormal2!V$15),S19,NA())) ->  | U19: =IF(ISNA(S19),NA(),IF(OR(AND(S19<HiddenNormal2!V$14,S19>HiddenNormal2!V$16),AND(S19>HiddenNormal2!V$15,S19<HiddenNormal2!V$17)),S19,NA())) ->  | V19: =IF(ISNA(S19),NA(),IF(OR(S19>HiddenNormal2!V$17,S19<HiddenNormal2!V$16),S19,NA())) -> 
C20: =IF(ISNA(B20),NA(),IF(AND(B20>=HiddenNormal2!J$14,B20<=HiddenNormal2!J$15),B20,NA())) ->  | D20: =IF(ISNA(B20),NA(),IF(OR(AND(B20<HiddenNormal2!J$14,B20>=HiddenNormal2!J$16),AND(B20>HiddenNormal2!J$15,B20<=HiddenNormal2!J$17)),B20,NA())) ->  | E20: =IF(ISNA(B20),NA(),IF(OR(B20>HiddenNormal2!J$17,B20<HiddenNormal2!J$16),B20,NA())) ->  | H20: =IF(ISNA(G20),NA(),IF(AND(G20>HiddenNormal2!J$14,G20<HiddenNormal2!J$15),G20,NA())) ->  | I20: =IF(ISNA(G20),NA(),IF(OR(AND(G20<HiddenNormal2!J$14,G20>HiddenNormal2!J$16),AND(G20>HiddenNormal2!J$15,G20<HiddenNormal2!J$17)),G20,NA())) ->  | J20: =IF(ISNA(G20),NA(),IF(OR(G20>HiddenNormal2!J$17,G20<HiddenNormal2!J$16),G20,NA())) ->  | L20: =VLOOKUP(ConcImputeds,HiddenNormal2!E$7:F$26,2,0) ->  | O20: =IF(ISNA(N20),NA(),IF(AND(N20>=HiddenNormal2!V$14,N20<=HiddenNormal2!V$15),N20,NA())) ->  | P20: =IF(ISNA(N20),NA(),IF(OR(AND(N20<HiddenNormal2!V$14,N20>=HiddenNormal2!V$16),AND(N20>HiddenNormal2!V$15,N20<=HiddenNormal2!V$17)),N20,NA())) ->  | Q20: =IF(ISNA(N20),NA(),IF(OR(N20>HiddenNormal2!V$17,N20<HiddenNormal2!V$16),N20,NA())) ->  | T20: =IF(ISNA(S20),NA(),IF(AND(S20>HiddenNormal2!V$14,S20<HiddenNormal2!V$15),S20,NA())) ->  | U20: =IF(ISNA(S20),NA(),IF(OR(AND(S20<HiddenNormal2!V$14,S20>HiddenNormal2!V$16),AND(S20>HiddenNormal2!V$15,S20<HiddenNormal2!V$17)),S20,NA())) ->  | V20: =IF(ISNA(S20),NA(),IF(OR(S20>HiddenNormal2!V$17,S20<HiddenNormal2!V$16),S20,NA())) -> 
C21: =IF(ISNA(B21),NA(),IF(AND(B21>=HiddenNormal2!J$14,B21<=HiddenNormal2!J$15),B21,NA())) ->  | D21: =IF(ISNA(B21),NA(),IF(OR(AND(B21<HiddenNormal2!J$14,B21>=HiddenNormal2!J$16),AND(B21>HiddenNormal2!J$15,B21<=HiddenNormal2!J$17)),B21,NA())) ->  | E21: =IF(ISNA(B21),NA(),IF(OR(B21>HiddenNormal2!J$17,B21<HiddenNormal2!J$16),B21,NA())) ->  | H21: =IF(ISNA(G21),NA(),IF(AND(G21>HiddenNormal2!J$14,G21<HiddenNormal2!J$15),G21,NA())) ->  | I21: =IF(ISNA(G21),NA(),IF(OR(AND(G21<HiddenNormal2!J$14,G21>HiddenNormal2!J$16),AND(G21>HiddenNormal2!J$15,G21<HiddenNormal2!J$17)),G21,NA())) ->  | J21: =IF(ISNA(G21),NA(),IF(OR(G21>HiddenNormal2!J$17,G21<HiddenNormal2!J$16),G21,NA())) ->  | L21: =VLOOKUP(ConcImputeds,HiddenNormal2!E$7:F$26,2,0) ->  | O21: =IF(ISNA(N21),NA(),IF(AND(N21>=HiddenNormal2!V$14,N21<=HiddenNormal2!V$15),N21,NA())) ->  | P21: =IF(ISNA(N21),NA(),IF(OR(AND(N21<HiddenNormal2!V$14,N21>=HiddenNormal2!V$16),AND(N21>HiddenNormal2!V$15,N21<=HiddenNormal2!V$17)),N21,NA())) ->  | Q21: =IF(ISNA(N21),NA(),IF(OR(N21>HiddenNormal2!V$17,N21<HiddenNormal2!V$16),N21,NA())) ->  | T21: =IF(ISNA(S21),NA(),IF(AND(S21>HiddenNormal2!V$14,S21<HiddenNormal2!V$15),S21,NA())) ->  | U21: =IF(ISNA(S21),NA(),IF(OR(AND(S21<HiddenNormal2!V$14,S21>HiddenNormal2!V$16),AND(S21>HiddenNormal2!V$15,S21<HiddenNormal2!V$17)),S21,NA())) ->  | V21: =IF(ISNA(S21),NA(),IF(OR(S21>HiddenNormal2!V$17,S21<HiddenNormal2!V$16),S21,NA())) -> 
C22: =IF(ISNA(B22),NA(),IF(AND(B22>=HiddenNormal2!J$14,B22<=HiddenNormal2!J$15),B22,NA())) ->  | D22: =IF(ISNA(B22),NA(),IF(OR(AND(B22<HiddenNormal2!J$14,B22>=HiddenNormal2!J$16),AND(B22>HiddenNormal2!J$15,B22<=HiddenNormal2!J$17)),B22,NA())) ->  | E22: =IF(ISNA(B22),NA(),IF(OR(B22>HiddenNormal2!J$17,B22<HiddenNormal2!J$16),B22,NA())) ->  | H22: =IF(ISNA(G22),NA(),IF(AND(G22>HiddenNormal2!J$14,G22<HiddenNormal2!J$15),G22,NA())) ->  | I22: =IF(ISNA(G22),NA(),IF(OR(AND(G22<HiddenNormal2!J$14,G22>HiddenNormal2!J$16),AND(G22>HiddenNormal2!J$15,G22<HiddenNormal2!J$17)),G22,NA())) ->  | J22: =IF(ISNA(G22),NA(),IF(OR(G22>HiddenNormal2!J$17,G22<HiddenNormal2!J$16),G22,NA())) ->  | L22: =VLOOKUP(ConcImputeds,HiddenNormal2!E$7:F$26,2,0) ->  | O22: =IF(ISNA(N22),NA(),IF(AND(N22>=HiddenNormal2!V$14,N22<=HiddenNormal2!V$15),N22,NA())) ->  | P22: =IF(ISNA(N22),NA(),IF(OR(AND(N22<HiddenNormal2!V$14,N22>=HiddenNormal2!V$16),AND(N22>HiddenNormal2!V$15,N22<=HiddenNormal2!V$17)),N22,NA())) ->  | Q22: =IF(ISNA(N22),NA(),IF(OR(N22>HiddenNormal2!V$17,N22<HiddenNormal2!V$16),N22,NA())) ->  | T22: =IF(ISNA(S22),NA(),IF(AND(S22>HiddenNormal2!V$14,S22<HiddenNormal2!V$15),S22,NA())) ->  | U22: =IF(ISNA(S22),NA(),IF(OR(AND(S22<HiddenNormal2!V$14,S22>HiddenNormal2!V$16),AND(S22>HiddenNormal2!V$15,S22<HiddenNormal2!V$17)),S22,NA())) ->  | V22: =IF(ISNA(S22),NA(),IF(OR(S22>HiddenNormal2!V$17,S22<HiddenNormal2!V$16),S22,NA())) -> 
C23: =IF(ISNA(B23),NA(),IF(AND(B23>=HiddenNormal2!J$14,B23<=HiddenNormal2!J$15),B23,NA())) ->  | D23: =IF(ISNA(B23),NA(),IF(OR(AND(B23<HiddenNormal2!J$14,B23>=HiddenNormal2!J$16),AND(B23>HiddenNormal2!J$15,B23<=HiddenNormal2!J$17)),B23,NA())) ->  | E23: =IF(ISNA(B23),NA(),IF(OR(B23>HiddenNormal2!J$17,B23<HiddenNormal2!J$16),B23,NA())) ->  | H23: =IF(ISNA(G23),NA(),IF(AND(G23>HiddenNormal2!J$14,G23<HiddenNormal2!J$15),G23,NA())) ->  | I23: =IF(ISNA(G23),NA(),IF(OR(AND(G23<HiddenNormal2!J$14,G23>HiddenNormal2!J$16),AND(G23>HiddenNormal2!J$15,G23<HiddenNormal2!J$17)),G23,NA())) ->  | J23: =IF(ISNA(G23),NA(),IF(OR(G23>HiddenNormal2!J$17,G23<HiddenNormal2!J$16),G23,NA())) ->  | L23: =VLOOKUP(ConcImputeds,HiddenNormal2!E$7:F$26,2,0) ->  | O23: =IF(ISNA(N23),NA(),IF(AND(N23>=HiddenNormal2!V$14,N23<=HiddenNormal2!V$15),N23,NA())) ->  | P23: =IF(ISNA(N23),NA(),IF(OR(AND(N23<HiddenNormal2!V$14,N23>=HiddenNormal2!V$16),AND(N23>HiddenNormal2!V$15,N23<=HiddenNormal2!V$17)),N23,NA())) ->  | Q23: =IF(ISNA(N23),NA(),IF(OR(N23>HiddenNormal2!V$17,N23<HiddenNormal2!V$16),N23,NA())) ->  | T23: =IF(ISNA(S23),NA(),IF(AND(S23>HiddenNormal2!V$14,S23<HiddenNormal2!V$15),S23,NA())) ->  | U23: =IF(ISNA(S23),NA(),IF(OR(AND(S23<HiddenNormal2!V$14,S23>HiddenNormal2!V$16),AND(S23>HiddenNormal2!V$15,S23<HiddenNormal2!V$17)),S23,NA())) ->  | V23: =IF(ISNA(S23),NA(),IF(OR(S23>HiddenNormal2!V$17,S23<HiddenNormal2!V$16),S23,NA())) -> 
C24: =IF(ISNA(B24),NA(),IF(AND(B24>=HiddenNormal2!J$14,B24<=HiddenNormal2!J$15),B24,NA())) ->  | D24: =IF(ISNA(B24),NA(),IF(OR(AND(B24<HiddenNormal2!J$14,B24>=HiddenNormal2!J$16),AND(B24>HiddenNormal2!J$15,B24<=HiddenNormal2!J$17)),B24,NA())) ->  | E24: =IF(ISNA(B24),NA(),IF(OR(B24>HiddenNormal2!J$17,B24<HiddenNormal2!J$16),B24,NA())) ->  | H24: =IF(ISNA(G24),NA(),IF(AND(G24>HiddenNormal2!J$14,G24<HiddenNormal2!J$15),G24,NA())) ->  | I24: =IF(ISNA(G24),NA(),IF(OR(AND(G24<HiddenNormal2!J$14,G24>HiddenNormal2!J$16),AND(G24>HiddenNormal2!J$15,G24<HiddenNormal2!J$17)),G24,NA())) ->  | J24: =IF(ISNA(G24),NA(),IF(OR(G24>HiddenNormal2!J$17,G24<HiddenNormal2!J$16),G24,NA())) ->  | L24: =VLOOKUP(ConcImputeds,HiddenNormal2!E$7:F$26,2,0) ->  | O24: =IF(ISNA(N24),NA(),IF(AND(N24>=HiddenNormal2!V$14,N24<=HiddenNormal2!V$15),N24,NA())) ->  | P24: =IF(ISNA(N24),NA(),IF(OR(AND(N24<HiddenNormal2!V$14,N24>=HiddenNormal2!V$16),AND(N24>HiddenNormal2!V$15,N24<=HiddenNormal2!V$17)),N24,NA())) ->  | Q24: =IF(ISNA(N24),NA(),IF(OR(N24>HiddenNormal2!V$17,N24<HiddenNormal2!V$16),N24,NA())) ->  | T24: =IF(ISNA(S24),NA(),IF(AND(S24>HiddenNormal2!V$14,S24<HiddenNormal2!V$15),S24,NA())) ->  | U24: =IF(ISNA(S24),NA(),IF(OR(AND(S24<HiddenNormal2!V$14,S24>HiddenNormal2!V$16),AND(S24>HiddenNormal2!V$15,S24<HiddenNormal2!V$17)),S24,NA())) ->  | V24: =IF(ISNA(S24),NA(),IF(OR(S24>HiddenNormal2!V$17,S24<HiddenNormal2!V$16),S24,NA())) -> 
C25: =IF(ISNA(B25),NA(),IF(AND(B25>=HiddenNormal2!J$14,B25<=HiddenNormal2!J$15),B25,NA())) ->  | D25: =IF(ISNA(B25),NA(),IF(OR(AND(B25<HiddenNormal2!J$14,B25>=HiddenNormal2!J$16),AND(B25>HiddenNormal2!J$15,B25<=HiddenNormal2!J$17)),B25,NA())) ->  | E25: =IF(ISNA(B25),NA(),IF(OR(B25>HiddenNormal2!J$17,B25<HiddenNormal2!J$16),B25,NA())) ->  | H25: =IF(ISNA(G25),NA(),IF(AND(G25>HiddenNormal2!J$14,G25<HiddenNormal2!J$15),G25,NA())) ->  | I25: =IF(ISNA(G25),NA(),IF(OR(AND(G25<HiddenNormal2!J$14,G25>HiddenNormal2!J$16),AND(G25>HiddenNormal2!J$15,G25<HiddenNormal2!J$17)),G25,NA())) ->  | J25: =IF(ISNA(G25),NA(),IF(OR(G25>HiddenNormal2!J$17,G25<HiddenNormal2!J$16),G25,NA())) ->  | L25: =VLOOKUP(ConcImputeds,HiddenNormal2!E$7:F$26,2,0) ->  | O25: =IF(ISNA(N25),NA(),IF(AND(N25>=HiddenNormal2!V$14,N25<=HiddenNormal2!V$15),N25,NA())) ->  | P25: =IF(ISNA(N25),NA(),IF(OR(AND(N25<HiddenNormal2!V$14,N25>=HiddenNormal2!V$16),AND(N25>HiddenNormal2!V$15,N25<=HiddenNormal2!V$17)),N25,NA())) ->  | Q25: =IF(ISNA(N25),NA(),IF(OR(N25>HiddenNormal2!V$17,N25<HiddenNormal2!V$16),N25,NA())) ->  | T25: =IF(ISNA(S25),NA(),IF(AND(S25>HiddenNormal2!V$14,S25<HiddenNormal2!V$15),S25,NA())) ->  | U25: =IF(ISNA(S25),NA(),IF(OR(AND(S25<HiddenNormal2!V$14,S25>HiddenNormal2!V$16),AND(S25>HiddenNormal2!V$15,S25<HiddenNormal2!V$17)),S25,NA())) ->  | V25: =IF(ISNA(S25),NA(),IF(OR(S25>HiddenNormal2!V$17,S25<HiddenNormal2!V$16),S25,NA())) -> 
C26: =IF(ISNA(B26),NA(),IF(AND(B26>=HiddenNormal2!J$14,B26<=HiddenNormal2!J$15),B26,NA())) ->  | D26: =IF(ISNA(B26),NA(),IF(OR(AND(B26<HiddenNormal2!J$14,B26>=HiddenNormal2!J$16),AND(B26>HiddenNormal2!J$15,B26<=HiddenNormal2!J$17)),B26,NA())) ->  | E26: =IF(ISNA(B26),NA(),IF(OR(B26>HiddenNormal2!J$17,B26<HiddenNormal2!J$16),B26,NA())) ->  | H26: =IF(ISNA(G26),NA(),IF(AND(G26>HiddenNormal2!J$14,G26<HiddenNormal2!J$15),G26,NA())) ->  | I26: =IF(ISNA(G26),NA(),IF(OR(AND(G26<HiddenNormal2!J$14,G26>HiddenNormal2!J$16),AND(G26>HiddenNormal2!J$15,G26<HiddenNormal2!J$17)),G26,NA())) ->  | J26: =IF(ISNA(G26),NA(),IF(OR(G26>HiddenNormal2!J$17,G26<HiddenNormal2!J$16),G26,NA())) ->  | L26: =VLOOKUP(ConcImputeds,HiddenNormal2!E$7:F$26,2,0) ->  | O26: =IF(ISNA(N26),NA(),IF(AND(N26>=HiddenNormal2!V$14,N26<=HiddenNormal2!V$15),N26,NA())) ->  | P26: =IF(ISNA(N26),NA(),IF(OR(AND(N26<HiddenNormal2!V$14,N26>=HiddenNormal2!V$16),AND(N26>HiddenNormal2!V$15,N26<=HiddenNormal2!V$17)),N26,NA())) ->  | Q26: =IF(ISNA(N26),NA(),IF(OR(N26>HiddenNormal2!V$17,N26<HiddenNormal2!V$16),N26,NA())) ->  | T26: =IF(ISNA(S26),NA(),IF(AND(S26>HiddenNormal2!V$14,S26<HiddenNormal2!V$15),S26,NA())) ->  | U26: =IF(ISNA(S26),NA(),IF(OR(AND(S26<HiddenNormal2!V$14,S26>HiddenNormal2!V$16),AND(S26>HiddenNormal2!V$15,S26<HiddenNormal2!V$17)),S26,NA())) ->  | V26: =IF(ISNA(S26),NA(),IF(OR(S26>HiddenNormal2!V$17,S26<HiddenNormal2!V$16),S26,NA())) -> 
A28: Boxplot series | B28: All data included | F28: Outliers removed | M28: Date | N28: Concentration
B29: Xmin | C29: Xmax | D29: Y | E29: Y | F29: Xmin | G29: Xmax | H29: Y | I29: Y | M29: =IF(ISNA(M7),"",M7) -> 43101 | N29: 4.3
A30: Box bottom | B30: =MIN(DateInput) -> 43101 | C30: =MAX(DateInput) -> 43282 | D30: =HiddenNormal2!K7 -> 4.15 | E30: =D30 -> 4.15 | F30: =MIN(DateInput) -> 43101 | G30: =MAX(DateInput) -> 43282 | H30: =HiddenNormal2!W7 -> 4.15 | I30: =H30 -> 4.15 | M30: 43132 | N30: 6.1
A31: Box center | B31: 43101 | C31: =MAX(DateInput) -> 43282 | D31: =HiddenNormal2!K8 -> 4.5 | E31: =D31 -> 4.5 | F31: =F30 -> 43101 | G31: 43282 | H31: =HiddenNormal2!W8 -> 4.5 | I31: =H31 -> 4.5 | M31: 43160 | N31: 4.6
A32: Box top | B32: 43101 | C32: =MAX(DateInput) -> 43282 | D32: =HiddenNormal2!K9 -> 4.95 | E32: =D32 -> 4.95 | F32: 43101 | G32: 43282 | H32: =HiddenNormal2!W9 -> 4.95 | I32: =H32 -> 4.95 | M32: 43191 | N32: 4.5
A33: Min line | B33: 43101 | C33: =MAX(DateInput) -> 43282 | D33: =MIN(ConcInput) -> 3.9 | E33: =D33 -> 3.9 | F33: 43101 | G33: 43282 | H33: =MIN(ConcImputeds) -> 3.9 | I33: =H33 -> 3.9 | M33: 43221 | N33: 5.3
A34: Max line | B34: 43101 | C34: =MAX(DateInput) -> 43282 | D34: =MAX(ConcInput) -> 6.1 | E34: =D34 -> 6.1 | F34: 43101 | G34: 43282 | H34: =MAX(ConcImputeds) -> 6.1 | I34: =H34 -> 6.1 | M34: 43252 | N34: 3.9
A35: Box left | B35: 43101 | C35: =B35 -> 43101 | D35: =D30 -> 4.15 | E35: =E32 -> 4.95 | F35: =F34 -> 43101 | G35: =F35 -> 43101 | H35: =H30 -> 4.15 | I35: =I32 -> 4.95 | M35: 43282 | N35: 4
A36: Box right | B36: =MAX(DateInput) -> 43282 | C36: =B36 -> 43282 | D36: =D30 -> 4.15 | E36: =E32 -> 4.95 | F36: =G30 -> 43282 | G36: =F36 -> 43282 | H36: =H30 -> 4.15 | I36: =I32 -> 4.95
A37: Top whisker | B37: =AVERAGE(B35:B36) -> 43191.5 | C37: =B37 -> 43191.5 | D37: =D32 -> 4.95 | E37: =E34 -> 6.1 | F37: =AVERAGE(M29:M48) -> 43191.28571 | G37: =F37 -> 43191.28571 | H37: =H32 -> 4.95 | I37: =I34 -> 6.1
A38: Bottom whisker | B38: =B37 -> 43191.5 | C38: =C37 -> 43191.5 | D38: =D33 -> 3.9 | E38: =E30 -> 4.15 | F38: =F37 -> 43191.28571 | G38: =F38 -> 43191.28571 | H38: =H33 -> 3.9 | I38: =I30 -> 4.15
M39: =IF(ISNA(M17),"",M17) -> 

Sheet HiddenNormal1 (hidden)
B1: All Detected Data | K1: Coefficients [a(n-i+1] for Shapiro-Wil Test of Normality | Q1: Table comes from Table 10-2 of Appendix D of the UG.
A2: i | B2: x(i) | C2: x(n-i+1) | D2: X(n-i+1)-x(i) | E2: a(n-i+1) | F2: =E2& "*" & D2 -> a(n-i+1)*X(n-i+1)-x(i) | G2: b(i) | H2: SW | L2: n
A3: =HiddenNormal2!A7 -> 1 | B3: =HiddenNormal2!E7 -> 3.9 | C3: =IF(A3="","",VLOOKUP(HiddenNormal2!J$10-A3+1,A$3:B$22,2,0)) -> 6.1 | D3: =IF(A3="","",C3-B3) -> 2.2 | E3: =IF(A3="","",IF(D3>=0,OFFSET($K$3,A3,HiddenNormal2!J$10-1,1,1),0)) -> 0.6233 | F3: =IF(A3="","",IF(E3*D3>0,E3*D3,0)) -> 1.37126 | G3: =SUM(F3:F22) -> 1.80732 | H3: =(G3/(STDEV(B3:B22)*SQRT(HiddenNormal2!J10-1)))^2 -> 0.8938561015 | K3: i | L3: 2 | M3: 3 | N3: 4 | O3: 5 | P3: 6 | Q3: 7 | R3: 8 | S3: 9 | T3: 10 | U3: 11 | V3: 12 | W3: 13 | X3: 14 | Y3: 15 | Z3: 16 | AA3: 17 | AB3: 18 | AC3: 19 | AD3: 20
A4: =HiddenNormal2!A8 -> 2 | B4: =HiddenNormal2!E8 -> 4 | C4: =IF(A4="","",VLOOKUP(HiddenNormal2!J$10-A4+1,A$3:B$22,2,0)) -> 5.3 | D4: =IF(A4="","",C4-B4) -> 1.3 | E4: =IF(A4="","",IF(D4>=0,OFFSET($K$3,A4,HiddenNormal2!J$10-1,1,1),0)) -> 0.3031 | F4: =IF(A4="","",IF(E4*D4>0,E4*D4,0)) -> 0.39403 | K4: 1 | L4: 0.7071 | M4: 0.7071 | N4: 0.6872 | O4: 0.6646 | P4: 0.6431 | Q4: 0.6233 | R4: 0.6052 | S4: 0.5888 | T4: 0.5739 | U4: 0.5601 | V4: 0.5475 | W4: 0.5359 | X4: 0.5251 | Y4: 0.515 | Z4: 0.5056 | AA4: 0.4968 | AB4: 0.4886 | AC4: 0.4808 | AD4: 0.4734
A5: =HiddenNormal2!A9 -> 3 | B5: =HiddenNormal2!E9 -> 4.3 | C5: =IF(A5="","",VLOOKUP(HiddenNormal2!J$10-A5+1,A$3:B$22,2,0)) -> 4.6 | D5: 0.3 | E5: =IF(A5="","",IF(D5>=0,OFFSET($K$3,A5,HiddenNormal2!J$10-1,1,1),0)) -> 0.1401 | F5: 0.04203 | K5: 2 | M5: 0 | N5: 0.1677 | O5: 0.2413 | P5: 0.2806 | Q5: 0.3031 | R5: 0.3164 | S5: 0.3244 | T5: 0.3291 | U5: 0.3315 | V5: 0.3325 | W5: 0.3325 | X5: 0.3318 | Y5: 0.3306 | Z5: 0.329 | AA5: 0.3273 | AB5: 0.3253 | AC5: 0.3232 | AD5: 0.3211
A6: =HiddenNormal2!A10 -> 4 | B6: =HiddenNormal2!E10 -> 4.5 | C6: =IF(A6="","",VLOOKUP(HiddenNormal2!J$10-A6+1,A$3:B$22,2,0)) -> 4.5 | D6: 0 | E6: =IF(A6="","",IF(D6>=0,OFFSET($K$3,A6,HiddenNormal2!J$10-1,1,1),0)) -> 0 | F6: 0 | K6: 3 | O6: 0 | P6: 0.0875 | Q6: 0.1401 | R6: 0.1743 | S6: 0.1976 | T6: 0.2141 | U6: 0.226 | V6: 0.2347 | W6: 0.2412 | X6: 0.246 | Y6: 0.2495 | Z6: 0.2521 | AA6: 0.254 | AB6: 0.2553 | AC6: 0.2561 | AD6: 0.2565
A7: =HiddenNormal2!A11 -> 5 | B7: =HiddenNormal2!E11 -> 4.6 | C7: =IF(A7="","",VLOOKUP(HiddenNormal2!J$10-A7+1,A$3:B$22,2,0)) -> 4.3 | D7: -0.3 | E7: =IF(A7="","",IF(D7>=0,OFFSET($K$3,A7,HiddenNormal2!J$10-1,1,1),0)) -> 0 | F7: 0 | K7: 4 | Q7: 0 | R7: 0.0561 | S7: 0.0947 | T7: 0.1224 | U7: 0.1429 | V7: 0.1586 | W7: 0.1707 | X7: 0.1802 | Y7: 0.1878 | Z7: 0.1939 | AA7: 0.1988 | AB7: 0.2027 | AC7: 0.2059 | AD7: 0.2085
A8: =HiddenNormal2!A12 -> 6 | B8: =HiddenNormal2!E12 -> 5.3 | C8: =IF(A8="","",VLOOKUP(HiddenNormal2!J$10-A8+1,A$3:B$22,2,0)) -> 4 | D8: -1.3 | E8: =IF(A8="","",IF(D8>=0,OFFSET($K$3,A8,HiddenNormal2!J$10-1,1,1),0)) -> 0 | F8: 0 | K8: 5 | S8: 0 | T8: 0.0399 | U8: 0.0695 | V8: 0.0922 | W8: 0.1099 | X8: 0.124 | Y8: 0.1353 | Z8: 0.1447 | AA8: 0.1524 | AB8: 0.1587 | AC8: 0.1641 | AD8: 0.1686
A9: =HiddenNormal2!A13 -> 7 | B9: =HiddenNormal2!E13 -> 6.1 | C9: =IF(A9="","",VLOOKUP(HiddenNormal2!J$10-A9+1,A$3:B$22,2,0)) -> 3.9 | D9: -2.2 | E9: =IF(A9="","",IF(D9>=0,OFFSET($K$3,A9,HiddenNormal2!J$10-1,1,1),0)) -> 0 | F9: 0 | K9: 6 | U9: 0 | V9: 0.0303 | W9: 0.0539 | X9: 0.0727 | Y9: 0.088 | Z9: 0.1005 | AA9: 0.1109 | AB9: 0.1197 | AC9: 0.1271 | AD9: 0.1334
A10: =HiddenNormal2!A14 ->  | B10: =HiddenNormal2!E14 ->  | C10: =IF(A10="","",VLOOKUP(HiddenNormal2!J$10-A10+1,A$3:B$22,2,0)) ->  | E10: =IF(A10="","",IF(D10>=0,OFFSET($K$3,A10,HiddenNormal2!J$10-1,1,1),0)) ->  | K10: 7 | W10: 0 | X10: 0.024 | Y10: 0.0433 | Z10: 0.0593 | AA10: 0.0725 | AB10: 0.0837 | AC10: 0.0932 | AD10: 0.1013
A11: =HiddenNormal2!A15 ->  | B11: =HiddenNormal2!E15 ->  | C11: =IF(A11="","",VLOOKUP(HiddenNormal2!J$10-A11+1,A$3:B$22,2,0)) ->  | E11: =IF(A11="","",IF(D11>=0,OFFSET($K$3,A11,HiddenNormal2!J$10-1,1,1),0)) ->  | K11: 8 | Y11: 0 | Z11: 0.0196 | AA11: 0.0359 | AB11: 0.0496 | AC11: 0.0612 | AD11: 0.0711
A12: =HiddenNormal2!A16 ->  | B12: =HiddenNormal2!E16 ->  | C12: =IF(A12="","",VLOOKUP(HiddenNormal2!J$10-A12+1,A$3:B$22,2,0)) ->  | E12: =IF(A12="","",IF(D12>=0,OFFSET($K$3,A12,HiddenNormal2!J$10-1,1,1),0)) ->  | K12: 9 | AA12: 0 | AB12: 0.0163 | AC12: 0.0303 | AD12: 0.0422
A13: =HiddenNormal2!A17 ->  | B13: =HiddenNormal2!E17 ->  | C13: =IF(A13="","",VLOOKUP(HiddenNormal2!J$10-A13+1,A$3:B$22,2,0)) ->  | E13: =IF(A13="","",IF(D13>=0,OFFSET($K$3,A13,HiddenNormal2!J$10-1,1,1),0)) ->  | K13: 10 | AC13: 0 | AD13: 0.014
A14: =HiddenNormal2!A18 ->  | B14: =HiddenNormal2!E18 ->  | C14: =IF(A14="","",VLOOKUP(HiddenNormal2!J$10-A14+1,A$3:B$22,2,0)) ->  | E14: =IF(A14="","",IF(D14>=0,OFFSET($K$3,A14,HiddenNormal2!J$10-1,1,1),0)) ->  | K14: 11
A15: =HiddenNormal2!A19 ->  | B15: =HiddenNormal2!E19 ->  | C15: =IF(A15="","",VLOOKUP(HiddenNormal2!J$10-A15+1,A$3:B$22,2,0)) ->  | D15: =IF(A15="","",C15-B15) ->  | E15: =IF(A15="","",IF(D15>=0,OFFSET($K$3,A15,HiddenNormal2!J$10-1,1,1),0)) ->  | F15: =IF(A15="","",IF(E15*D15>0,E15*D15,0)) ->  | K15: 12
A16: =HiddenNormal2!A20 ->  | B16: =HiddenNormal2!E20 ->  | C16: =IF(A16="","",VLOOKUP(HiddenNormal2!J$10-A16+1,A$3:B$22,2,0)) ->  | E16: =IF(A16="","",IF(D16>=0,OFFSET($K$3,A16,HiddenNormal2!J$10-1,1,1),0)) ->  | K16: 13
A17: =HiddenNormal2!A21 ->  | B17: =HiddenNormal2!E21 ->  | C17: =IF(A17="","",VLOOKUP(HiddenNormal2!J$10-A17+1,A$3:B$22,2,0)) ->  | E17: =IF(A17="","",IF(D17>=0,OFFSET($K$3,A17,HiddenNormal2!J$10-1,1,1),0)) ->  | K17: 14
A18: =HiddenNormal2!A22 ->  | B18: =HiddenNormal2!E22 ->  | C18: =IF(A18="","",VLOOKUP(HiddenNormal2!J$10-A18+1,A$3:B$22,2,0)) ->  | E18: =IF(A18="","",IF(D18>=0,OFFSET($K$3,A18,HiddenNormal2!J$10-1,1,1),0)) ->  | K18: 15
A19: =HiddenNormal2!A23 ->  | B19: =HiddenNormal2!E23 ->  | C19: =IF(A19="","",VLOOKUP(HiddenNormal2!J$10-A19+1,A$3:B$22,2,0)) ->  | E19: =IF(A19="","",IF(D19>=0,OFFSET($K$3,A19,HiddenNormal2!J$10-1,1,1),0)) ->  | K19: 16
A20: =HiddenNormal2!A24 ->  | B20: =HiddenNormal2!E24 ->  | C20: =IF(A20="","",VLOOKUP(HiddenNormal2!J$10-A20+1,A$3:B$22,2,0)) ->  | E20: =IF(A20="","",IF(D20>=0,OFFSET($K$3,A20,HiddenNormal2!J$10-1,1,1),0)) ->  | K20: 17
A21: =HiddenNormal2!A25 ->  | B21: =HiddenNormal2!E25 ->  | C21: =IF(A21="","",VLOOKUP(HiddenNormal2!J$10-A21+1,A$3:B$22,2,0)) ->  | E21: =IF(A21="","",IF(D21>=0,OFFSET($K$3,A21,HiddenNormal2!J$10-1,1,1),0)) ->  | K21: 18
A22: =HiddenNormal2!A26 ->  | B22: =HiddenNormal2!E26 ->  | C22: =IF(A22="","",VLOOKUP(HiddenNormal2!J$10-A22+1,A$3:B$22,2,0)) ->  | D22: =IF(A22="","",C22-B22) ->  | E22: =IF(A22="","",IF(D22>=0,OFFSET($K$3,A22,HiddenNormal2!J$10-1,1,1),0)) ->  | F22: =IF(A22="","",IF(E22*D22>0,E22*D22,0)) -> 
B24: x(i) | C24: x(n-i+1) | D24: X(n-i+1)-x(i) | E24: a(n-i+1) | F24: =E24& "*" & D24 -> a(n-i+1)*X(n-i+1)-x(i) | G24: b(i) | H24: SW | K24: Critical Points for Shapiro-Wilk Test
A25: =HiddenNormal2!M7 -> 1 | B25: =HiddenNormal2!Q7 -> 3.9 | C25: =IF(A25="","",VLOOKUP(HiddenNormal2!V$10-A25+1,A$25:B$44,2,0)) -> 6.1 | D25: =IF(A25="","",C25-B25) -> 2.2 | E25: =IF(A25="","",IF(D25>=0,OFFSET($K$3,A25,HiddenNormal2!V$10-1,1,1),0)) -> 0.6233 | F25: =IF(A25="","",IF(E25*D25>0,E25*D25,0)) -> 1.37126 | G25: =SUM(F25:F44) -> 1.80732 | H25: =(G25/(STDEV(B25:B44)*SQRT(HiddenNormal2!V10-1)))^2 -> 0.8938561015 | L25: Alpha
A26: =HiddenNormal2!M8 -> 2 | B26: =HiddenNormal2!Q8 -> 4 | C26: =IF(A26="","",VLOOKUP(HiddenNormal2!V$10-A26+1,A$25:B$44,2,0)) -> 5.3 | D26: =IF(A26="","",C26-B26) -> 1.3 | E26: =IF(A26="","",IF(D26>=0,OFFSET($K$3,A26,HiddenNormal2!V$10-1,1,1),0)) -> 0.3031 | F26: =IF(A26="","",IF(E26*D26>0,E26*D26,0)) -> 0.39403 | K26: n | L26: 0.01 | M26: 0.05 | N26: 0.1
A27: =HiddenNormal2!M9 -> 3 | B27: =HiddenNormal2!Q9 -> 4.3 | C27: =IF(A27="","",VLOOKUP(HiddenNormal2!V$10-A27+1,A$25:B$44,2,0)) -> 4.6 | D27: 0.3 | E27: =IF(A27="","",IF(D27>=0,OFFSET($K$3,A27,HiddenNormal2!V$10-1,1,1),0)) -> 0.1401 | F27: 0.04203 | K27: 3 | L27: 0.753 | M27: 0.767 | N27: 0.789
A28: =HiddenNormal2!M10 -> 4 | B28: =HiddenNormal2!Q10 -> 4.5 | C28: =IF(A28="","",VLOOKUP(HiddenNormal2!V$10-A28+1,A$25:B$44,2,0)) -> 4.5 | D28: 0 | E28: =IF(A28="","",IF(D28>=0,OFFSET($K$3,A28,HiddenNormal2!V$10-1,1,1),0)) -> 0 | F28: 0 | K28: 4 | L28: 0.687 | M28: 0.748 | N28: 0.792
A29: =HiddenNormal2!M11 -> 5 | B29: =HiddenNormal2!Q11 -> 4.6 | C29: =IF(A29="","",VLOOKUP(HiddenNormal2!V$10-A29+1,A$25:B$44,2,0)) -> 4.3 | D29: -0.3 | E29: =IF(A29="","",IF(D29>=0,OFFSET($K$3,A29,HiddenNormal2!V$10-1,1,1),0)) -> 0 | F29: 0 | K29: 5 | L29: 0.686 | M29: 0.762 | N29: 0.806
A30: =HiddenNormal2!M12 -> 6 | B30: =HiddenNormal2!Q12 -> 5.3 | C30: =IF(A30="","",VLOOKUP(HiddenNormal2!V$10-A30+1,A$25:B$44,2,0)) -> 4 | D30: -1.3 | E30: =IF(A30="","",IF(D30>=0,OFFSET($K$3,A30,HiddenNormal2!V$10-1,1,1),0)) -> 0 | F30: 0 | K30: 6 | L30: 0.713 | M30: 0.788 | N30: 0.826
A31: =HiddenNormal2!M13 -> 7 | B31: =HiddenNormal2!Q13 -> 6.1 | C31: =IF(A31="","",VLOOKUP(HiddenNormal2!V$10-A31+1,A$25:B$44,2,0)) -> 3.9 | D31: -2.2 | E31: =IF(A31="","",IF(D31>=0,OFFSET($K$3,A31,HiddenNormal2!V$10-1,1,1),0)) -> 0 | F31: 0 | K31: 7 | L31: 0.73 | M31: 0.803 | N31: 0.838
A32: =HiddenNormal2!M14 ->  | B32: =HiddenNormal2!Q14 ->  | C32: =IF(A32="","",VLOOKUP(HiddenNormal2!V$10-A32+1,A$25:B$44,2,0)) ->  | E32: =IF(A32="","",IF(D32>=0,OFFSET($K$3,A32,HiddenNormal2!V$10-1,1,1),0)) ->  | K32: 8 | L32: 0.749 | M32: 0.818 | N32: 0.851
A33: =HiddenNormal2!M15 ->  | B33: =HiddenNormal2!Q15 ->  | C33: =IF(A33="","",VLOOKUP(HiddenNormal2!V$10-A33+1,A$25:B$44,2,0)) ->  | E33: =IF(A33="","",IF(D33>=0,OFFSET($K$3,A33,HiddenNormal2!V$10-1,1,1),0)) ->  | K33: 9 | L33: 0.764 | M33: 0.829 | N33: 0.859
A34: =HiddenNormal2!M16 ->  | B34: =HiddenNormal2!Q16 ->  | C34: =IF(A34="","",VLOOKUP(HiddenNormal2!V$10-A34+1,A$25:B$44,2,0)) ->  | E34: =IF(A34="","",IF(D34>=0,OFFSET($K$3,A34,HiddenNormal2!V$10-1,1,1),0)) ->  | K34: 10 | L34: 0.781 | M34: 0.842 | N34: 0.869
A35: =HiddenNormal2!M17 ->  | B35: =HiddenNormal2!Q17 ->  | C35: =IF(A35="","",VLOOKUP(HiddenNormal2!V$10-A35+1,A$25:B$44,2,0)) ->  | E35: =IF(A35="","",IF(D35>=0,OFFSET($K$3,A35,HiddenNormal2!V$10-1,1,1),0)) ->  | K35: 11 | L35: 0.792 | M35: 0.85 | N35: 0.876
A36: =HiddenNormal2!M18 ->  | B36: =HiddenNormal2!Q18 ->  | C36: =IF(A36="","",VLOOKUP(HiddenNormal2!V$10-A36+1,A$25:B$44,2,0)) ->  | E36: =IF(A36="","",IF(D36>=0,OFFSET($K$3,A36,HiddenNormal2!V$10-1,1,1),0)) ->  | K36: 12 | L36: 0.805 | M36: 0.859 | N36: 0.883
A37: =HiddenNormal2!M19 ->  | B37: =HiddenNormal2!Q19 ->  | C37: =IF(A37="","",VLOOKUP(HiddenNormal2!V$10-A37+1,A$25:B$44,2,0)) ->  | E37: =IF(A37="","",IF(D37>=0,OFFSET($K$3,A37,HiddenNormal2!V$10-1,1,1),0)) ->  | K37: 13 | L37: 0.814 | M37: 0.866 | N37: 0.889
A38: =HiddenNormal2!M20 ->  | B38: =HiddenNormal2!Q20 ->  | C38: =IF(A38="","",VLOOKUP(HiddenNormal2!V$10-A38+1,A$25:B$44,2,0)) ->  | E38: =IF(A38="","",IF(D38>=0,OFFSET($K$3,A38,HiddenNormal2!V$10-1,1,1),0)) ->  | K38: 14 | L38: 0.825 | M38: 0.874 | N38: 0.895
A39: =HiddenNormal2!M21 ->  | B39: =HiddenNormal2!Q21 ->  | C39: =IF(A39="","",VLOOKUP(HiddenNormal2!V$10-A39+1,A$25:B$44,2,0)) ->  | E39: =IF(A39="","",IF(D39>=0,OFFSET($K$3,A39,HiddenNormal2!V$10-1,1,1),0)) ->  | K39: 15 | L39: 0.835 | M39: 0.881 | N39: 0.901
A40: =HiddenNormal2!M22 ->  | B40: =HiddenNormal2!Q22 ->  | C40: =IF(A40="","",VLOOKUP(HiddenNormal2!V$10-A40+1,A$25:B$44,2,0)) ->  | E40: =IF(A40="","",IF(D40>=0,OFFSET($K$3,A40,HiddenNormal2!V$10-1,1,1),0)) ->  | K40: 16 | L40: 0.844 | M40: 0.887 | N40: 0.906
A41: =HiddenNormal2!M23 ->  | B41: =HiddenNormal2!Q23 ->  | C41: =IF(A41="","",VLOOKUP(HiddenNormal2!V$10-A41+1,A$25:B$44,2,0)) ->  | E41: =IF(A41="","",IF(D41>=0,OFFSET($K$3,A41,HiddenNormal2!V$10-1,1,1),0)) ->  | K41: 17 | L41: 0.851 | M41: 0.892 | N41: 0.91
A42: =HiddenNormal2!M24 ->  | B42: =HiddenNormal2!Q24 ->  | C42: =IF(A42="","",VLOOKUP(HiddenNormal2!V$10-A42+1,A$25:B$44,2,0)) ->  | E42: =IF(A42="","",IF(D42>=0,OFFSET($K$3,A42,HiddenNormal2!V$10-1,1,1),0)) ->  | K42: 18 | L42: 0.858 | M42: 0.897 | N42: 0.914
A43: =HiddenNormal2!M25 ->  | B43: =HiddenNormal2!Q25 ->  | C43: =IF(A43="","",VLOOKUP(HiddenNormal2!V$10-A43+1,A$25:B$44,2,0)) ->  | E43: =IF(A43="","",IF(D43>=0,OFFSET($K$3,A43,HiddenNormal2!V$10-1,1,1),0)) ->  | K43: 19 | L43: 0.863 | M43: 0.901 | N43: 0.917
A44: =HiddenNormal2!M26 ->  | B44: =HiddenNormal2!Q26 ->  | C44: =IF(A44="","",VLOOKUP(HiddenNormal2!V$10-A44+1,A$25:B$44,2,0)) ->  | D44: =IF(A44="","",C44-B44) ->  | E44: =IF(A44="","",IF(D44>=0,OFFSET($K$3,A44,HiddenNormal2!V$10-1,1,1),0)) ->  | K44: 20 | L44: 0.868 | M44: 0.905 | N44: 0.92
K46: This is table 10-3 in Appendix D of UG

Sheet HiddenNormal2 (hidden)
Y3: Values for plots
A4: Ordered Data | I4: Quartiles | M4: Ordered Data (Minus Potential Outliers) | U4: Quartiles (w/o pot. outliers) | Y4: Outliers included | AC4: Outliers removed
A5: i | B5: Percentile | C5: Cumulative Probability | D5: Quantile * | E5: C | F5: Potential Outlier? | G5: Detected? | J5: i | K5: C | M5: i | N5: Percentile | O5: Cumulative Probability | P5: Quantile * | Q5: C | R5: Potential Outlier? | S5: Detected? | V5: i | W5: Y | Y5: Detected | AA5: Nondetect | AC5: Detected | AE5: Nondetect
I6: Minimum | J6: 1 | K6: =MIN(E7:E26) -> 3.9 | U6: Minimum | V6: 1 | W6: =MIN(Q7:Q26) -> 3.9 | Y6: Quantile | Z6: Conc | AA6: Quantile | AB6: Conc | AC6: Quantile | AD6: Conc | AE6: Quantile | AF6: Conc
A7: =IF(DataTransforms!A3>COUNT(ConcImputeds),"",DataTransforms!A3) -> 1 | B7: =IF(A7="","",100/J$10*(A7-0.5)) -> 7.142857143 | C7: =IF(A7="","",A7/(J$10+1)) -> 0.125 | D7: =IF(A7="","",NORMINV(C7,0,1)) -> -1.15034938 | E7: =IF(A7="","",SMALL(ConcImputeds,A7)) -> 3.9 | F7: =IF(Outliers!B$10="No","No","Yes") -> No | G7: =IF(A7="","",HiddenInput!AG7) -> 1 | I7: 25 | J7: =AVERAGE(OFFSET($A$6,MATCH(25,B7:B26,1),0,IF(ISNA(MATCH(25,B7:B26,0)),2,1),1)) -> 2.5 | K7: =AVERAGE(OFFSET($E$6,MATCH(25,B7:B26,1),0,IF(ISNA(MATCH(25,B7:B26,0)),2,1),1)) -> 4.15 | M7: =IF(F7="Yes","",A7) -> 1 | N7: =IF(M7="","",100/V$10*(M7-0.5)) -> 7.142857143 | O7: =IF(M7="","",M7/(J$10+1-COUNTIF(Outliers!B$10:C$10,"Yes"))) -> 0.125 | P7: =IF(M7="","",NORMINV(O7,0,1)) -> -1.15034938 | Q7: =IF(M7="","",E7) -> 3.9 | R7: =IF(M7="","","N/A") -> N/A | S7: =IF(M7="","",G7) -> 1 | U7: 25 | V7: =AVERAGE(OFFSET($M$6,MATCH(25,N7:N26,1),0,IF(ISNA(MATCH(25,N7:N26,0)),2,1),1)) -> 2.5 | W7: =AVERAGE(OFFSET($Q$6,MATCH(25,N7:N26,1),0,IF(ISNA(MATCH(25,N7:N26,0)),2,1),1)) -> 4.15 | Y7: =IF(A7="",NA(),IF(G7=0,NA(),D7)) -> -1.15034938 | Z7: =IF(Y7="","",E7) -> 3.9 | AA7: =IF(A7="",NA(),IF(G7=0,D7,NA())) ->  | AB7: =IF(AA7="","",E7) ->  | AC7: =IF(M7="",NA(),IF(S7=0,NA(),P7)) -> -1.15034938 | AD7: =IF(AC7="","",Q7) -> 3.9 | AE7: =IF(M7="",NA(),IF(S7=0,P7,NA())) ->  | AF7: =IF(AE7="","",Q7) -> 
A8: =IF(DataTransforms!A4>COUNT(ConcImputeds),"",DataTransforms!A4) -> 2 | B8: 21.42857143 | C8: 0.25 | D8: =IF(A8="","",NORMINV(C8,0,1)) -> -0.6744897502 | E8: 4 | F8: =IF(A8="","",IF(A8=MAX(A$7:A$26),IF(Outliers!C$10="No","No","Yes"),"No")) -> No | G8: =IF(A8="","",HiddenInput!AG8) -> 1 | I8: 50 (median) | J8: =IF(MOD(J10,4)=0,VLOOKUP(J10/2,A7:E26,1,0),AVERAGE(VLOOKUP(INT(J10/2),A7:E26,1),VLOOKUP(INT(J10/2+1),A7:E26,1,0))) -> 3.5 | K8: =MEDIAN(E7:E26) -> 4.5 | M8: =IF(OR(F8="Yes",F8=""),"",MIN(A8,IF(M7="",0,M7)+1)) -> 2 | N8: =IF(M8="","",100/V$10*(M8-0.5)) -> 21.42857143 | O8: =IF(M8="","",M8/(J$10+1-COUNTIF(Outliers!B$10:C$10,"Yes"))) -> 0.25 | P8: =IF(M8="","",NORMINV(O8,0,1)) -> -0.6744897502 | Q8: 4 | R8: N/A | S8: =IF(M8="","",G8) -> 1 | U8: 50 (median) | V8: =IF(MOD(V10,4)=0,VLOOKUP(V10/2,M7:Q26,1,0),AVERAGE(VLOOKUP(INT(V10/2),M7:Q26,1),VLOOKUP(INT(V10/2+1),M7:Q26,1,0))) -> 3.5 | W8: =MEDIAN(Q7:Q26) -> 4.5 | Y8: =IF(A8="",NA(),IF(G8=0,NA(),D8)) -> -0.6744897502 | Z8: =IF(Y8="","",E8) -> 4 | AA8: =IF(A8="",NA(),IF(G8=0,D8,NA())) ->  | AB8: =IF(AA8="","",E8) ->  | AC8: =IF(M8="",NA(),IF(S8=0,NA(),P8)) -> -0.6744897502 | AD8: =IF(AC8="","",Q8) -> 4 | AE8: =IF(M8="",NA(),IF(S8=0,P8,NA())) ->  | AF8: =IF(AE8="","",Q8) -> 
A9: =IF(DataTransforms!A5>COUNT(ConcImputeds),"",DataTransforms!A5) -> 3 | B9: 35.71428571 | C9: 0.375 | D9: -0.318639364 | E9: 4.3 | F9: =IF(A9="","",IF(A9=MAX(A$7:A$26),IF(Outliers!C$10="No","No","Yes"),"No")) -> No | G9: =IF(A9="","",HiddenInput!AG9) -> 1 | I9: 75 | J9: =AVERAGE(OFFSET($A$6,MATCH(75,B7:B26,1),0,IF(ISNA(MATCH(75,B7:B26,0)),2,1),1)) -> 5.5 | K9: =AVERAGE(OFFSET($E$6,MATCH(75,B7:B26,1),0,IF(ISNA(MATCH(75,B7:B26,0)),2,1),1)) -> 4.95 | M9: =IF(OR(F9="Yes",F9=""),"",MIN(A9,IF(M8="",0,M8)+1)) -> 3 | N9: 35.71428571 | O9: =IF(M9="","",M9/(J$10+1-COUNTIF(Outliers!B$10:C$10,"Yes"))) -> 0.375 | P9: -0.318639364 | Q9: 4.3 | R9: N/A | S9: 1 | U9: 75 | V9: =AVERAGE(OFFSET($M$6,MATCH(75,N7:N26,1),0,IF(ISNA(MATCH(75,N7:N26,0)),2,1),1)) -> 5.5 | W9: =AVERAGE(OFFSET($Q$6,MATCH(75,N7:N26,1),0,IF(ISNA(MATCH(75,N7:N26,0)),2,1),1)) -> 4.95 | Y9: -0.318639364 | Z9: 4.3 | AC9: -0.318639364 | AD9: 4.3
A10: =IF(DataTransforms!A6>COUNT(ConcImputeds),"",DataTransforms!A6) -> 4 | B10: 50 | C10: 0.5 | D10: 0 | E10: 4.5 | F10: =IF(A10="","",IF(A10=MAX(A$7:A$26),IF(Outliers!C$10="No","No","Yes"),"No")) -> No | G10: =IF(A10="","",HiddenInput!AG10) -> 1 | I10: Maximum | J10: =MAX(A7:A26) -> 7 | K10: =MAX(E7:E26) -> 6.1 | M10: 4 | N10: 50 | O10: =IF(M10="","",M10/(J$10+1-COUNTIF(Outliers!B$10:C$10,"Yes"))) -> 0.5 | P10: 0 | Q10: 4.5 | R10: N/A | S10: 1 | U10: Maximum | V10: =MAX(M7:M26) -> 7 | W10: =MAX(Q7:Q26) -> 6.1 | Y10: 0 | Z10: 4.5 | AC10: 0 | AD10: 4.5
A11: =IF(DataTransforms!A7>COUNT(ConcImputeds),"",DataTransforms!A7) -> 5 | B11: 64.28571429 | C11: 0.625 | D11: 0.318639364 | E11: 4.6 | F11: =IF(A11="","",IF(A11=MAX(A$7:A$26),IF(Outliers!C$10="No","No","Yes"),"No")) -> No | G11: =IF(A11="","",HiddenInput!AG11) -> 1 | I11: 25 and 75 use Tukey's method | M11: 5 | N11: 64.28571429 | O11: =IF(M11="","",M11/(J$10+1-COUNTIF(Outliers!B$10:C$10,"Yes"))) -> 0.625 | P11: 0.318639364 | Q11: 4.6 | R11: N/A | S11: 1 | U11: 25 and 75 use Tukey's method | Y11: 0.318639364 | Z11: 4.6 | AC11: 0.318639364 | AD11: 4.6
A12: =IF(DataTransforms!A8>COUNT(ConcImputeds),"",DataTransforms!A8) -> 6 | B12: 78.57142857 | C12: 0.75 | D12: 0.6744897502 | E12: 5.3 | F12: =IF(A12="","",IF(A12=MAX(A$7:A$26),IF(Outliers!C$10="No","No","Yes"),"No")) -> No | G12: =IF(A12="","",HiddenInput!AG12) -> 1 | M12: 6 | N12: 78.57142857 | O12: =IF(M12="","",M12/(J$10+1-COUNTIF(Outliers!B$10:C$10,"Yes"))) -> 0.75 | P12: 0.6744897502 | Q12: 5.3 | R12: N/A | S12: 1 | Y12: 0.6744897502 | Z12: 5.3 | AC12: 0.6744897502 | AD12: 5.3
A13: =IF(DataTransforms!A9>COUNT(ConcImputeds),"",DataTransforms!A9) -> 7 | B13: 92.85714286 | C13: 0.875 | D13: 1.15034938 | E13: 6.1 | F13: =IF(A13="","",IF(A13=MAX(A$7:A$26),IF(Outliers!C$10="No","No","Yes"),"No")) -> No | G13: =IF(A13="","",HiddenInput!AG13) -> 1 | I13: IQR | J13: =K9-K7 -> 0.8 | M13: 7 | N13: 92.85714286 | O13: =IF(M13="","",M13/(J$10+1-COUNTIF(Outliers!B$10:C$10,"Yes"))) -> 0.875 | P13: 1.15034938 | Q13: 6.1 | R13: N/A | S13: 1 | U13: IQR | V13: =W9-W7 -> 0.8 | Y13: 1.15034938 | Z13: 6.1 | AC13: 1.15034938 | AD13: 6.1
A14: =IF(DataTransforms!A10>COUNT(ConcImputeds),"",DataTransforms!A10) ->  | F14: =IF(A14="","",IF(A14=MAX(A$7:A$26),IF(Outliers!C$10="No","No","Yes"),"No")) ->  | G14: =IF(A14="","",HiddenInput!AG14) ->  | I14: LB1 | J14: =K7-1.5*J13 -> 2.95 | O14: =IF(M14="","",M14/(J$10+1-COUNTIF(Outliers!B$10:C$10,"Yes"))) ->  | U14: LB1 | V14: =W7-1.5*V13 -> 2.95
A15: =IF(DataTransforms!A11>COUNT(ConcImputeds),"",DataTransforms!A11) ->  | F15: =IF(A15="","",IF(A15=MAX(A$7:A$26),IF(Outliers!C$10="No","No","Yes"),"No")) ->  | G15: =IF(A15="","",HiddenInput!AG15) ->  | I15: UB1 | J15: =K9+1.5*J13 -> 6.15 | O15: =IF(M15="","",M15/(J$10+1-COUNTIF(Outliers!B$10:C$10,"Yes"))) ->  | U15: UB1 | V15: =W9+1.5*V13 -> 6.15
A16: =IF(DataTransforms!A12>COUNT(ConcImputeds),"",DataTransforms!A12) ->  | F16: =IF(A16="","",IF(A16=MAX(A$7:A$26),IF(Outliers!C$10="No","No","Yes"),"No")) ->  | G16: =IF(A16="","",HiddenInput!AG16) ->  | I16: LB2 | J16: =K7-3*J13 -> 1.75 | O16: =IF(M16="","",M16/(J$10+1-COUNTIF(Outliers!B$10:C$10,"Yes"))) ->  | U16: LB2 | V16: =W7-3*V13 -> 1.75
A17: =IF(DataTransforms!A13>COUNT(ConcImputeds),"",DataTransforms!A13) ->  | F17: =IF(A17="","",IF(A17=MAX(A$7:A$26),IF(Outliers!C$10="No","No","Yes"),"No")) ->  | G17: =IF(A17="","",HiddenInput!AG17) ->  | I17: UB2 | J17: =K9+3*J13 -> 7.35 | O17: =IF(M17="","",M17/(J$10+1-COUNTIF(Outliers!B$10:C$10,"Yes"))) ->  | U17: UB2 | V17: =W9+3*V13 -> 7.35
A18: =IF(DataTransforms!A14>COUNT(ConcImputeds),"",DataTransforms!A14) ->  | F18: =IF(A18="","",IF(A18=MAX(A$7:A$26),IF(Outliers!C$10="No","No","Yes"),"No")) ->  | G18: =IF(A18="","",HiddenInput!AG18) ->  | O18: =IF(M18="","",M18/(J$10+1-COUNTIF(Outliers!B$10:C$10,"Yes"))) -> 
A19: =IF(DataTransforms!A15>COUNT(ConcImputeds),"",DataTransforms!A15) ->  | B19: =IF(A19="","",100/J$10*(A19-0.5)) ->  | C19: =IF(A19="","",A19/(J$10+1)) ->  | F19: =IF(A19="","",IF(A19=MAX(A$7:A$26),IF(Outliers!C$10="No","No","Yes"),"No")) ->  | G19: =IF(A19="","",HiddenInput!AG19) ->  | O19: =IF(M19="","",M19/(J$10+1-COUNTIF(Outliers!B$10:C$10,"Yes"))) ->  | Q19: =IF(M19="","",E19) ->  | R19: =IF(M19="","","N/A") -> 
A20: =IF(DataTransforms!A16>COUNT(ConcImputeds),"",DataTransforms!A16) ->  | F20: =IF(A20="","",IF(A20=MAX(A$7:A$26),IF(Outliers!C$10="No","No","Yes"),"No")) ->  | G20: =IF(A20="","",HiddenInput!AG20) ->  | O20: =IF(M20="","",M20/(J$10+1-COUNTIF(Outliers!B$10:C$10,"Yes"))) -> 
A21: =IF(DataTransforms!A17>COUNT(ConcImputeds),"",DataTransforms!A17) ->  | F21: =IF(A21="","",IF(A21=MAX(A$7:A$26),IF(Outliers!C$10="No","No","Yes"),"No")) ->  | G21: =IF(A21="","",HiddenInput!AG21) ->  | O21: =IF(M21="","",M21/(J$10+1-COUNTIF(Outliers!B$10:C$10,"Yes"))) -> 
A22: =IF(DataTransforms!A18>COUNT(ConcImputeds),"",DataTransforms!A18) ->  | F22: =IF(A22="","",IF(A22=MAX(A$7:A$26),IF(Outliers!C$10="No","No","Yes"),"No")) ->  | G22: =IF(A22="","",HiddenInput!AG22) ->  | O22: =IF(M22="","",M22/(J$10+1-COUNTIF(Outliers!B$10:C$10,"Yes"))) -> 
A23: =IF(DataTransforms!A19>COUNT(ConcImputeds),"",DataTransforms!A19) ->  | F23: =IF(A23="","",IF(A23=MAX(A$7:A$26),IF(Outliers!C$10="No","No","Yes"),"No")) ->  | G23: =IF(A23="","",HiddenInput!AG23) ->  | O23: =IF(M23="","",M23/(J$10+1-COUNTIF(Outliers!B$10:C$10,"Yes"))) -> 
A24: =IF(DataTransforms!A20>COUNT(ConcImputeds),"",DataTransforms!A20) ->  | F24: =IF(A24="","",IF(A24=MAX(A$7:A$26),IF(Outliers!C$10="No","No","Yes"),"No")) ->  | G24: =IF(A24="","",HiddenInput!AG24) ->  | O24: =IF(M24="","",M24/(J$10+1-COUNTIF(Outliers!B$10:C$10,"Yes"))) -> 
A25: =IF(DataTransforms!A21>COUNT(ConcImputeds),"",DataTransforms!A21) ->  | F25: =IF(A25="","",IF(A25=MAX(A$7:A$26),IF(Outliers!C$10="No","No","Yes"),"No")) ->  | G25: =IF(A25="","",HiddenInput!AG25) ->  | O25: =IF(M25="","",M25/(J$10+1-COUNTIF(Outliers!B$10:C$10,"Yes"))) -> 
A26: =IF(DataTransforms!A22>COUNT(ConcImputeds),"",DataTransforms!A22) ->  | F26: =IF(A26="","",IF(A26=MAX(A$7:A$26),IF(Outliers!C$10="No","No","Yes"),"No")) ->  | G26: =IF(A26="","",HiddenInput!AG26) ->  | O26: =IF(M26="","",M26/(J$10+1-COUNTIF(Outliers!B$10:C$10,"Yes"))) -> 
A27: * | B27: Theoretical Quantile (Standard Normal) | M27: * | N27: Theoretical Quantile (Standard Normal)

Sheet HiddenTrend (hidden)
F3: Theil-Sen Slopes and Test Statistic
A4: i | B4: X (Days) | C4: ="Y " &Data_Input!B13 -> Y ug/L | D4: Y Predicted | E4: Mann-Kendall Test Statistic | F4: =IF(OFFSET($A4,COLUMN(F2)-4,0,1,1)="","",OFFSET($A4,COLUMN(F2)-4,0,1,1)) -> 2 | G4: =IF(OFFSET($A4,COLUMN(G2)-4,0,1,1)="","",OFFSET($A4,COLUMN(G2)-4,0,1,1)) -> 3 | H4: 4 | I4: 5 | J4: 6 | K4: 7 | Y4: Tied values | Z4: SD ties term | AA4: Predicted concentration | AB4: Negative concentration?
A5: =IF(B5="","",ROW(B5)-4) -> 1 | B5: =IF(Data_Input!D7=0,"",Data_Input!D7) -> 43101 | C5: =IF(Data_Input!E7=0,"",HiddenInput!R7) -> 4.3 | E5: =COUNTIF(C6:C$24,">"&C5)-COUNTIF(C6:C$24,"<"&C5) -> 2 | F5: =IF(F4="","",IF(F$4>$A5,(VLOOKUP(F$4,$A$5:C$24,3,0)-$C5)/(VLOOKUP(F$4,$A$5:C$24,2,0)-$B5),"")) -> 0.05806451613 | G5: =IF(G4="","",IF(G$4>$A5,(VLOOKUP(G$4,$A$5:D$24,3,0)-$C5)/(VLOOKUP(G$4,$A$5:D$24,2,0)-$B5),"")) -> 0.005084745763 | H5: =IF(H4="","",IF(H$4>$A5,(VLOOKUP(H$4,$A$5:E$24,3,0)-$C5)/(VLOOKUP(H$4,$A$5:E$24,2,0)-$B5),"")) -> 0.002222222222 | I5: =IF(I4="","",IF(I$4>$A5,(VLOOKUP(I$4,$A$5:F$24,3,0)-$C5)/(VLOOKUP(I$4,$A$5:F$24,2,0)-$B5),"")) -> 0.008333333333 | J5: =IF(J4="","",IF(J$4>$A5,(VLOOKUP(J$4,$A$5:G$24,3,0)-$C5)/(VLOOKUP(J$4,$A$5:G$24,2,0)-$B5),"")) -> -0.002649006623 | K5: =IF(K4="","",IF(K$4>$A5,(VLOOKUP(K$4,$A$5:H$24,3,0)-$C5)/(VLOOKUP(K$4,$A$5:H$24,2,0)-$B5),"")) -> -0.001657458564 | L5: =IF(L4="","",IF(L$4>$A5,(VLOOKUP(L$4,$A$5:I$24,3,0)-$C5)/(VLOOKUP(L$4,$A$5:I$24,2,0)-$B5),"")) ->  | M5: =IF(M4="","",IF(M$4>$A5,(VLOOKUP(M$4,$A$5:J$24,3,0)-$C5)/(VLOOKUP(M$4,$A$5:J$24,2,0)-$B5),"")) ->  | N5: =IF(N4="","",IF(N$4>$A5,(VLOOKUP(N$4,$A$5:K$24,3,0)-$C5)/(VLOOKUP(N$4,$A$5:K$24,2,0)-$B5),"")) ->  | O5: =IF(O4="","",IF(O$4>$A5,(VLOOKUP(O$4,$A$5:L$24,3,0)-$C5)/(VLOOKUP(O$4,$A$5:L$24,2,0)-$B5),"")) ->  | P5: =IF(P4="","",IF(P$4>$A5,(VLOOKUP(P$4,$A$5:M$24,3,0)-$C5)/(VLOOKUP(P$4,$A$5:M$24,2,0)-$B5),"")) ->  | Q5: =IF(Q4="","",IF(Q$4>$A5,(VLOOKUP(Q$4,$A$5:N$24,3,0)-$C5)/(VLOOKUP(Q$4,$A$5:N$24,2,0)-$B5),"")) ->  | R5: =IF(R4="","",IF(R$4>$A5,(VLOOKUP(R$4,$A$5:O$24,3,0)-$C5)/(VLOOKUP(R$4,$A$5:O$24,2,0)-$B5),"")) ->  | S5: =IF(S4="","",IF(S$4>$A5,(VLOOKUP(S$4,$A$5:P$24,3,0)-$C5)/(VLOOKUP(S$4,$A$5:P$24,2,0)-$B5),"")) ->  | T5: =IF(T4="","",IF(T$4>$A5,(VLOOKUP(T$4,$A$5:Q$24,3,0)-$C5)/(VLOOKUP(T$4,$A$5:Q$24,2,0)-$B5),"")) ->  | U5: =IF(U4="","",IF(U$4>$A5,(VLOOKUP(U$4,$A$5:R$24,3,0)-$C5)/(VLOOKUP(U$4,$A$5:R$24,2,0)-$B5),"")) ->  | V5: =IF(V4="","",IF(V$4>$A5,(VLOOKUP(V$4,$A$5:S$24,3,0)-$C5)/(VLOOKUP(V$4,$A$5:S$24,2,0)-$B5),"")) ->  | W5: =IF(W4="","",IF(W$4>$A5,(VLOOKUP(W$4,$A$5:T$24,3,0)-$C5)/(VLOOKUP(W$4,$A$5:T$24,2,0)-$B5),"")) ->  | X5: =IF(X4="","",IF(X$4>$A5,(VLOOKUP(X$4,$A$5:U$24,3,0)-$C5)/(VLOOKUP(X$4,$A$5:U$24,2,0)-$B5),"")) ->  | Y5: =IF(C5="","",COUNTIF(C$5:C$24,"="&C5)) -> 1 | Z5: =IF(A5="","",Y5*(Y5-1)*(2*Y5+5)/Y5) -> 0 | AA5: =IF(B5="","",B5*E$27+E$30) -> 4.942622951 | AB5: =IF(AA5<0,1,0) -> 0
A6: =IF(B6="","",ROW(B6)-4) -> 2 | B6: =IF(Data_Input!D8=0,"",Data_Input!D8) -> 43132 | C6: =IF(Data_Input!E8=0,"",HiddenInput!R8) -> 6.1 | E6: =COUNTIF(C7:C$24,">"&C6)-COUNTIF(C7:C$24,"<"&C6) -> -5 | F6: =IF(F5="","",IF(F$4>$A6,(VLOOKUP(F$4,$A$5:C$24,3,0)-$C6)/(VLOOKUP(F$4,$A$5:C$24,2,0)-$B6),"")) ->  | G6: =IF(G5="","",IF(G$4>$A6,(VLOOKUP(G$4,$A$5:D$24,3,0)-$C6)/(VLOOKUP(G$4,$A$5:D$24,2,0)-$B6),"")) -> -0.05357142857 | H6: =IF(H5="","",IF(H$4>$A6,(VLOOKUP(H$4,$A$5:E$24,3,0)-$C6)/(VLOOKUP(H$4,$A$5:E$24,2,0)-$B6),"")) -> -0.02711864407 | I6: =IF(I5="","",IF(I$4>$A6,(VLOOKUP(I$4,$A$5:F$24,3,0)-$C6)/(VLOOKUP(I$4,$A$5:F$24,2,0)-$B6),"")) -> -0.008988764045 | J6: =IF(J5="","",IF(J$4>$A6,(VLOOKUP(J$4,$A$5:G$24,3,0)-$C6)/(VLOOKUP(J$4,$A$5:G$24,2,0)-$B6),"")) -> -0.01833333333 | K6: =IF(K5="","",IF(K$4>$A6,(VLOOKUP(K$4,$A$5:H$24,3,0)-$C6)/(VLOOKUP(K$4,$A$5:H$24,2,0)-$B6),"")) -> -0.014 | L6: =IF(L5="","",IF(L$4>$A6,(VLOOKUP(L$4,$A$5:I$24,3,0)-$C6)/(VLOOKUP(L$4,$A$5:I$24,2,0)-$B6),"")) ->  | M6: =IF(M5="","",IF(M$4>$A6,(VLOOKUP(M$4,$A$5:J$24,3,0)-$C6)/(VLOOKUP(M$4,$A$5:J$24,2,0)-$B6),"")) ->  | N6: =IF(N5="","",IF(N$4>$A6,(VLOOKUP(N$4,$A$5:K$24,3,0)-$C6)/(VLOOKUP(N$4,$A$5:K$24,2,0)-$B6),"")) ->  | O6: =IF(O5="","",IF(O$4>$A6,(VLOOKUP(O$4,$A$5:L$24,3,0)-$C6)/(VLOOKUP(O$4,$A$5:L$24,2,0)-$B6),"")) ->  | P6: =IF(P5="","",IF(P$4>$A6,(VLOOKUP(P$4,$A$5:M$24,3,0)-$C6)/(VLOOKUP(P$4,$A$5:M$24,2,0)-$B6),"")) ->  | Q6: =IF(Q5="","",IF(Q$4>$A6,(VLOOKUP(Q$4,$A$5:N$24,3,0)-$C6)/(VLOOKUP(Q$4,$A$5:N$24,2,0)-$B6),"")) ->  | R6: =IF(R5="","",IF(R$4>$A6,(VLOOKUP(R$4,$A$5:O$24,3,0)-$C6)/(VLOOKUP(R$4,$A$5:O$24,2,0)-$B6),"")) ->  | S6: =IF(S5="","",IF(S$4>$A6,(VLOOKUP(S$4,$A$5:P$24,3,0)-$C6)/(VLOOKUP(S$4,$A$5:P$24,2,0)-$B6),"")) ->  | T6: =IF(T5="","",IF(T$4>$A6,(VLOOKUP(T$4,$A$5:Q$24,3,0)-$C6)/(VLOOKUP(T$4,$A$5:Q$24,2,0)-$B6),"")) ->  | U6: =IF(U5="","",IF(U$4>$A6,(VLOOKUP(U$4,$A$5:R$24,3,0)-$C6)/(VLOOKUP(U$4,$A$5:R$24,2,0)-$B6),"")) ->  | V6: =IF(V5="","",IF(V$4>$A6,(VLOOKUP(V$4,$A$5:S$24,3,0)-$C6)/(VLOOKUP(V$4,$A$5:S$24,2,0)-$B6),"")) ->  | W6: =IF(W5="","",IF(W$4>$A6,(VLOOKUP(W$4,$A$5:T$24,3,0)-$C6)/(VLOOKUP(W$4,$A$5:T$24,2,0)-$B6),"")) ->  | X6: =IF(X5="","",IF(X$4>$A6,(VLOOKUP(X$4,$A$5:U$24,3,0)-$C6)/(VLOOKUP(X$4,$A$5:U$24,2,0)-$B6),"")) ->  | Y6: =IF(C6="","",COUNTIF(C$5:C$24,"="&C6)) -> 1 | Z6: =IF(A6="","",Y6*(Y6-1)*(2*Y6+5)/Y6) -> 0 | AA6: =IF(B6="","",B6*E$27+E$30) -> 4.790163934 | AB6: =IF(AA6<0,1,0) -> 0
A7: 3 | B7: =IF(Data_Input!D9=0,"",Data_Input!D9) -> 43160 | C7: =IF(Data_Input!E9=0,"",HiddenInput!R9) -> 4.6 | E7: =COUNTIF(C8:C$24,">"&C7)-COUNTIF(C8:C$24,"<"&C7) -> -2 | F7: =IF(F6="","",IF(F$4>$A7,(VLOOKUP(F$4,$A$5:C$24,3,0)-$C7)/(VLOOKUP(F$4,$A$5:C$24,2,0)-$B7),"")) ->  | G7: =IF(G6="","",IF(G$4>$A7,(VLOOKUP(G$4,$A$5:D$24,3,0)-$C7)/(VLOOKUP(G$4,$A$5:D$24,2,0)-$B7),"")) ->  | H7: =IF(H6="","",IF(H$4>$A7,(VLOOKUP(H$4,$A$5:E$24,3,0)-$C7)/(VLOOKUP(H$4,$A$5:E$24,2,0)-$B7),"")) -> -0.003225806452 | I7: =IF(I6="","",IF(I$4>$A7,(VLOOKUP(I$4,$A$5:F$24,3,0)-$C7)/(VLOOKUP(I$4,$A$5:F$24,2,0)-$B7),"")) -> 0.01147540984 | J7: =IF(J6="","",IF(J$4>$A7,(VLOOKUP(J$4,$A$5:G$24,3,0)-$C7)/(VLOOKUP(J$4,$A$5:G$24,2,0)-$B7),"")) -> -0.007608695652 | K7: =IF(K6="","",IF(K$4>$A7,(VLOOKUP(K$4,$A$5:H$24,3,0)-$C7)/(VLOOKUP(K$4,$A$5:H$24,2,0)-$B7),"")) -> -0.004918032787 | L7: =IF(L6="","",IF(L$4>$A7,(VLOOKUP(L$4,$A$5:I$24,3,0)-$C7)/(VLOOKUP(L$4,$A$5:I$24,2,0)-$B7),"")) ->  | M7: =IF(M6="","",IF(M$4>$A7,(VLOOKUP(M$4,$A$5:J$24,3,0)-$C7)/(VLOOKUP(M$4,$A$5:J$24,2,0)-$B7),"")) ->  | N7: =IF(N6="","",IF(N$4>$A7,(VLOOKUP(N$4,$A$5:K$24,3,0)-$C7)/(VLOOKUP(N$4,$A$5:K$24,2,0)-$B7),"")) ->  | O7: =IF(O6="","",IF(O$4>$A7,(VLOOKUP(O$4,$A$5:L$24,3,0)-$C7)/(VLOOKUP(O$4,$A$5:L$24,2,0)-$B7),"")) ->  | P7: =IF(P6="","",IF(P$4>$A7,(VLOOKUP(P$4,$A$5:M$24,3,0)-$C7)/(VLOOKUP(P$4,$A$5:M$24,2,0)-$B7),"")) ->  | Q7: =IF(Q6="","",IF(Q$4>$A7,(VLOOKUP(Q$4,$A$5:N$24,3,0)-$C7)/(VLOOKUP(Q$4,$A$5:N$24,2,0)-$B7),"")) ->  | R7: =IF(R6="","",IF(R$4>$A7,(VLOOKUP(R$4,$A$5:O$24,3,0)-$C7)/(VLOOKUP(R$4,$A$5:O$24,2,0)-$B7),"")) ->  | S7: =IF(S6="","",IF(S$4>$A7,(VLOOKUP(S$4,$A$5:P$24,3,0)-$C7)/(VLOOKUP(S$4,$A$5:P$24,2,0)-$B7),"")) ->  | T7: =IF(T6="","",IF(T$4>$A7,(VLOOKUP(T$4,$A$5:Q$24,3,0)-$C7)/(VLOOKUP(T$4,$A$5:Q$24,2,0)-$B7),"")) ->  | U7: =IF(U6="","",IF(U$4>$A7,(VLOOKUP(U$4,$A$5:R$24,3,0)-$C7)/(VLOOKUP(U$4,$A$5:R$24,2,0)-$B7),"")) ->  | V7: =IF(V6="","",IF(V$4>$A7,(VLOOKUP(V$4,$A$5:S$24,3,0)-$C7)/(VLOOKUP(V$4,$A$5:S$24,2,0)-$B7),"")) ->  | W7: =IF(W6="","",IF(W$4>$A7,(VLOOKUP(W$4,$A$5:T$24,3,0)-$C7)/(VLOOKUP(W$4,$A$5:T$24,2,0)-$B7),"")) ->  | X7: =IF(X6="","",IF(X$4>$A7,(VLOOKUP(X$4,$A$5:U$24,3,0)-$C7)/(VLOOKUP(X$4,$A$5:U$24,2,0)-$B7),"")) ->  | Y7: 1 | Z7: 0 | AA7: 4.652459016 | AB7: 0
A8: 4 | B8: =IF(Data_Input!D10=0,"",Data_Input!D10) -> 43191 | C8: =IF(Data_Input!E10=0,"",HiddenInput!R10) -> 4.5 | E8: =COUNTIF(C9:C$24,">"&C8)-COUNTIF(C9:C$24,"<"&C8) -> -1 | F8: =IF(F7="","",IF(F$4>$A8,(VLOOKUP(F$4,$A$5:C$24,3,0)-$C8)/(VLOOKUP(F$4,$A$5:C$24,2,0)-$B8),"")) ->  | G8: =IF(G7="","",IF(G$4>$A8,(VLOOKUP(G$4,$A$5:D$24,3,0)-$C8)/(VLOOKUP(G$4,$A$5:D$24,2,0)-$B8),"")) ->  | H8: =IF(H7="","",IF(H$4>$A8,(VLOOKUP(H$4,$A$5:E$24,3,0)-$C8)/(VLOOKUP(H$4,$A$5:E$24,2,0)-$B8),"")) ->  | I8: =IF(I7="","",IF(I$4>$A8,(VLOOKUP(I$4,$A$5:F$24,3,0)-$C8)/(VLOOKUP(I$4,$A$5:F$24,2,0)-$B8),"")) -> 0.02666666667 | J8: =IF(J7="","",IF(J$4>$A8,(VLOOKUP(J$4,$A$5:G$24,3,0)-$C8)/(VLOOKUP(J$4,$A$5:G$24,2,0)-$B8),"")) -> -0.009836065574 | K8: =IF(K7="","",IF(K$4>$A8,(VLOOKUP(K$4,$A$5:H$24,3,0)-$C8)/(VLOOKUP(K$4,$A$5:H$24,2,0)-$B8),"")) -> -0.005494505495 | L8: =IF(L7="","",IF(L$4>$A8,(VLOOKUP(L$4,$A$5:I$24,3,0)-$C8)/(VLOOKUP(L$4,$A$5:I$24,2,0)-$B8),"")) ->  | M8: =IF(M7="","",IF(M$4>$A8,(VLOOKUP(M$4,$A$5:J$24,3,0)-$C8)/(VLOOKUP(M$4,$A$5:J$24,2,0)-$B8),"")) ->  | N8: =IF(N7="","",IF(N$4>$A8,(VLOOKUP(N$4,$A$5:K$24,3,0)-$C8)/(VLOOKUP(N$4,$A$5:K$24,2,0)-$B8),"")) ->  | O8: =IF(O7="","",IF(O$4>$A8,(VLOOKUP(O$4,$A$5:L$24,3,0)-$C8)/(VLOOKUP(O$4,$A$5:L$24,2,0)-$B8),"")) ->  | P8: =IF(P7="","",IF(P$4>$A8,(VLOOKUP(P$4,$A$5:M$24,3,0)-$C8)/(VLOOKUP(P$4,$A$5:M$24,2,0)-$B8),"")) ->  | Q8: =IF(Q7="","",IF(Q$4>$A8,(VLOOKUP(Q$4,$A$5:N$24,3,0)-$C8)/(VLOOKUP(Q$4,$A$5:N$24,2,0)-$B8),"")) ->  | R8: =IF(R7="","",IF(R$4>$A8,(VLOOKUP(R$4,$A$5:O$24,3,0)-$C8)/(VLOOKUP(R$4,$A$5:O$24,2,0)-$B8),"")) ->  | S8: =IF(S7="","",IF(S$4>$A8,(VLOOKUP(S$4,$A$5:P$24,3,0)-$C8)/(VLOOKUP(S$4,$A$5:P$24,2,0)-$B8),"")) ->  | T8: =IF(T7="","",IF(T$4>$A8,(VLOOKUP(T$4,$A$5:Q$24,3,0)-$C8)/(VLOOKUP(T$4,$A$5:Q$24,2,0)-$B8),"")) ->  | U8: =IF(U7="","",IF(U$4>$A8,(VLOOKUP(U$4,$A$5:R$24,3,0)-$C8)/(VLOOKUP(U$4,$A$5:R$24,2,0)-$B8),"")) ->  | V8: =IF(V7="","",IF(V$4>$A8,(VLOOKUP(V$4,$A$5:S$24,3,0)-$C8)/(VLOOKUP(V$4,$A$5:S$24,2,0)-$B8),"")) ->  | W8: =IF(W7="","",IF(W$4>$A8,(VLOOKUP(W$4,$A$5:T$24,3,0)-$C8)/(VLOOKUP(W$4,$A$5:T$24,2,0)-$B8),"")) ->  | X8: =IF(X7="","",IF(X$4>$A8,(VLOOKUP(X$4,$A$5:U$24,3,0)-$C8)/(VLOOKUP(X$4,$A$5:U$24,2,0)-$B8),"")) ->  | Y8: 1 | Z8: 0 | AA8: 4.5 | AB8: 0
A9: 5 | B9: =IF(Data_Input!D11=0,"",Data_Input!D11) -> 43221 | C9: =IF(Data_Input!E11=0,"",HiddenInput!R11) -> 5.3 | E9: =COUNTIF(C10:C$24,">"&C9)-COUNTIF(C10:C$24,"<"&C9) -> -2 | F9: =IF(F8="","",IF(F$4>$A9,(VLOOKUP(F$4,$A$5:C$24,3,0)-$C9)/(VLOOKUP(F$4,$A$5:C$24,2,0)-$B9),"")) ->  | G9: =IF(G8="","",IF(G$4>$A9,(VLOOKUP(G$4,$A$5:D$24,3,0)-$C9)/(VLOOKUP(G$4,$A$5:D$24,2,0)-$B9),"")) ->  | H9: =IF(H8="","",IF(H$4>$A9,(VLOOKUP(H$4,$A$5:E$24,3,0)-$C9)/(VLOOKUP(H$4,$A$5:E$24,2,0)-$B9),"")) ->  | I9: =IF(I8="","",IF(I$4>$A9,(VLOOKUP(I$4,$A$5:F$24,3,0)-$C9)/(VLOOKUP(I$4,$A$5:F$24,2,0)-$B9),"")) ->  | J9: =IF(J8="","",IF(J$4>$A9,(VLOOKUP(J$4,$A$5:G$24,3,0)-$C9)/(VLOOKUP(J$4,$A$5:G$24,2,0)-$B9),"")) -> -0.04516129032 | K9: =IF(K8="","",IF(K$4>$A9,(VLOOKUP(K$4,$A$5:H$24,3,0)-$C9)/(VLOOKUP(K$4,$A$5:H$24,2,0)-$B9),"")) -> -0.02131147541 | L9: =IF(L8="","",IF(L$4>$A9,(VLOOKUP(L$4,$A$5:I$24,3,0)-$C9)/(VLOOKUP(L$4,$A$5:I$24,2,0)-$B9),"")) ->  | M9: =IF(M8="","",IF(M$4>$A9,(VLOOKUP(M$4,$A$5:J$24,3,0)-$C9)/(VLOOKUP(M$4,$A$5:J$24,2,0)-$B9),"")) ->  | N9: =IF(N8="","",IF(N$4>$A9,(VLOOKUP(N$4,$A$5:K$24,3,0)-$C9)/(VLOOKUP(N$4,$A$5:K$24,2,0)-$B9),"")) ->  | O9: =IF(O8="","",IF(O$4>$A9,(VLOOKUP(O$4,$A$5:L$24,3,0)-$C9)/(VLOOKUP(O$4,$A$5:L$24,2,0)-$B9),"")) ->  | P9: =IF(P8="","",IF(P$4>$A9,(VLOOKUP(P$4,$A$5:M$24,3,0)-$C9)/(VLOOKUP(P$4,$A$5:M$24,2,0)-$B9),"")) ->  | Q9: =IF(Q8="","",IF(Q$4>$A9,(VLOOKUP(Q$4,$A$5:N$24,3,0)-$C9)/(VLOOKUP(Q$4,$A$5:N$24,2,0)-$B9),"")) ->  | R9: =IF(R8="","",IF(R$4>$A9,(VLOOKUP(R$4,$A$5:O$24,3,0)-$C9)/(VLOOKUP(R$4,$A$5:O$24,2,0)-$B9),"")) ->  | S9: =IF(S8="","",IF(S$4>$A9,(VLOOKUP(S$4,$A$5:P$24,3,0)-$C9)/(VLOOKUP(S$4,$A$5:P$24,2,0)-$B9),"")) ->  | T9: =IF(T8="","",IF(T$4>$A9,(VLOOKUP(T$4,$A$5:Q$24,3,0)-$C9)/(VLOOKUP(T$4,$A$5:Q$24,2,0)-$B9),"")) ->  | U9: =IF(U8="","",IF(U$4>$A9,(VLOOKUP(U$4,$A$5:R$24,3,0)-$C9)/(VLOOKUP(U$4,$A$5:R$24,2,0)-$B9),"")) ->  | V9: =IF(V8="","",IF(V$4>$A9,(VLOOKUP(V$4,$A$5:S$24,3,0)-$C9)/(VLOOKUP(V$4,$A$5:S$24,2,0)-$B9),"")) ->  | W9: =IF(W8="","",IF(W$4>$A9,(VLOOKUP(W$4,$A$5:T$24,3,0)-$C9)/(VLOOKUP(W$4,$A$5:T$24,2,0)-$B9),"")) ->  | X9: =IF(X8="","",IF(X$4>$A9,(VLOOKUP(X$4,$A$5:U$24,3,0)-$C9)/(VLOOKUP(X$4,$A$5:U$24,2,0)-$B9),"")) ->  | Y9: 1 | Z9: 0 | AA9: 4.352459016 | AB9: 0
A10: 6 | B10: =IF(Data_Input!D12=0,"",Data_Input!D12) -> 43252 | C10: =IF(Data_Input!E12=0,"",HiddenInput!R12) -> 3.9 | E10: =COUNTIF(C11:C$24,">"&C10)-COUNTIF(C11:C$24,"<"&C10) -> 1 | F10: =IF(F9="","",IF(F$4>$A10,(VLOOKUP(F$4,$A$5:C$24,3,0)-$C10)/(VLOOKUP(F$4,$A$5:C$24,2,0)-$B10),"")) ->  | G10: =IF(G9="","",IF(G$4>$A10,(VLOOKUP(G$4,$A$5:D$24,3,0)-$C10)/(VLOOKUP(G$4,$A$5:D$24,2,0)-$B10),"")) ->  | H10: =IF(H9="","",IF(H$4>$A10,(VLOOKUP(H$4,$A$5:E$24,3,0)-$C10)/(VLOOKUP(H$4,$A$5:E$24,2,0)-$B10),"")) ->  | I10: =IF(I9="","",IF(I$4>$A10,(VLOOKUP(I$4,$A$5:F$24,3,0)-$C10)/(VLOOKUP(I$4,$A$5:F$24,2,0)-$B10),"")) ->  | J10: =IF(J9="","",IF(J$4>$A10,(VLOOKUP(J$4,$A$5:G$24,3,0)-$C10)/(VLOOKUP(J$4,$A$5:G$24,2,0)-$B10),"")) ->  | K10: =IF(K9="","",IF(K$4>$A10,(VLOOKUP(K$4,$A$5:H$24,3,0)-$C10)/(VLOOKUP(K$4,$A$5:H$24,2,0)-$B10),"")) -> 0.003333333333 | L10: =IF(L9="","",IF(L$4>$A10,(VLOOKUP(L$4,$A$5:I$24,3,0)-$C10)/(VLOOKUP(L$4,$A$5:I$24,2,0)-$B10),"")) ->  | M10: =IF(M9="","",IF(M$4>$A10,(VLOOKUP(M$4,$A$5:J$24,3,0)-$C10)/(VLOOKUP(M$4,$A$5:J$24,2,0)-$B10),"")) ->  | N10: =IF(N9="","",IF(N$4>$A10,(VLOOKUP(N$4,$A$5:K$24,3,0)-$C10)/(VLOOKUP(N$4,$A$5:K$24,2,0)-$B10),"")) ->  | O10: =IF(O9="","",IF(O$4>$A10,(VLOOKUP(O$4,$A$5:L$24,3,0)-$C10)/(VLOOKUP(O$4,$A$5:L$24,2,0)-$B10),"")) ->  | P10: =IF(P9="","",IF(P$4>$A10,(VLOOKUP(P$4,$A$5:M$24,3,0)-$C10)/(VLOOKUP(P$4,$A$5:M$24,2,0)-$B10),"")) ->  | Q10: =IF(Q9="","",IF(Q$4>$A10,(VLOOKUP(Q$4,$A$5:N$24,3,0)-$C10)/(VLOOKUP(Q$4,$A$5:N$24,2,0)-$B10),"")) ->  | R10: =IF(R9="","",IF(R$4>$A10,(VLOOKUP(R$4,$A$5:O$24,3,0)-$C10)/(VLOOKUP(R$4,$A$5:O$24,2,0)-$B10),"")) ->  | S10: =IF(S9="","",IF(S$4>$A10,(VLOOKUP(S$4,$A$5:P$24,3,0)-$C10)/(VLOOKUP(S$4,$A$5:P$24,2,0)-$B10),"")) ->  | T10: =IF(T9="","",IF(T$4>$A10,(VLOOKUP(T$4,$A$5:Q$24,3,0)-$C10)/(VLOOKUP(T$4,$A$5:Q$24,2,0)-$B10),"")) ->  | U10: =IF(U9="","",IF(U$4>$A10,(VLOOKUP(U$4,$A$5:R$24,3,0)-$C10)/(VLOOKUP(U$4,$A$5:R$24,2,0)-$B10),"")) ->  | V10: =IF(V9="","",IF(V$4>$A10,(VLOOKUP(V$4,$A$5:S$24,3,0)-$C10)/(VLOOKUP(V$4,$A$5:S$24,2,0)-$B10),"")) ->  | W10: =IF(W9="","",IF(W$4>$A10,(VLOOKUP(W$4,$A$5:T$24,3,0)-$C10)/(VLOOKUP(W$4,$A$5:T$24,2,0)-$B10),"")) ->  | X10: =IF(X9="","",IF(X$4>$A10,(VLOOKUP(X$4,$A$5:U$24,3,0)-$C10)/(VLOOKUP(X$4,$A$5:U$24,2,0)-$B10),"")) ->  | Y10: 1 | Z10: 0 | AA10: 4.2 | AB10: 0
A11: 7 | B11: =IF(Data_Input!D13=0,"",Data_Input!D13) -> 43282 | C11: =IF(Data_Input!E13=0,"",HiddenInput!R13) -> 4 | E11: =COUNTIF(C12:C$24,">"&C11)-COUNTIF(C12:C$24,"<"&C11) -> 0 | F11: =IF(F10="","",IF(F$4>$A11,(VLOOKUP(F$4,$A$5:C$24,3,0)-$C11)/(VLOOKUP(F$4,$A$5:C$24,2,0)-$B11),"")) ->  | G11: =IF(G10="","",IF(G$4>$A11,(VLOOKUP(G$4,$A$5:D$24,3,0)-$C11)/(VLOOKUP(G$4,$A$5:D$24,2,0)-$B11),"")) ->  | H11: =IF(H10="","",IF(H$4>$A11,(VLOOKUP(H$4,$A$5:E$24,3,0)-$C11)/(VLOOKUP(H$4,$A$5:E$24,2,0)-$B11),"")) ->  | I11: =IF(I10="","",IF(I$4>$A11,(VLOOKUP(I$4,$A$5:F$24,3,0)-$C11)/(VLOOKUP(I$4,$A$5:F$24,2,0)-$B11),"")) ->  | J11: =IF(J10="","",IF(J$4>$A11,(VLOOKUP(J$4,$A$5:G$24,3,0)-$C11)/(VLOOKUP(J$4,$A$5:G$24,2,0)-$B11),"")) ->  | K11: =IF(K10="","",IF(K$4>$A11,(VLOOKUP(K$4,$A$5:H$24,3,0)-$C11)/(VLOOKUP(K$4,$A$5:H$24,2,0)-$B11),"")) ->  | L11: =IF(L10="","",IF(L$4>$A11,(VLOOKUP(L$4,$A$5:I$24,3,0)-$C11)/(VLOOKUP(L$4,$A$5:I$24,2,0)-$B11),"")) ->  | M11: =IF(M10="","",IF(M$4>$A11,(VLOOKUP(M$4,$A$5:J$24,3,0)-$C11)/(VLOOKUP(M$4,$A$5:J$24,2,0)-$B11),"")) ->  | N11: =IF(N10="","",IF(N$4>$A11,(VLOOKUP(N$4,$A$5:K$24,3,0)-$C11)/(VLOOKUP(N$4,$A$5:K$24,2,0)-$B11),"")) ->  | O11: =IF(O10="","",IF(O$4>$A11,(VLOOKUP(O$4,$A$5:L$24,3,0)-$C11)/(VLOOKUP(O$4,$A$5:L$24,2,0)-$B11),"")) ->  | P11: =IF(P10="","",IF(P$4>$A11,(VLOOKUP(P$4,$A$5:M$24,3,0)-$C11)/(VLOOKUP(P$4,$A$5:M$24,2,0)-$B11),"")) ->  | Q11: =IF(Q10="","",IF(Q$4>$A11,(VLOOKUP(Q$4,$A$5:N$24,3,0)-$C11)/(VLOOKUP(Q$4,$A$5:N$24,2,0)-$B11),"")) ->  | R11: =IF(R10="","",IF(R$4>$A11,(VLOOKUP(R$4,$A$5:O$24,3,0)-$C11)/(VLOOKUP(R$4,$A$5:O$24,2,0)-$B11),"")) ->  | S11: =IF(S10="","",IF(S$4>$A11,(VLOOKUP(S$4,$A$5:P$24,3,0)-$C11)/(VLOOKUP(S$4,$A$5:P$24,2,0)-$B11),"")) ->  | T11: =IF(T10="","",IF(T$4>$A11,(VLOOKUP(T$4,$A$5:Q$24,3,0)-$C11)/(VLOOKUP(T$4,$A$5:Q$24,2,0)-$B11),"")) ->  | U11: =IF(U10="","",IF(U$4>$A11,(VLOOKUP(U$4,$A$5:R$24,3,0)-$C11)/(VLOOKUP(U$4,$A$5:R$24,2,0)-$B11),"")) ->  | V11: =IF(V10="","",IF(V$4>$A11,(VLOOKUP(V$4,$A$5:S$24,3,0)-$C11)/(VLOOKUP(V$4,$A$5:S$24,2,0)-$B11),"")) ->  | W11: =IF(W10="","",IF(W$4>$A11,(VLOOKUP(W$4,$A$5:T$24,3,0)-$C11)/(VLOOKUP(W$4,$A$5:T$24,2,0)-$B11),"")) ->  | X11: =IF(X10="","",IF(X$4>$A11,(VLOOKUP(X$4,$A$5:U$24,3,0)-$C11)/(VLOOKUP(X$4,$A$5:U$24,2,0)-$B11),"")) ->  | Y11: 1 | Z11: 0 | AA11: 4.052459016 | AB11: 0
B12: =IF(Data_Input!D14=0,"",Data_Input!D14) ->  | C12: =IF(Data_Input!E14=0,"",HiddenInput!R14) ->  | E12: =COUNTIF(C13:C$24,">"&C12)-COUNTIF(C13:C$24,"<"&C12) -> 0 | F12: =IF(F11="","",IF(F$4>$A12,(VLOOKUP(F$4,$A$5:C$24,3,0)-$C12)/(VLOOKUP(F$4,$A$5:C$24,2,0)-$B12),"")) ->  | G12: =IF(G11="","",IF(G$4>$A12,(VLOOKUP(G$4,$A$5:D$24,3,0)-$C12)/(VLOOKUP(G$4,$A$5:D$24,2,0)-$B12),"")) ->  | H12: =IF(H11="","",IF(H$4>$A12,(VLOOKUP(H$4,$A$5:E$24,3,0)-$C12)/(VLOOKUP(H$4,$A$5:E$24,2,0)-$B12),"")) ->  | I12: =IF(I11="","",IF(I$4>$A12,(VLOOKUP(I$4,$A$5:F$24,3,0)-$C12)/(VLOOKUP(I$4,$A$5:F$24,2,0)-$B12),"")) ->  | J12: =IF(J11="","",IF(J$4>$A12,(VLOOKUP(J$4,$A$5:G$24,3,0)-$C12)/(VLOOKUP(J$4,$A$5:G$24,2,0)-$B12),"")) ->  | K12: =IF(K11="","",IF(K$4>$A12,(VLOOKUP(K$4,$A$5:H$24,3,0)-$C12)/(VLOOKUP(K$4,$A$5:H$24,2,0)-$B12),"")) ->  | L12: =IF(L11="","",IF(L$4>$A12,(VLOOKUP(L$4,$A$5:I$24,3,0)-$C12)/(VLOOKUP(L$4,$A$5:I$24,2,0)-$B12),"")) ->  | M12: =IF(M11="","",IF(M$4>$A12,(VLOOKUP(M$4,$A$5:J$24,3,0)-$C12)/(VLOOKUP(M$4,$A$5:J$24,2,0)-$B12),"")) ->  | N12: =IF(N11="","",IF(N$4>$A12,(VLOOKUP(N$4,$A$5:K$24,3,0)-$C12)/(VLOOKUP(N$4,$A$5:K$24,2,0)-$B12),"")) ->  | O12: =IF(O11="","",IF(O$4>$A12,(VLOOKUP(O$4,$A$5:L$24,3,0)-$C12)/(VLOOKUP(O$4,$A$5:L$24,2,0)-$B12),"")) ->  | P12: =IF(P11="","",IF(P$4>$A12,(VLOOKUP(P$4,$A$5:M$24,3,0)-$C12)/(VLOOKUP(P$4,$A$5:M$24,2,0)-$B12),"")) ->  | Q12: =IF(Q11="","",IF(Q$4>$A12,(VLOOKUP(Q$4,$A$5:N$24,3,0)-$C12)/(VLOOKUP(Q$4,$A$5:N$24,2,0)-$B12),"")) ->  | R12: =IF(R11="","",IF(R$4>$A12,(VLOOKUP(R$4,$A$5:O$24,3,0)-$C12)/(VLOOKUP(R$4,$A$5:O$24,2,0)-$B12),"")) ->  | S12: =IF(S11="","",IF(S$4>$A12,(VLOOKUP(S$4,$A$5:P$24,3,0)-$C12)/(VLOOKUP(S$4,$A$5:P$24,2,0)-$B12),"")) ->  | T12: =IF(T11="","",IF(T$4>$A12,(VLOOKUP(T$4,$A$5:Q$24,3,0)-$C12)/(VLOOKUP(T$4,$A$5:Q$24,2,0)-$B12),"")) ->  | U12: =IF(U11="","",IF(U$4>$A12,(VLOOKUP(U$4,$A$5:R$24,3,0)-$C12)/(VLOOKUP(U$4,$A$5:R$24,2,0)-$B12),"")) ->  | V12: =IF(V11="","",IF(V$4>$A12,(VLOOKUP(V$4,$A$5:S$24,3,0)-$C12)/(VLOOKUP(V$4,$A$5:S$24,2,0)-$B12),"")) ->  | W12: =IF(W11="","",IF(W$4>$A12,(VLOOKUP(W$4,$A$5:T$24,3,0)-$C12)/(VLOOKUP(W$4,$A$5:T$24,2,0)-$B12),"")) ->  | X12: =IF(X11="","",IF(X$4>$A12,(VLOOKUP(X$4,$A$5:U$24,3,0)-$C12)/(VLOOKUP(X$4,$A$5:U$24,2,0)-$B12),"")) ->  | AB12: 0
B13: =IF(Data_Input!D15=0,"",Data_Input!D15) ->  | C13: =IF(Data_Input!E15=0,"",HiddenInput!R15) ->  | E13: =COUNTIF(C14:C$24,">"&C13)-COUNTIF(C14:C$24,"<"&C13) -> 0 | F13: =IF(F12="","",IF(F$4>$A13,(VLOOKUP(F$4,$A$5:C$24,3,0)-$C13)/(VLOOKUP(F$4,$A$5:C$24,2,0)-$B13),"")) ->  | G13: =IF(G12="","",IF(G$4>$A13,(VLOOKUP(G$4,$A$5:D$24,3,0)-$C13)/(VLOOKUP(G$4,$A$5:D$24,2,0)-$B13),"")) ->  | H13: =IF(H12="","",IF(H$4>$A13,(VLOOKUP(H$4,$A$5:E$24,3,0)-$C13)/(VLOOKUP(H$4,$A$5:E$24,2,0)-$B13),"")) ->  | I13: =IF(I12="","",IF(I$4>$A13,(VLOOKUP(I$4,$A$5:F$24,3,0)-$C13)/(VLOOKUP(I$4,$A$5:F$24,2,0)-$B13),"")) ->  | J13: =IF(J12="","",IF(J$4>$A13,(VLOOKUP(J$4,$A$5:G$24,3,0)-$C13)/(VLOOKUP(J$4,$A$5:G$24,2,0)-$B13),"")) ->  | K13: =IF(K12="","",IF(K$4>$A13,(VLOOKUP(K$4,$A$5:H$24,3,0)-$C13)/(VLOOKUP(K$4,$A$5:H$24,2,0)-$B13),"")) ->  | L13: =IF(L12="","",IF(L$4>$A13,(VLOOKUP(L$4,$A$5:I$24,3,0)-$C13)/(VLOOKUP(L$4,$A$5:I$24,2,0)-$B13),"")) ->  | M13: =IF(M12="","",IF(M$4>$A13,(VLOOKUP(M$4,$A$5:J$24,3,0)-$C13)/(VLOOKUP(M$4,$A$5:J$24,2,0)-$B13),"")) ->  | N13: =IF(N12="","",IF(N$4>$A13,(VLOOKUP(N$4,$A$5:K$24,3,0)-$C13)/(VLOOKUP(N$4,$A$5:K$24,2,0)-$B13),"")) ->  | O13: =IF(O12="","",IF(O$4>$A13,(VLOOKUP(O$4,$A$5:L$24,3,0)-$C13)/(VLOOKUP(O$4,$A$5:L$24,2,0)-$B13),"")) ->  | P13: =IF(P12="","",IF(P$4>$A13,(VLOOKUP(P$4,$A$5:M$24,3,0)-$C13)/(VLOOKUP(P$4,$A$5:M$24,2,0)-$B13),"")) ->  | Q13: =IF(Q12="","",IF(Q$4>$A13,(VLOOKUP(Q$4,$A$5:N$24,3,0)-$C13)/(VLOOKUP(Q$4,$A$5:N$24,2,0)-$B13),"")) ->  | R13: =IF(R12="","",IF(R$4>$A13,(VLOOKUP(R$4,$A$5:O$24,3,0)-$C13)/(VLOOKUP(R$4,$A$5:O$24,2,0)-$B13),"")) ->  | S13: =IF(S12="","",IF(S$4>$A13,(VLOOKUP(S$4,$A$5:P$24,3,0)-$C13)/(VLOOKUP(S$4,$A$5:P$24,2,0)-$B13),"")) ->  | T13: =IF(T12="","",IF(T$4>$A13,(VLOOKUP(T$4,$A$5:Q$24,3,0)-$C13)/(VLOOKUP(T$4,$A$5:Q$24,2,0)-$B13),"")) ->  | U13: =IF(U12="","",IF(U$4>$A13,(VLOOKUP(U$4,$A$5:R$24,3,0)-$C13)/(VLOOKUP(U$4,$A$5:R$24,2,0)-$B13),"")) ->  | V13: =IF(V12="","",IF(V$4>$A13,(VLOOKUP(V$4,$A$5:S$24,3,0)-$C13)/(VLOOKUP(V$4,$A$5:S$24,2,0)-$B13),"")) ->  | W13: =IF(W12="","",IF(W$4>$A13,(VLOOKUP(W$4,$A$5:T$24,3,0)-$C13)/(VLOOKUP(W$4,$A$5:T$24,2,0)-$B13),"")) ->  | X13: =IF(X12="","",IF(X$4>$A13,(VLOOKUP(X$4,$A$5:U$24,3,0)-$C13)/(VLOOKUP(X$4,$A$5:U$24,2,0)-$B13),"")) ->  | AB13: 0
B14: =IF(Data_Input!D16=0,"",Data_Input!D16) ->  | C14: =IF(Data_Input!E16=0,"",HiddenInput!R16) ->  | E14: =COUNTIF(C15:C$24,">"&C14)-COUNTIF(C15:C$24,"<"&C14) -> 0 | F14: =IF(F13="","",IF(F$4>$A14,(VLOOKUP(F$4,$A$5:C$24,3,0)-$C14)/(VLOOKUP(F$4,$A$5:C$24,2,0)-$B14),"")) ->  | G14: =IF(G13="","",IF(G$4>$A14,(VLOOKUP(G$4,$A$5:D$24,3,0)-$C14)/(VLOOKUP(G$4,$A$5:D$24,2,0)-$B14),"")) ->  | H14: =IF(H13="","",IF(H$4>$A14,(VLOOKUP(H$4,$A$5:E$24,3,0)-$C14)/(VLOOKUP(H$4,$A$5:E$24,2,0)-$B14),"")) ->  | I14: =IF(I13="","",IF(I$4>$A14,(VLOOKUP(I$4,$A$5:F$24,3,0)-$C14)/(VLOOKUP(I$4,$A$5:F$24,2,0)-$B14),"")) ->  | J14: =IF(J13="","",IF(J$4>$A14,(VLOOKUP(J$4,$A$5:G$24,3,0)-$C14)/(VLOOKUP(J$4,$A$5:G$24,2,0)-$B14),"")) ->  | K14: =IF(K13="","",IF(K$4>$A14,(VLOOKUP(K$4,$A$5:H$24,3,0)-$C14)/(VLOOKUP(K$4,$A$5:H$24,2,0)-$B14),"")) ->  | L14: =IF(L13="","",IF(L$4>$A14,(VLOOKUP(L$4,$A$5:I$24,3,0)-$C14)/(VLOOKUP(L$4,$A$5:I$24,2,0)-$B14),"")) ->  | M14: =IF(M13="","",IF(M$4>$A14,(VLOOKUP(M$4,$A$5:J$24,3,0)-$C14)/(VLOOKUP(M$4,$A$5:J$24,2,0)-$B14),"")) ->  | N14: =IF(N13="","",IF(N$4>$A14,(VLOOKUP(N$4,$A$5:K$24,3,0)-$C14)/(VLOOKUP(N$4,$A$5:K$24,2,0)-$B14),"")) ->  | O14: =IF(O13="","",IF(O$4>$A14,(VLOOKUP(O$4,$A$5:L$24,3,0)-$C14)/(VLOOKUP(O$4,$A$5:L$24,2,0)-$B14),"")) ->  | P14: =IF(P13="","",IF(P$4>$A14,(VLOOKUP(P$4,$A$5:M$24,3,0)-$C14)/(VLOOKUP(P$4,$A$5:M$24,2,0)-$B14),"")) ->  | Q14: =IF(Q13="","",IF(Q$4>$A14,(VLOOKUP(Q$4,$A$5:N$24,3,0)-$C14)/(VLOOKUP(Q$4,$A$5:N$24,2,0)-$B14),"")) ->  | R14: =IF(R13="","",IF(R$4>$A14,(VLOOKUP(R$4,$A$5:O$24,3,0)-$C14)/(VLOOKUP(R$4,$A$5:O$24,2,0)-$B14),"")) ->  | S14: =IF(S13="","",IF(S$4>$A14,(VLOOKUP(S$4,$A$5:P$24,3,0)-$C14)/(VLOOKUP(S$4,$A$5:P$24,2,0)-$B14),"")) ->  | T14: =IF(T13="","",IF(T$4>$A14,(VLOOKUP(T$4,$A$5:Q$24,3,0)-$C14)/(VLOOKUP(T$4,$A$5:Q$24,2,0)-$B14),"")) ->  | U14: =IF(U13="","",IF(U$4>$A14,(VLOOKUP(U$4,$A$5:R$24,3,0)-$C14)/(VLOOKUP(U$4,$A$5:R$24,2,0)-$B14),"")) ->  | V14: =IF(V13="","",IF(V$4>$A14,(VLOOKUP(V$4,$A$5:S$24,3,0)-$C14)/(VLOOKUP(V$4,$A$5:S$24,2,0)-$B14),"")) ->  | W14: =IF(W13="","",IF(W$4>$A14,(VLOOKUP(W$4,$A$5:T$24,3,0)-$C14)/(VLOOKUP(W$4,$A$5:T$24,2,0)-$B14),"")) ->  | X14: =IF(X13="","",IF(X$4>$A14,(VLOOKUP(X$4,$A$5:U$24,3,0)-$C14)/(VLOOKUP(X$4,$A$5:U$24,2,0)-$B14),"")) ->  | AB14: 0
B15: =IF(Data_Input!D17=0,"",Data_Input!D17) ->  | C15: =IF(Data_Input!E17=0,"",HiddenInput!R17) ->  | E15: =COUNTIF(C16:C$24,">"&C15)-COUNTIF(C16:C$24,"<"&C15) -> 0 | F15: =IF(F14="","",IF(F$4>$A15,(VLOOKUP(F$4,$A$5:C$24,3,0)-$C15)/(VLOOKUP(F$4,$A$5:C$24,2,0)-$B15),"")) ->  | G15: =IF(G14="","",IF(G$4>$A15,(VLOOKUP(G$4,$A$5:D$24,3,0)-$C15)/(VLOOKUP(G$4,$A$5:D$24,2,0)-$B15),"")) ->  | H15: =IF(H14="","",IF(H$4>$A15,(VLOOKUP(H$4,$A$5:E$24,3,0)-$C15)/(VLOOKUP(H$4,$A$5:E$24,2,0)-$B15),"")) ->  | I15: =IF(I14="","",IF(I$4>$A15,(VLOOKUP(I$4,$A$5:F$24,3,0)-$C15)/(VLOOKUP(I$4,$A$5:F$24,2,0)-$B15),"")) ->  | J15: =IF(J14="","",IF(J$4>$A15,(VLOOKUP(J$4,$A$5:G$24,3,0)-$C15)/(VLOOKUP(J$4,$A$5:G$24,2,0)-$B15),"")) ->  | K15: =IF(K14="","",IF(K$4>$A15,(VLOOKUP(K$4,$A$5:H$24,3,0)-$C15)/(VLOOKUP(K$4,$A$5:H$24,2,0)-$B15),"")) ->  | L15: =IF(L14="","",IF(L$4>$A15,(VLOOKUP(L$4,$A$5:I$24,3,0)-$C15)/(VLOOKUP(L$4,$A$5:I$24,2,0)-$B15),"")) ->  | M15: =IF(M14="","",IF(M$4>$A15,(VLOOKUP(M$4,$A$5:J$24,3,0)-$C15)/(VLOOKUP(M$4,$A$5:J$24,2,0)-$B15),"")) ->  | N15: =IF(N14="","",IF(N$4>$A15,(VLOOKUP(N$4,$A$5:K$24,3,0)-$C15)/(VLOOKUP(N$4,$A$5:K$24,2,0)-$B15),"")) ->  | O15: =IF(O14="","",IF(O$4>$A15,(VLOOKUP(O$4,$A$5:L$24,3,0)-$C15)/(VLOOKUP(O$4,$A$5:L$24,2,0)-$B15),"")) ->  | P15: =IF(P14="","",IF(P$4>$A15,(VLOOKUP(P$4,$A$5:M$24,3,0)-$C15)/(VLOOKUP(P$4,$A$5:M$24,2,0)-$B15),"")) ->  | Q15: =IF(Q14="","",IF(Q$4>$A15,(VLOOKUP(Q$4,$A$5:N$24,3,0)-$C15)/(VLOOKUP(Q$4,$A$5:N$24,2,0)-$B15),"")) ->  | R15: =IF(R14="","",IF(R$4>$A15,(VLOOKUP(R$4,$A$5:O$24,3,0)-$C15)/(VLOOKUP(R$4,$A$5:O$24,2,0)-$B15),"")) ->  | S15: =IF(S14="","",IF(S$4>$A15,(VLOOKUP(S$4,$A$5:P$24,3,0)-$C15)/(VLOOKUP(S$4,$A$5:P$24,2,0)-$B15),"")) ->  | T15: =IF(T14="","",IF(T$4>$A15,(VLOOKUP(T$4,$A$5:Q$24,3,0)-$C15)/(VLOOKUP(T$4,$A$5:Q$24,2,0)-$B15),"")) ->  | U15: =IF(U14="","",IF(U$4>$A15,(VLOOKUP(U$4,$A$5:R$24,3,0)-$C15)/(VLOOKUP(U$4,$A$5:R$24,2,0)-$B15),"")) ->  | V15: =IF(V14="","",IF(V$4>$A15,(VLOOKUP(V$4,$A$5:S$24,3,0)-$C15)/(VLOOKUP(V$4,$A$5:S$24,2,0)-$B15),"")) ->  | W15: =IF(W14="","",IF(W$4>$A15,(VLOOKUP(W$4,$A$5:T$24,3,0)-$C15)/(VLOOKUP(W$4,$A$5:T$24,2,0)-$B15),"")) ->  | X15: =IF(X14="","",IF(X$4>$A15,(VLOOKUP(X$4,$A$5:U$24,3,0)-$C15)/(VLOOKUP(X$4,$A$5:U$24,2,0)-$B15),"")) ->  | AB15: 0
B16: =IF(Data_Input!D18=0,"",Data_Input!D18) ->  | C16: =IF(Data_Input!E18=0,"",HiddenInput!R18) ->  | E16: =COUNTIF(C17:C$24,">"&C16)-COUNTIF(C17:C$24,"<"&C16) -> 0 | F16: =IF(F15="","",IF(F$4>$A16,(VLOOKUP(F$4,$A$5:C$24,3,0)-$C16)/(VLOOKUP(F$4,$A$5:C$24,2,0)-$B16),"")) ->  | G16: =IF(G15="","",IF(G$4>$A16,(VLOOKUP(G$4,$A$5:D$24,3,0)-$C16)/(VLOOKUP(G$4,$A$5:D$24,2,0)-$B16),"")) ->  | H16: =IF(H15="","",IF(H$4>$A16,(VLOOKUP(H$4,$A$5:E$24,3,0)-$C16)/(VLOOKUP(H$4,$A$5:E$24,2,0)-$B16),"")) ->  | I16: =IF(I15="","",IF(I$4>$A16,(VLOOKUP(I$4,$A$5:F$24,3,0)-$C16)/(VLOOKUP(I$4,$A$5:F$24,2,0)-$B16),"")) ->  | J16: =IF(J15="","",IF(J$4>$A16,(VLOOKUP(J$4,$A$5:G$24,3,0)-$C16)/(VLOOKUP(J$4,$A$5:G$24,2,0)-$B16),"")) ->  | K16: =IF(K15="","",IF(K$4>$A16,(VLOOKUP(K$4,$A$5:H$24,3,0)-$C16)/(VLOOKUP(K$4,$A$5:H$24,2,0)-$B16),"")) ->  | L16: =IF(L15="","",IF(L$4>$A16,(VLOOKUP(L$4,$A$5:I$24,3,0)-$C16)/(VLOOKUP(L$4,$A$5:I$24,2,0)-$B16),"")) ->  | M16: =IF(M15="","",IF(M$4>$A16,(VLOOKUP(M$4,$A$5:J$24,3,0)-$C16)/(VLOOKUP(M$4,$A$5:J$24,2,0)-$B16),"")) ->  | N16: =IF(N15="","",IF(N$4>$A16,(VLOOKUP(N$4,$A$5:K$24,3,0)-$C16)/(VLOOKUP(N$4,$A$5:K$24,2,0)-$B16),"")) ->  | O16: =IF(O15="","",IF(O$4>$A16,(VLOOKUP(O$4,$A$5:L$24,3,0)-$C16)/(VLOOKUP(O$4,$A$5:L$24,2,0)-$B16),"")) ->  | P16: =IF(P15="","",IF(P$4>$A16,(VLOOKUP(P$4,$A$5:M$24,3,0)-$C16)/(VLOOKUP(P$4,$A$5:M$24,2,0)-$B16),"")) ->  | Q16: =IF(Q15="","",IF(Q$4>$A16,(VLOOKUP(Q$4,$A$5:N$24,3,0)-$C16)/(VLOOKUP(Q$4,$A$5:N$24,2,0)-$B16),"")) ->  | R16: =IF(R15="","",IF(R$4>$A16,(VLOOKUP(R$4,$A$5:O$24,3,0)-$C16)/(VLOOKUP(R$4,$A$5:O$24,2,0)-$B16),"")) ->  | S16: =IF(S15="","",IF(S$4>$A16,(VLOOKUP(S$4,$A$5:P$24,3,0)-$C16)/(VLOOKUP(S$4,$A$5:P$24,2,0)-$B16),"")) ->  | T16: =IF(T15="","",IF(T$4>$A16,(VLOOKUP(T$4,$A$5:Q$24,3,0)-$C16)/(VLOOKUP(T$4,$A$5:Q$24,2,0)-$B16),"")) ->  | U16: =IF(U15="","",IF(U$4>$A16,(VLOOKUP(U$4,$A$5:R$24,3,0)-$C16)/(VLOOKUP(U$4,$A$5:R$24,2,0)-$B16),"")) ->  | V16: =IF(V15="","",IF(V$4>$A16,(VLOOKUP(V$4,$A$5:S$24,3,0)-$C16)/(VLOOKUP(V$4,$A$5:S$24,2,0)-$B16),"")) ->  | W16: =IF(W15="","",IF(W$4>$A16,(VLOOKUP(W$4,$A$5:T$24,3,0)-$C16)/(VLOOKUP(W$4,$A$5:T$24,2,0)-$B16),"")) ->  | X16: =IF(X15="","",IF(X$4>$A16,(VLOOKUP(X$4,$A$5:U$24,3,0)-$C16)/(VLOOKUP(X$4,$A$5:U$24,2,0)-$B16),"")) ->  | AB16: 0
B17: =IF(Data_Input!D19=0,"",Data_Input!D19) ->  | C17: =IF(Data_Input!E19=0,"",HiddenInput!R19) ->  | E17: =COUNTIF(C18:C$24,">"&C17)-COUNTIF(C18:C$24,"<"&C17) -> 0 | F17: =IF(F16="","",IF(F$4>$A17,(VLOOKUP(F$4,$A$5:C$24,3,0)-$C17)/(VLOOKUP(F$4,$A$5:C$24,2,0)-$B17),"")) ->  | G17: =IF(G16="","",IF(G$4>$A17,(VLOOKUP(G$4,$A$5:D$24,3,0)-$C17)/(VLOOKUP(G$4,$A$5:D$24,2,0)-$B17),"")) ->  | H17: =IF(H16="","",IF(H$4>$A17,(VLOOKUP(H$4,$A$5:E$24,3,0)-$C17)/(VLOOKUP(H$4,$A$5:E$24,2,0)-$B17),"")) ->  | I17: =IF(I16="","",IF(I$4>$A17,(VLOOKUP(I$4,$A$5:F$24,3,0)-$C17)/(VLOOKUP(I$4,$A$5:F$24,2,0)-$B17),"")) ->  | J17: =IF(J16="","",IF(J$4>$A17,(VLOOKUP(J$4,$A$5:G$24,3,0)-$C17)/(VLOOKUP(J$4,$A$5:G$24,2,0)-$B17),"")) ->  | K17: =IF(K16="","",IF(K$4>$A17,(VLOOKUP(K$4,$A$5:H$24,3,0)-$C17)/(VLOOKUP(K$4,$A$5:H$24,2,0)-$B17),"")) ->  | L17: =IF(L16="","",IF(L$4>$A17,(VLOOKUP(L$4,$A$5:I$24,3,0)-$C17)/(VLOOKUP(L$4,$A$5:I$24,2,0)-$B17),"")) ->  | M17: =IF(M16="","",IF(M$4>$A17,(VLOOKUP(M$4,$A$5:J$24,3,0)-$C17)/(VLOOKUP(M$4,$A$5:J$24,2,0)-$B17),"")) ->  | N17: =IF(N16="","",IF(N$4>$A17,(VLOOKUP(N$4,$A$5:K$24,3,0)-$C17)/(VLOOKUP(N$4,$A$5:K$24,2,0)-$B17),"")) ->  | O17: =IF(O16="","",IF(O$4>$A17,(VLOOKUP(O$4,$A$5:L$24,3,0)-$C17)/(VLOOKUP(O$4,$A$5:L$24,2,0)-$B17),"")) ->  | P17: =IF(P16="","",IF(P$4>$A17,(VLOOKUP(P$4,$A$5:M$24,3,0)-$C17)/(VLOOKUP(P$4,$A$5:M$24,2,0)-$B17),"")) ->  | Q17: =IF(Q16="","",IF(Q$4>$A17,(VLOOKUP(Q$4,$A$5:N$24,3,0)-$C17)/(VLOOKUP(Q$4,$A$5:N$24,2,0)-$B17),"")) ->  | R17: =IF(R16="","",IF(R$4>$A17,(VLOOKUP(R$4,$A$5:O$24,3,0)-$C17)/(VLOOKUP(R$4,$A$5:O$24,2,0)-$B17),"")) ->  | S17: =IF(S16="","",IF(S$4>$A17,(VLOOKUP(S$4,$A$5:P$24,3,0)-$C17)/(VLOOKUP(S$4,$A$5:P$24,2,0)-$B17),"")) ->  | T17: =IF(T16="","",IF(T$4>$A17,(VLOOKUP(T$4,$A$5:Q$24,3,0)-$C17)/(VLOOKUP(T$4,$A$5:Q$24,2,0)-$B17),"")) ->  | U17: =IF(U16="","",IF(U$4>$A17,(VLOOKUP(U$4,$A$5:R$24,3,0)-$C17)/(VLOOKUP(U$4,$A$5:R$24,2,0)-$B17),"")) ->  | V17: =IF(V16="","",IF(V$4>$A17,(VLOOKUP(V$4,$A$5:S$24,3,0)-$C17)/(VLOOKUP(V$4,$A$5:S$24,2,0)-$B17),"")) ->  | W17: =IF(W16="","",IF(W$4>$A17,(VLOOKUP(W$4,$A$5:T$24,3,0)-$C17)/(VLOOKUP(W$4,$A$5:T$24,2,0)-$B17),"")) ->  | X17: =IF(X16="","",IF(X$4>$A17,(VLOOKUP(X$4,$A$5:U$24,3,0)-$C17)/(VLOOKUP(X$4,$A$5:U$24,2,0)-$B17),"")) ->  | AB17: 0
B18: =IF(Data_Input!D20=0,"",Data_Input!D20) ->  | C18: =IF(Data_Input!E20=0,"",HiddenInput!R20) ->  | E18: =COUNTIF(C19:C$24,">"&C18)-COUNTIF(C19:C$24,"<"&C18) -> 0 | F18: =IF(F17="","",IF(F$4>$A18,(VLOOKUP(F$4,$A$5:C$24,3,0)-$C18)/(VLOOKUP(F$4,$A$5:C$24,2,0)-$B18),"")) ->  | G18: =IF(G17="","",IF(G$4>$A18,(VLOOKUP(G$4,$A$5:D$24,3,0)-$C18)/(VLOOKUP(G$4,$A$5:D$24,2,0)-$B18),"")) ->  | H18: =IF(H17="","",IF(H$4>$A18,(VLOOKUP(H$4,$A$5:E$24,3,0)-$C18)/(VLOOKUP(H$4,$A$5:E$24,2,0)-$B18),"")) ->  | I18: =IF(I17="","",IF(I$4>$A18,(VLOOKUP(I$4,$A$5:F$24,3,0)-$C18)/(VLOOKUP(I$4,$A$5:F$24,2,0)-$B18),"")) ->  | J18: =IF(J17="","",IF(J$4>$A18,(VLOOKUP(J$4,$A$5:G$24,3,0)-$C18)/(VLOOKUP(J$4,$A$5:G$24,2,0)-$B18),"")) ->  | K18: =IF(K17="","",IF(K$4>$A18,(VLOOKUP(K$4,$A$5:H$24,3,0)-$C18)/(VLOOKUP(K$4,$A$5:H$24,2,0)-$B18),"")) ->  | L18: =IF(L17="","",IF(L$4>$A18,(VLOOKUP(L$4,$A$5:I$24,3,0)-$C18)/(VLOOKUP(L$4,$A$5:I$24,2,0)-$B18),"")) ->  | M18: =IF(M17="","",IF(M$4>$A18,(VLOOKUP(M$4,$A$5:J$24,3,0)-$C18)/(VLOOKUP(M$4,$A$5:J$24,2,0)-$B18),"")) ->  | N18: =IF(N17="","",IF(N$4>$A18,(VLOOKUP(N$4,$A$5:K$24,3,0)-$C18)/(VLOOKUP(N$4,$A$5:K$24,2,0)-$B18),"")) ->  | O18: =IF(O17="","",IF(O$4>$A18,(VLOOKUP(O$4,$A$5:L$24,3,0)-$C18)/(VLOOKUP(O$4,$A$5:L$24,2,0)-$B18),"")) ->  | P18: =IF(P17="","",IF(P$4>$A18,(VLOOKUP(P$4,$A$5:M$24,3,0)-$C18)/(VLOOKUP(P$4,$A$5:M$24,2,0)-$B18),"")) ->  | Q18: =IF(Q17="","",IF(Q$4>$A18,(VLOOKUP(Q$4,$A$5:N$24,3,0)-$C18)/(VLOOKUP(Q$4,$A$5:N$24,2,0)-$B18),"")) ->  | R18: =IF(R17="","",IF(R$4>$A18,(VLOOKUP(R$4,$A$5:O$24,3,0)-$C18)/(VLOOKUP(R$4,$A$5:O$24,2,0)-$B18),"")) ->  | S18: =IF(S17="","",IF(S$4>$A18,(VLOOKUP(S$4,$A$5:P$24,3,0)-$C18)/(VLOOKUP(S$4,$A$5:P$24,2,0)-$B18),"")) ->  | T18: =IF(T17="","",IF(T$4>$A18,(VLOOKUP(T$4,$A$5:Q$24,3,0)-$C18)/(VLOOKUP(T$4,$A$5:Q$24,2,0)-$B18),"")) ->  | U18: =IF(U17="","",IF(U$4>$A18,(VLOOKUP(U$4,$A$5:R$24,3,0)-$C18)/(VLOOKUP(U$4,$A$5:R$24,2,0)-$B18),"")) ->  | V18: =IF(V17="","",IF(V$4>$A18,(VLOOKUP(V$4,$A$5:S$24,3,0)-$C18)/(VLOOKUP(V$4,$A$5:S$24,2,0)-$B18),"")) ->  | W18: =IF(W17="","",IF(W$4>$A18,(VLOOKUP(W$4,$A$5:T$24,3,0)-$C18)/(VLOOKUP(W$4,$A$5:T$24,2,0)-$B18),"")) ->  | X18: =IF(X17="","",IF(X$4>$A18,(VLOOKUP(X$4,$A$5:U$24,3,0)-$C18)/(VLOOKUP(X$4,$A$5:U$24,2,0)-$B18),"")) ->  | AB18: 0
B19: =IF(Data_Input!D21=0,"",Data_Input!D21) ->  | C19: =IF(Data_Input!E21=0,"",HiddenInput!R21) ->  | E19: =COUNTIF(C20:C$24,">"&C19)-COUNTIF(C20:C$24,"<"&C19) -> 0 | F19: =IF(F18="","",IF(F$4>$A19,(VLOOKUP(F$4,$A$5:C$24,3,0)-$C19)/(VLOOKUP(F$4,$A$5:C$24,2,0)-$B19),"")) ->  | G19: =IF(G18="","",IF(G$4>$A19,(VLOOKUP(G$4,$A$5:D$24,3,0)-$C19)/(VLOOKUP(G$4,$A$5:D$24,2,0)-$B19),"")) ->  | H19: =IF(H18="","",IF(H$4>$A19,(VLOOKUP(H$4,$A$5:E$24,3,0)-$C19)/(VLOOKUP(H$4,$A$5:E$24,2,0)-$B19),"")) ->  | I19: =IF(I18="","",IF(I$4>$A19,(VLOOKUP(I$4,$A$5:F$24,3,0)-$C19)/(VLOOKUP(I$4,$A$5:F$24,2,0)-$B19),"")) ->  | J19: =IF(J18="","",IF(J$4>$A19,(VLOOKUP(J$4,$A$5:G$24,3,0)-$C19)/(VLOOKUP(J$4,$A$5:G$24,2,0)-$B19),"")) ->  | K19: =IF(K18="","",IF(K$4>$A19,(VLOOKUP(K$4,$A$5:H$24,3,0)-$C19)/(VLOOKUP(K$4,$A$5:H$24,2,0)-$B19),"")) ->  | L19: =IF(L18="","",IF(L$4>$A19,(VLOOKUP(L$4,$A$5:I$24,3,0)-$C19)/(VLOOKUP(L$4,$A$5:I$24,2,0)-$B19),"")) ->  | M19: =IF(M18="","",IF(M$4>$A19,(VLOOKUP(M$4,$A$5:J$24,3,0)-$C19)/(VLOOKUP(M$4,$A$5:J$24,2,0)-$B19),"")) ->  | N19: =IF(N18="","",IF(N$4>$A19,(VLOOKUP(N$4,$A$5:K$24,3,0)-$C19)/(VLOOKUP(N$4,$A$5:K$24,2,0)-$B19),"")) ->  | O19: =IF(O18="","",IF(O$4>$A19,(VLOOKUP(O$4,$A$5:L$24,3,0)-$C19)/(VLOOKUP(O$4,$A$5:L$24,2,0)-$B19),"")) ->  | P19: =IF(P18="","",IF(P$4>$A19,(VLOOKUP(P$4,$A$5:M$24,3,0)-$C19)/(VLOOKUP(P$4,$A$5:M$24,2,0)-$B19),"")) ->  | Q19: =IF(Q18="","",IF(Q$4>$A19,(VLOOKUP(Q$4,$A$5:N$24,3,0)-$C19)/(VLOOKUP(Q$4,$A$5:N$24,2,0)-$B19),"")) ->  | R19: =IF(R18="","",IF(R$4>$A19,(VLOOKUP(R$4,$A$5:O$24,3,0)-$C19)/(VLOOKUP(R$4,$A$5:O$24,2,0)-$B19),"")) ->  | S19: =IF(S18="","",IF(S$4>$A19,(VLOOKUP(S$4,$A$5:P$24,3,0)-$C19)/(VLOOKUP(S$4,$A$5:P$24,2,0)-$B19),"")) ->  | T19: =IF(T18="","",IF(T$4>$A19,(VLOOKUP(T$4,$A$5:Q$24,3,0)-$C19)/(VLOOKUP(T$4,$A$5:Q$24,2,0)-$B19),"")) ->  | U19: =IF(U18="","",IF(U$4>$A19,(VLOOKUP(U$4,$A$5:R$24,3,0)-$C19)/(VLOOKUP(U$4,$A$5:R$24,2,0)-$B19),"")) ->  | V19: =IF(V18="","",IF(V$4>$A19,(VLOOKUP(V$4,$A$5:S$24,3,0)-$C19)/(VLOOKUP(V$4,$A$5:S$24,2,0)-$B19),"")) ->  | W19: =IF(W18="","",IF(W$4>$A19,(VLOOKUP(W$4,$A$5:T$24,3,0)-$C19)/(VLOOKUP(W$4,$A$5:T$24,2,0)-$B19),"")) ->  | X19: =IF(X18="","",IF(X$4>$A19,(VLOOKUP(X$4,$A$5:U$24,3,0)-$C19)/(VLOOKUP(X$4,$A$5:U$24,2,0)-$B19),"")) ->  | AB19: 0
B20: =IF(Data_Input!D22=0,"",Data_Input!D22) ->  | C20: =IF(Data_Input!E22=0,"",HiddenInput!R22) ->  | E20: =COUNTIF(C21:C$24,">"&C20)-COUNTIF(C21:C$24,"<"&C20) -> 0 | F20: =IF(F19="","",IF(F$4>$A20,(VLOOKUP(F$4,$A$5:C$24,3,0)-$C20)/(VLOOKUP(F$4,$A$5:C$24,2,0)-$B20),"")) ->  | G20: =IF(G19="","",IF(G$4>$A20,(VLOOKUP(G$4,$A$5:D$24,3,0)-$C20)/(VLOOKUP(G$4,$A$5:D$24,2,0)-$B20),"")) ->  | H20: =IF(H19="","",IF(H$4>$A20,(VLOOKUP(H$4,$A$5:E$24,3,0)-$C20)/(VLOOKUP(H$4,$A$5:E$24,2,0)-$B20),"")) ->  | I20: =IF(I19="","",IF(I$4>$A20,(VLOOKUP(I$4,$A$5:F$24,3,0)-$C20)/(VLOOKUP(I$4,$A$5:F$24,2,0)-$B20),"")) ->  | J20: =IF(J19="","",IF(J$4>$A20,(VLOOKUP(J$4,$A$5:G$24,3,0)-$C20)/(VLOOKUP(J$4,$A$5:G$24,2,0)-$B20),"")) ->  | K20: =IF(K19="","",IF(K$4>$A20,(VLOOKUP(K$4,$A$5:H$24,3,0)-$C20)/(VLOOKUP(K$4,$A$5:H$24,2,0)-$B20),"")) ->  | L20: =IF(L19="","",IF(L$4>$A20,(VLOOKUP(L$4,$A$5:I$24,3,0)-$C20)/(VLOOKUP(L$4,$A$5:I$24,2,0)-$B20),"")) ->  | M20: =IF(M19="","",IF(M$4>$A20,(VLOOKUP(M$4,$A$5:J$24,3,0)-$C20)/(VLOOKUP(M$4,$A$5:J$24,2,0)-$B20),"")) ->  | N20: =IF(N19="","",IF(N$4>$A20,(VLOOKUP(N$4,$A$5:K$24,3,0)-$C20)/(VLOOKUP(N$4,$A$5:K$24,2,0)-$B20),"")) ->  | O20: =IF(O19="","",IF(O$4>$A20,(VLOOKUP(O$4,$A$5:L$24,3,0)-$C20)/(VLOOKUP(O$4,$A$5:L$24,2,0)-$B20),"")) ->  | P20: =IF(P19="","",IF(P$4>$A20,(VLOOKUP(P$4,$A$5:M$24,3,0)-$C20)/(VLOOKUP(P$4,$A$5:M$24,2,0)-$B20),"")) ->  | Q20: =IF(Q19="","",IF(Q$4>$A20,(VLOOKUP(Q$4,$A$5:N$24,3,0)-$C20)/(VLOOKUP(Q$4,$A$5:N$24,2,0)-$B20),"")) ->  | R20: =IF(R19="","",IF(R$4>$A20,(VLOOKUP(R$4,$A$5:O$24,3,0)-$C20)/(VLOOKUP(R$4,$A$5:O$24,2,0)-$B20),"")) ->  | S20: =IF(S19="","",IF(S$4>$A20,(VLOOKUP(S$4,$A$5:P$24,3,0)-$C20)/(VLOOKUP(S$4,$A$5:P$24,2,0)-$B20),"")) ->  | T20: =IF(T19="","",IF(T$4>$A20,(VLOOKUP(T$4,$A$5:Q$24,3,0)-$C20)/(VLOOKUP(T$4,$A$5:Q$24,2,0)-$B20),"")) ->  | U20: =IF(U19="","",IF(U$4>$A20,(VLOOKUP(U$4,$A$5:R$24,3,0)-$C20)/(VLOOKUP(U$4,$A$5:R$24,2,0)-$B20),"")) ->  | V20: =IF(V19="","",IF(V$4>$A20,(VLOOKUP(V$4,$A$5:S$24,3,0)-$C20)/(VLOOKUP(V$4,$A$5:S$24,2,0)-$B20),"")) ->  | W20: =IF(W19="","",IF(W$4>$A20,(VLOOKUP(W$4,$A$5:T$24,3,0)-$C20)/(VLOOKUP(W$4,$A$5:T$24,2,0)-$B20),"")) ->  | X20: =IF(X19="","",IF(X$4>$A20,(VLOOKUP(X$4,$A$5:U$24,3,0)-$C20)/(VLOOKUP(X$4,$A$5:U$24,2,0)-$B20),"")) ->  | AB20: 0
B21: =IF(Data_Input!D23=0,"",Data_Input!D23) ->  | C21: =IF(Data_Input!E23=0,"",HiddenInput!R23) ->  | E21: =COUNTIF(C22:C$24,">"&C21)-COUNTIF(C22:C$24,"<"&C21) -> 0 | F21: =IF(F20="","",IF(F$4>$A21,(VLOOKUP(F$4,$A$5:C$24,3,0)-$C21)/(VLOOKUP(F$4,$A$5:C$24,2,0)-$B21),"")) ->  | G21: =IF(G20="","",IF(G$4>$A21,(VLOOKUP(G$4,$A$5:D$24,3,0)-$C21)/(VLOOKUP(G$4,$A$5:D$24,2,0)-$B21),"")) ->  | H21: =IF(H20="","",IF(H$4>$A21,(VLOOKUP(H$4,$A$5:E$24,3,0)-$C21)/(VLOOKUP(H$4,$A$5:E$24,2,0)-$B21),"")) ->  | I21: =IF(I20="","",IF(I$4>$A21,(VLOOKUP(I$4,$A$5:F$24,3,0)-$C21)/(VLOOKUP(I$4,$A$5:F$24,2,0)-$B21),"")) ->  | J21: =IF(J20="","",IF(J$4>$A21,(VLOOKUP(J$4,$A$5:G$24,3,0)-$C21)/(VLOOKUP(J$4,$A$5:G$24,2,0)-$B21),"")) ->  | K21: =IF(K20="","",IF(K$4>$A21,(VLOOKUP(K$4,$A$5:H$24,3,0)-$C21)/(VLOOKUP(K$4,$A$5:H$24,2,0)-$B21),"")) ->  | L21: =IF(L20="","",IF(L$4>$A21,(VLOOKUP(L$4,$A$5:I$24,3,0)-$C21)/(VLOOKUP(L$4,$A$5:I$24,2,0)-$B21),"")) ->  | M21: =IF(M20="","",IF(M$4>$A21,(VLOOKUP(M$4,$A$5:J$24,3,0)-$C21)/(VLOOKUP(M$4,$A$5:J$24,2,0)-$B21),"")) ->  | N21: =IF(N20="","",IF(N$4>$A21,(VLOOKUP(N$4,$A$5:K$24,3,0)-$C21)/(VLOOKUP(N$4,$A$5:K$24,2,0)-$B21),"")) ->  | O21: =IF(O20="","",IF(O$4>$A21,(VLOOKUP(O$4,$A$5:L$24,3,0)-$C21)/(VLOOKUP(O$4,$A$5:L$24,2,0)-$B21),"")) ->  | P21: =IF(P20="","",IF(P$4>$A21,(VLOOKUP(P$4,$A$5:M$24,3,0)-$C21)/(VLOOKUP(P$4,$A$5:M$24,2,0)-$B21),"")) ->  | Q21: =IF(Q20="","",IF(Q$4>$A21,(VLOOKUP(Q$4,$A$5:N$24,3,0)-$C21)/(VLOOKUP(Q$4,$A$5:N$24,2,0)-$B21),"")) ->  | R21: =IF(R20="","",IF(R$4>$A21,(VLOOKUP(R$4,$A$5:O$24,3,0)-$C21)/(VLOOKUP(R$4,$A$5:O$24,2,0)-$B21),"")) ->  | S21: =IF(S20="","",IF(S$4>$A21,(VLOOKUP(S$4,$A$5:P$24,3,0)-$C21)/(VLOOKUP(S$4,$A$5:P$24,2,0)-$B21),"")) ->  | T21: =IF(T20="","",IF(T$4>$A21,(VLOOKUP(T$4,$A$5:Q$24,3,0)-$C21)/(VLOOKUP(T$4,$A$5:Q$24,2,0)-$B21),"")) ->  | U21: =IF(U20="","",IF(U$4>$A21,(VLOOKUP(U$4,$A$5:R$24,3,0)-$C21)/(VLOOKUP(U$4,$A$5:R$24,2,0)-$B21),"")) ->  | V21: =IF(V20="","",IF(V$4>$A21,(VLOOKUP(V$4,$A$5:S$24,3,0)-$C21)/(VLOOKUP(V$4,$A$5:S$24,2,0)-$B21),"")) ->  | W21: =IF(W20="","",IF(W$4>$A21,(VLOOKUP(W$4,$A$5:T$24,3,0)-$C21)/(VLOOKUP(W$4,$A$5:T$24,2,0)-$B21),"")) ->  | X21: =IF(X20="","",IF(X$4>$A21,(VLOOKUP(X$4,$A$5:U$24,3,0)-$C21)/(VLOOKUP(X$4,$A$5:U$24,2,0)-$B21),"")) ->  | AB21: 0
B22: =IF(Data_Input!D24=0,"",Data_Input!D24) ->  | C22: =IF(Data_Input!E24=0,"",HiddenInput!R24) ->  | E22: =COUNTIF(C23:C$24,">"&C22)-COUNTIF(C23:C$24,"<"&C22) -> 0 | F22: =IF(F21="","",IF(F$4>$A22,(VLOOKUP(F$4,$A$5:C$24,3,0)-$C22)/(VLOOKUP(F$4,$A$5:C$24,2,0)-$B22),"")) ->  | G22: =IF(G21="","",IF(G$4>$A22,(VLOOKUP(G$4,$A$5:D$24,3,0)-$C22)/(VLOOKUP(G$4,$A$5:D$24,2,0)-$B22),"")) ->  | H22: =IF(H21="","",IF(H$4>$A22,(VLOOKUP(H$4,$A$5:E$24,3,0)-$C22)/(VLOOKUP(H$4,$A$5:E$24,2,0)-$B22),"")) ->  | I22: =IF(I21="","",IF(I$4>$A22,(VLOOKUP(I$4,$A$5:F$24,3,0)-$C22)/(VLOOKUP(I$4,$A$5:F$24,2,0)-$B22),"")) ->  | J22: =IF(J21="","",IF(J$4>$A22,(VLOOKUP(J$4,$A$5:G$24,3,0)-$C22)/(VLOOKUP(J$4,$A$5:G$24,2,0)-$B22),"")) ->  | K22: =IF(K21="","",IF(K$4>$A22,(VLOOKUP(K$4,$A$5:H$24,3,0)-$C22)/(VLOOKUP(K$4,$A$5:H$24,2,0)-$B22),"")) ->  | L22: =IF(L21="","",IF(L$4>$A22,(VLOOKUP(L$4,$A$5:I$24,3,0)-$C22)/(VLOOKUP(L$4,$A$5:I$24,2,0)-$B22),"")) ->  | M22: =IF(M21="","",IF(M$4>$A22,(VLOOKUP(M$4,$A$5:J$24,3,0)-$C22)/(VLOOKUP(M$4,$A$5:J$24,2,0)-$B22),"")) ->  | N22: =IF(N21="","",IF(N$4>$A22,(VLOOKUP(N$4,$A$5:K$24,3,0)-$C22)/(VLOOKUP(N$4,$A$5:K$24,2,0)-$B22),"")) ->  | O22: =IF(O21="","",IF(O$4>$A22,(VLOOKUP(O$4,$A$5:L$24,3,0)-$C22)/(VLOOKUP(O$4,$A$5:L$24,2,0)-$B22),"")) ->  | P22: =IF(P21="","",IF(P$4>$A22,(VLOOKUP(P$4,$A$5:M$24,3,0)-$C22)/(VLOOKUP(P$4,$A$5:M$24,2,0)-$B22),"")) ->  | Q22: =IF(Q21="","",IF(Q$4>$A22,(VLOOKUP(Q$4,$A$5:N$24,3,0)-$C22)/(VLOOKUP(Q$4,$A$5:N$24,2,0)-$B22),"")) ->  | R22: =IF(R21="","",IF(R$4>$A22,(VLOOKUP(R$4,$A$5:O$24,3,0)-$C22)/(VLOOKUP(R$4,$A$5:O$24,2,0)-$B22),"")) ->  | S22: =IF(S21="","",IF(S$4>$A22,(VLOOKUP(S$4,$A$5:P$24,3,0)-$C22)/(VLOOKUP(S$4,$A$5:P$24,2,0)-$B22),"")) ->  | T22: =IF(T21="","",IF(T$4>$A22,(VLOOKUP(T$4,$A$5:Q$24,3,0)-$C22)/(VLOOKUP(T$4,$A$5:Q$24,2,0)-$B22),"")) ->  | U22: =IF(U21="","",IF(U$4>$A22,(VLOOKUP(U$4,$A$5:R$24,3,0)-$C22)/(VLOOKUP(U$4,$A$5:R$24,2,0)-$B22),"")) ->  | V22: =IF(V21="","",IF(V$4>$A22,(VLOOKUP(V$4,$A$5:S$24,3,0)-$C22)/(VLOOKUP(V$4,$A$5:S$24,2,0)-$B22),"")) ->  | W22: =IF(W21="","",IF(W$4>$A22,(VLOOKUP(W$4,$A$5:T$24,3,0)-$C22)/(VLOOKUP(W$4,$A$5:T$24,2,0)-$B22),"")) ->  | X22: =IF(X21="","",IF(X$4>$A22,(VLOOKUP(X$4,$A$5:U$24,3,0)-$C22)/(VLOOKUP(X$4,$A$5:U$24,2,0)-$B22),"")) ->  | AB22: 0
B23: =IF(Data_Input!D25=0,"",Data_Input!D25) ->  | C23: =IF(Data_Input!E25=0,"",HiddenInput!R25) ->  | E23: =COUNTIF(C24:C$24,">"&C23)-COUNTIF(C24:C$24,"<"&C23) -> 0 | F23: =IF(F22="","",IF(F$4>$A23,(VLOOKUP(F$4,$A$5:C$24,3,0)-$C23)/(VLOOKUP(F$4,$A$5:C$24,2,0)-$B23),"")) ->  | G23: =IF(G22="","",IF(G$4>$A23,(VLOOKUP(G$4,$A$5:D$24,3,0)-$C23)/(VLOOKUP(G$4,$A$5:D$24,2,0)-$B23),"")) ->  | H23: =IF(H22="","",IF(H$4>$A23,(VLOOKUP(H$4,$A$5:E$24,3,0)-$C23)/(VLOOKUP(H$4,$A$5:E$24,2,0)-$B23),"")) ->  | I23: =IF(I22="","",IF(I$4>$A23,(VLOOKUP(I$4,$A$5:F$24,3,0)-$C23)/(VLOOKUP(I$4,$A$5:F$24,2,0)-$B23),"")) ->  | J23: =IF(J22="","",IF(J$4>$A23,(VLOOKUP(J$4,$A$5:G$24,3,0)-$C23)/(VLOOKUP(J$4,$A$5:G$24,2,0)-$B23),"")) ->  | K23: =IF(K22="","",IF(K$4>$A23,(VLOOKUP(K$4,$A$5:H$24,3,0)-$C23)/(VLOOKUP(K$4,$A$5:H$24,2,0)-$B23),"")) ->  | L23: =IF(L22="","",IF(L$4>$A23,(VLOOKUP(L$4,$A$5:I$24,3,0)-$C23)/(VLOOKUP(L$4,$A$5:I$24,2,0)-$B23),"")) ->  | M23: =IF(M22="","",IF(M$4>$A23,(VLOOKUP(M$4,$A$5:J$24,3,0)-$C23)/(VLOOKUP(M$4,$A$5:J$24,2,0)-$B23),"")) ->  | N23: =IF(N22="","",IF(N$4>$A23,(VLOOKUP(N$4,$A$5:K$24,3,0)-$C23)/(VLOOKUP(N$4,$A$5:K$24,2,0)-$B23),"")) ->  | O23: =IF(O22="","",IF(O$4>$A23,(VLOOKUP(O$4,$A$5:L$24,3,0)-$C23)/(VLOOKUP(O$4,$A$5:L$24,2,0)-$B23),"")) ->  | P23: =IF(P22="","",IF(P$4>$A23,(VLOOKUP(P$4,$A$5:M$24,3,0)-$C23)/(VLOOKUP(P$4,$A$5:M$24,2,0)-$B23),"")) ->  | Q23: =IF(Q22="","",IF(Q$4>$A23,(VLOOKUP(Q$4,$A$5:N$24,3,0)-$C23)/(VLOOKUP(Q$4,$A$5:N$24,2,0)-$B23),"")) ->  | R23: =IF(R22="","",IF(R$4>$A23,(VLOOKUP(R$4,$A$5:O$24,3,0)-$C23)/(VLOOKUP(R$4,$A$5:O$24,2,0)-$B23),"")) ->  | S23: =IF(S22="","",IF(S$4>$A23,(VLOOKUP(S$4,$A$5:P$24,3,0)-$C23)/(VLOOKUP(S$4,$A$5:P$24,2,0)-$B23),"")) ->  | T23: =IF(T22="","",IF(T$4>$A23,(VLOOKUP(T$4,$A$5:Q$24,3,0)-$C23)/(VLOOKUP(T$4,$A$5:Q$24,2,0)-$B23),"")) ->  | U23: =IF(U22="","",IF(U$4>$A23,(VLOOKUP(U$4,$A$5:R$24,3,0)-$C23)/(VLOOKUP(U$4,$A$5:R$24,2,0)-$B23),"")) ->  | V23: =IF(V22="","",IF(V$4>$A23,(VLOOKUP(V$4,$A$5:S$24,3,0)-$C23)/(VLOOKUP(V$4,$A$5:S$24,2,0)-$B23),"")) ->  | W23: =IF(W22="","",IF(W$4>$A23,(VLOOKUP(W$4,$A$5:T$24,3,0)-$C23)/(VLOOKUP(W$4,$A$5:T$24,2,0)-$B23),"")) ->  | X23: =IF(X22="","",IF(X$4>$A23,(VLOOKUP(X$4,$A$5:U$24,3,0)-$C23)/(VLOOKUP(X$4,$A$5:U$24,2,0)-$B23),"")) ->  | AB23: 0
B24: =IF(Data_Input!D26=0,"",Data_Input!D26) ->  | C24: =IF(Data_Input!E26=0,"",HiddenInput!R26) ->  | E24: =COUNTIF(C$24:C25,">"&C24)-COUNTIF(C$24:C25,"<"&C24) -> 0 | F24: =IF(F23="","",IF(F$4>$A24,(VLOOKUP(F$4,$A$5:C$24,3,0)-$C24)/(VLOOKUP(F$4,$A$5:C$24,2,0)-$B24),"")) ->  | G24: =IF(G23="","",IF(G$4>$A24,(VLOOKUP(G$4,$A$5:D$24,3,0)-$C24)/(VLOOKUP(G$4,$A$5:D$24,2,0)-$B24),"")) ->  | H24: =IF(H23="","",IF(H$4>$A24,(VLOOKUP(H$4,$A$5:E$24,3,0)-$C24)/(VLOOKUP(H$4,$A$5:E$24,2,0)-$B24),"")) ->  | I24: =IF(I23="","",IF(I$4>$A24,(VLOOKUP(I$4,$A$5:F$24,3,0)-$C24)/(VLOOKUP(I$4,$A$5:F$24,2,0)-$B24),"")) ->  | J24: =IF(J23="","",IF(J$4>$A24,(VLOOKUP(J$4,$A$5:G$24,3,0)-$C24)/(VLOOKUP(J$4,$A$5:G$24,2,0)-$B24),"")) ->  | K24: =IF(K23="","",IF(K$4>$A24,(VLOOKUP(K$4,$A$5:H$24,3,0)-$C24)/(VLOOKUP(K$4,$A$5:H$24,2,0)-$B24),"")) ->  | L24: =IF(L23="","",IF(L$4>$A24,(VLOOKUP(L$4,$A$5:I$24,3,0)-$C24)/(VLOOKUP(L$4,$A$5:I$24,2,0)-$B24),"")) ->  | M24: =IF(M23="","",IF(M$4>$A24,(VLOOKUP(M$4,$A$5:J$24,3,0)-$C24)/(VLOOKUP(M$4,$A$5:J$24,2,0)-$B24),"")) ->  | N24: =IF(N23="","",IF(N$4>$A24,(VLOOKUP(N$4,$A$5:K$24,3,0)-$C24)/(VLOOKUP(N$4,$A$5:K$24,2,0)-$B24),"")) ->  | O24: =IF(O23="","",IF(O$4>$A24,(VLOOKUP(O$4,$A$5:L$24,3,0)-$C24)/(VLOOKUP(O$4,$A$5:L$24,2,0)-$B24),"")) ->  | P24: =IF(P23="","",IF(P$4>$A24,(VLOOKUP(P$4,$A$5:M$24,3,0)-$C24)/(VLOOKUP(P$4,$A$5:M$24,2,0)-$B24),"")) ->  | Q24: =IF(Q23="","",IF(Q$4>$A24,(VLOOKUP(Q$4,$A$5:N$24,3,0)-$C24)/(VLOOKUP(Q$4,$A$5:N$24,2,0)-$B24),"")) ->  | R24: =IF(R23="","",IF(R$4>$A24,(VLOOKUP(R$4,$A$5:O$24,3,0)-$C24)/(VLOOKUP(R$4,$A$5:O$24,2,0)-$B24),"")) ->  | S24: =IF(S23="","",IF(S$4>$A24,(VLOOKUP(S$4,$A$5:P$24,3,0)-$C24)/(VLOOKUP(S$4,$A$5:P$24,2,0)-$B24),"")) ->  | T24: =IF(T23="","",IF(T$4>$A24,(VLOOKUP(T$4,$A$5:Q$24,3,0)-$C24)/(VLOOKUP(T$4,$A$5:Q$24,2,0)-$B24),"")) ->  | U24: =IF(U23="","",IF(U$4>$A24,(VLOOKUP(U$4,$A$5:R$24,3,0)-$C24)/(VLOOKUP(U$4,$A$5:R$24,2,0)-$B24),"")) ->  | V24: =IF(V23="","",IF(V$4>$A24,(VLOOKUP(V$4,$A$5:S$24,3,0)-$C24)/(VLOOKUP(V$4,$A$5:S$24,2,0)-$B24),"")) ->  | W24: =IF(W23="","",IF(W$4>$A24,(VLOOKUP(W$4,$A$5:T$24,3,0)-$C24)/(VLOOKUP(W$4,$A$5:T$24,2,0)-$B24),"")) ->  | X24: =IF(X23="","",IF(X$4>$A24,(VLOOKUP(X$4,$A$5:U$24,3,0)-$C24)/(VLOOKUP(X$4,$A$5:U$24,2,0)-$B24),"")) ->  | AB24: 0
E25: =SUM(E5:E24) -> -7 | Z25: =SUM(Z5:Z24) -> 0
A27: Median Slope: | E27: =MEDIAN(F5:X24) -> -0.004918032787
A28: Median Y: | E28: =MEDIAN(C5:C24) -> 4.5 | Z28: Negative Concentration? | AA28: =IF(SUM(AB5:AB24)>0,"Yes","No") -> No
A29: Median X: | E29: =MEDIAN(B5:B24) -> 43191
A30: Theil-Sen Intercept: | E30: =E28-(E27*E29) -> 216.9147541
A31: sd[S] | E31: =SQRT(((NPoints*(NPoints-1)*(2*NPoints+5))-Z25)/18) -> 6.658328118
A32: Normalized Mann-Kendall Statistic | E32: =(E25-SIGN(E25))/E31 -> -0.9011271138
A34: Chart variables
B35: OLS | C35: TS
A36: Min X | B36: =MIN($B5:$B24) -> 43101 | C36: =MIN($B5:$B24) -> 43101 | E36: =(C37-C36)/2 -> 90.5
A37: Max X | B37: =MAX($B5:$B24) -> 43282 | C37: =MAX($B5:$B24) -> 43282
A38: Min Y | B38: =B36*DataTransforms!AM18+DataTransforms!AM19 -> 5.160917217 | C38: =C36*E$27+E$30 -> 4.942622951
A39: Max Y | B39: =B37*DataTransforms!AM18+DataTransforms!AM19 -> 4.179616404 | C39: =C37*E$27+E$30 -> 4.052459016

Sheet HiddenTrendBS (hidden)
F3: Theil-Sen Slopes and Test Statistic
A4: i | B4: X (Days) | C4: ="Y " &Data_Input!B13 -> Y ug/L | D4: Y Predicted | E4: Mann-Kendall Test Statistic | F4: =IF(OFFSET($A4,COLUMN(F2)-4,0.1,1)="","",OFFSET($A4,COLUMN(F2)-4,0.1,1)) -> 2 | G4: 3 | H4: 4 | I4: 5 | J4: 6 | K4: 7 | L4: 8 | M4: 9 | N4: 10 | Y4: Tied values | Z4: SD ties term
A5: =IF(B5="","",ROW(B5)-4) -> 1 | B5: 42887 | C5: 0.5 | E5: =COUNTIF(C6:C$24,">"&C5)-COUNTIF(C6:C$24,"<"&C5) -> 3 | F5: =IF(F4="","",IF(F$4>$A5,IF($B5=VLOOKUP(F$4,$A$5:$C$24,2,0),"",(VLOOKUP(F$4,$A$5:C$24,3,0)-$C5)/(VLOOKUP(F$4,$A$5:C$24,2,0)-$B5)),"")) -> 0.01666666667 | G5: =IF(G4="","",IF(G$4>$A5,IF($B5=VLOOKUP(G$4,$A$5:$C$24,2,0),"",(VLOOKUP(G$4,$A$5:D$24,3,0)-$C5)/(VLOOKUP(G$4,$A$5:D$24,2,0)-$B5)),"")) -> 0.01666666667 | H5: =IF(H4="","",IF(H$4>$A5,IF($B5=VLOOKUP(H$4,$A$5:$C$24,2,0),"",(VLOOKUP(H$4,$A$5:E$24,3,0)-$C5)/(VLOOKUP(H$4,$A$5:E$24,2,0)-$B5)),"")) -> 0.008196721311 | I5: =IF(I4="","",IF(I$4>$A5,IF($B5=VLOOKUP(I$4,$A$5:$C$24,2,0),"",(VLOOKUP(I$4,$A$5:F$24,3,0)-$C5)/(VLOOKUP(I$4,$A$5:F$24,2,0)-$B5)),"")) -> 0.008196721311 | J5: =IF(J4="","",IF(J$4>$A5,IF($B5=VLOOKUP(J$4,$A$5:$C$24,2,0),"",(VLOOKUP(J$4,$A$5:G$24,3,0)-$C5)/(VLOOKUP(J$4,$A$5:G$24,2,0)-$B5)),"")) -> -0.001086956522 | K5: =IF(K4="","",IF(K$4>$A5,IF($B5=VLOOKUP(K$4,$A$5:$C$24,2,0),"",(VLOOKUP(K$4,$A$5:H$24,3,0)-$C5)/(VLOOKUP(K$4,$A$5:H$24,2,0)-$B5)),"")) -> -0.001639344262 | L5: =IF(L4="","",IF(L$4>$A5,IF($B5=VLOOKUP(L$4,$A$5:$C$24,2,0),"",(VLOOKUP(L$4,$A$5:I$24,3,0)-$C5)/(VLOOKUP(L$4,$A$5:I$24,2,0)-$B5)),"")) -> -0.001639344262 | M5: =IF(M4="","",IF(M$4>$A5,IF($B5=VLOOKUP(M$4,$A$5:$C$24,2,0),"",(VLOOKUP(M$4,$A$5:J$24,3,0)-$C5)/(VLOOKUP(M$4,$A$5:J$24,2,0)-$B5)),"")) -> 0.002732240437 | N5: =IF(N4="","",IF(N$4>$A5,IF($B5=VLOOKUP(N$4,$A$5:$C$24,2,0),"",(VLOOKUP(N$4,$A$5:K$24,3,0)-$C5)/(VLOOKUP(N$4,$A$5:K$24,2,0)-$B5)),"")) -> 0.002732240437 | O5: =IF(O4="","",IF(O$4>$A5,IF($B5=VLOOKUP(O$4,$A$5:$C$24,2,0),"",(VLOOKUP(O$4,$A$5:L$24,3,0)-$C5)/(VLOOKUP(O$4,$A$5:L$24,2,0)-$B5)),"")) ->  | P5: =IF(P4="","",IF(P$4>$A5,IF($B5=VLOOKUP(P$4,$A$5:$C$24,2,0),"",(VLOOKUP(P$4,$A$5:M$24,3,0)-$C5)/(VLOOKUP(P$4,$A$5:M$24,2,0)-$B5)),"")) ->  | Q5: =IF(Q4="","",IF(Q$4>$A5,IF($B5=VLOOKUP(Q$4,$A$5:$C$24,2,0),"",(VLOOKUP(Q$4,$A$5:N$24,3,0)-$C5)/(VLOOKUP(Q$4,$A$5:N$24,2,0)-$B5)),"")) ->  | R5: =IF(R4="","",IF(R$4>$A5,IF($B5=VLOOKUP(R$4,$A$5:$C$24,2,0),"",(VLOOKUP(R$4,$A$5:O$24,3,0)-$C5)/(VLOOKUP(R$4,$A$5:O$24,2,0)-$B5)),"")) ->  | S5: =IF(S4="","",IF(S$4>$A5,IF($B5=VLOOKUP(S$4,$A$5:$C$24,2,0),"",(VLOOKUP(S$4,$A$5:P$24,3,0)-$C5)/(VLOOKUP(S$4,$A$5:P$24,2,0)-$B5)),"")) ->  | T5: =IF(T4="","",IF(T$4>$A5,IF($B5=VLOOKUP(T$4,$A$5:$C$24,2,0),"",(VLOOKUP(T$4,$A$5:Q$24,3,0)-$C5)/(VLOOKUP(T$4,$A$5:Q$24,2,0)-$B5)),"")) ->  | U5: =IF(U4="","",IF(U$4>$A5,IF($B5=VLOOKUP(U$4,$A$5:$C$24,2,0),"",(VLOOKUP(U$4,$A$5:R$24,3,0)-$C5)/(VLOOKUP(U$4,$A$5:R$24,2,0)-$B5)),"")) ->  | V5: =IF(V4="","",IF(V$4>$A5,IF($B5=VLOOKUP(V$4,$A$5:$C$24,2,0),"",(VLOOKUP(V$4,$A$5:S$24,3,0)-$C5)/(VLOOKUP(V$4,$A$5:S$24,2,0)-$B5)),"")) ->  | W5: =IF(W4="","",IF(W$4>$A5,IF($B5=VLOOKUP(W$4,$A$5:$C$24,2,0),"",(VLOOKUP(W$4,$A$5:T$24,3,0)-$C5)/(VLOOKUP(W$4,$A$5:T$24,2,0)-$B5)),"")) ->  | X5: =IF(X4="","",IF(X$4>$A5,IF($B5=VLOOKUP(X$4,$A$5:$C$24,2,0),"",(VLOOKUP(X$4,$A$5:U$24,3,0)-$C5)/(VLOOKUP(X$4,$A$5:U$24,2,0)-$B5)),"")) ->  | Y5: =IF(C5="","",COUNTIF(C$5:C$24,"="&C5)) -> 1 | Z5: =IF(A5="","",Y5*(Y5-1)*(2*Y5+5)/Y5) -> 0
A6: =IF(B6="","",ROW(B6)-4) -> 2 | B6: 42917 | C6: 1 | E6: =COUNTIF(C7:C$24,">"&C6)-COUNTIF(C7:C$24,"<"&C6) -> -3 | F6: =IF(F5="","",IF(F$4>$A6,IF($B6=VLOOKUP(F$4,$A$5:$C$24,2,0),"",(VLOOKUP(F$4,$A$5:C$24,3,0)-$C6)/(VLOOKUP(F$4,$A$5:C$24,2,0)-$B6)),"")) ->  | G6: =IF(G5="","",IF(G$4>$A6,IF($B6=VLOOKUP(G$4,$A$5:$C$24,2,0),"",(VLOOKUP(G$4,$A$5:D$24,3,0)-$C6)/(VLOOKUP(G$4,$A$5:D$24,2,0)-$B6)),"")) ->  | H6: =IF(H5="","",IF(H$4>$A6,IF($B6=VLOOKUP(H$4,$A$5:$C$24,2,0),"",(VLOOKUP(H$4,$A$5:E$24,3,0)-$C6)/(VLOOKUP(H$4,$A$5:E$24,2,0)-$B6)),"")) -> 0 | I6: =IF(I5="","",IF(I$4>$A6,IF($B6=VLOOKUP(I$4,$A$5:$C$24,2,0),"",(VLOOKUP(I$4,$A$5:F$24,3,0)-$C6)/(VLOOKUP(I$4,$A$5:F$24,2,0)-$B6)),"")) -> 0 | J6: =IF(J5="","",IF(J$4>$A6,IF($B6=VLOOKUP(J$4,$A$5:$C$24,2,0),"",(VLOOKUP(J$4,$A$5:G$24,3,0)-$C6)/(VLOOKUP(J$4,$A$5:G$24,2,0)-$B6)),"")) -> -0.009677419355 | K6: =IF(K5="","",IF(K$4>$A6,IF($B6=VLOOKUP(K$4,$A$5:$C$24,2,0),"",(VLOOKUP(K$4,$A$5:H$24,3,0)-$C6)/(VLOOKUP(K$4,$A$5:H$24,2,0)-$B6)),"")) -> -0.007608695652 | L6: =IF(L5="","",IF(L$4>$A6,IF($B6=VLOOKUP(L$4,$A$5:$C$24,2,0),"",(VLOOKUP(L$4,$A$5:I$24,3,0)-$C6)/(VLOOKUP(L$4,$A$5:I$24,2,0)-$B6)),"")) -> -0.007608695652 | M6: =IF(M5="","",IF(M$4>$A6,IF($B6=VLOOKUP(M$4,$A$5:$C$24,2,0),"",(VLOOKUP(M$4,$A$5:J$24,3,0)-$C6)/(VLOOKUP(M$4,$A$5:J$24,2,0)-$B6)),"")) -> 0 | N6: =IF(N5="","",IF(N$4>$A6,IF($B6=VLOOKUP(N$4,$A$5:$C$24,2,0),"",(VLOOKUP(N$4,$A$5:K$24,3,0)-$C6)/(VLOOKUP(N$4,$A$5:K$24,2,0)-$B6)),"")) -> 0 | O6: =IF(O5="","",IF(O$4>$A6,IF($B6=VLOOKUP(O$4,$A$5:$C$24,2,0),"",(VLOOKUP(O$4,$A$5:L$24,3,0)-$C6)/(VLOOKUP(O$4,$A$5:L$24,2,0)-$B6)),"")) ->  | P6: =IF(P5="","",IF(P$4>$A6,IF($B6=VLOOKUP(P$4,$A$5:$C$24,2,0),"",(VLOOKUP(P$4,$A$5:M$24,3,0)-$C6)/(VLOOKUP(P$4,$A$5:M$24,2,0)-$B6)),"")) ->  | Q6: =IF(Q5="","",IF(Q$4>$A6,IF($B6=VLOOKUP(Q$4,$A$5:$C$24,2,0),"",(VLOOKUP(Q$4,$A$5:N$24,3,0)-$C6)/(VLOOKUP(Q$4,$A$5:N$24,2,0)-$B6)),"")) ->  | R6: =IF(R5="","",IF(R$4>$A6,IF($B6=VLOOKUP(R$4,$A$5:$C$24,2,0),"",(VLOOKUP(R$4,$A$5:O$24,3,0)-$C6)/(VLOOKUP(R$4,$A$5:O$24,2,0)-$B6)),"")) ->  | S6: =IF(S5="","",IF(S$4>$A6,IF($B6=VLOOKUP(S$4,$A$5:$C$24,2,0),"",(VLOOKUP(S$4,$A$5:P$24,3,0)-$C6)/(VLOOKUP(S$4,$A$5:P$24,2,0)-$B6)),"")) ->  | T6: =IF(T5="","",IF(T$4>$A6,IF($B6=VLOOKUP(T$4,$A$5:$C$24,2,0),"",(VLOOKUP(T$4,$A$5:Q$24,3,0)-$C6)/(VLOOKUP(T$4,$A$5:Q$24,2,0)-$B6)),"")) ->  | U6: =IF(U5="","",IF(U$4>$A6,IF($B6=VLOOKUP(U$4,$A$5:$C$24,2,0),"",(VLOOKUP(U$4,$A$5:R$24,3,0)-$C6)/(VLOOKUP(U$4,$A$5:R$24,2,0)-$B6)),"")) ->  | V6: =IF(V5="","",IF(V$4>$A6,IF($B6=VLOOKUP(V$4,$A$5:$C$24,2,0),"",(VLOOKUP(V$4,$A$5:S$24,3,0)-$C6)/(VLOOKUP(V$4,$A$5:S$24,2,0)-$B6)),"")) ->  | W6: =IF(W5="","",IF(W$4>$A6,IF($B6=VLOOKUP(W$4,$A$5:$C$24,2,0),"",(VLOOKUP(W$4,$A$5:T$24,3,0)-$C6)/(VLOOKUP(W$4,$A$5:T$24,2,0)-$B6)),"")) ->  | X6: =IF(X5="","",IF(X$4>$A6,IF($B6=VLOOKUP(X$4,$A$5:$C$24,2,0),"",(VLOOKUP(X$4,$A$5:U$24,3,0)-$C6)/(VLOOKUP(X$4,$A$5:U$24,2,0)-$B6)),"")) ->  | Y6: =IF(C6="","",COUNTIF(C$5:C$24,"="&C6)) -> 6 | Z6: =IF(A6="","",Y6*(Y6-1)*(2*Y6+5)/Y6) -> 85
A7: 3 | B7: 42917 | C7: 1 | E7: =COUNTIF(C8:C$24,">"&C7)-COUNTIF(C8:C$24,"<"&C7) -> -3 | F7: =IF(F6="","",IF(F$4>$A7,IF($B7=VLOOKUP(F$4,$A$5:$C$24,2,0),"",(VLOOKUP(F$4,$A$5:C$24,3,0)-$C7)/(VLOOKUP(F$4,$A$5:C$24,2,0)-$B7)),"")) ->  | G7: =IF(G6="","",IF(G$4>$A7,IF($B7=VLOOKUP(G$4,$A$5:$C$24,2,0),"",(VLOOKUP(G$4,$A$5:D$24,3,0)-$C7)/(VLOOKUP(G$4,$A$5:D$24,2,0)-$B7)),"")) ->  | H7: =IF(H6="","",IF(H$4>$A7,IF($B7=VLOOKUP(H$4,$A$5:$C$24,2,0),"",(VLOOKUP(H$4,$A$5:E$24,3,0)-$C7)/(VLOOKUP(H$4,$A$5:E$24,2,0)-$B7)),"")) -> 0 | I7: =IF(I6="","",IF(I$4>$A7,IF($B7=VLOOKUP(I$4,$A$5:$C$24,2,0),"",(VLOOKUP(I$4,$A$5:F$24,3,0)-$C7)/(VLOOKUP(I$4,$A$5:F$24,2,0)-$B7)),"")) -> 0 | J7: =IF(J6="","",IF(J$4>$A7,IF($B7=VLOOKUP(J$4,$A$5:$C$24,2,0),"",(VLOOKUP(J$4,$A$5:G$24,3,0)-$C7)/(VLOOKUP(J$4,$A$5:G$24,2,0)-$B7)),"")) -> -0.009677419355 | K7: =IF(K6="","",IF(K$4>$A7,IF($B7=VLOOKUP(K$4,$A$5:$C$24,2,0),"",(VLOOKUP(K$4,$A$5:H$24,3,0)-$C7)/(VLOOKUP(K$4,$A$5:H$24,2,0)-$B7)),"")) -> -0.007608695652 | L7: =IF(L6="","",IF(L$4>$A7,IF($B7=VLOOKUP(L$4,$A$5:$C$24,2,0),"",(VLOOKUP(L$4,$A$5:I$24,3,0)-$C7)/(VLOOKUP(L$4,$A$5:I$24,2,0)-$B7)),"")) -> -0.007608695652 | M7: =IF(M6="","",IF(M$4>$A7,IF($B7=VLOOKUP(M$4,$A$5:$C$24,2,0),"",(VLOOKUP(M$4,$A$5:J$24,3,0)-$C7)/(VLOOKUP(M$4,$A$5:J$24,2,0)-$B7)),"")) -> 0 | N7: =IF(N6="","",IF(N$4>$A7,IF($B7=VLOOKUP(N$4,$A$5:$C$24,2,0),"",(VLOOKUP(N$4,$A$5:K$24,3,0)-$C7)/(VLOOKUP(N$4,$A$5:K$24,2,0)-$B7)),"")) -> 0 | O7: =IF(O6="","",IF(O$4>$A7,IF($B7=VLOOKUP(O$4,$A$5:$C$24,2,0),"",(VLOOKUP(O$4,$A$5:L$24,3,0)-$C7)/(VLOOKUP(O$4,$A$5:L$24,2,0)-$B7)),"")) ->  | P7: =IF(P6="","",IF(P$4>$A7,IF($B7=VLOOKUP(P$4,$A$5:$C$24,2,0),"",(VLOOKUP(P$4,$A$5:M$24,3,0)-$C7)/(VLOOKUP(P$4,$A$5:M$24,2,0)-$B7)),"")) ->  | Q7: =IF(Q6="","",IF(Q$4>$A7,IF($B7=VLOOKUP(Q$4,$A$5:$C$24,2,0),"",(VLOOKUP(Q$4,$A$5:N$24,3,0)-$C7)/(VLOOKUP(Q$4,$A$5:N$24,2,0)-$B7)),"")) ->  | R7: =IF(R6="","",IF(R$4>$A7,IF($B7=VLOOKUP(R$4,$A$5:$C$24,2,0),"",(VLOOKUP(R$4,$A$5:O$24,3,0)-$C7)/(VLOOKUP(R$4,$A$5:O$24,2,0)-$B7)),"")) ->  | S7: =IF(S6="","",IF(S$4>$A7,IF($B7=VLOOKUP(S$4,$A$5:$C$24,2,0),"",(VLOOKUP(S$4,$A$5:P$24,3,0)-$C7)/(VLOOKUP(S$4,$A$5:P$24,2,0)-$B7)),"")) ->  | T7: =IF(T6="","",IF(T$4>$A7,IF($B7=VLOOKUP(T$4,$A$5:$C$24,2,0),"",(VLOOKUP(T$4,$A$5:Q$24,3,0)-$C7)/(VLOOKUP(T$4,$A$5:Q$24,2,0)-$B7)),"")) ->  | U7: =IF(U6="","",IF(U$4>$A7,IF($B7=VLOOKUP(U$4,$A$5:$C$24,2,0),"",(VLOOKUP(U$4,$A$5:R$24,3,0)-$C7)/(VLOOKUP(U$4,$A$5:R$24,2,0)-$B7)),"")) ->  | V7: =IF(V6="","",IF(V$4>$A7,IF($B7=VLOOKUP(V$4,$A$5:$C$24,2,0),"",(VLOOKUP(V$4,$A$5:S$24,3,0)-$C7)/(VLOOKUP(V$4,$A$5:S$24,2,0)-$B7)),"")) ->  | W7: =IF(W6="","",IF(W$4>$A7,IF($B7=VLOOKUP(W$4,$A$5:$C$24,2,0),"",(VLOOKUP(W$4,$A$5:T$24,3,0)-$C7)/(VLOOKUP(W$4,$A$5:T$24,2,0)-$B7)),"")) ->  | X7: =IF(X6="","",IF(X$4>$A7,IF($B7=VLOOKUP(X$4,$A$5:$C$24,2,0),"",(VLOOKUP(X$4,$A$5:U$24,3,0)-$C7)/(VLOOKUP(X$4,$A$5:U$24,2,0)-$B7)),"")) ->  | Y7: 6 | Z7: 85
A8: 4 | B8: 42948 | C8: 1 | E8: =COUNTIF(C9:C$24,">"&C8)-COUNTIF(C9:C$24,"<"&C8) -> -3 | F8: =IF(F7="","",IF(F$4>$A8,IF($B8=VLOOKUP(F$4,$A$5:$C$24,2,0),"",(VLOOKUP(F$4,$A$5:C$24,3,0)-$C8)/(VLOOKUP(F$4,$A$5:C$24,2,0)-$B8)),"")) ->  | G8: =IF(G7="","",IF(G$4>$A8,IF($B8=VLOOKUP(G$4,$A$5:$C$24,2,0),"",(VLOOKUP(G$4,$A$5:D$24,3,0)-$C8)/(VLOOKUP(G$4,$A$5:D$24,2,0)-$B8)),"")) ->  | H8: =IF(H7="","",IF(H$4>$A8,IF($B8=VLOOKUP(H$4,$A$5:$C$24,2,0),"",(VLOOKUP(H$4,$A$5:E$24,3,0)-$C8)/(VLOOKUP(H$4,$A$5:E$24,2,0)-$B8)),"")) ->  | I8: =IF(I7="","",IF(I$4>$A8,IF($B8=VLOOKUP(I$4,$A$5:$C$24,2,0),"",(VLOOKUP(I$4,$A$5:F$24,3,0)-$C8)/(VLOOKUP(I$4,$A$5:F$24,2,0)-$B8)),"")) ->  | J8: =IF(J7="","",IF(J$4>$A8,IF($B8=VLOOKUP(J$4,$A$5:$C$24,2,0),"",(VLOOKUP(J$4,$A$5:G$24,3,0)-$C8)/(VLOOKUP(J$4,$A$5:G$24,2,0)-$B8)),"")) -> -0.01935483871 | K8: =IF(K7="","",IF(K$4>$A8,IF($B8=VLOOKUP(K$4,$A$5:$C$24,2,0),"",(VLOOKUP(K$4,$A$5:H$24,3,0)-$C8)/(VLOOKUP(K$4,$A$5:H$24,2,0)-$B8)),"")) -> -0.01147540984 | L8: =IF(L7="","",IF(L$4>$A8,IF($B8=VLOOKUP(L$4,$A$5:$C$24,2,0),"",(VLOOKUP(L$4,$A$5:I$24,3,0)-$C8)/(VLOOKUP(L$4,$A$5:I$24,2,0)-$B8)),"")) -> -0.01147540984 | M8: =IF(M7="","",IF(M$4>$A8,IF($B8=VLOOKUP(M$4,$A$5:$C$24,2,0),"",(VLOOKUP(M$4,$A$5:J$24,3,0)-$C8)/(VLOOKUP(M$4,$A$5:J$24,2,0)-$B8)),"")) -> 0 | N8: =IF(N7="","",IF(N$4>$A8,IF($B8=VLOOKUP(N$4,$A$5:$C$24,2,0),"",(VLOOKUP(N$4,$A$5:K$24,3,0)-$C8)/(VLOOKUP(N$4,$A$5:K$24,2,0)-$B8)),"")) -> 0 | O8: =IF(O7="","",IF(O$4>$A8,IF($B8=VLOOKUP(O$4,$A$5:$C$24,2,0),"",(VLOOKUP(O$4,$A$5:L$24,3,0)-$C8)/(VLOOKUP(O$4,$A$5:L$24,2,0)-$B8)),"")) ->  | P8: =IF(P7="","",IF(P$4>$A8,IF($B8=VLOOKUP(P$4,$A$5:$C$24,2,0),"",(VLOOKUP(P$4,$A$5:M$24,3,0)-$C8)/(VLOOKUP(P$4,$A$5:M$24,2,0)-$B8)),"")) ->  | Q8: =IF(Q7="","",IF(Q$4>$A8,IF($B8=VLOOKUP(Q$4,$A$5:$C$24,2,0),"",(VLOOKUP(Q$4,$A$5:N$24,3,0)-$C8)/(VLOOKUP(Q$4,$A$5:N$24,2,0)-$B8)),"")) ->  | R8: =IF(R7="","",IF(R$4>$A8,IF($B8=VLOOKUP(R$4,$A$5:$C$24,2,0),"",(VLOOKUP(R$4,$A$5:O$24,3,0)-$C8)/(VLOOKUP(R$4,$A$5:O$24,2,0)-$B8)),"")) ->  | S8: =IF(S7="","",IF(S$4>$A8,IF($B8=VLOOKUP(S$4,$A$5:$C$24,2,0),"",(VLOOKUP(S$4,$A$5:P$24,3,0)-$C8)/(VLOOKUP(S$4,$A$5:P$24,2,0)-$B8)),"")) ->  | T8: =IF(T7="","",IF(T$4>$A8,IF($B8=VLOOKUP(T$4,$A$5:$C$24,2,0),"",(VLOOKUP(T$4,$A$5:Q$24,3,0)-$C8)/(VLOOKUP(T$4,$A$5:Q$24,2,0)-$B8)),"")) ->  | U8: =IF(U7="","",IF(U$4>$A8,IF($B8=VLOOKUP(U$4,$A$5:$C$24,2,0),"",(VLOOKUP(U$4,$A$5:R$24,3,0)-$C8)/(VLOOKUP(U$4,$A$5:R$24,2,0)-$B8)),"")) ->  | V8: =IF(V7="","",IF(V$4>$A8,IF($B8=VLOOKUP(V$4,$A$5:$C$24,2,0),"",(VLOOKUP(V$4,$A$5:S$24,3,0)-$C8)/(VLOOKUP(V$4,$A$5:S$24,2,0)-$B8)),"")) ->  | W8: =IF(W7="","",IF(W$4>$A8,IF($B8=VLOOKUP(W$4,$A$5:$C$24,2,0),"",(VLOOKUP(W$4,$A$5:T$24,3,0)-$C8)/(VLOOKUP(W$4,$A$5:T$24,2,0)-$B8)),"")) ->  | X8: =IF(X7="","",IF(X$4>$A8,IF($B8=VLOOKUP(X$4,$A$5:$C$24,2,0),"",(VLOOKUP(X$4,$A$5:U$24,3,0)-$C8)/(VLOOKUP(X$4,$A$5:U$24,2,0)-$B8)),"")) ->  | Y8: 6 | Z8: 85
A9: 5 | B9: 42948 | C9: 1 | E9: =COUNTIF(C10:C$24,">"&C9)-COUNTIF(C10:C$24,"<"&C9) -> -3 | F9: =IF(F8="","",IF(F$4>$A9,IF($B9=VLOOKUP(F$4,$A$5:$C$24,2,0),"",(VLOOKUP(F$4,$A$5:C$24,3,0)-$C9)/(VLOOKUP(F$4,$A$5:C$24,2,0)-$B9)),"")) ->  | G9: =IF(G8="","",IF(G$4>$A9,IF($B9=VLOOKUP(G$4,$A$5:$C$24,2,0),"",(VLOOKUP(G$4,$A$5:D$24,3,0)-$C9)/(VLOOKUP(G$4,$A$5:D$24,2,0)-$B9)),"")) ->  | H9: =IF(H8="","",IF(H$4>$A9,IF($B9=VLOOKUP(H$4,$A$5:$C$24,2,0),"",(VLOOKUP(H$4,$A$5:E$24,3,0)-$C9)/(VLOOKUP(H$4,$A$5:E$24,2,0)-$B9)),"")) ->  | I9: =IF(I8="","",IF(I$4>$A9,IF($B9=VLOOKUP(I$4,$A$5:$C$24,2,0),"",(VLOOKUP(I$4,$A$5:F$24,3,0)-$C9)/(VLOOKUP(I$4,$A$5:F$24,2,0)-$B9)),"")) ->  | J9: =IF(J8="","",IF(J$4>$A9,IF($B9=VLOOKUP(J$4,$A$5:$C$24,2,0),"",(VLOOKUP(J$4,$A$5:G$24,3,0)-$C9)/(VLOOKUP(J$4,$A$5:G$24,2,0)-$B9)),"")) -> -0.01935483871 | K9: =IF(K8="","",IF(K$4>$A9,IF($B9=VLOOKUP(K$4,$A$5:$C$24,2,0),"",(VLOOKUP(K$4,$A$5:H$24,3,0)-$C9)/(VLOOKUP(K$4,$A$5:H$24,2,0)-$B9)),"")) -> -0.01147540984 | L9: =IF(L8="","",IF(L$4>$A9,IF($B9=VLOOKUP(L$4,$A$5:$C$24,2,0),"",(VLOOKUP(L$4,$A$5:I$24,3,0)-$C9)/(VLOOKUP(L$4,$A$5:I$24,2,0)-$B9)),"")) -> -0.01147540984 | M9: =IF(M8="","",IF(M$4>$A9,IF($B9=VLOOKUP(M$4,$A$5:$C$24,2,0),"",(VLOOKUP(M$4,$A$5:J$24,3,0)-$C9)/(VLOOKUP(M$4,$A$5:J$24,2,0)-$B9)),"")) -> 0 | N9: =IF(N8="","",IF(N$4>$A9,IF($B9=VLOOKUP(N$4,$A$5:$C$24,2,0),"",(VLOOKUP(N$4,$A$5:K$24,3,0)-$C9)/(VLOOKUP(N$4,$A$5:K$24,2,0)-$B9)),"")) -> 0 | O9: =IF(O8="","",IF(O$4>$A9,IF($B9=VLOOKUP(O$4,$A$5:$C$24,2,0),"",(VLOOKUP(O$4,$A$5:L$24,3,0)-$C9)/(VLOOKUP(O$4,$A$5:L$24,2,0)-$B9)),"")) ->  | P9: =IF(P8="","",IF(P$4>$A9,IF($B9=VLOOKUP(P$4,$A$5:$C$24,2,0),"",(VLOOKUP(P$4,$A$5:M$24,3,0)-$C9)/(VLOOKUP(P$4,$A$5:M$24,2,0)-$B9)),"")) ->  | Q9: =IF(Q8="","",IF(Q$4>$A9,IF($B9=VLOOKUP(Q$4,$A$5:$C$24,2,0),"",(VLOOKUP(Q$4,$A$5:N$24,3,0)-$C9)/(VLOOKUP(Q$4,$A$5:N$24,2,0)-$B9)),"")) ->  | R9: =IF(R8="","",IF(R$4>$A9,IF($B9=VLOOKUP(R$4,$A$5:$C$24,2,0),"",(VLOOKUP(R$4,$A$5:O$24,3,0)-$C9)/(VLOOKUP(R$4,$A$5:O$24,2,0)-$B9)),"")) ->  | S9: =IF(S8="","",IF(S$4>$A9,IF($B9=VLOOKUP(S$4,$A$5:$C$24,2,0),"",(VLOOKUP(S$4,$A$5:P$24,3,0)-$C9)/(VLOOKUP(S$4,$A$5:P$24,2,0)-$B9)),"")) ->  | T9: =IF(T8="","",IF(T$4>$A9,IF($B9=VLOOKUP(T$4,$A$5:$C$24,2,0),"",(VLOOKUP(T$4,$A$5:Q$24,3,0)-$C9)/(VLOOKUP(T$4,$A$5:Q$24,2,0)-$B9)),"")) ->  | U9: =IF(U8="","",IF(U$4>$A9,IF($B9=VLOOKUP(U$4,$A$5:$C$24,2,0),"",(VLOOKUP(U$4,$A$5:R$24,3,0)-$C9)/(VLOOKUP(U$4,$A$5:R$24,2,0)-$B9)),"")) ->  | V9: =IF(V8="","",IF(V$4>$A9,IF($B9=VLOOKUP(V$4,$A$5:$C$24,2,0),"",(VLOOKUP(V$4,$A$5:S$24,3,0)-$C9)/(VLOOKUP(V$4,$A$5:S$24,2,0)-$B9)),"")) ->  | W9: =IF(W8="","",IF(W$4>$A9,IF($B9=VLOOKUP(W$4,$A$5:$C$24,2,0),"",(VLOOKUP(W$4,$A$5:T$24,3,0)-$C9)/(VLOOKUP(W$4,$A$5:T$24,2,0)-$B9)),"")) ->  | X9: =IF(X8="","",IF(X$4>$A9,IF($B9=VLOOKUP(X$4,$A$5:$C$24,2,0),"",(VLOOKUP(X$4,$A$5:U$24,3,0)-$C9)/(VLOOKUP(X$4,$A$5:U$24,2,0)-$B9)),"")) ->  | Y9: 6 | Z9: 85
A10: 6 | B10: 42979 | C10: 0.4 | E10: =COUNTIF(C11:C$24,">"&C10)-COUNTIF(C11:C$24,"<"&C10) -> 0 | F10: =IF(F9="","",IF(F$4>$A10,IF($B10=VLOOKUP(F$4,$A$5:$C$24,2,0),"",(VLOOKUP(F$4,$A$5:C$24,3,0)-$C10)/(VLOOKUP(F$4,$A$5:C$24,2,0)-$B10)),"")) ->  | G10: =IF(G9="","",IF(G$4>$A10,IF($B10=VLOOKUP(G$4,$A$5:$C$24,2,0),"",(VLOOKUP(G$4,$A$5:D$24,3,0)-$C10)/(VLOOKUP(G$4,$A$5:D$24,2,0)-$B10)),"")) ->  | H10: =IF(H9="","",IF(H$4>$A10,IF($B10=VLOOKUP(H$4,$A$5:$C$24,2,0),"",(VLOOKUP(H$4,$A$5:E$24,3,0)-$C10)/(VLOOKUP(H$4,$A$5:E$24,2,0)-$B10)),"")) ->  | I10: =IF(I9="","",IF(I$4>$A10,IF($B10=VLOOKUP(I$4,$A$5:$C$24,2,0),"",(VLOOKUP(I$4,$A$5:F$24,3,0)-$C10)/(VLOOKUP(I$4,$A$5:F$24,2,0)-$B10)),"")) ->  | J10: =IF(J9="","",IF(J$4>$A10,IF($B10=VLOOKUP(J$4,$A$5:$C$24,2,0),"",(VLOOKUP(J$4,$A$5:G$24,3,0)-$C10)/(VLOOKUP(J$4,$A$5:G$24,2,0)-$B10)),"")) ->  | K10: =IF(K9="","",IF(K$4>$A10,IF($B10=VLOOKUP(K$4,$A$5:$C$24,2,0),"",(VLOOKUP(K$4,$A$5:H$24,3,0)-$C10)/(VLOOKUP(K$4,$A$5:H$24,2,0)-$B10)),"")) -> -0.003333333333 | L10: =IF(L9="","",IF(L$4>$A10,IF($B10=VLOOKUP(L$4,$A$5:$C$24,2,0),"",(VLOOKUP(L$4,$A$5:I$24,3,0)-$C10)/(VLOOKUP(L$4,$A$5:I$24,2,0)-$B10)),"")) -> -0.003333333333 | M10: =IF(M9="","",IF(M$4>$A10,IF($B10=VLOOKUP(M$4,$A$5:$C$24,2,0),"",(VLOOKUP(M$4,$A$5:J$24,3,0)-$C10)/(VLOOKUP(M$4,$A$5:J$24,2,0)-$B10)),"")) -> 0.006593406593 | N10: =IF(N9="","",IF(N$4>$A10,IF($B10=VLOOKUP(N$4,$A$5:$C$24,2,0),"",(VLOOKUP(N$4,$A$5:K$24,3,0)-$C10)/(VLOOKUP(N$4,$A$5:K$24,2,0)-$B10)),"")) -> 0.006593406593 | O10: =IF(O9="","",IF(O$4>$A10,IF($B10=VLOOKUP(O$4,$A$5:$C$24,2,0),"",(VLOOKUP(O$4,$A$5:L$24,3,0)-$C10)/(VLOOKUP(O$4,$A$5:L$24,2,0)-$B10)),"")) ->  | P10: =IF(P9="","",IF(P$4>$A10,IF($B10=VLOOKUP(P$4,$A$5:$C$24,2,0),"",(VLOOKUP(P$4,$A$5:M$24,3,0)-$C10)/(VLOOKUP(P$4,$A$5:M$24,2,0)-$B10)),"")) ->  | Q10: =IF(Q9="","",IF(Q$4>$A10,IF($B10=VLOOKUP(Q$4,$A$5:$C$24,2,0),"",(VLOOKUP(Q$4,$A$5:N$24,3,0)-$C10)/(VLOOKUP(Q$4,$A$5:N$24,2,0)-$B10)),"")) ->  | R10: =IF(R9="","",IF(R$4>$A10,IF($B10=VLOOKUP(R$4,$A$5:$C$24,2,0),"",(VLOOKUP(R$4,$A$5:O$24,3,0)-$C10)/(VLOOKUP(R$4,$A$5:O$24,2,0)-$B10)),"")) ->  | S10: =IF(S9="","",IF(S$4>$A10,IF($B10=VLOOKUP(S$4,$A$5:$C$24,2,0),"",(VLOOKUP(S$4,$A$5:P$24,3,0)-$C10)/(VLOOKUP(S$4,$A$5:P$24,2,0)-$B10)),"")) ->  | T10: =IF(T9="","",IF(T$4>$A10,IF($B10=VLOOKUP(T$4,$A$5:$C$24,2,0),"",(VLOOKUP(T$4,$A$5:Q$24,3,0)-$C10)/(VLOOKUP(T$4,$A$5:Q$24,2,0)-$B10)),"")) ->  | U10: =IF(U9="","",IF(U$4>$A10,IF($B10=VLOOKUP(U$4,$A$5:$C$24,2,0),"",(VLOOKUP(U$4,$A$5:R$24,3,0)-$C10)/(VLOOKUP(U$4,$A$5:R$24,2,0)-$B10)),"")) ->  | V10: =IF(V9="","",IF(V$4>$A10,IF($B10=VLOOKUP(V$4,$A$5:$C$24,2,0),"",(VLOOKUP(V$4,$A$5:S$24,3,0)-$C10)/(VLOOKUP(V$4,$A$5:S$24,2,0)-$B10)),"")) ->  | W10: =IF(W9="","",IF(W$4>$A10,IF($B10=VLOOKUP(W$4,$A$5:$C$24,2,0),"",(VLOOKUP(W$4,$A$5:T$24,3,0)-$C10)/(VLOOKUP(W$4,$A$5:T$24,2,0)-$B10)),"")) ->  | X10: =IF(X9="","",IF(X$4>$A10,IF($B10=VLOOKUP(X$4,$A$5:$C$24,2,0),"",(VLOOKUP(X$4,$A$5:U$24,3,0)-$C10)/(VLOOKUP(X$4,$A$5:U$24,2,0)-$B10)),"")) ->  | Y10: 1 | Z10: 0
A11: 7 | B11: 43009 | C11: 0.3 | E11: =COUNTIF(C12:C$24,">"&C11)-COUNTIF(C12:C$24,"<"&C11) -> 2 | F11: =IF(F10="","",IF(F$4>$A11,IF($B11=VLOOKUP(F$4,$A$5:$C$24,2,0),"",(VLOOKUP(F$4,$A$5:C$24,3,0)-$C11)/(VLOOKUP(F$4,$A$5:C$24,2,0)-$B11)),"")) ->  | G11: =IF(G10="","",IF(G$4>$A11,IF($B11=VLOOKUP(G$4,$A$5:$C$24,2,0),"",(VLOOKUP(G$4,$A$5:D$24,3,0)-$C11)/(VLOOKUP(G$4,$A$5:D$24,2,0)-$B11)),"")) ->  | H11: =IF(H10="","",IF(H$4>$A11,IF($B11=VLOOKUP(H$4,$A$5:$C$24,2,0),"",(VLOOKUP(H$4,$A$5:E$24,3,0)-$C11)/(VLOOKUP(H$4,$A$5:E$24,2,0)-$B11)),"")) ->  | I11: =IF(I10="","",IF(I$4>$A11,IF($B11=VLOOKUP(I$4,$A$5:$C$24,2,0),"",(VLOOKUP(I$4,$A$5:F$24,3,0)-$C11)/(VLOOKUP(I$4,$A$5:F$24,2,0)-$B11)),"")) ->  | J11: =IF(J10="","",IF(J$4>$A11,IF($B11=VLOOKUP(J$4,$A$5:$C$24,2,0),"",(VLOOKUP(J$4,$A$5:G$24,3,0)-$C11)/(VLOOKUP(J$4,$A$5:G$24,2,0)-$B11)),"")) ->  | K11: =IF(K10="","",IF(K$4>$A11,IF($B11=VLOOKUP(K$4,$A$5:$C$24,2,0),"",(VLOOKUP(K$4,$A$5:H$24,3,0)-$C11)/(VLOOKUP(K$4,$A$5:H$24,2,0)-$B11)),"")) ->  | L11: =IF(L10="","",IF(L$4>$A11,IF($B11=VLOOKUP(L$4,$A$5:$C$24,2,0),"",(VLOOKUP(L$4,$A$5:I$24,3,0)-$C11)/(VLOOKUP(L$4,$A$5:I$24,2,0)-$B11)),"")) ->  | M11: =IF(M10="","",IF(M$4>$A11,IF($B11=VLOOKUP(M$4,$A$5:$C$24,2,0),"",(VLOOKUP(M$4,$A$5:J$24,3,0)-$C11)/(VLOOKUP(M$4,$A$5:J$24,2,0)-$B11)),"")) -> 0.01147540984 | N11: =IF(N10="","",IF(N$4>$A11,IF($B11=VLOOKUP(N$4,$A$5:$C$24,2,0),"",(VLOOKUP(N$4,$A$5:K$24,3,0)-$C11)/(VLOOKUP(N$4,$A$5:K$24,2,0)-$B11)),"")) -> 0.01147540984 | O11: =IF(O10="","",IF(O$4>$A11,IF($B11=VLOOKUP(O$4,$A$5:$C$24,2,0),"",(VLOOKUP(O$4,$A$5:L$24,3,0)-$C11)/(VLOOKUP(O$4,$A$5:L$24,2,0)-$B11)),"")) ->  | P11: =IF(P10="","",IF(P$4>$A11,IF($B11=VLOOKUP(P$4,$A$5:$C$24,2,0),"",(VLOOKUP(P$4,$A$5:M$24,3,0)-$C11)/(VLOOKUP(P$4,$A$5:M$24,2,0)-$B11)),"")) ->  | Q11: =IF(Q10="","",IF(Q$4>$A11,IF($B11=VLOOKUP(Q$4,$A$5:$C$24,2,0),"",(VLOOKUP(Q$4,$A$5:N$24,3,0)-$C11)/(VLOOKUP(Q$4,$A$5:N$24,2,0)-$B11)),"")) ->  | R11: =IF(R10="","",IF(R$4>$A11,IF($B11=VLOOKUP(R$4,$A$5:$C$24,2,0),"",(VLOOKUP(R$4,$A$5:O$24,3,0)-$C11)/(VLOOKUP(R$4,$A$5:O$24,2,0)-$B11)),"")) ->  | S11: =IF(S10="","",IF(S$4>$A11,IF($B11=VLOOKUP(S$4,$A$5:$C$24,2,0),"",(VLOOKUP(S$4,$A$5:P$24,3,0)-$C11)/(VLOOKUP(S$4,$A$5:P$24,2,0)-$B11)),"")) ->  | T11: =IF(T10="","",IF(T$4>$A11,IF($B11=VLOOKUP(T$4,$A$5:$C$24,2,0),"",(VLOOKUP(T$4,$A$5:Q$24,3,0)-$C11)/(VLOOKUP(T$4,$A$5:Q$24,2,0)-$B11)),"")) ->  | U11: =IF(U10="","",IF(U$4>$A11,IF($B11=VLOOKUP(U$4,$A$5:$C$24,2,0),"",(VLOOKUP(U$4,$A$5:R$24,3,0)-$C11)/(VLOOKUP(U$4,$A$5:R$24,2,0)-$B11)),"")) ->  | V11: =IF(V10="","",IF(V$4>$A11,IF($B11=VLOOKUP(V$4,$A$5:$C$24,2,0),"",(VLOOKUP(V$4,$A$5:S$24,3,0)-$C11)/(VLOOKUP(V$4,$A$5:S$24,2,0)-$B11)),"")) ->  | W11: =IF(W10="","",IF(W$4>$A11,IF($B11=VLOOKUP(W$4,$A$5:$C$24,2,0),"",(VLOOKUP(W$4,$A$5:T$24,3,0)-$C11)/(VLOOKUP(W$4,$A$5:T$24,2,0)-$B11)),"")) ->  | X11: =IF(X10="","",IF(X$4>$A11,IF($B11=VLOOKUP(X$4,$A$5:$C$24,2,0),"",(VLOOKUP(X$4,$A$5:U$24,3,0)-$C11)/(VLOOKUP(X$4,$A$5:U$24,2,0)-$B11)),"")) ->  | Y11: 2 | Z11: 9
A12: 8 | B12: 43009 | C12: 0.3 | E12: =COUNTIF(C13:C$24,">"&C12)-COUNTIF(C13:C$24,"<"&C12) -> 2 | F12: =IF(F11="","",IF(F$4>$A12,IF($B12=VLOOKUP(F$4,$A$5:$C$24,2,0),"",(VLOOKUP(F$4,$A$5:C$24,3,0)-$C12)/(VLOOKUP(F$4,$A$5:C$24,2,0)-$B12)),"")) ->  | G12: =IF(G11="","",IF(G$4>$A12,IF($B12=VLOOKUP(G$4,$A$5:$C$24,2,0),"",(VLOOKUP(G$4,$A$5:D$24,3,0)-$C12)/(VLOOKUP(G$4,$A$5:D$24,2,0)-$B12)),"")) ->  | H12: =IF(H11="","",IF(H$4>$A12,IF($B12=VLOOKUP(H$4,$A$5:$C$24,2,0),"",(VLOOKUP(H$4,$A$5:E$24,3,0)-$C12)/(VLOOKUP(H$4,$A$5:E$24,2,0)-$B12)),"")) ->  | I12: =IF(I11="","",IF(I$4>$A12,IF($B12=VLOOKUP(I$4,$A$5:$C$24,2,0),"",(VLOOKUP(I$4,$A$5:F$24,3,0)-$C12)/(VLOOKUP(I$4,$A$5:F$24,2,0)-$B12)),"")) ->  | J12: =IF(J11="","",IF(J$4>$A12,IF($B12=VLOOKUP(J$4,$A$5:$C$24,2,0),"",(VLOOKUP(J$4,$A$5:G$24,3,0)-$C12)/(VLOOKUP(J$4,$A$5:G$24,2,0)-$B12)),"")) ->  | K12: =IF(K11="","",IF(K$4>$A12,IF($B12=VLOOKUP(K$4,$A$5:$C$24,2,0),"",(VLOOKUP(K$4,$A$5:H$24,3,0)-$C12)/(VLOOKUP(K$4,$A$5:H$24,2,0)-$B12)),"")) ->  | L12: =IF(L11="","",IF(L$4>$A12,IF($B12=VLOOKUP(L$4,$A$5:$C$24,2,0),"",(VLOOKUP(L$4,$A$5:I$24,3,0)-$C12)/(VLOOKUP(L$4,$A$5:I$24,2,0)-$B12)),"")) ->  | M12: =IF(M11="","",IF(M$4>$A12,IF($B12=VLOOKUP(M$4,$A$5:$C$24,2,0),"",(VLOOKUP(M$4,$A$5:J$24,3,0)-$C12)/(VLOOKUP(M$4,$A$5:J$24,2,0)-$B12)),"")) -> 0.01147540984 | N12: =IF(N11="","",IF(N$4>$A12,IF($B12=VLOOKUP(N$4,$A$5:$C$24,2,0),"",(VLOOKUP(N$4,$A$5:K$24,3,0)-$C12)/(VLOOKUP(N$4,$A$5:K$24,2,0)-$B12)),"")) -> 0.01147540984 | O12: =IF(O11="","",IF(O$4>$A12,IF($B12=VLOOKUP(O$4,$A$5:$C$24,2,0),"",(VLOOKUP(O$4,$A$5:L$24,3,0)-$C12)/(VLOOKUP(O$4,$A$5:L$24,2,0)-$B12)),"")) ->  | P12: =IF(P11="","",IF(P$4>$A12,IF($B12=VLOOKUP(P$4,$A$5:$C$24,2,0),"",(VLOOKUP(P$4,$A$5:M$24,3,0)-$C12)/(VLOOKUP(P$4,$A$5:M$24,2,0)-$B12)),"")) ->  | Q12: =IF(Q11="","",IF(Q$4>$A12,IF($B12=VLOOKUP(Q$4,$A$5:$C$24,2,0),"",(VLOOKUP(Q$4,$A$5:N$24,3,0)-$C12)/(VLOOKUP(Q$4,$A$5:N$24,2,0)-$B12)),"")) ->  | R12: =IF(R11="","",IF(R$4>$A12,IF($B12=VLOOKUP(R$4,$A$5:$C$24,2,0),"",(VLOOKUP(R$4,$A$5:O$24,3,0)-$C12)/(VLOOKUP(R$4,$A$5:O$24,2,0)-$B12)),"")) ->  | S12: =IF(S11="","",IF(S$4>$A12,IF($B12=VLOOKUP(S$4,$A$5:$C$24,2,0),"",(VLOOKUP(S$4,$A$5:P$24,3,0)-$C12)/(VLOOKUP(S$4,$A$5:P$24,2,0)-$B12)),"")) ->  | T12: =IF(T11="","",IF(T$4>$A12,IF($B12=VLOOKUP(T$4,$A$5:$C$24,2,0),"",(VLOOKUP(T$4,$A$5:Q$24,3,0)-$C12)/(VLOOKUP(T$4,$A$5:Q$24,2,0)-$B12)),"")) ->  | U12: =IF(U11="","",IF(U$4>$A12,IF($B12=VLOOKUP(U$4,$A$5:$C$24,2,0),"",(VLOOKUP(U$4,$A$5:R$24,3,0)-$C12)/(VLOOKUP(U$4,$A$5:R$24,2,0)-$B12)),"")) ->  | V12: =IF(V11="","",IF(V$4>$A12,IF($B12=VLOOKUP(V$4,$A$5:$C$24,2,0),"",(VLOOKUP(V$4,$A$5:S$24,3,0)-$C12)/(VLOOKUP(V$4,$A$5:S$24,2,0)-$B12)),"")) ->  | W12: =IF(W11="","",IF(W$4>$A12,IF($B12=VLOOKUP(W$4,$A$5:$C$24,2,0),"",(VLOOKUP(W$4,$A$5:T$24,3,0)-$C12)/(VLOOKUP(W$4,$A$5:T$24,2,0)-$B12)),"")) ->  | X12: =IF(X11="","",IF(X$4>$A12,IF($B12=VLOOKUP(X$4,$A$5:$C$24,2,0),"",(VLOOKUP(X$4,$A$5:U$24,3,0)-$C12)/(VLOOKUP(X$4,$A$5:U$24,2,0)-$B12)),"")) ->  | Y12: 2 | Z12: 9
A13: 9 | B13: 43070 | C13: 1 | E13: =COUNTIF(C14:C$24,">"&C13)-COUNTIF(C14:C$24,"<"&C13) -> 0 | F13: =IF(F12="","",IF(F$4>$A13,IF($B13=VLOOKUP(F$4,$A$5:$C$24,2,0),"",(VLOOKUP(F$4,$A$5:C$24,3,0)-$C13)/(VLOOKUP(F$4,$A$5:C$24,2,0)-$B13)),"")) ->  | G13: =IF(G12="","",IF(G$4>$A13,IF($B13=VLOOKUP(G$4,$A$5:$C$24,2,0),"",(VLOOKUP(G$4,$A$5:D$24,3,0)-$C13)/(VLOOKUP(G$4,$A$5:D$24,2,0)-$B13)),"")) ->  | H13: =IF(H12="","",IF(H$4>$A13,IF($B13=VLOOKUP(H$4,$A$5:$C$24,2,0),"",(VLOOKUP(H$4,$A$5:E$24,3,0)-$C13)/(VLOOKUP(H$4,$A$5:E$24,2,0)-$B13)),"")) ->  | I13: =IF(I12="","",IF(I$4>$A13,IF($B13=VLOOKUP(I$4,$A$5:$C$24,2,0),"",(VLOOKUP(I$4,$A$5:F$24,3,0)-$C13)/(VLOOKUP(I$4,$A$5:F$24,2,0)-$B13)),"")) ->  | J13: =IF(J12="","",IF(J$4>$A13,IF($B13=VLOOKUP(J$4,$A$5:$C$24,2,0),"",(VLOOKUP(J$4,$A$5:G$24,3,0)-$C13)/(VLOOKUP(J$4,$A$5:G$24,2,0)-$B13)),"")) ->  | K13: =IF(K12="","",IF(K$4>$A13,IF($B13=VLOOKUP(K$4,$A$5:$C$24,2,0),"",(VLOOKUP(K$4,$A$5:H$24,3,0)-$C13)/(VLOOKUP(K$4,$A$5:H$24,2,0)-$B13)),"")) ->  | L13: =IF(L12="","",IF(L$4>$A13,IF($B13=VLOOKUP(L$4,$A$5:$C$24,2,0),"",(VLOOKUP(L$4,$A$5:I$24,3,0)-$C13)/(VLOOKUP(L$4,$A$5:I$24,2,0)-$B13)),"")) ->  | M13: =IF(M12="","",IF(M$4>$A13,IF($B13=VLOOKUP(M$4,$A$5:$C$24,2,0),"",(VLOOKUP(M$4,$A$5:J$24,3,0)-$C13)/(VLOOKUP(M$4,$A$5:J$24,2,0)-$B13)),"")) ->  | N13: =IF(N12="","",IF(N$4>$A13,IF($B13=VLOOKUP(N$4,$A$5:$C$24,2,0),"",(VLOOKUP(N$4,$A$5:K$24,3,0)-$C13)/(VLOOKUP(N$4,$A$5:K$24,2,0)-$B13)),"")) ->  | O13: =IF(O12="","",IF(O$4>$A13,IF($B13=VLOOKUP(O$4,$A$5:$C$24,2,0),"",(VLOOKUP(O$4,$A$5:L$24,3,0)-$C13)/(VLOOKUP(O$4,$A$5:L$24,2,0)-$B13)),"")) ->  | P13: =IF(P12="","",IF(P$4>$A13,IF($B13=VLOOKUP(P$4,$A$5:$C$24,2,0),"",(VLOOKUP(P$4,$A$5:M$24,3,0)-$C13)/(VLOOKUP(P$4,$A$5:M$24,2,0)-$B13)),"")) ->  | Q13: =IF(Q12="","",IF(Q$4>$A13,IF($B13=VLOOKUP(Q$4,$A$5:$C$24,2,0),"",(VLOOKUP(Q$4,$A$5:N$24,3,0)-$C13)/(VLOOKUP(Q$4,$A$5:N$24,2,0)-$B13)),"")) ->  | R13: =IF(R12="","",IF(R$4>$A13,IF($B13=VLOOKUP(R$4,$A$5:$C$24,2,0),"",(VLOOKUP(R$4,$A$5:O$24,3,0)-$C13)/(VLOOKUP(R$4,$A$5:O$24,2,0)-$B13)),"")) ->  | S13: =IF(S12="","",IF(S$4>$A13,IF($B13=VLOOKUP(S$4,$A$5:$C$24,2,0),"",(VLOOKUP(S$4,$A$5:P$24,3,0)-$C13)/(VLOOKUP(S$4,$A$5:P$24,2,0)-$B13)),"")) ->  | T13: =IF(T12="","",IF(T$4>$A13,IF($B13=VLOOKUP(T$4,$A$5:$C$24,2,0),"",(VLOOKUP(T$4,$A$5:Q$24,3,0)-$C13)/(VLOOKUP(T$4,$A$5:Q$24,2,0)-$B13)),"")) ->  | U13: =IF(U12="","",IF(U$4>$A13,IF($B13=VLOOKUP(U$4,$A$5:$C$24,2,0),"",(VLOOKUP(U$4,$A$5:R$24,3,0)-$C13)/(VLOOKUP(U$4,$A$5:R$24,2,0)-$B13)),"")) ->  | V13: =IF(V12="","",IF(V$4>$A13,IF($B13=VLOOKUP(V$4,$A$5:$C$24,2,0),"",(VLOOKUP(V$4,$A$5:S$24,3,0)-$C13)/(VLOOKUP(V$4,$A$5:S$24,2,0)-$B13)),"")) ->  | W13: =IF(W12="","",IF(W$4>$A13,IF($B13=VLOOKUP(W$4,$A$5:$C$24,2,0),"",(VLOOKUP(W$4,$A$5:T$24,3,0)-$C13)/(VLOOKUP(W$4,$A$5:T$24,2,0)-$B13)),"")) ->  | X13: =IF(X12="","",IF(X$4>$A13,IF($B13=VLOOKUP(X$4,$A$5:$C$24,2,0),"",(VLOOKUP(X$4,$A$5:U$24,3,0)-$C13)/(VLOOKUP(X$4,$A$5:U$24,2,0)-$B13)),"")) ->  | Y13: 6 | Z13: 85
A14: 10 | B14: 43070 | C14: 1 | E14: =COUNTIF(C15:C$24,">"&C14)-COUNTIF(C15:C$24,"<"&C14) -> 0 | F14: =IF(F13="","",IF(F$4>$A14,IF($B14=VLOOKUP(F$4,$A$5:$C$24,2,0),"",(VLOOKUP(F$4,$A$5:C$24,3,0)-$C14)/(VLOOKUP(F$4,$A$5:C$24,2,0)-$B14)),"")) ->  | G14: =IF(G13="","",IF(G$4>$A14,IF($B14=VLOOKUP(G$4,$A$5:$C$24,2,0),"",(VLOOKUP(G$4,$A$5:D$24,3,0)-$C14)/(VLOOKUP(G$4,$A$5:D$24,2,0)-$B14)),"")) ->  | H14: =IF(H13="","",IF(H$4>$A14,IF($B14=VLOOKUP(H$4,$A$5:$C$24,2,0),"",(VLOOKUP(H$4,$A$5:E$24,3,0)-$C14)/(VLOOKUP(H$4,$A$5:E$24,2,0)-$B14)),"")) ->  | I14: =IF(I13="","",IF(I$4>$A14,IF($B14=VLOOKUP(I$4,$A$5:$C$24,2,0),"",(VLOOKUP(I$4,$A$5:F$24,3,0)-$C14)/(VLOOKUP(I$4,$A$5:F$24,2,0)-$B14)),"")) ->  | J14: =IF(J13="","",IF(J$4>$A14,IF($B14=VLOOKUP(J$4,$A$5:$C$24,2,0),"",(VLOOKUP(J$4,$A$5:G$24,3,0)-$C14)/(VLOOKUP(J$4,$A$5:G$24,2,0)-$B14)),"")) ->  | K14: =IF(K13="","",IF(K$4>$A14,IF($B14=VLOOKUP(K$4,$A$5:$C$24,2,0),"",(VLOOKUP(K$4,$A$5:H$24,3,0)-$C14)/(VLOOKUP(K$4,$A$5:H$24,2,0)-$B14)),"")) ->  | L14: =IF(L13="","",IF(L$4>$A14,IF($B14=VLOOKUP(L$4,$A$5:$C$24,2,0),"",(VLOOKUP(L$4,$A$5:I$24,3,0)-$C14)/(VLOOKUP(L$4,$A$5:I$24,2,0)-$B14)),"")) ->  | M14: =IF(M13="","",IF(M$4>$A14,IF($B14=VLOOKUP(M$4,$A$5:$C$24,2,0),"",(VLOOKUP(M$4,$A$5:J$24,3,0)-$C14)/(VLOOKUP(M$4,$A$5:J$24,2,0)-$B14)),"")) ->  | N14: =IF(N13="","",IF(N$4>$A14,IF($B14=VLOOKUP(N$4,$A$5:$C$24,2,0),"",(VLOOKUP(N$4,$A$5:K$24,3,0)-$C14)/(VLOOKUP(N$4,$A$5:K$24,2,0)-$B14)),"")) ->  | O14: =IF(O13="","",IF(O$4>$A14,IF($B14=VLOOKUP(O$4,$A$5:$C$24,2,0),"",(VLOOKUP(O$4,$A$5:L$24,3,0)-$C14)/(VLOOKUP(O$4,$A$5:L$24,2,0)-$B14)),"")) ->  | P14: =IF(P13="","",IF(P$4>$A14,IF($B14=VLOOKUP(P$4,$A$5:$C$24,2,0),"",(VLOOKUP(P$4,$A$5:M$24,3,0)-$C14)/(VLOOKUP(P$4,$A$5:M$24,2,0)-$B14)),"")) ->  | Q14: =IF(Q13="","",IF(Q$4>$A14,IF($B14=VLOOKUP(Q$4,$A$5:$C$24,2,0),"",(VLOOKUP(Q$4,$A$5:N$24,3,0)-$C14)/(VLOOKUP(Q$4,$A$5:N$24,2,0)-$B14)),"")) ->  | R14: =IF(R13="","",IF(R$4>$A14,IF($B14=VLOOKUP(R$4,$A$5:$C$24,2,0),"",(VLOOKUP(R$4,$A$5:O$24,3,0)-$C14)/(VLOOKUP(R$4,$A$5:O$24,2,0)-$B14)),"")) ->  | S14: =IF(S13="","",IF(S$4>$A14,IF($B14=VLOOKUP(S$4,$A$5:$C$24,2,0),"",(VLOOKUP(S$4,$A$5:P$24,3,0)-$C14)/(VLOOKUP(S$4,$A$5:P$24,2,0)-$B14)),"")) ->  | T14: =IF(T13="","",IF(T$4>$A14,IF($B14=VLOOKUP(T$4,$A$5:$C$24,2,0),"",(VLOOKUP(T$4,$A$5:Q$24,3,0)-$C14)/(VLOOKUP(T$4,$A$5:Q$24,2,0)-$B14)),"")) ->  | U14: =IF(U13="","",IF(U$4>$A14,IF($B14=VLOOKUP(U$4,$A$5:$C$24,2,0),"",(VLOOKUP(U$4,$A$5:R$24,3,0)-$C14)/(VLOOKUP(U$4,$A$5:R$24,2,0)-$B14)),"")) ->  | V14: =IF(V13="","",IF(V$4>$A14,IF($B14=VLOOKUP(V$4,$A$5:$C$24,2,0),"",(VLOOKUP(V$4,$A$5:S$24,3,0)-$C14)/(VLOOKUP(V$4,$A$5:S$24,2,0)-$B14)),"")) ->  | W14: =IF(W13="","",IF(W$4>$A14,IF($B14=VLOOKUP(W$4,$A$5:$C$24,2,0),"",(VLOOKUP(W$4,$A$5:T$24,3,0)-$C14)/(VLOOKUP(W$4,$A$5:T$24,2,0)-$B14)),"")) ->  | X14: =IF(X13="","",IF(X$4>$A14,IF($B14=VLOOKUP(X$4,$A$5:$C$24,2,0),"",(VLOOKUP(X$4,$A$5:U$24,3,0)-$C14)/(VLOOKUP(X$4,$A$5:U$24,2,0)-$B14)),"")) ->  | Y14: 6 | Z14: 85
E15: =COUNTIF(C16:C$24,">"&C15)-COUNTIF(C16:C$24,"<"&C15) -> 0 | F15: =IF(F14="","",IF(F$4>$A15,IF($B15=VLOOKUP(F$4,$A$5:$C$24,2,0),"",(VLOOKUP(F$4,$A$5:C$24,3,0)-$C15)/(VLOOKUP(F$4,$A$5:C$24,2,0)-$B15)),"")) ->  | G15: =IF(G14="","",IF(G$4>$A15,IF($B15=VLOOKUP(G$4,$A$5:$C$24,2,0),"",(VLOOKUP(G$4,$A$5:D$24,3,0)-$C15)/(VLOOKUP(G$4,$A$5:D$24,2,0)-$B15)),"")) ->  | H15: =IF(H14="","",IF(H$4>$A15,IF($B15=VLOOKUP(H$4,$A$5:$C$24,2,0),"",(VLOOKUP(H$4,$A$5:E$24,3,0)-$C15)/(VLOOKUP(H$4,$A$5:E$24,2,0)-$B15)),"")) ->  | I15: =IF(I14="","",IF(I$4>$A15,IF($B15=VLOOKUP(I$4,$A$5:$C$24,2,0),"",(VLOOKUP(I$4,$A$5:F$24,3,0)-$C15)/(VLOOKUP(I$4,$A$5:F$24,2,0)-$B15)),"")) ->  | J15: =IF(J14="","",IF(J$4>$A15,IF($B15=VLOOKUP(J$4,$A$5:$C$24,2,0),"",(VLOOKUP(J$4,$A$5:G$24,3,0)-$C15)/(VLOOKUP(J$4,$A$5:G$24,2,0)-$B15)),"")) ->  | K15: =IF(K14="","",IF(K$4>$A15,IF($B15=VLOOKUP(K$4,$A$5:$C$24,2,0),"",(VLOOKUP(K$4,$A$5:H$24,3,0)-$C15)/(VLOOKUP(K$4,$A$5:H$24,2,0)-$B15)),"")) ->  | L15: =IF(L14="","",IF(L$4>$A15,IF($B15=VLOOKUP(L$4,$A$5:$C$24,2,0),"",(VLOOKUP(L$4,$A$5:I$24,3,0)-$C15)/(VLOOKUP(L$4,$A$5:I$24,2,0)-$B15)),"")) ->  | M15: =IF(M14="","",IF(M$4>$A15,IF($B15=VLOOKUP(M$4,$A$5:$C$24,2,0),"",(VLOOKUP(M$4,$A$5:J$24,3,0)-$C15)/(VLOOKUP(M$4,$A$5:J$24,2,0)-$B15)),"")) ->  | N15: =IF(N14="","",IF(N$4>$A15,IF($B15=VLOOKUP(N$4,$A$5:$C$24,2,0),"",(VLOOKUP(N$4,$A$5:K$24,3,0)-$C15)/(VLOOKUP(N$4,$A$5:K$24,2,0)-$B15)),"")) ->  | O15: =IF(O14="","",IF(O$4>$A15,IF($B15=VLOOKUP(O$4,$A$5:$C$24,2,0),"",(VLOOKUP(O$4,$A$5:L$24,3,0)-$C15)/(VLOOKUP(O$4,$A$5:L$24,2,0)-$B15)),"")) ->  | P15: =IF(P14="","",IF(P$4>$A15,IF($B15=VLOOKUP(P$4,$A$5:$C$24,2,0),"",(VLOOKUP(P$4,$A$5:M$24,3,0)-$C15)/(VLOOKUP(P$4,$A$5:M$24,2,0)-$B15)),"")) ->  | Q15: =IF(Q14="","",IF(Q$4>$A15,IF($B15=VLOOKUP(Q$4,$A$5:$C$24,2,0),"",(VLOOKUP(Q$4,$A$5:N$24,3,0)-$C15)/(VLOOKUP(Q$4,$A$5:N$24,2,0)-$B15)),"")) ->  | R15: =IF(R14="","",IF(R$4>$A15,IF($B15=VLOOKUP(R$4,$A$5:$C$24,2,0),"",(VLOOKUP(R$4,$A$5:O$24,3,0)-$C15)/(VLOOKUP(R$4,$A$5:O$24,2,0)-$B15)),"")) ->  | S15: =IF(S14="","",IF(S$4>$A15,IF($B15=VLOOKUP(S$4,$A$5:$C$24,2,0),"",(VLOOKUP(S$4,$A$5:P$24,3,0)-$C15)/(VLOOKUP(S$4,$A$5:P$24,2,0)-$B15)),"")) ->  | T15: =IF(T14="","",IF(T$4>$A15,IF($B15=VLOOKUP(T$4,$A$5:$C$24,2,0),"",(VLOOKUP(T$4,$A$5:Q$24,3,0)-$C15)/(VLOOKUP(T$4,$A$5:Q$24,2,0)-$B15)),"")) ->  | U15: =IF(U14="","",IF(U$4>$A15,IF($B15=VLOOKUP(U$4,$A$5:$C$24,2,0),"",(VLOOKUP(U$4,$A$5:R$24,3,0)-$C15)/(VLOOKUP(U$4,$A$5:R$24,2,0)-$B15)),"")) ->  | V15: =IF(V14="","",IF(V$4>$A15,IF($B15=VLOOKUP(V$4,$A$5:$C$24,2,0),"",(VLOOKUP(V$4,$A$5:S$24,3,0)-$C15)/(VLOOKUP(V$4,$A$5:S$24,2,0)-$B15)),"")) ->  | W15: =IF(W14="","",IF(W$4>$A15,IF($B15=VLOOKUP(W$4,$A$5:$C$24,2,0),"",(VLOOKUP(W$4,$A$5:T$24,3,0)-$C15)/(VLOOKUP(W$4,$A$5:T$24,2,0)-$B15)),"")) ->  | X15: =IF(X14="","",IF(X$4>$A15,IF($B15=VLOOKUP(X$4,$A$5:$C$24,2,0),"",(VLOOKUP(X$4,$A$5:U$24,3,0)-$C15)/(VLOOKUP(X$4,$A$5:U$24,2,0)-$B15)),"")) -> 
E16: =COUNTIF(C17:C$24,">"&C16)-COUNTIF(C17:C$24,"<"&C16) -> 0 | F16: =IF(F15="","",IF(F$4>$A16,IF($B16=VLOOKUP(F$4,$A$5:$C$24,2,0),"",(VLOOKUP(F$4,$A$5:C$24,3,0)-$C16)/(VLOOKUP(F$4,$A$5:C$24,2,0)-$B16)),"")) ->  | G16: =IF(G15="","",IF(G$4>$A16,IF($B16=VLOOKUP(G$4,$A$5:$C$24,2,0),"",(VLOOKUP(G$4,$A$5:D$24,3,0)-$C16)/(VLOOKUP(G$4,$A$5:D$24,2,0)-$B16)),"")) ->  | H16: =IF(H15="","",IF(H$4>$A16,IF($B16=VLOOKUP(H$4,$A$5:$C$24,2,0),"",(VLOOKUP(H$4,$A$5:E$24,3,0)-$C16)/(VLOOKUP(H$4,$A$5:E$24,2,0)-$B16)),"")) ->  | I16: =IF(I15="","",IF(I$4>$A16,IF($B16=VLOOKUP(I$4,$A$5:$C$24,2,0),"",(VLOOKUP(I$4,$A$5:F$24,3,0)-$C16)/(VLOOKUP(I$4,$A$5:F$24,2,0)-$B16)),"")) ->  | J16: =IF(J15="","",IF(J$4>$A16,IF($B16=VLOOKUP(J$4,$A$5:$C$24,2,0),"",(VLOOKUP(J$4,$A$5:G$24,3,0)-$C16)/(VLOOKUP(J$4,$A$5:G$24,2,0)-$B16)),"")) ->  | K16: =IF(K15="","",IF(K$4>$A16,IF($B16=VLOOKUP(K$4,$A$5:$C$24,2,0),"",(VLOOKUP(K$4,$A$5:H$24,3,0)-$C16)/(VLOOKUP(K$4,$A$5:H$24,2,0)-$B16)),"")) ->  | L16: =IF(L15="","",IF(L$4>$A16,IF($B16=VLOOKUP(L$4,$A$5:$C$24,2,0),"",(VLOOKUP(L$4,$A$5:I$24,3,0)-$C16)/(VLOOKUP(L$4,$A$5:I$24,2,0)-$B16)),"")) ->  | M16: =IF(M15="","",IF(M$4>$A16,IF($B16=VLOOKUP(M$4,$A$5:$C$24,2,0),"",(VLOOKUP(M$4,$A$5:J$24,3,0)-$C16)/(VLOOKUP(M$4,$A$5:J$24,2,0)-$B16)),"")) ->  | N16: =IF(N15="","",IF(N$4>$A16,IF($B16=VLOOKUP(N$4,$A$5:$C$24,2,0),"",(VLOOKUP(N$4,$A$5:K$24,3,0)-$C16)/(VLOOKUP(N$4,$A$5:K$24,2,0)-$B16)),"")) ->  | O16: =IF(O15="","",IF(O$4>$A16,IF($B16=VLOOKUP(O$4,$A$5:$C$24,2,0),"",(VLOOKUP(O$4,$A$5:L$24,3,0)-$C16)/(VLOOKUP(O$4,$A$5:L$24,2,0)-$B16)),"")) ->  | P16: =IF(P15="","",IF(P$4>$A16,IF($B16=VLOOKUP(P$4,$A$5:$C$24,2,0),"",(VLOOKUP(P$4,$A$5:M$24,3,0)-$C16)/(VLOOKUP(P$4,$A$5:M$24,2,0)-$B16)),"")) ->  | Q16: =IF(Q15="","",IF(Q$4>$A16,IF($B16=VLOOKUP(Q$4,$A$5:$C$24,2,0),"",(VLOOKUP(Q$4,$A$5:N$24,3,0)-$C16)/(VLOOKUP(Q$4,$A$5:N$24,2,0)-$B16)),"")) ->  | R16: =IF(R15="","",IF(R$4>$A16,IF($B16=VLOOKUP(R$4,$A$5:$C$24,2,0),"",(VLOOKUP(R$4,$A$5:O$24,3,0)-$C16)/(VLOOKUP(R$4,$A$5:O$24,2,0)-$B16)),"")) ->  | S16: =IF(S15="","",IF(S$4>$A16,IF($B16=VLOOKUP(S$4,$A$5:$C$24,2,0),"",(VLOOKUP(S$4,$A$5:P$24,3,0)-$C16)/(VLOOKUP(S$4,$A$5:P$24,2,0)-$B16)),"")) ->  | T16: =IF(T15="","",IF(T$4>$A16,IF($B16=VLOOKUP(T$4,$A$5:$C$24,2,0),"",(VLOOKUP(T$4,$A$5:Q$24,3,0)-$C16)/(VLOOKUP(T$4,$A$5:Q$24,2,0)-$B16)),"")) ->  | U16: =IF(U15="","",IF(U$4>$A16,IF($B16=VLOOKUP(U$4,$A$5:$C$24,2,0),"",(VLOOKUP(U$4,$A$5:R$24,3,0)-$C16)/(VLOOKUP(U$4,$A$5:R$24,2,0)-$B16)),"")) ->  | V16: =IF(V15="","",IF(V$4>$A16,IF($B16=VLOOKUP(V$4,$A$5:$C$24,2,0),"",(VLOOKUP(V$4,$A$5:S$24,3,0)-$C16)/(VLOOKUP(V$4,$A$5:S$24,2,0)-$B16)),"")) ->  | W16: =IF(W15="","",IF(W$4>$A16,IF($B16=VLOOKUP(W$4,$A$5:$C$24,2,0),"",(VLOOKUP(W$4,$A$5:T$24,3,0)-$C16)/(VLOOKUP(W$4,$A$5:T$24,2,0)-$B16)),"")) ->  | X16: =IF(X15="","",IF(X$4>$A16,IF($B16=VLOOKUP(X$4,$A$5:$C$24,2,0),"",(VLOOKUP(X$4,$A$5:U$24,3,0)-$C16)/(VLOOKUP(X$4,$A$5:U$24,2,0)-$B16)),"")) -> 
E17: =COUNTIF(C18:C$24,">"&C17)-COUNTIF(C18:C$24,"<"&C17) -> 0 | F17: =IF(F16="","",IF(F$4>$A17,IF($B17=VLOOKUP(F$4,$A$5:$C$24,2,0),"",(VLOOKUP(F$4,$A$5:C$24,3,0)-$C17)/(VLOOKUP(F$4,$A$5:C$24,2,0)-$B17)),"")) ->  | G17: =IF(G16="","",IF(G$4>$A17,IF($B17=VLOOKUP(G$4,$A$5:$C$24,2,0),"",(VLOOKUP(G$4,$A$5:D$24,3,0)-$C17)/(VLOOKUP(G$4,$A$5:D$24,2,0)-$B17)),"")) ->  | H17: =IF(H16="","",IF(H$4>$A17,IF($B17=VLOOKUP(H$4,$A$5:$C$24,2,0),"",(VLOOKUP(H$4,$A$5:E$24,3,0)-$C17)/(VLOOKUP(H$4,$A$5:E$24,2,0)-$B17)),"")) ->  | I17: =IF(I16="","",IF(I$4>$A17,IF($B17=VLOOKUP(I$4,$A$5:$C$24,2,0),"",(VLOOKUP(I$4,$A$5:F$24,3,0)-$C17)/(VLOOKUP(I$4,$A$5:F$24,2,0)-$B17)),"")) ->  | J17: =IF(J16="","",IF(J$4>$A17,IF($B17=VLOOKUP(J$4,$A$5:$C$24,2,0),"",(VLOOKUP(J$4,$A$5:G$24,3,0)-$C17)/(VLOOKUP(J$4,$A$5:G$24,2,0)-$B17)),"")) ->  | K17: =IF(K16="","",IF(K$4>$A17,IF($B17=VLOOKUP(K$4,$A$5:$C$24,2,0),"",(VLOOKUP(K$4,$A$5:H$24,3,0)-$C17)/(VLOOKUP(K$4,$A$5:H$24,2,0)-$B17)),"")) ->  | L17: =IF(L16="","",IF(L$4>$A17,IF($B17=VLOOKUP(L$4,$A$5:$C$24,2,0),"",(VLOOKUP(L$4,$A$5:I$24,3,0)-$C17)/(VLOOKUP(L$4,$A$5:I$24,2,0)-$B17)),"")) ->  | M17: =IF(M16="","",IF(M$4>$A17,IF($B17=VLOOKUP(M$4,$A$5:$C$24,2,0),"",(VLOOKUP(M$4,$A$5:J$24,3,0)-$C17)/(VLOOKUP(M$4,$A$5:J$24,2,0)-$B17)),"")) ->  | N17: =IF(N16="","",IF(N$4>$A17,IF($B17=VLOOKUP(N$4,$A$5:$C$24,2,0),"",(VLOOKUP(N$4,$A$5:K$24,3,0)-$C17)/(VLOOKUP(N$4,$A$5:K$24,2,0)-$B17)),"")) ->  | O17: =IF(O16="","",IF(O$4>$A17,IF($B17=VLOOKUP(O$4,$A$5:$C$24,2,0),"",(VLOOKUP(O$4,$A$5:L$24,3,0)-$C17)/(VLOOKUP(O$4,$A$5:L$24,2,0)-$B17)),"")) ->  | P17: =IF(P16="","",IF(P$4>$A17,IF($B17=VLOOKUP(P$4,$A$5:$C$24,2,0),"",(VLOOKUP(P$4,$A$5:M$24,3,0)-$C17)/(VLOOKUP(P$4,$A$5:M$24,2,0)-$B17)),"")) ->  | Q17: =IF(Q16="","",IF(Q$4>$A17,IF($B17=VLOOKUP(Q$4,$A$5:$C$24,2,0),"",(VLOOKUP(Q$4,$A$5:N$24,3,0)-$C17)/(VLOOKUP(Q$4,$A$5:N$24,2,0)-$B17)),"")) ->  | R17: =IF(R16="","",IF(R$4>$A17,IF($B17=VLOOKUP(R$4,$A$5:$C$24,2,0),"",(VLOOKUP(R$4,$A$5:O$24,3,0)-$C17)/(VLOOKUP(R$4,$A$5:O$24,2,0)-$B17)),"")) ->  | S17: =IF(S16="","",IF(S$4>$A17,IF($B17=VLOOKUP(S$4,$A$5:$C$24,2,0),"",(VLOOKUP(S$4,$A$5:P$24,3,0)-$C17)/(VLOOKUP(S$4,$A$5:P$24,2,0)-$B17)),"")) ->  | T17: =IF(T16="","",IF(T$4>$A17,IF($B17=VLOOKUP(T$4,$A$5:$C$24,2,0),"",(VLOOKUP(T$4,$A$5:Q$24,3,0)-$C17)/(VLOOKUP(T$4,$A$5:Q$24,2,0)-$B17)),"")) ->  | U17: =IF(U16="","",IF(U$4>$A17,IF($B17=VLOOKUP(U$4,$A$5:$C$24,2,0),"",(VLOOKUP(U$4,$A$5:R$24,3,0)-$C17)/(VLOOKUP(U$4,$A$5:R$24,2,0)-$B17)),"")) ->  | V17: =IF(V16="","",IF(V$4>$A17,IF($B17=VLOOKUP(V$4,$A$5:$C$24,2,0),"",(VLOOKUP(V$4,$A$5:S$24,3,0)-$C17)/(VLOOKUP(V$4,$A$5:S$24,2,0)-$B17)),"")) ->  | W17: =IF(W16="","",IF(W$4>$A17,IF($B17=VLOOKUP(W$4,$A$5:$C$24,2,0),"",(VLOOKUP(W$4,$A$5:T$24,3,0)-$C17)/(VLOOKUP(W$4,$A$5:T$24,2,0)-$B17)),"")) ->  | X17: =IF(X16="","",IF(X$4>$A17,IF($B17=VLOOKUP(X$4,$A$5:$C$24,2,0),"",(VLOOKUP(X$4,$A$5:U$24,3,0)-$C17)/(VLOOKUP(X$4,$A$5:U$24,2,0)-$B17)),"")) -> 
E18: =COUNTIF(C19:C$24,">"&C18)-COUNTIF(C19:C$24,"<"&C18) -> 0 | F18: =IF(F17="","",IF(F$4>$A18,IF($B18=VLOOKUP(F$4,$A$5:$C$24,2,0),"",(VLOOKUP(F$4,$A$5:C$24,3,0)-$C18)/(VLOOKUP(F$4,$A$5:C$24,2,0)-$B18)),"")) ->  | G18: =IF(G17="","",IF(G$4>$A18,IF($B18=VLOOKUP(G$4,$A$5:$C$24,2,0),"",(VLOOKUP(G$4,$A$5:D$24,3,0)-$C18)/(VLOOKUP(G$4,$A$5:D$24,2,0)-$B18)),"")) ->  | H18: =IF(H17="","",IF(H$4>$A18,IF($B18=VLOOKUP(H$4,$A$5:$C$24,2,0),"",(VLOOKUP(H$4,$A$5:E$24,3,0)-$C18)/(VLOOKUP(H$4,$A$5:E$24,2,0)-$B18)),"")) ->  | I18: =IF(I17="","",IF(I$4>$A18,IF($B18=VLOOKUP(I$4,$A$5:$C$24,2,0),"",(VLOOKUP(I$4,$A$5:F$24,3,0)-$C18)/(VLOOKUP(I$4,$A$5:F$24,2,0)-$B18)),"")) ->  | J18: =IF(J17="","",IF(J$4>$A18,IF($B18=VLOOKUP(J$4,$A$5:$C$24,2,0),"",(VLOOKUP(J$4,$A$5:G$24,3,0)-$C18)/(VLOOKUP(J$4,$A$5:G$24,2,0)-$B18)),"")) ->  | K18: =IF(K17="","",IF(K$4>$A18,IF($B18=VLOOKUP(K$4,$A$5:$C$24,2,0),"",(VLOOKUP(K$4,$A$5:H$24,3,0)-$C18)/(VLOOKUP(K$4,$A$5:H$24,2,0)-$B18)),"")) ->  | L18: =IF(L17="","",IF(L$4>$A18,IF($B18=VLOOKUP(L$4,$A$5:$C$24,2,0),"",(VLOOKUP(L$4,$A$5:I$24,3,0)-$C18)/(VLOOKUP(L$4,$A$5:I$24,2,0)-$B18)),"")) ->  | M18: =IF(M17="","",IF(M$4>$A18,IF($B18=VLOOKUP(M$4,$A$5:$C$24,2,0),"",(VLOOKUP(M$4,$A$5:J$24,3,0)-$C18)/(VLOOKUP(M$4,$A$5:J$24,2,0)-$B18)),"")) ->  | N18: =IF(N17="","",IF(N$4>$A18,IF($B18=VLOOKUP(N$4,$A$5:$C$24,2,0),"",(VLOOKUP(N$4,$A$5:K$24,3,0)-$C18)/(VLOOKUP(N$4,$A$5:K$24,2,0)-$B18)),"")) ->  | O18: =IF(O17="","",IF(O$4>$A18,IF($B18=VLOOKUP(O$4,$A$5:$C$24,2,0),"",(VLOOKUP(O$4,$A$5:L$24,3,0)-$C18)/(VLOOKUP(O$4,$A$5:L$24,2,0)-$B18)),"")) ->  | P18: =IF(P17="","",IF(P$4>$A18,IF($B18=VLOOKUP(P$4,$A$5:$C$24,2,0),"",(VLOOKUP(P$4,$A$5:M$24,3,0)-$C18)/(VLOOKUP(P$4,$A$5:M$24,2,0)-$B18)),"")) ->  | Q18: =IF(Q17="","",IF(Q$4>$A18,IF($B18=VLOOKUP(Q$4,$A$5:$C$24,2,0),"",(VLOOKUP(Q$4,$A$5:N$24,3,0)-$C18)/(VLOOKUP(Q$4,$A$5:N$24,2,0)-$B18)),"")) ->  | R18: =IF(R17="","",IF(R$4>$A18,IF($B18=VLOOKUP(R$4,$A$5:$C$24,2,0),"",(VLOOKUP(R$4,$A$5:O$24,3,0)-$C18)/(VLOOKUP(R$4,$A$5:O$24,2,0)-$B18)),"")) ->  | S18: =IF(S17="","",IF(S$4>$A18,IF($B18=VLOOKUP(S$4,$A$5:$C$24,2,0),"",(VLOOKUP(S$4,$A$5:P$24,3,0)-$C18)/(VLOOKUP(S$4,$A$5:P$24,2,0)-$B18)),"")) ->  | T18: =IF(T17="","",IF(T$4>$A18,IF($B18=VLOOKUP(T$4,$A$5:$C$24,2,0),"",(VLOOKUP(T$4,$A$5:Q$24,3,0)-$C18)/(VLOOKUP(T$4,$A$5:Q$24,2,0)-$B18)),"")) ->  | U18: =IF(U17="","",IF(U$4>$A18,IF($B18=VLOOKUP(U$4,$A$5:$C$24,2,0),"",(VLOOKUP(U$4,$A$5:R$24,3,0)-$C18)/(VLOOKUP(U$4,$A$5:R$24,2,0)-$B18)),"")) ->  | V18: =IF(V17="","",IF(V$4>$A18,IF($B18=VLOOKUP(V$4,$A$5:$C$24,2,0),"",(VLOOKUP(V$4,$A$5:S$24,3,0)-$C18)/(VLOOKUP(V$4,$A$5:S$24,2,0)-$B18)),"")) ->  | W18: =IF(W17="","",IF(W$4>$A18,IF($B18=VLOOKUP(W$4,$A$5:$C$24,2,0),"",(VLOOKUP(W$4,$A$5:T$24,3,0)-$C18)/(VLOOKUP(W$4,$A$5:T$24,2,0)-$B18)),"")) ->  | X18: =IF(X17="","",IF(X$4>$A18,IF($B18=VLOOKUP(X$4,$A$5:$C$24,2,0),"",(VLOOKUP(X$4,$A$5:U$24,3,0)-$C18)/(VLOOKUP(X$4,$A$5:U$24,2,0)-$B18)),"")) -> 
E19: =COUNTIF(C20:C$24,">"&C19)-COUNTIF(C20:C$24,"<"&C19) -> 0 | F19: =IF(F18="","",IF(F$4>$A19,IF($B19=VLOOKUP(F$4,$A$5:$C$24,2,0),"",(VLOOKUP(F$4,$A$5:C$24,3,0)-$C19)/(VLOOKUP(F$4,$A$5:C$24,2,0)-$B19)),"")) ->  | G19: =IF(G18="","",IF(G$4>$A19,IF($B19=VLOOKUP(G$4,$A$5:$C$24,2,0),"",(VLOOKUP(G$4,$A$5:D$24,3,0)-$C19)/(VLOOKUP(G$4,$A$5:D$24,2,0)-$B19)),"")) ->  | H19: =IF(H18="","",IF(H$4>$A19,IF($B19=VLOOKUP(H$4,$A$5:$C$24,2,0),"",(VLOOKUP(H$4,$A$5:E$24,3,0)-$C19)/(VLOOKUP(H$4,$A$5:E$24,2,0)-$B19)),"")) ->  | I19: =IF(I18="","",IF(I$4>$A19,IF($B19=VLOOKUP(I$4,$A$5:$C$24,2,0),"",(VLOOKUP(I$4,$A$5:F$24,3,0)-$C19)/(VLOOKUP(I$4,$A$5:F$24,2,0)-$B19)),"")) ->  | J19: =IF(J18="","",IF(J$4>$A19,IF($B19=VLOOKUP(J$4,$A$5:$C$24,2,0),"",(VLOOKUP(J$4,$A$5:G$24,3,0)-$C19)/(VLOOKUP(J$4,$A$5:G$24,2,0)-$B19)),"")) ->  | K19: =IF(K18="","",IF(K$4>$A19,IF($B19=VLOOKUP(K$4,$A$5:$C$24,2,0),"",(VLOOKUP(K$4,$A$5:H$24,3,0)-$C19)/(VLOOKUP(K$4,$A$5:H$24,2,0)-$B19)),"")) ->  | L19: =IF(L18="","",IF(L$4>$A19,IF($B19=VLOOKUP(L$4,$A$5:$C$24,2,0),"",(VLOOKUP(L$4,$A$5:I$24,3,0)-$C19)/(VLOOKUP(L$4,$A$5:I$24,2,0)-$B19)),"")) ->  | M19: =IF(M18="","",IF(M$4>$A19,IF($B19=VLOOKUP(M$4,$A$5:$C$24,2,0),"",(VLOOKUP(M$4,$A$5:J$24,3,0)-$C19)/(VLOOKUP(M$4,$A$5:J$24,2,0)-$B19)),"")) ->  | N19: =IF(N18="","",IF(N$4>$A19,IF($B19=VLOOKUP(N$4,$A$5:$C$24,2,0),"",(VLOOKUP(N$4,$A$5:K$24,3,0)-$C19)/(VLOOKUP(N$4,$A$5:K$24,2,0)-$B19)),"")) ->  | O19: =IF(O18="","",IF(O$4>$A19,IF($B19=VLOOKUP(O$4,$A$5:$C$24,2,0),"",(VLOOKUP(O$4,$A$5:L$24,3,0)-$C19)/(VLOOKUP(O$4,$A$5:L$24,2,0)-$B19)),"")) ->  | P19: =IF(P18="","",IF(P$4>$A19,IF($B19=VLOOKUP(P$4,$A$5:$C$24,2,0),"",(VLOOKUP(P$4,$A$5:M$24,3,0)-$C19)/(VLOOKUP(P$4,$A$5:M$24,2,0)-$B19)),"")) ->  | Q19: =IF(Q18="","",IF(Q$4>$A19,IF($B19=VLOOKUP(Q$4,$A$5:$C$24,2,0),"",(VLOOKUP(Q$4,$A$5:N$24,3,0)-$C19)/(VLOOKUP(Q$4,$A$5:N$24,2,0)-$B19)),"")) ->  | R19: =IF(R18="","",IF(R$4>$A19,IF($B19=VLOOKUP(R$4,$A$5:$C$24,2,0),"",(VLOOKUP(R$4,$A$5:O$24,3,0)-$C19)/(VLOOKUP(R$4,$A$5:O$24,2,0)-$B19)),"")) ->  | S19: =IF(S18="","",IF(S$4>$A19,IF($B19=VLOOKUP(S$4,$A$5:$C$24,2,0),"",(VLOOKUP(S$4,$A$5:P$24,3,0)-$C19)/(VLOOKUP(S$4,$A$5:P$24,2,0)-$B19)),"")) ->  | T19: =IF(T18="","",IF(T$4>$A19,IF($B19=VLOOKUP(T$4,$A$5:$C$24,2,0),"",(VLOOKUP(T$4,$A$5:Q$24,3,0)-$C19)/(VLOOKUP(T$4,$A$5:Q$24,2,0)-$B19)),"")) ->  | U19: =IF(U18="","",IF(U$4>$A19,IF($B19=VLOOKUP(U$4,$A$5:$C$24,2,0),"",(VLOOKUP(U$4,$A$5:R$24,3,0)-$C19)/(VLOOKUP(U$4,$A$5:R$24,2,0)-$B19)),"")) ->  | V19: =IF(V18="","",IF(V$4>$A19,IF($B19=VLOOKUP(V$4,$A$5:$C$24,2,0),"",(VLOOKUP(V$4,$A$5:S$24,3,0)-$C19)/(VLOOKUP(V$4,$A$5:S$24,2,0)-$B19)),"")) ->  | W19: =IF(W18="","",IF(W$4>$A19,IF($B19=VLOOKUP(W$4,$A$5:$C$24,2,0),"",(VLOOKUP(W$4,$A$5:T$24,3,0)-$C19)/(VLOOKUP(W$4,$A$5:T$24,2,0)-$B19)),"")) ->  | X19: =IF(X18="","",IF(X$4>$A19,IF($B19=VLOOKUP(X$4,$A$5:$C$24,2,0),"",(VLOOKUP(X$4,$A$5:U$24,3,0)-$C19)/(VLOOKUP(X$4,$A$5:U$24,2,0)-$B19)),"")) -> 
E20: =COUNTIF(C21:C$24,">"&C20)-COUNTIF(C21:C$24,"<"&C20) -> 0 | F20: =IF(F19="","",IF(F$4>$A20,IF($B20=VLOOKUP(F$4,$A$5:$C$24,2,0),"",(VLOOKUP(F$4,$A$5:C$24,3,0)-$C20)/(VLOOKUP(F$4,$A$5:C$24,2,0)-$B20)),"")) ->  | G20: =IF(G19="","",IF(G$4>$A20,IF($B20=VLOOKUP(G$4,$A$5:$C$24,2,0),"",(VLOOKUP(G$4,$A$5:D$24,3,0)-$C20)/(VLOOKUP(G$4,$A$5:D$24,2,0)-$B20)),"")) ->  | H20: =IF(H19="","",IF(H$4>$A20,IF($B20=VLOOKUP(H$4,$A$5:$C$24,2,0),"",(VLOOKUP(H$4,$A$5:E$24,3,0)-$C20)/(VLOOKUP(H$4,$A$5:E$24,2,0)-$B20)),"")) ->  | I20: =IF(I19="","",IF(I$4>$A20,IF($B20=VLOOKUP(I$4,$A$5:$C$24,2,0),"",(VLOOKUP(I$4,$A$5:F$24,3,0)-$C20)/(VLOOKUP(I$4,$A$5:F$24,2,0)-$B20)),"")) ->  | J20: =IF(J19="","",IF(J$4>$A20,IF($B20=VLOOKUP(J$4,$A$5:$C$24,2,0),"",(VLOOKUP(J$4,$A$5:G$24,3,0)-$C20)/(VLOOKUP(J$4,$A$5:G$24,2,0)-$B20)),"")) ->  | K20: =IF(K19="","",IF(K$4>$A20,IF($B20=VLOOKUP(K$4,$A$5:$C$24,2,0),"",(VLOOKUP(K$4,$A$5:H$24,3,0)-$C20)/(VLOOKUP(K$4,$A$5:H$24,2,0)-$B20)),"")) ->  | L20: =IF(L19="","",IF(L$4>$A20,IF($B20=VLOOKUP(L$4,$A$5:$C$24,2,0),"",(VLOOKUP(L$4,$A$5:I$24,3,0)-$C20)/(VLOOKUP(L$4,$A$5:I$24,2,0)-$B20)),"")) ->  | M20: =IF(M19="","",IF(M$4>$A20,IF($B20=VLOOKUP(M$4,$A$5:$C$24,2,0),"",(VLOOKUP(M$4,$A$5:J$24,3,0)-$C20)/(VLOOKUP(M$4,$A$5:J$24,2,0)-$B20)),"")) ->  | N20: =IF(N19="","",IF(N$4>$A20,IF($B20=VLOOKUP(N$4,$A$5:$C$24,2,0),"",(VLOOKUP(N$4,$A$5:K$24,3,0)-$C20)/(VLOOKUP(N$4,$A$5:K$24,2,0)-$B20)),"")) ->  | O20: =IF(O19="","",IF(O$4>$A20,IF($B20=VLOOKUP(O$4,$A$5:$C$24,2,0),"",(VLOOKUP(O$4,$A$5:L$24,3,0)-$C20)/(VLOOKUP(O$4,$A$5:L$24,2,0)-$B20)),"")) ->  | P20: =IF(P19="","",IF(P$4>$A20,IF($B20=VLOOKUP(P$4,$A$5:$C$24,2,0),"",(VLOOKUP(P$4,$A$5:M$24,3,0)-$C20)/(VLOOKUP(P$4,$A$5:M$24,2,0)-$B20)),"")) ->  | Q20: =IF(Q19="","",IF(Q$4>$A20,IF($B20=VLOOKUP(Q$4,$A$5:$C$24,2,0),"",(VLOOKUP(Q$4,$A$5:N$24,3,0)-$C20)/(VLOOKUP(Q$4,$A$5:N$24,2,0)-$B20)),"")) ->  | R20: =IF(R19="","",IF(R$4>$A20,IF($B20=VLOOKUP(R$4,$A$5:$C$24,2,0),"",(VLOOKUP(R$4,$A$5:O$24,3,0)-$C20)/(VLOOKUP(R$4,$A$5:O$24,2,0)-$B20)),"")) ->  | S20: =IF(S19="","",IF(S$4>$A20,IF($B20=VLOOKUP(S$4,$A$5:$C$24,2,0),"",(VLOOKUP(S$4,$A$5:P$24,3,0)-$C20)/(VLOOKUP(S$4,$A$5:P$24,2,0)-$B20)),"")) ->  | T20: =IF(T19="","",IF(T$4>$A20,IF($B20=VLOOKUP(T$4,$A$5:$C$24,2,0),"",(VLOOKUP(T$4,$A$5:Q$24,3,0)-$C20)/(VLOOKUP(T$4,$A$5:Q$24,2,0)-$B20)),"")) ->  | U20: =IF(U19="","",IF(U$4>$A20,IF($B20=VLOOKUP(U$4,$A$5:$C$24,2,0),"",(VLOOKUP(U$4,$A$5:R$24,3,0)-$C20)/(VLOOKUP(U$4,$A$5:R$24,2,0)-$B20)),"")) ->  | V20: =IF(V19="","",IF(V$4>$A20,IF($B20=VLOOKUP(V$4,$A$5:$C$24,2,0),"",(VLOOKUP(V$4,$A$5:S$24,3,0)-$C20)/(VLOOKUP(V$4,$A$5:S$24,2,0)-$B20)),"")) ->  | W20: =IF(W19="","",IF(W$4>$A20,IF($B20=VLOOKUP(W$4,$A$5:$C$24,2,0),"",(VLOOKUP(W$4,$A$5:T$24,3,0)-$C20)/(VLOOKUP(W$4,$A$5:T$24,2,0)-$B20)),"")) ->  | X20: =IF(X19="","",IF(X$4>$A20,IF($B20=VLOOKUP(X$4,$A$5:$C$24,2,0),"",(VLOOKUP(X$4,$A$5:U$24,3,0)-$C20)/(VLOOKUP(X$4,$A$5:U$24,2,0)-$B20)),"")) -> 
E21: =COUNTIF(C22:C$24,">"&C21)-COUNTIF(C22:C$24,"<"&C21) -> 0 | F21: =IF(F20="","",IF(F$4>$A21,IF($B21=VLOOKUP(F$4,$A$5:$C$24,2,0),"",(VLOOKUP(F$4,$A$5:C$24,3,0)-$C21)/(VLOOKUP(F$4,$A$5:C$24,2,0)-$B21)),"")) ->  | G21: =IF(G20="","",IF(G$4>$A21,IF($B21=VLOOKUP(G$4,$A$5:$C$24,2,0),"",(VLOOKUP(G$4,$A$5:D$24,3,0)-$C21)/(VLOOKUP(G$4,$A$5:D$24,2,0)-$B21)),"")) ->  | H21: =IF(H20="","",IF(H$4>$A21,IF($B21=VLOOKUP(H$4,$A$5:$C$24,2,0),"",(VLOOKUP(H$4,$A$5:E$24,3,0)-$C21)/(VLOOKUP(H$4,$A$5:E$24,2,0)-$B21)),"")) ->  | I21: =IF(I20="","",IF(I$4>$A21,IF($B21=VLOOKUP(I$4,$A$5:$C$24,2,0),"",(VLOOKUP(I$4,$A$5:F$24,3,0)-$C21)/(VLOOKUP(I$4,$A$5:F$24,2,0)-$B21)),"")) ->  | J21: =IF(J20="","",IF(J$4>$A21,IF($B21=VLOOKUP(J$4,$A$5:$C$24,2,0),"",(VLOOKUP(J$4,$A$5:G$24,3,0)-$C21)/(VLOOKUP(J$4,$A$5:G$24,2,0)-$B21)),"")) ->  | K21: =IF(K20="","",IF(K$4>$A21,IF($B21=VLOOKUP(K$4,$A$5:$C$24,2,0),"",(VLOOKUP(K$4,$A$5:H$24,3,0)-$C21)/(VLOOKUP(K$4,$A$5:H$24,2,0)-$B21)),"")) ->  | L21: =IF(L20="","",IF(L$4>$A21,IF($B21=VLOOKUP(L$4,$A$5:$C$24,2,0),"",(VLOOKUP(L$4,$A$5:I$24,3,0)-$C21)/(VLOOKUP(L$4,$A$5:I$24,2,0)-$B21)),"")) ->  | M21: =IF(M20="","",IF(M$4>$A21,IF($B21=VLOOKUP(M$4,$A$5:$C$24,2,0),"",(VLOOKUP(M$4,$A$5:J$24,3,0)-$C21)/(VLOOKUP(M$4,$A$5:J$24,2,0)-$B21)),"")) ->  | N21: =IF(N20="","",IF(N$4>$A21,IF($B21=VLOOKUP(N$4,$A$5:$C$24,2,0),"",(VLOOKUP(N$4,$A$5:K$24,3,0)-$C21)/(VLOOKUP(N$4,$A$5:K$24,2,0)-$B21)),"")) ->  | O21: =IF(O20="","",IF(O$4>$A21,IF($B21=VLOOKUP(O$4,$A$5:$C$24,2,0),"",(VLOOKUP(O$4,$A$5:L$24,3,0)-$C21)/(VLOOKUP(O$4,$A$5:L$24,2,0)-$B21)),"")) ->  | P21: =IF(P20="","",IF(P$4>$A21,IF($B21=VLOOKUP(P$4,$A$5:$C$24,2,0),"",(VLOOKUP(P$4,$A$5:M$24,3,0)-$C21)/(VLOOKUP(P$4,$A$5:M$24,2,0)-$B21)),"")) ->  | Q21: =IF(Q20="","",IF(Q$4>$A21,IF($B21=VLOOKUP(Q$4,$A$5:$C$24,2,0),"",(VLOOKUP(Q$4,$A$5:N$24,3,0)-$C21)/(VLOOKUP(Q$4,$A$5:N$24,2,0)-$B21)),"")) ->  | R21: =IF(R20="","",IF(R$4>$A21,IF($B21=VLOOKUP(R$4,$A$5:$C$24,2,0),"",(VLOOKUP(R$4,$A$5:O$24,3,0)-$C21)/(VLOOKUP(R$4,$A$5:O$24,2,0)-$B21)),"")) ->  | S21: =IF(S20="","",IF(S$4>$A21,IF($B21=VLOOKUP(S$4,$A$5:$C$24,2,0),"",(VLOOKUP(S$4,$A$5:P$24,3,0)-$C21)/(VLOOKUP(S$4,$A$5:P$24,2,0)-$B21)),"")) ->  | T21: =IF(T20="","",IF(T$4>$A21,IF($B21=VLOOKUP(T$4,$A$5:$C$24,2,0),"",(VLOOKUP(T$4,$A$5:Q$24,3,0)-$C21)/(VLOOKUP(T$4,$A$5:Q$24,2,0)-$B21)),"")) ->  | U21: =IF(U20="","",IF(U$4>$A21,IF($B21=VLOOKUP(U$4,$A$5:$C$24,2,0),"",(VLOOKUP(U$4,$A$5:R$24,3,0)-$C21)/(VLOOKUP(U$4,$A$5:R$24,2,0)-$B21)),"")) ->  | V21: =IF(V20="","",IF(V$4>$A21,IF($B21=VLOOKUP(V$4,$A$5:$C$24,2,0),"",(VLOOKUP(V$4,$A$5:S$24,3,0)-$C21)/(VLOOKUP(V$4,$A$5:S$24,2,0)-$B21)),"")) ->  | W21: =IF(W20="","",IF(W$4>$A21,IF($B21=VLOOKUP(W$4,$A$5:$C$24,2,0),"",(VLOOKUP(W$4,$A$5:T$24,3,0)-$C21)/(VLOOKUP(W$4,$A$5:T$24,2,0)-$B21)),"")) ->  | X21: =IF(X20="","",IF(X$4>$A21,IF($B21=VLOOKUP(X$4,$A$5:$C$24,2,0),"",(VLOOKUP(X$4,$A$5:U$24,3,0)-$C21)/(VLOOKUP(X$4,$A$5:U$24,2,0)-$B21)),"")) -> 
E22: =COUNTIF(C23:C$24,">"&C22)-COUNTIF(C23:C$24,"<"&C22) -> 0 | F22: =IF(F21="","",IF(F$4>$A22,IF($B22=VLOOKUP(F$4,$A$5:$C$24,2,0),"",(VLOOKUP(F$4,$A$5:C$24,3,0)-$C22)/(VLOOKUP(F$4,$A$5:C$24,2,0)-$B22)),"")) ->  | G22: =IF(G21="","",IF(G$4>$A22,IF($B22=VLOOKUP(G$4,$A$5:$C$24,2,0),"",(VLOOKUP(G$4,$A$5:D$24,3,0)-$C22)/(VLOOKUP(G$4,$A$5:D$24,2,0)-$B22)),"")) ->  | H22: =IF(H21="","",IF(H$4>$A22,IF($B22=VLOOKUP(H$4,$A$5:$C$24,2,0),"",(VLOOKUP(H$4,$A$5:E$24,3,0)-$C22)/(VLOOKUP(H$4,$A$5:E$24,2,0)-$B22)),"")) ->  | I22: =IF(I21="","",IF(I$4>$A22,IF($B22=VLOOKUP(I$4,$A$5:$C$24,2,0),"",(VLOOKUP(I$4,$A$5:F$24,3,0)-$C22)/(VLOOKUP(I$4,$A$5:F$24,2,0)-$B22)),"")) ->  | J22: =IF(J21="","",IF(J$4>$A22,IF($B22=VLOOKUP(J$4,$A$5:$C$24,2,0),"",(VLOOKUP(J$4,$A$5:G$24,3,0)-$C22)/(VLOOKUP(J$4,$A$5:G$24,2,0)-$B22)),"")) ->  | K22: =IF(K21="","",IF(K$4>$A22,IF($B22=VLOOKUP(K$4,$A$5:$C$24,2,0),"",(VLOOKUP(K$4,$A$5:H$24,3,0)-$C22)/(VLOOKUP(K$4,$A$5:H$24,2,0)-$B22)),"")) ->  | L22: =IF(L21="","",IF(L$4>$A22,IF($B22=VLOOKUP(L$4,$A$5:$C$24,2,0),"",(VLOOKUP(L$4,$A$5:I$24,3,0)-$C22)/(VLOOKUP(L$4,$A$5:I$24,2,0)-$B22)),"")) ->  | M22: =IF(M21="","",IF(M$4>$A22,IF($B22=VLOOKUP(M$4,$A$5:$C$24,2,0),"",(VLOOKUP(M$4,$A$5:J$24,3,0)-$C22)/(VLOOKUP(M$4,$A$5:J$24,2,0)-$B22)),"")) ->  | N22: =IF(N21="","",IF(N$4>$A22,IF($B22=VLOOKUP(N$4,$A$5:$C$24,2,0),"",(VLOOKUP(N$4,$A$5:K$24,3,0)-$C22)/(VLOOKUP(N$4,$A$5:K$24,2,0)-$B22)),"")) ->  | O22: =IF(O21="","",IF(O$4>$A22,IF($B22=VLOOKUP(O$4,$A$5:$C$24,2,0),"",(VLOOKUP(O$4,$A$5:L$24,3,0)-$C22)/(VLOOKUP(O$4,$A$5:L$24,2,0)-$B22)),"")) ->  | P22: =IF(P21="","",IF(P$4>$A22,IF($B22=VLOOKUP(P$4,$A$5:$C$24,2,0),"",(VLOOKUP(P$4,$A$5:M$24,3,0)-$C22)/(VLOOKUP(P$4,$A$5:M$24,2,0)-$B22)),"")) ->  | Q22: =IF(Q21="","",IF(Q$4>$A22,IF($B22=VLOOKUP(Q$4,$A$5:$C$24,2,0),"",(VLOOKUP(Q$4,$A$5:N$24,3,0)-$C22)/(VLOOKUP(Q$4,$A$5:N$24,2,0)-$B22)),"")) ->  | R22: =IF(R21="","",IF(R$4>$A22,IF($B22=VLOOKUP(R$4,$A$5:$C$24,2,0),"",(VLOOKUP(R$4,$A$5:O$24,3,0)-$C22)/(VLOOKUP(R$4,$A$5:O$24,2,0)-$B22)),"")) ->  | S22: =IF(S21="","",IF(S$4>$A22,IF($B22=VLOOKUP(S$4,$A$5:$C$24,2,0),"",(VLOOKUP(S$4,$A$5:P$24,3,0)-$C22)/(VLOOKUP(S$4,$A$5:P$24,2,0)-$B22)),"")) ->  | T22: =IF(T21="","",IF(T$4>$A22,IF($B22=VLOOKUP(T$4,$A$5:$C$24,2,0),"",(VLOOKUP(T$4,$A$5:Q$24,3,0)-$C22)/(VLOOKUP(T$4,$A$5:Q$24,2,0)-$B22)),"")) ->  | U22: =IF(U21="","",IF(U$4>$A22,IF($B22=VLOOKUP(U$4,$A$5:$C$24,2,0),"",(VLOOKUP(U$4,$A$5:R$24,3,0)-$C22)/(VLOOKUP(U$4,$A$5:R$24,2,0)-$B22)),"")) ->  | V22: =IF(V21="","",IF(V$4>$A22,IF($B22=VLOOKUP(V$4,$A$5:$C$24,2,0),"",(VLOOKUP(V$4,$A$5:S$24,3,0)-$C22)/(VLOOKUP(V$4,$A$5:S$24,2,0)-$B22)),"")) ->  | W22: =IF(W21="","",IF(W$4>$A22,IF($B22=VLOOKUP(W$4,$A$5:$C$24,2,0),"",(VLOOKUP(W$4,$A$5:T$24,3,0)-$C22)/(VLOOKUP(W$4,$A$5:T$24,2,0)-$B22)),"")) ->  | X22: =IF(X21="","",IF(X$4>$A22,IF($B22=VLOOKUP(X$4,$A$5:$C$24,2,0),"",(VLOOKUP(X$4,$A$5:U$24,3,0)-$C22)/(VLOOKUP(X$4,$A$5:U$24,2,0)-$B22)),"")) -> 
E23: =COUNTIF(C24:C$24,">"&C23)-COUNTIF(C24:C$24,"<"&C23) -> 0 | F23: =IF(F22="","",IF(F$4>$A23,IF($B23=VLOOKUP(F$4,$A$5:$C$24,2,0),"",(VLOOKUP(F$4,$A$5:C$24,3,0)-$C23)/(VLOOKUP(F$4,$A$5:C$24,2,0)-$B23)),"")) ->  | G23: =IF(G22="","",IF(G$4>$A23,IF($B23=VLOOKUP(G$4,$A$5:$C$24,2,0),"",(VLOOKUP(G$4,$A$5:D$24,3,0)-$C23)/(VLOOKUP(G$4,$A$5:D$24,2,0)-$B23)),"")) ->  | H23: =IF(H22="","",IF(H$4>$A23,IF($B23=VLOOKUP(H$4,$A$5:$C$24,2,0),"",(VLOOKUP(H$4,$A$5:E$24,3,0)-$C23)/(VLOOKUP(H$4,$A$5:E$24,2,0)-$B23)),"")) ->  | I23: =IF(I22="","",IF(I$4>$A23,IF($B23=VLOOKUP(I$4,$A$5:$C$24,2,0),"",(VLOOKUP(I$4,$A$5:F$24,3,0)-$C23)/(VLOOKUP(I$4,$A$5:F$24,2,0)-$B23)),"")) ->  | J23: =IF(J22="","",IF(J$4>$A23,IF($B23=VLOOKUP(J$4,$A$5:$C$24,2,0),"",(VLOOKUP(J$4,$A$5:G$24,3,0)-$C23)/(VLOOKUP(J$4,$A$5:G$24,2,0)-$B23)),"")) ->  | K23: =IF(K22="","",IF(K$4>$A23,IF($B23=VLOOKUP(K$4,$A$5:$C$24,2,0),"",(VLOOKUP(K$4,$A$5:H$24,3,0)-$C23)/(VLOOKUP(K$4,$A$5:H$24,2,0)-$B23)),"")) ->  | L23: =IF(L22="","",IF(L$4>$A23,IF($B23=VLOOKUP(L$4,$A$5:$C$24,2,0),"",(VLOOKUP(L$4,$A$5:I$24,3,0)-$C23)/(VLOOKUP(L$4,$A$5:I$24,2,0)-$B23)),"")) ->  | M23: =IF(M22="","",IF(M$4>$A23,IF($B23=VLOOKUP(M$4,$A$5:$C$24,2,0),"",(VLOOKUP(M$4,$A$5:J$24,3,0)-$C23)/(VLOOKUP(M$4,$A$5:J$24,2,0)-$B23)),"")) ->  | N23: =IF(N22="","",IF(N$4>$A23,IF($B23=VLOOKUP(N$4,$A$5:$C$24,2,0),"",(VLOOKUP(N$4,$A$5:K$24,3,0)-$C23)/(VLOOKUP(N$4,$A$5:K$24,2,0)-$B23)),"")) ->  | O23: =IF(O22="","",IF(O$4>$A23,IF($B23=VLOOKUP(O$4,$A$5:$C$24,2,0),"",(VLOOKUP(O$4,$A$5:L$24,3,0)-$C23)/(VLOOKUP(O$4,$A$5:L$24,2,0)-$B23)),"")) ->  | P23: =IF(P22="","",IF(P$4>$A23,IF($B23=VLOOKUP(P$4,$A$5:$C$24,2,0),"",(VLOOKUP(P$4,$A$5:M$24,3,0)-$C23)/(VLOOKUP(P$4,$A$5:M$24,2,0)-$B23)),"")) ->  | Q23: =IF(Q22="","",IF(Q$4>$A23,IF($B23=VLOOKUP(Q$4,$A$5:$C$24,2,0),"",(VLOOKUP(Q$4,$A$5:N$24,3,0)-$C23)/(VLOOKUP(Q$4,$A$5:N$24,2,0)-$B23)),"")) ->  | R23: =IF(R22="","",IF(R$4>$A23,IF($B23=VLOOKUP(R$4,$A$5:$C$24,2,0),"",(VLOOKUP(R$4,$A$5:O$24,3,0)-$C23)/(VLOOKUP(R$4,$A$5:O$24,2,0)-$B23)),"")) ->  | S23: =IF(S22="","",IF(S$4>$A23,IF($B23=VLOOKUP(S$4,$A$5:$C$24,2,0),"",(VLOOKUP(S$4,$A$5:P$24,3,0)-$C23)/(VLOOKUP(S$4,$A$5:P$24,2,0)-$B23)),"")) ->  | T23: =IF(T22="","",IF(T$4>$A23,IF($B23=VLOOKUP(T$4,$A$5:$C$24,2,0),"",(VLOOKUP(T$4,$A$5:Q$24,3,0)-$C23)/(VLOOKUP(T$4,$A$5:Q$24,2,0)-$B23)),"")) ->  | U23: =IF(U22="","",IF(U$4>$A23,IF($B23=VLOOKUP(U$4,$A$5:$C$24,2,0),"",(VLOOKUP(U$4,$A$5:R$24,3,0)-$C23)/(VLOOKUP(U$4,$A$5:R$24,2,0)-$B23)),"")) ->  | V23: =IF(V22="","",IF(V$4>$A23,IF($B23=VLOOKUP(V$4,$A$5:$C$24,2,0),"",(VLOOKUP(V$4,$A$5:S$24,3,0)-$C23)/(VLOOKUP(V$4,$A$5:S$24,2,0)-$B23)),"")) ->  | W23: =IF(W22="","",IF(W$4>$A23,IF($B23=VLOOKUP(W$4,$A$5:$C$24,2,0),"",(VLOOKUP(W$4,$A$5:T$24,3,0)-$C23)/(VLOOKUP(W$4,$A$5:T$24,2,0)-$B23)),"")) ->  | X23: =IF(X22="","",IF(X$4>$A23,IF($B23=VLOOKUP(X$4,$A$5:$C$24,2,0),"",(VLOOKUP(X$4,$A$5:U$24,3,0)-$C23)/(VLOOKUP(X$4,$A$5:U$24,2,0)-$B23)),"")) -> 
E24: =COUNTIF(C$24:C25,">"&C24)-COUNTIF(C$24:C25,"<"&C24) -> 0 | F24: =IF(F23="","",IF(F$4>$A24,IF($B24=VLOOKUP(F$4,$A$5:$C$24,2,0),"",(VLOOKUP(F$4,$A$5:C$24,3,0)-$C24)/(VLOOKUP(F$4,$A$5:C$24,2,0)-$B24)),"")) ->  | G24: =IF(G23="","",IF(G$4>$A24,IF($B24=VLOOKUP(G$4,$A$5:$C$24,2,0),"",(VLOOKUP(G$4,$A$5:D$24,3,0)-$C24)/(VLOOKUP(G$4,$A$5:D$24,2,0)-$B24)),"")) ->  | H24: =IF(H23="","",IF(H$4>$A24,IF($B24=VLOOKUP(H$4,$A$5:$C$24,2,0),"",(VLOOKUP(H$4,$A$5:E$24,3,0)-$C24)/(VLOOKUP(H$4,$A$5:E$24,2,0)-$B24)),"")) ->  | I24: =IF(I23="","",IF(I$4>$A24,IF($B24=VLOOKUP(I$4,$A$5:$C$24,2,0),"",(VLOOKUP(I$4,$A$5:F$24,3,0)-$C24)/(VLOOKUP(I$4,$A$5:F$24,2,0)-$B24)),"")) ->  | J24: =IF(J23="","",IF(J$4>$A24,IF($B24=VLOOKUP(J$4,$A$5:$C$24,2,0),"",(VLOOKUP(J$4,$A$5:G$24,3,0)-$C24)/(VLOOKUP(J$4,$A$5:G$24,2,0)-$B24)),"")) ->  | K24: =IF(K23="","",IF(K$4>$A24,IF($B24=VLOOKUP(K$4,$A$5:$C$24,2,0),"",(VLOOKUP(K$4,$A$5:H$24,3,0)-$C24)/(VLOOKUP(K$4,$A$5:H$24,2,0)-$B24)),"")) ->  | L24: =IF(L23="","",IF(L$4>$A24,IF($B24=VLOOKUP(L$4,$A$5:$C$24,2,0),"",(VLOOKUP(L$4,$A$5:I$24,3,0)-$C24)/(VLOOKUP(L$4,$A$5:I$24,2,0)-$B24)),"")) ->  | M24: =IF(M23="","",IF(M$4>$A24,IF($B24=VLOOKUP(M$4,$A$5:$C$24,2,0),"",(VLOOKUP(M$4,$A$5:J$24,3,0)-$C24)/(VLOOKUP(M$4,$A$5:J$24,2,0)-$B24)),"")) ->  | N24: =IF(N23="","",IF(N$4>$A24,IF($B24=VLOOKUP(N$4,$A$5:$C$24,2,0),"",(VLOOKUP(N$4,$A$5:K$24,3,0)-$C24)/(VLOOKUP(N$4,$A$5:K$24,2,0)-$B24)),"")) ->  | O24: =IF(O23="","",IF(O$4>$A24,IF($B24=VLOOKUP(O$4,$A$5:$C$24,2,0),"",(VLOOKUP(O$4,$A$5:L$24,3,0)-$C24)/(VLOOKUP(O$4,$A$5:L$24,2,0)-$B24)),"")) ->  | P24: =IF(P23="","",IF(P$4>$A24,IF($B24=VLOOKUP(P$4,$A$5:$C$24,2,0),"",(VLOOKUP(P$4,$A$5:M$24,3,0)-$C24)/(VLOOKUP(P$4,$A$5:M$24,2,0)-$B24)),"")) ->  | Q24: =IF(Q23="","",IF(Q$4>$A24,IF($B24=VLOOKUP(Q$4,$A$5:$C$24,2,0),"",(VLOOKUP(Q$4,$A$5:N$24,3,0)-$C24)/(VLOOKUP(Q$4,$A$5:N$24,2,0)-$B24)),"")) ->  | R24: =IF(R23="","",IF(R$4>$A24,IF($B24=VLOOKUP(R$4,$A$5:$C$24,2,0),"",(VLOOKUP(R$4,$A$5:O$24,3,0)-$C24)/(VLOOKUP(R$4,$A$5:O$24,2,0)-$B24)),"")) ->  | S24: =IF(S23="","",IF(S$4>$A24,IF($B24=VLOOKUP(S$4,$A$5:$C$24,2,0),"",(VLOOKUP(S$4,$A$5:P$24,3,0)-$C24)/(VLOOKUP(S$4,$A$5:P$24,2,0)-$B24)),"")) ->  | T24: =IF(T23="","",IF(T$4>$A24,IF($B24=VLOOKUP(T$4,$A$5:$C$24,2,0),"",(VLOOKUP(T$4,$A$5:Q$24,3,0)-$C24)/(VLOOKUP(T$4,$A$5:Q$24,2,0)-$B24)),"")) ->  | U24: =IF(U23="","",IF(U$4>$A24,IF($B24=VLOOKUP(U$4,$A$5:$C$24,2,0),"",(VLOOKUP(U$4,$A$5:R$24,3,0)-$C24)/(VLOOKUP(U$4,$A$5:R$24,2,0)-$B24)),"")) ->  | V24: =IF(V23="","",IF(V$4>$A24,IF($B24=VLOOKUP(V$4,$A$5:$C$24,2,0),"",(VLOOKUP(V$4,$A$5:S$24,3,0)-$C24)/(VLOOKUP(V$4,$A$5:S$24,2,0)-$B24)),"")) ->  | W24: =IF(W23="","",IF(W$4>$A24,IF($B24=VLOOKUP(W$4,$A$5:$C$24,2,0),"",(VLOOKUP(W$4,$A$5:T$24,3,0)-$C24)/(VLOOKUP(W$4,$A$5:T$24,2,0)-$B24)),"")) ->  | X24: =IF(X23="","",IF(X$4>$A24,IF($B24=VLOOKUP(X$4,$A$5:$C$24,2,0),"",(VLOOKUP(X$4,$A$5:U$24,3,0)-$C24)/(VLOOKUP(X$4,$A$5:U$24,2,0)-$B24)),"")) -> 
E25: =SUM(E5:E24) -> -5 | Z25: =SUM(Z5:Z24) -> 528
H26: =COUNT(F5:X24) -> 41 | I26: =COUNTIF(F5:X24,">-0.04427083") -> 41 | J26: =COUNTIF(F5:X24,"<-0.04427083")-K26 -> -9 | K26: 9
A27: Median Slope: | E27: =MEDIAN(F5:X24) -> 0
A28: Median Y: | E28: =MEDIAN(C5:C24) -> 1
A29: Median X: | E29: =MEDIAN(B5:B24) -> 42963.5
A30: Theil-Sen Intercept: | E30: =E28-(E27*E29) -> 1
A31: sd[S] | E31: =SQRT(((NPoints*(NPoints-1)*(2*NPoints+5))-Z25)/18) -> 3.872983346
A32: Normalized Mann-Kendall Statistic | E32: =(E25-SIGN(E25))/E31 -> -1.032795559
A34: Chart variables
B35: OLS | C35: TS
A36: Min X | B36: =MIN($B5:$B24) -> 42887 | C36: =MIN($B5:$B24) -> 42887
A37: Max X | B37: =MAX($B5:$B24) -> 43070 | C37: =MAX($B5:$B24) -> 43070
A38: Min Y | B38: =B36*'Trend-Normal'!I7+'Trend-Normal'!I8 -> 6.55246 | C38: =C36*E$27+E$30 -> 1
A39: Max Y | B39: =B37*'Trend-Normal'!I7+'Trend-Normal'!I8 -> 5.5606 | C39: =C37*E$27+E$30 -> 1

Sheet HiddenTSBootstrap (hidden)
A1: Updated? | B1: No | W1: =VLOOKUP(W3,DataTransforms!$A$3:$B$22,2,0) -> 43101 | X1: =VLOOKUP(X3,DataTransforms!$A$3:$B$22,2,0) -> 43132 | Y1: =VLOOKUP(Y3,DataTransforms!$A$3:$B$22,2,0) -> 43160 | Z1: =VLOOKUP(Z3,DataTransforms!$A$3:$B$22,2,0) -> 43191 | AA1: =VLOOKUP(AA3,DataTransforms!$A$3:$B$22,2,0) -> 43221 | AB1: =VLOOKUP(AB3,DataTransforms!$A$3:$B$22,2,0) -> 43252 | AC1: =VLOOKUP(AC3,DataTransforms!$A$3:$B$22,2,0) -> 43282 | AD1: =VLOOKUP(AD3,DataTransforms!$A$3:$B$22,2,0) ->  | AE1: =VLOOKUP(AE3,DataTransforms!$A$3:$B$22,2,0) ->  | AF1: =VLOOKUP(AF3,DataTransforms!$A$3:$B$22,2,0) ->  | AG1: =VLOOKUP(AG3,DataTransforms!$A$3:$B$22,2,0) ->  | AH1: =VLOOKUP(AH3,DataTransforms!$A$3:$B$22,2,0) ->  | AI1: =VLOOKUP(AI3,DataTransforms!$A$3:$B$22,2,0) ->  | AJ1: =VLOOKUP(AJ3,DataTransforms!$A$3:$B$22,2,0) ->  | AK1: =VLOOKUP(AK3,DataTransforms!$A$3:$B$22,2,0) ->  | AL1: =VLOOKUP(AL3,DataTransforms!$A$3:$B$22,2,0) ->  | AM1: =VLOOKUP(AM3,DataTransforms!$A$3:$B$22,2,0) ->  | AN1: =VLOOKUP(AN3,DataTransforms!$A$3:$B$22,2,0) ->  | AO1: =VLOOKUP(AO3,DataTransforms!$A$3:$B$22,2,0) ->  | AP1: =VLOOKUP(AP3,DataTransforms!$A$3:$B$22,2,0) ->  | AT1: Est times | AU1: =VLOOKUP(AU3,DataTransforms!$A$3:$B$22,2,0) -> 43101 | AV1: =VLOOKUP(AV3,DataTransforms!$A$3:$B$22,2,0) -> 43132 | AW1: =VLOOKUP(AW3,DataTransforms!$A$3:$B$22,2,0) -> 43160 | AX1: =VLOOKUP(AX3,DataTransforms!$A$3:$B$22,2,0) -> 43191 | AY1: =VLOOKUP(AY3,DataTransforms!$A$3:$B$22,2,0) -> 43221 | AZ1: =VLOOKUP(AZ3,DataTransforms!$A$3:$B$22,2,0) -> 43252 | BA1: =VLOOKUP(BA3,DataTransforms!$A$3:$B$22,2,0) -> 43282 | BB1: =VLOOKUP(BB3,DataTransforms!$A$3:$B$22,2,0) ->  | BC1: =VLOOKUP(BC3,DataTransforms!$A$3:$B$22,2,0) ->  | BD1: =VLOOKUP(BD3,DataTransforms!$A$3:$B$22,2,0) ->  | BE1: =VLOOKUP(BE3,DataTransforms!$A$3:$B$22,2,0) ->  | BF1: =VLOOKUP(BF3,DataTransforms!$A$3:$B$22,2,0) ->  | BG1: =VLOOKUP(BG3,DataTransforms!$A$3:$B$22,2,0) ->  | BH1: =VLOOKUP(BH3,DataTransforms!$A$3:$B$22,2,0) ->  | BI1: =VLOOKUP(BI3,DataTransforms!$A$3:$B$22,2,0) ->  | BJ1: =VLOOKUP(BJ3,DataTransforms!$A$3:$B$22,2,0) ->  | BK1: =VLOOKUP(BK3,DataTransforms!$A$3:$B$22,2,0) ->  | BL1: =VLOOKUP(BL3,DataTransforms!$A$3:$B$22,2,0) ->  | BM1: =VLOOKUP(BM3,DataTransforms!$A$3:$B$22,2,0) ->  | BN1: =VLOOKUP(BN3,DataTransforms!$A$3:$B$22,2,0) ->  | DF1: =1001*(1-(1-Data_Input!B15)/2) -> 975.975 | DG1: =INT(DF1) -> 975 | DH1: =DG1+1 -> 976 | DI1: Bounding locations of Upper Percentile
B2: Sampled times | W2: Sampled bootstrap concentrations | AR2: Theil-Sen terms | AU2: Estimated concentrations for actual time points | BP2: Ranks | CL2: Upper Percentiles
A3: i | B3: 1 | C3: 2 | D3: 3 | E3: 4 | F3: 5 | G3: 6 | H3: 7 | I3: 8 | J3: 9 | K3: 10 | L3: 11 | M3: 12 | N3: 13 | O3: 14 | P3: 15 | Q3: 16 | R3: 17 | S3: 18 | T3: 19 | U3: 20 | W3: 1 | X3: 2 | Y3: 3 | Z3: 4 | AA3: 5 | AB3: 6 | AC3: 7 | AD3: 8 | AE3: 9 | AF3: 10 | AG3: 11 | AH3: 12 | AI3: 13 | AJ3: 14 | AK3: 15 | AL3: 16 | AM3: 17 | AN3: 18 | AO3: 19 | AP3: 20 | AR3: TS Slope | AS3: TS Intercept | AU3: 1 | AV3: 2 | AW3: 3 | AX3: 4 | AY3: 5 | AZ3: 6 | BA3: 7 | BB3: 8 | BC3: 9 | BD3: 10 | BE3: 11 | BF3: 12 | BG3: 13 | BH3: 14 | BI3: 15 | BJ3: 16 | BK3: 17 | BL3: 18 | BM3: 19 | BN3: 20 | BP3: 1 | BQ3: 2 | BR3: 3 | BS3: 4 | BT3: 5 | BU3: 6 | BV3: 7 | BW3: 8 | BX3: 9 | BY3: 10 | BZ3: 11 | CA3: 12 | CB3: 13 | CC3: 14 | CD3: 15 | CE3: 16 | CF3: 17 | CG3: 18 | CH3: 19 | CI3: 20 | CK3: i | CL3: 1 | CM3: 2 | CN3: 3 | CO3: 4 | CP3: 5 | CQ3: 6 | CR3: 7 | CS3: 8 | CT3: 9 | CU3: 10 | CV3: 11 | CW3: 12 | CX3: 13 | CY3: 14 | CZ3: 15 | DA3: 16 | DB3: 17 | DC3: 18 | DD3: 19 | DE3: 20 | DG3: Sort area
A4: 1 | B4: 42979 | C4: 43070 | D4: 43009 | E4: 42856 | F4: 43009 | G4: 43070 | H4: 42948 | I4: 43009 | J4: 42917 | K4: 43009 | W4: 0.4 | X4: 1 | Y4: 0.3 | Z4: 0.5 | AA4: 0.3 | AB4: 1 | AC4: 1 | AD4: 0.3 | AE4: 1 | AF4: 0.3 | AR4: -0.000406504065 | AS4: 17.93333333 | AU4: 0.5243902439 | AV4: 0.512195122 | AW4: 0.4995934959 | AX4: 0.487398374 | AY4: 0.474796748 | AZ4: 0.462195122 | BA4: 0.45 | BB4: 0.437398374 | BC4: 0.425203252 | BD4: 0.412601626 | BE4: 14.80185185 | BF4: 15 | BG4: 15.2037037 | BH4: 15.33333333 | BI4: 15.43518519 | BJ4: 15.6462963 | BK4: 15.79074074 | BL4: 15.98518519 | BM4: 16.12777778 | BN4: 3.439 | BP4: No longer needed | CK4: Time | CL4: =IF(AU1="",NA(),AU1) -> 43101 | CM4: =IF(AV1="",NA(),AV1) -> 43132 | CN4: 43160 | CO4: 43191 | CP4: 43221 | CQ4: 43252 | CR4: 43282 | DG4: -0.7
A5: 2 | B5: 43070 | C5: 42856 | D5: 42917 | E5: 42887 | F5: 42887 | G5: 43070 | H5: 42979 | I5: 42948 | J5: 43070 | K5: 42887 | W5: 1 | X5: 0.5 | Y5: 1 | Z5: 0.5 | AA5: 0.5 | AB5: 1 | AC5: 0.4 | AD5: 1 | AE5: 1 | AF5: 0.5 | AR5: 0.002732240437 | AS5: -116.5519126 | AU5: 0.4590163934 | AV5: 0.5409836066 | AW5: 0.6256830601 | AX5: 0.7076502732 | AY5: 0.7923497268 | AZ5: 0.8770491803 | BA5: 0.9590163934 | BB5: 1.043715847 | BC5: 1.12568306 | BD5: 1.210382514 | BE5: 15.31546708 | BF5: 15.6431853 | BG5: 15.98009188 | BH5: 16.19448698 | BI5: 16.36294028 | BJ5: 16.71209801 | BK5: 16.95099541 | BL5: 17.27258806 | BM5: 17.50842266 | BN5: 3.7545 | CK5: 95PCT | CL5: 1.320991848 | CM5: 1.24621418 | CN5: 1.150179739 | CO5: 1.083559783 | CP5: 1 | CQ5: 1 | CR5: 1 | CS5: 1 | CT5: 1 | CU5: 1.043032787 | CV5: =NA() ->  | CW5: =NA() ->  | CX5: =NA() ->  | CY5: =NA() ->  | CZ5: =NA() ->  | DA5: =NA() ->  | DB5: =NA() ->  | DC5: =NA() ->  | DD5: =NA() ->  | DE5: =NA() ->  | DG5: -0.3641304348
A6: 3 | B6: 42917 | C6: 43101 | D6: 42856 | E6: 42856 | F6: 42856 | G6: 42979 | H6: 43040 | I6: 42826 | J6: 43040 | K6: 43101 | W6: 1 | X6: 0.5 | Y6: 0.5 | Z6: 0.5 | AA6: 0.5 | AB6: 0.4 | AC6: 1 | AD6: 1 | AE6: 1 | AF6: 0.5 | AR6: 0 | AS6: 0.5 | AU6: 0.5 | AV6: 0.5 | AW6: 0.5 | AX6: 0.5 | AY6: 0.5 | AZ6: 0.5 | BA6: 0.5 | BB6: 0.5 | BC6: 0.5 | BD6: 0.5 | BE6: 15 | BF6: 15.28157895 | BG6: 15.57105263 | BH6: 15.75526316 | BI6: 15.9 | BJ6: 16.2 | BK6: 16.40526316 | BL6: 16.68157895 | BM6: 16.88421053 | BN6: 3.627318182 | CK6: Rounded | CL6: =IF(AU1="","",ROUND(CL5,2-INT(LOG(ABS(CL5))))) -> 1.32 | CM6: =IF(AV1="","",ROUND(CM5,2-INT(LOG(ABS(CM5))))) -> 1.25 | CN6: 1.15 | CO6: 1.08 | CP6: 1 | CQ6: 1 | CR6: 1 | DG6: -0.2282608696
A7: 4 | B7: 42948 | C7: 43009 | D7: 42948 | E7: 42948 | F7: 42979 | G7: 43070 | H7: 42979 | I7: 42948 | J7: 43009 | K7: 43009 | W7: 1 | X7: 0.3 | Y7: 1 | Z7: 1 | AA7: 0.4 | AB7: 1 | AC7: 0.4 | AD7: 1 | AE7: 0.3 | AF7: 0.3 | AR7: -0.01147540984 | AS7: 493.9016393 | AU7: 2.455737705 | AV7: 2.11147541 | AW7: 1.755737705 | AX7: 1.41147541 | AY7: 1.055737705 | AZ7: 0.7 | BA7: 0.3557377049 | BB7: 0 | BC7: -0.3442622951 | BD7: -0.7 | BE7: 13.13537519 | BF7: 13.46309342 | BG7: 13.8 | BH7: 14.0143951 | BI7: 14.18284839 | BJ7: 14.53200613 | BK7: 14.77090352 | BL7: 15.09249617 | BM7: 15.32833078 | BN7: 3.811571429 | CK7: The 95th percentiles are entered by them macro TheilsSenBS. | DG7: -0.2019125683
A8: 5 | B8: 42856 | C8: 42856 | D8: 42948 | E8: 43009 | F8: 42979 | G8: 42979 | H8: 42887 | I8: 43101 | J8: 42826 | K8: 42917 | W8: 0.5 | X8: 0.5 | Y8: 1 | Z8: 0.3 | AA8: 0.4 | AB8: 0.4 | AC8: 0.5 | AD8: 0.5 | AE8: 1 | AF8: 1 | AR8: -0.001086956522 | AS8: 47.16576087 | AU8: 0.6157608696 | AV8: 0.5831521739 | AW8: 0.5494565217 | AX8: 0.5168478261 | AY8: 0.4831521739 | AZ8: 0.4494565217 | BA8: 0.4168478261 | BB8: 0.3831521739 | BC8: 0.3505434783 | BD8: 0.3168478261 | BE8: 16.60354957 | BF8: 16.99645043 | BG8: 17.4003672 | BH8: 17.65740514 | BI8: 17.85936353 | BJ8: 18.27796818 | BK8: 18.56438188 | BL8: 18.9499388 | BM8: 19.23268054 | BN8: 3.631722222 | DG8: -0.1278688525
A9: 6 | B9: 42826 | C9: 43070 | D9: 43040 | E9: 42856 | F9: 42979 | G9: 43070 | H9: 42979 | I9: 42948 | J9: 43070 | K9: 43009 | W9: 1 | X9: 1 | Y9: 1 | Z9: 0.5 | AA9: 0.4 | AB9: 1 | AC9: 0.4 | AD9: 1 | AE9: 1 | AF9: 0.3 | AR9: 0 | AS9: 1 | AU9: 1 | AV9: 1 | AW9: 1 | AX9: 1 | AY9: 1 | AZ9: 1 | BA9: 1 | BB9: 1 | BC9: 1 | BD9: 1 | BE9: 13.80769231 | BF9: 14.01346154 | BG9: 14.225 | BH9: 14.35961538 | BI9: 14.46538462 | BJ9: 14.68461538 | BK9: 14.83461538 | BL9: 15.03653846 | BM9: 15.18461538 | BN9: 3.9655 | DG9: -0.1116666667
A10: 7 | B10: 43040 | C10: 43040 | D10: 42856 | E10: 42948 | F10: 42979 | G10: 42979 | H10: 42826 | I10: 42948 | J10: 43009 | K10: 43101 | W10: 1 | X10: 1 | Y10: 0.5 | Z10: 1 | AA10: 0.4 | AB10: 0.4 | AC10: 1 | AD10: 1 | AE10: 0.3 | AF10: 0.5 | AR10: 0 | AS10: 0.75 | AU10: 0.75 | AV10: 0.75 | AW10: 0.75 | AX10: 0.75 | AY10: 0.75 | AZ10: 0.75 | BA10: 0.75 | BB10: 0.75 | BC10: 0.75 | BD10: 0.75 | BE10: 13.87766234 | BF10: 14.1 | BG10: 14.32857143 | BH10: 14.47402597 | BI10: 14.58831169 | BJ10: 14.82519481 | BK10: 14.98727273 | BL10: 15.20545455 | BM10: 15.36545455 | BN10: 3.984071429 | DG10: -0.06857923497
A11: 8 | B11: 43009 | C11: 42887 | D11: 43070 | E11: 43040 | F11: 43040 | G11: 42826 | H11: 42979 | I11: 42887 | J11: 42887 | K11: 42887 | W11: 0.3 | X11: 0.5 | Y11: 1 | Z11: 1 | AA11: 1 | AB11: 1 | AC11: 0.4 | AD11: 0.5 | AE11: 0.5 | AF11: 0.5 | AR11: 0 | AS11: 0.5 | AU11: 0.5 | AV11: 0.5 | AW11: 0.5 | AX11: 0.5 | AY11: 0.5 | AZ11: 0.5 | BA11: 0.5 | BB11: 0.5 | BC11: 0.5 | BD11: 0.5 | BE11: 14.49906542 | BF11: 14.78239875 | BG11: 15.07367601 | BH11: 15.25903427 | BI11: 15.4046729 | BJ11: 15.70654206 | BK11: 15.91308411 | BL11: 16.1911215 | BM11: 16.39501558 | BN11: 3.3215 | DG11: -0.06
A12: 9 | B12: 42887 | C12: 42887 | D12: 43009 | E12: 42887 | F12: 42887 | G12: 43070 | H12: 43040 | I12: 43101 | J12: 42917 | K12: 42887 | W12: 0.5 | X12: 0.5 | Y12: 0.3 | Z12: 0.5 | AA12: 0.5 | AB12: 1 | AC12: 1 | AD12: 0.5 | AE12: 1 | AF12: 0.5 | AR12: 0.002173913043 | AS12: -92.76521739 | AU12: 0.3347826087 | AV12: 0.4 | AW12: 0.4673913043 | AX12: 0.5326086957 | AY12: 0.6 | AZ12: 0.6673913043 | BA12: 0.7326086957 | BB12: 0.8 | BC12: 0.8652173913 | BD12: 0.9326086957 | BE12: 14.54358974 | BF12: 14.81794872 | BG12: 15.1 | BH12: 15.27948718 | BI12: 15.42051282 | BJ12: 15.71282051 | BK12: 15.91282051 | BL12: 16.18205128 | BM12: 16.37948718 | BN12: 3.8905 | DG12: -0.04214480874
A13: 10 | B13: 43070 | C13: 42979 | D13: 43101 | E13: 42917 | F13: 42948 | G13: 43009 | H13: 42856 | I13: 42948 | J13: 42826 | K13: 42917 | W13: 1 | X13: 0.4 | Y13: 0.5 | Z13: 1 | AA13: 1 | AB13: 0.3 | AC13: 0.5 | AD13: 1 | AE13: 1 | AF13: 1 | AR13: 0 | AS13: 1 | AU13: 1 | AV13: 1 | AW13: 1 | AX13: 1 | AY13: 1 | AZ13: 1 | BA13: 1 | BB13: 1 | BC13: 1 | BD13: 1 | BE13: 14.16860119 | BF13: 14.37559524 | BG13: 14.58839286 | BH13: 14.72380952 | BI13: 14.83020833 | BJ13: 15.05074405 | BK13: 15.2016369 | BL13: 15.4047619 | BM13: 15.55372024 | BN13: 3.563428571 | DG13: -0.02843137255
A14: 11 | B14: 42917 | C14: 42826 | D14: 43101 | E14: 43070 | F14: 42826 | G14: 42948 | H14: 43009 | I14: 42948 | J14: 42948 | K14: 42948 | W14: 1 | X14: 1 | Y14: 0.5 | Z14: 1 | AA14: 1 | AB14: 1 | AC14: 0.3 | AD14: 1 | AE14: 1 | AF14: 1 | AR14: 0 | AS14: 1 | AU14: 1 | AV14: 1 | AW14: 1 | AX14: 1 | AY14: 1 | AZ14: 1 | BA14: 1 | BB14: 1 | BC14: 1 | BD14: 1 | BE14: 14.28476635 | BF14: 14.6117241 | BG14: 14.94784889 | BH14: 15.16174648 | BI14: 15.32980887 | BJ14: 15.67815637 | BK14: 15.9164994 | BL14: 16.23734579 | BM14: 16.47263314 | BN14: 3.60675 | DG14: -0.01
A15: 12 | B15: 42887 | C15: 42917 | D15: 42917 | E15: 42948 | F15: 42948 | G15: 42917 | H15: 43040 | I15: 42979 | J15: 42826 | K15: 42948 | W15: 0.5 | X15: 1 | Y15: 1 | Z15: 1 | AA15: 1 | AB15: 1 | AC15: 1 | AD15: 0.4 | AE15: 1 | AF15: 1 | AR15: 0 | AS15: 1 | AU15: 1 | AV15: 1 | AW15: 1 | AX15: 1 | AY15: 1 | AZ15: 1 | BA15: 1 | BB15: 1 | BC15: 1 | BD15: 1 | BE15: 13.97596017 | BF15: 14.24992888 | BG15: 14.53157895 | BH15: 14.71081081 | BI15: 14.85163585 | BJ15: 15.14352774 | BK15: 15.34324324 | BL15: 15.61209104 | BM15: 15.80924609 | BN15: 3.5915 | DG15: -0.008333333333
A16: 13 | B16: 42948 | C16: 43009 | D16: 42856 | E16: 43009 | F16: 43040 | G16: 42856 | H16: 42887 | I16: 43040 | J16: 43009 | K16: 43009 | W16: 1 | X16: 0.3 | Y16: 0.5 | Z16: 0.3 | AA16: 1 | AB16: 0.5 | AC16: 0.5 | AD16: 1 | AE16: 0.3 | AF16: 0.3 | AR16: 0 | AS16: 0.5 | AU16: 0.5 | AV16: 0.5 | AW16: 0.5 | AX16: 0.5 | AY16: 0.5 | AZ16: 0.5 | BA16: 0.5 | BB16: 0.5 | BC16: 0.5 | BD16: 0.5 | BE16: 13.40957447 | BF16: 13.52340426 | BG16: 13.64042553 | BH16: 13.71489362 | BI16: 13.77340426 | BJ16: 13.89468085 | BK16: 13.97765957 | BL16: 14.0893617 | BM16: 14.1712766 | BN16: 3.336316667 | DG16: -0.006666666667
A17: 14 | B17: 43070 | C17: 42856 | D17: 43009 | E17: 43070 | F17: 42856 | G17: 42979 | H17: 42826 | I17: 42826 | J17: 42979 | K17: 43070 | W17: 1 | X17: 0.5 | Y17: 0.3 | Z17: 1 | AA17: 0.5 | AB17: 0.4 | AC17: 1 | AD17: 1 | AE17: 0.4 | AF17: 1 | AR17: 0 | AS17: 0.75 | AU17: 0.75 | AV17: 0.75 | AW17: 0.75 | AX17: 0.75 | AY17: 0.75 | AZ17: 0.75 | BA17: 0.75 | BB17: 0.75 | BC17: 0.75 | BD17: 0.75 | BE17: 13.56267827 | BF17: 13.75966596 | BG17: 13.96217667 | BH17: 14.09104712 | BI17: 14.19230248 | BJ17: 14.40217721 | BK17: 14.54577572 | BL17: 14.73908139 | BM17: 14.88083889 | BN17: 3.609625 | DG17: -0.006666666667
A18: 15 | B18: 42917 | C18: 42979 | D18: 42826 | E18: 43040 | F18: 42917 | G18: 42948 | H18: 42826 | I18: 42856 | J18: 42856 | K18: 42917 | W18: 1 | X18: 0.4 | Y18: 1 | Z18: 1 | AA18: 1 | AB18: 1 | AC18: 1 | AD18: 0.5 | AE18: 0.5 | AF18: 1 | AR18: 0 | AS18: 1 | AU18: 1 | AV18: 1 | AW18: 1 | AX18: 1 | AY18: 1 | AZ18: 1 | BA18: 1 | BB18: 1 | BC18: 1 | BD18: 1 | BE18: 15.2 | BF18: 15.56169014 | BG18: 15.93352113 | BH18: 16.17014085 | BI18: 16.35605634 | BJ18: 16.74140845 | BK18: 17.00507042 | BL18: 17.36 | BM18: 17.62028169 | BN18: 3.688318182 | DG18: 0.04333333333
A19: 16 | B19: 43009 | C19: 42948 | D19: 43101 | E19: 43070 | F19: 43101 | G19: 42979 | H19: 43040 | I19: 43009 | J19: 42826 | K19: 43070 | W19: 0.3 | X19: 1 | Y19: 0.5 | Z19: 1 | AA19: 0.5 | AB19: 0.4 | AC19: 1 | AD19: 0.3 | AE19: 1 | AF19: 1 | AR19: 0 | AS19: 0.75 | AU19: 0.75 | AV19: 0.75 | AW19: 0.75 | AX19: 0.75 | AY19: 0.75 | AZ19: 0.75 | BA19: 0.75 | BB19: 0.75 | BC19: 0.75 | BD19: 0.75 | BE19: 14.64857143 | BF19: 14.87090909 | BG19: 15.09948052 | BH19: 15.24493506 | BI19: 15.35922078 | BJ19: 15.5961039 | BK19: 15.75818182 | BL19: 15.97636364 | BM19: 16.13636364 | BN19: 3.462045455 | DG19: 0.04333333333
A20: 17 | B20: 42887 | C20: 42917 | D20: 43040 | E20: 42856 | F20: 42917 | G20: 43040 | H20: 42917 | I20: 43040 | J20: 43101 | K20: 42856 | W20: 0.5 | X20: 1 | Y20: 1 | Z20: 0.5 | AA20: 1 | AB20: 1 | AC20: 1 | AD20: 1 | AE20: 0.5 | AF20: 0.5 | AR20: 0 | AS20: 1 | AU20: 1 | AV20: 1 | AW20: 1 | AX20: 1 | AY20: 1 | AZ20: 1 | BA20: 1 | BB20: 1 | BC20: 1 | BD20: 1 | BE20: 13.98933824 | BF20: 14.18602941 | BG20: 14.38823529 | BH20: 14.51691176 | BI20: 14.61801471 | BJ20: 14.82757353 | BK20: 14.97095588 | BL20: 15.16397059 | BM20: 15.30551471 | BN20: 3.722384615 | DG20: 0.04333333333
A21: 18 | B21: 43009 | C21: 42948 | D21: 42826 | E21: 42887 | F21: 43070 | G21: 42887 | H21: 42948 | I21: 42856 | J21: 42917 | K21: 42948 | W21: 0.3 | X21: 1 | Y21: 1 | Z21: 0.5 | AA21: 1 | AB21: 0.5 | AC21: 1 | AD21: 0.5 | AE21: 1 | AF21: 1 | AR21: 0 | AS21: 1 | AU21: 1 | AV21: 1 | AW21: 1 | AX21: 1 | AY21: 1 | AZ21: 1 | BA21: 1 | BB21: 1 | BC21: 1 | BD21: 1 | BE21: 12.95376422 | BF21: 13.3 | BG21: 13.65594333 | BH21: 13.88245272 | BI21: 14.06042438 | BJ21: 14.4293111 | BK21: 14.68170728 | BL21: 15.02147136 | BM21: 15.27063169 | BN21: 4.064 | DG21: 0.1054644809
A22: 19 | B22: 42917 | C22: 42979 | D22: 42856 | E22: 42826 | F22: 42887 | G22: 42856 | H22: 42826 | I22: 42979 | J22: 42856 | K22: 43070 | W22: 1 | X22: 0.4 | Y22: 0.5 | Z22: 1 | AA22: 0.5 | AB22: 0.5 | AC22: 1 | AD22: 0.4 | AE22: 0.5 | AF22: 1 | AR22: -0.0008130081301 | AS22: 35.35487805 | AU22: 0.5369918699 | AV22: 0.512601626 | AW22: 0.487398374 | AX22: 0.4630081301 | AY22: 0.437804878 | AZ22: 0.412601626 | BA22: 0.3882113821 | BB22: 0.3630081301 | BC22: 0.3386178862 | BD22: 0.3134146341 | BE22: 14.1 | BF22: 14.55457516 | BG22: 15.02189542 | BH22: 15.31928105 | BI22: 15.55294118 | BJ22: 16.0372549 | BK22: 16.36862745 | BL22: 16.81470588 | BM22: 17.14183007 | BN22: 4.104 | DG22: 0.1184782609
A23: 20 | B23: 42948 | C23: 42856 | D23: 43070 | E23: 42826 | F23: 42826 | G23: 43101 | H23: 42826 | I23: 42948 | J23: 42948 | K23: 42826 | W23: 1 | X23: 0.5 | Y23: 1 | Z23: 1 | AA23: 1 | AB23: 0.5 | AC23: 1 | AD23: 1 | AE23: 1 | AF23: 1 | AR23: 0 | AS23: 1 | AU23: 1 | AV23: 1 | AW23: 1 | AX23: 1 | AY23: 1 | AZ23: 1 | BA23: 1 | BB23: 1 | BC23: 1 | BD23: 1 | BE23: 14.1 | BF23: 14.38918919 | BG23: 14.68648649 | BH23: 14.87567568 | BI23: 15.02432432 | BJ23: 15.33243243 | BK23: 15.54324324 | BL23: 15.82702703 | BM23: 16.03513514 | BN23: 3.597 | DG23: 0.1263586957
A24: 21 | B24: 42887 | C24: 43101 | D24: 42917 | E24: 42887 | F24: 42917 | G24: 42948 | H24: 42887 | I24: 43009 | J24: 43040 | K24: 42826 | W24: 0.5 | X24: 0.5 | Y24: 1 | Z24: 0.5 | AA24: 1 | AB24: 1 | AC24: 0.5 | AD24: 0.3 | AE24: 1 | AF24: 1 | AR24: 0 | AS24: 0.75 | AU24: 0.75 | AV24: 0.75 | AW24: 0.75 | AX24: 0.75 | AY24: 0.75 | AZ24: 0.75 | BA24: 0.75 | BB24: 0.75 | BC24: 0.75 | BD24: 0.75 | BE24: 15.2 | BF24: 15.55865922 | BG24: 15.9273743 | BH24: 16.16201117 | BI24: 16.34636872 | BJ24: 16.72849162 | BK24: 16.98994413 | BL24: 17.34189944 | BM24: 17.6 | BN24: 3.597 | DG24: 0.1463398693
A25: 22 | B25: 42856 | C25: 43101 | D25: 42917 | E25: 43040 | F25: 42826 | G25: 43009 | H25: 42856 | I25: 43040 | J25: 43101 | K25: 42917 | W25: 0.5 | X25: 0.5 | Y25: 1 | Z25: 1 | AA25: 1 | AB25: 0.3 | AC25: 0.5 | AD25: 1 | AE25: 0.5 | AF25: 1 | AR25: 0 | AS25: 0.75 | AU25: 0.75 | AV25: 0.75 | AW25: 0.75 | AX25: 0.75 | AY25: 0.75 | AZ25: 0.75 | BA25: 0.75 | BB25: 0.75 | BC25: 0.75 | BD25: 0.75 | BE25: 14.16570138 | BF25: 14.54560476 | BG25: 14.93615964 | BH25: 15.18469456 | BI25: 15.379972 | BJ25: 15.78472887 | BK25: 16.06166778 | BL25: 16.43447016 | BM25: 16.70785857 | BN25: 3.725833333 | DG25: 0.1466666667
A26: 23 | B26: 42979 | C26: 42887 | D26: 42948 | E26: 42826 | F26: 42917 | G26: 42917 | H26: 42979 | I26: 43070 | J26: 43040 | K26: 42856 | W26: 0.4 | X26: 0.5 | Y26: 1 | Z26: 1 | AA26: 1 | AB26: 1 | AC26: 0.4 | AD26: 1 | AE26: 1 | AF26: 0.5 | AR26: 0 | AS26: 1 | AU26: 1 | AV26: 1 | AW26: 1 | AX26: 1 | AY26: 1 | AZ26: 1 | BA26: 1 | BB26: 1 | BC26: 1 | BD26: 1 | BE26: 14.15901639 | BF26: 14.50983607 | BG26: 14.8704918 | BH26: 15.1 | BI26: 15.28032787 | BJ26: 15.65409836 | BK26: 15.90983607 | BL26: 16.25409836 | BM26: 16.50655738 | BN26: 4.17425 | DG26: 0.1491803279
A27: 24 | B27: 43101 | C27: 42948 | D27: 42917 | E27: 42887 | F27: 42979 | G27: 43101 | H27: 43070 | I27: 42979 | J27: 43040 | K27: 42979 | W27: 0.5 | X27: 1 | Y27: 1 | Z27: 0.5 | AA27: 0.4 | AB27: 0.5 | AC27: 1 | AD27: 0.4 | AE27: 1 | AF27: 0.4 | AR27: 0 | AS27: 0.5 | AU27: 0.5 | AV27: 0.5 | AW27: 0.5 | AX27: 0.5 | AY27: 0.5 | AZ27: 0.5 | BA27: 0.5 | BB27: 0.5 | BC27: 0.5 | BD27: 0.5 | BE27: 14.24040896 | BF27: 14.38627069 | BG27: 14.53622201 | BH27: 14.63164557 | BI27: 14.70662123 | BJ27: 14.86202532 | BK27: 14.96835443 | BL27: 15.11148978 | BM27: 15.2164557 | BN27: 4.088 | DG27: 0.1491803279
A28: 25 | B28: 43040 | C28: 43009 | D28: 42887 | E28: 42948 | F28: 42887 | G28: 42948 | H28: 42826 | I28: 42917 | J28: 42887 | K28: 42979 | W28: 1 | X28: 0.3 | Y28: 0.5 | Z28: 1 | AA28: 0.5 | AB28: 1 | AC28: 1 | AD28: 1 | AE28: 0.5 | AF28: 0.4 | AR28: 0 | AS28: 0.75 | AU28: 0.75 | AV28: 0.75 | AW28: 0.75 | AX28: 0.75 | AY28: 0.75 | AZ28: 0.75 | BA28: 0.75 | BB28: 0.75 | BC28: 0.75 | BD28: 0.75 | BE28: 14.12552404 | BF28: 14.25745993 | BG28: 14.39309494 | BH28: 14.47940814 | BI28: 14.54722565 | BJ28: 14.68779285 | BK28: 14.78397041 | BL28: 14.9134402 | BM28: 15.00838471 | BN28: 4.003125 | DG28: 0.1503267974
A29: 26 | B29: 42948 | C29: 43040 | D29: 42856 | E29: 42826 | F29: 42979 | G29: 42948 | H29: 42948 | I29: 43040 | J29: 42826 | K29: 42948 | W29: 1 | X29: 1 | Y29: 0.5 | Z29: 1 | AA29: 0.4 | AB29: 1 | AC29: 1 | AD29: 1 | AE29: 1 | AF29: 1 | AR29: 0 | AS29: 1 | AU29: 1 | AV29: 1 | AW29: 1 | AX29: 1 | AY29: 1 | AZ29: 1 | BA29: 1 | BB29: 1 | BC29: 1 | BD29: 1 | BE29: 13.99927536 | BF29: 14.54202899 | BG29: 15.1 | BH29: 15.45507246 | BI29: 15.73405797 | BJ29: 16.31231884 | BK29: 16.70797101 | BL29: 17.24057971 | BM29: 17.63115942 | BN29: 3.1853 | DG29: 0.1530286561
A30: 27 | B30: 43040 | C30: 42948 | D30: 43101 | E30: 43009 | F30: 42887 | G30: 43040 | H30: 42826 | I30: 42826 | J30: 42826 | K30: 43070 | W30: 1 | X30: 1 | Y30: 0.5 | Z30: 0.3 | AA30: 0.5 | AB30: 1 | AC30: 1 | AD30: 1 | AE30: 1 | AF30: 1 | AR30: 0 | AS30: 1 | AU30: 1 | AV30: 1 | AW30: 1 | AX30: 1 | AY30: 1 | AZ30: 1 | BA30: 1 | BB30: 1 | BC30: 1 | BD30: 1 | BE30: 13.53858268 | BF30: 13.81541057 | BG30: 14.1 | BH30: 14.28110236 | BI30: 14.42339708 | BJ30: 14.71833521 | BK30: 14.92013498 | BL30: 15.19178853 | BM30: 15.39100112 | BN30: 3.32775 | DG30: 0.1588235294
A31: 28 | B31: 43040 | C31: 43009 | D31: 42917 | E31: 42856 | F31: 42887 | G31: 42917 | H31: 42856 | I31: 43009 | J31: 43009 | K31: 42979 | W31: 1 | X31: 0.3 | Y31: 1 | Z31: 0.5 | AA31: 0.5 | AB31: 1 | AC31: 0.5 | AD31: 0.3 | AE31: 0.3 | AF31: 0.4 | AR31: -0.001197073032 | AS31: 51.91189258 | AU31: 0.6460429099 | AV31: 0.610130719 | AW31: 0.573021455 | AX31: 0.537109264 | AY31: 0.5 | AZ31: 0.462890736 | BA31: 0.426978545 | BB31: 0.389869281 | BC31: 0.3539570901 | BD31: 0.3168478261 | BE31: 15.2632216 | BF31: 15.61191806 | BG31: 15.97039106 | BH31: 16.19851024 | BI31: 16.37774674 | BJ31: 16.74925512 | BK31: 17.00344507 | BL31: 17.34562384 | BM31: 17.59655493 | BN31: 3.6115 | DG31: 0.1647540984
A32: 29 | B32: 43070 | C32: 42979 | D32: 42856 | E32: 43101 | F32: 43101 | G32: 42917 | H32: 42948 | I32: 42826 | J32: 42979 | K32: 42917 | W32: 1 | X32: 0.4 | Y32: 0.5 | Z32: 0.5 | AA32: 0.5 | AB32: 1 | AC32: 1 | AD32: 1 | AE32: 0.4 | AF32: 1 | AR32: -0.000406504065 | AS32: 18.2148374 | AU32: 0.8058943089 | AV32: 0.793699187 | AW32: 0.781097561 | AX32: 0.768902439 | AY32: 0.756300813 | AZ32: 0.743699187 | BA32: 0.731504065 | BB32: 0.718902439 | BC32: 0.7067073171 | BD32: 0.6941056911 | BE32: 15 | BF32: 15.1962592 | BG32: 15.398021 | BH32: 15.52641488 | BI32: 15.62729578 | BJ32: 15.83639437 | BK32: 15.97946182 | BL32: 16.17205263 | BM32: 16.31328589 | BN32: 3.995666667 | DG32: 0.1647540984
A33: 30 | B33: 42856 | C33: 43009 | D33: 43009 | E33: 42917 | F33: 42917 | G33: 42917 | H33: 42979 | I33: 43009 | J33: 42887 | K33: 43070 | W33: 0.5 | X33: 0.3 | Y33: 0.3 | Z33: 1 | AA33: 1 | AB33: 1 | AC33: 0.4 | AD33: 0.3 | AE33: 0.5 | AF33: 1 | AR33: -0.001307189542 | AS33: 56.64117647 | AU33: 0.6594771242 | AV33: 0.6202614379 | AW33: 0.5797385621 | AX33: 0.5405228758 | AY33: 0.5 | AZ33: 0.4594771242 | BA33: 0.4202614379 | BB33: 0.3797385621 | BC33: 0.3405228758 | BD33: 0.3 | BE33: 14.54358974 | BF33: 14.81794872 | BG33: 15.1 | BH33: 15.27948718 | BI33: 15.42051282 | BJ33: 15.71282051 | BK33: 15.91282051 | BL33: 16.18205128 | BM33: 16.37948718 | BN33: 3.2775 | DG33: 0.1654545455
A34: 31 | B34: 42826 | C34: 42948 | D34: 42826 | E34: 43070 | F34: 42948 | G34: 42826 | H34: 43040 | I34: 43070 | J34: 42917 | K34: 42826 | W34: 1 | X34: 1 | Y34: 1 | Z34: 1 | AA34: 1 | AB34: 1 | AC34: 1 | AD34: 1 | AE34: 1 | AF34: 1 | AR34: 0 | AS34: 1 | AU34: 1 | AV34: 1 | AW34: 1 | AX34: 1 | AY34: 1 | AZ34: 1 | BA34: 1 | BB34: 1 | BC34: 1 | BD34: 1 | BE34: 13.5575 | BF34: 13.825 | BG34: 14.1 | BH34: 14.275 | BI34: 14.4125 | BJ34: 14.6975 | BK34: 14.8925 | BL34: 15.155 | BM34: 15.3475 | BN34: 3.37303125 | DG34: 0.1684782609
A35: 32 | B35: 42979 | C35: 42979 | D35: 42948 | E35: 42856 | F35: 42887 | G35: 43070 | H35: 43009 | I35: 42856 | J35: 42979 | K35: 43101 | W35: 0.4 | X35: 0.4 | Y35: 1 | Z35: 0.5 | AA35: 0.5 | AB35: 1 | AC35: 0.3 | AD35: 0.5 | AE35: 0.4 | AF35: 0.5 | AR35: -0.0008130081301 | AS35: 35.44227642 | AU35: 0.6243902439 | AV35: 0.6 | AW35: 0.574796748 | AX35: 0.5504065041 | AY35: 0.525203252 | AZ35: 0.5 | BA35: 0.4756097561 | BB35: 0.4504065041 | BC35: 0.4260162602 | BD35: 0.4008130081 | BE35: 15.1 | BF35: 15.45081967 | BG35: 15.81147541 | BH35: 16.04098361 | BI35: 16.22131148 | BJ35: 16.59508197 | BK35: 16.85081967 | BL35: 17.19508197 | BM35: 17.44754098 | BN35: 3.5030125 | DG35: 0.1737704918
A36: 33 | B36: 42948 | C36: 42979 | D36: 43040 | E36: 43101 | F36: 43009 | G36: 43070 | H36: 42948 | I36: 42917 | J36: 42887 | K36: 42948 | W36: 1 | X36: 0.4 | Y36: 1 | Z36: 0.5 | AA36: 0.3 | AB36: 1 | AC36: 1 | AD36: 1 | AE36: 0.5 | AF36: 1 | AR36: 0 | AS36: 1 | AU36: 1 | AV36: 1 | AW36: 1 | AX36: 1 | AY36: 1 | AZ36: 1 | BA36: 1 | BB36: 1 | BC36: 1 | BD36: 1 | BE36: 15.1 | BF36: 15.38333333 | BG36: 15.67461059 | BH36: 15.85996885 | BI36: 16.00560748 | BJ36: 16.30747664 | BK36: 16.51401869 | BL36: 16.79205607 | BM36: 16.99595016 | BN36: 3.515590909 | DG36: 0.1797385621
A37: 34 | B37: 42979 | C37: 42826 | D37: 42826 | E37: 43040 | F37: 42948 | G37: 43009 | H37: 42917 | I37: 43101 | J37: 43101 | K37: 43070 | W37: 0.4 | X37: 1 | Y37: 1 | Z37: 1 | AA37: 1 | AB37: 0.3 | AC37: 1 | AD37: 0.5 | AE37: 0.5 | AF37: 1 | AR37: 0 | AS37: 1 | AU37: 1 | AV37: 1 | AW37: 1 | AX37: 1 | AY37: 1 | AZ37: 1 | BA37: 1 | BB37: 1 | BC37: 1 | BD37: 1 | BE37: 12.60281124 | BF37: 12.94658635 | BG37: 13.3 | BH37: 13.5248996 | BI37: 13.70160643 | BJ37: 14.06787149 | BK37: 14.3184739 | BL37: 14.65582329 | BM37: 14.90321285 | BN37: 3.643625 | DG37: 0.1847208829
A38: 35 | B38: 43040 | C38: 43040 | D38: 43040 | E38: 42917 | F38: 42948 | G38: 43101 | H38: 43009 | I38: 42948 | J38: 43101 | K38: 42917 | W38: 1 | X38: 1 | Y38: 1 | Z38: 1 | AA38: 1 | AB38: 0.5 | AC38: 0.3 | AD38: 1 | AE38: 0.5 | AF38: 1 | AR38: 0 | AS38: 1 | AU38: 1 | AV38: 1 | AW38: 1 | AX38: 1 | AY38: 1 | AZ38: 1 | BA38: 1 | BB38: 1 | BC38: 1 | BD38: 1 | BE38: 14.7325 | BF38: 15 | BG38: 15.275 | BH38: 15.45 | BI38: 15.5875 | BJ38: 15.8725 | BK38: 16.0675 | BL38: 16.33 | BM38: 16.5225 | BN38: 3.705214286 | DG38: 0.1847208829
A39: 36 | B39: 42948 | C39: 42917 | D39: 42826 | E39: 42917 | F39: 42979 | G39: 42979 | H39: 42979 | I39: 42979 | J39: 42979 | K39: 43101 | W39: 1 | X39: 1 | Y39: 1 | Z39: 1 | AA39: 0.4 | AB39: 0.4 | AC39: 0.4 | AD39: 0.4 | AE39: 0.4 | AF39: 0.5 | AR39: -0.003921568627 | AS39: 168.995098 | AU39: 1.05 | AV39: 0.9323529412 | AW39: 0.8107843137 | AX39: 0.6931372549 | AY39: 0.5715686275 | AZ39: 0.45 | BA39: 0.3323529412 | BB39: 0.2107843137 | BC39: 0.0931372549 | BD39: -0.02843137255 | BE39: 15 | BF39: 15.36268765 | BG39: 15.73554411 | BH39: 15.9728164 | BI39: 16.15924463 | BJ39: 16.5456595 | BK39: 16.81004863 | BL39: 17.16595707 | BM39: 17.42695659 | BN39: 4.147076923 | DG39: 0.1945454545
A40: 37 | B40: 42948 | C40: 43070 | D40: 43040 | E40: 42948 | F40: 43070 | G40: 43101 | H40: 42826 | I40: 42979 | J40: 43101 | K40: 42979 | W40: 1 | X40: 1 | Y40: 1 | Z40: 1 | AA40: 1 | AB40: 0.5 | AC40: 1 | AD40: 0.4 | AE40: 0.5 | AF40: 0.4 | AR40: 0 | AS40: 1 | AU40: 1 | AV40: 1 | AW40: 1 | AX40: 1 | AY40: 1 | AZ40: 1 | BA40: 1 | BB40: 1 | BC40: 1 | BD40: 1 | BE40: 14.66557377 | BF40: 15.01639344 | BG40: 15.37704918 | BH40: 15.60655738 | BI40: 15.78688525 | BJ40: 16.16065574 | BK40: 16.41639344 | BL40: 16.76065574 | BM40: 17.01311475 | BN40: 3.542857143 | DG40: 0.1945454545
A41: 38 | B41: 42887 | C41: 43040 | D41: 42948 | E41: 43009 | F41: 42856 | G41: 42856 | H41: 42979 | I41: 43101 | J41: 42826 | K41: 42917 | W41: 0.5 | X41: 1 | Y41: 1 | Z41: 0.3 | AA41: 0.5 | AB41: 0.5 | AC41: 0.4 | AD41: 0.5 | AE41: 1 | AF41: 1 | AR41: 0 | AS41: 0.5 | AU41: 0.5 | AV41: 0.5 | AW41: 0.5 | AX41: 0.5 | AY41: 0.5 | AZ41: 0.5 | BA41: 0.5 | BB41: 0.5 | BC41: 0.5 | BD41: 0.5 | BE41: 15.43092369 | BF41: 15.7746988 | BG41: 16.12811245 | BH41: 16.35301205 | BI41: 16.52971888 | BJ41: 16.89598394 | BK41: 17.14658635 | BL41: 17.48393574 | BM41: 17.7313253 | BN41: 4.310125 | DG41: 0.2
A42: 39 | B42: 42887 | C42: 43040 | D42: 42826 | E42: 42826 | F42: 42979 | G42: 42887 | H42: 43101 | I42: 42856 | J42: 42979 | K42: 42979 | W42: 0.5 | X42: 1 | Y42: 1 | Z42: 1 | AA42: 0.4 | AB42: 0.5 | AC42: 0.5 | AD42: 0.5 | AE42: 0.4 | AF42: 0.4 | AR42: -0.001086956522 | AS42: 47.16630435 | AU42: 0.6163043478 | AV42: 0.5836956522 | AW42: 0.55 | AX42: 0.5173913043 | AY42: 0.4836956522 | AZ42: 0.45 | BA42: 0.4173913043 | BB42: 0.3836956522 | BC42: 0.3510869565 | BD42: 0.3173913043 | BE42: 14.24750983 | BF42: 14.52096986 | BG42: 14.80209699 | BH42: 14.98099607 | BI42: 15.12155963 | BJ42: 15.41290957 | BK42: 15.61225426 | BL42: 15.88060288 | BM42: 16.07739187 | BN42: 3.327275 | DG42: 0.2237704918
A43: 40 | B43: 42887 | C43: 42826 | D43: 43070 | E43: 42979 | F43: 43040 | G43: 43101 | H43: 43009 | I43: 42979 | J43: 42979 | K43: 42826 | W43: 0.5 | X43: 1 | Y43: 1 | Z43: 0.4 | AA43: 1 | AB43: 0.5 | AC43: 0.3 | AD43: 0.4 | AE43: 0.4 | AF43: 1 | AR43: -0.001086956522 | AS43: 47.21630435 | AU43: 0.6663043478 | AV43: 0.6336956522 | AW43: 0.6 | AX43: 0.5673913043 | AY43: 0.5336956522 | AZ43: 0.5 | BA43: 0.4673913043 | BB43: 0.4336956522 | BC43: 0.4010869565 | BD43: 0.3673913043 | BE43: 15.27535505 | BF43: 15.56140351 | BG43: 15.85547201 | BH43: 16.04260652 | BI43: 16.18964077 | BJ43: 16.49440267 | BK43: 16.70292398 | BL43: 16.98362573 | BM43: 17.18947368 | BN43: 3.399294444 | DG43: 0.2295429842
A44: 41 | B44: 42948 | C44: 43101 | D44: 42979 | E44: 42979 | F44: 42826 | G44: 42948 | H44: 43009 | I44: 42948 | J44: 42856 | K44: 43040 | W44: 1 | X44: 0.5 | Y44: 0.4 | Z44: 0.4 | AA44: 1 | AB44: 1 | AC44: 0.3 | AD44: 1 | AE44: 0.5 | AF44: 1 | AR44: -0.001307189542 | AS44: 56.91143791 | AU44: 0.9297385621 | AV44: 0.8905228758 | AW44: 0.85 | AX44: 0.8107843137 | AY44: 0.7702614379 | AZ44: 0.7297385621 | BA44: 0.6905228758 | BB44: 0.65 | BC44: 0.6107843137 | BD44: 0.5702614379 | BE44: 13.40266204 | BF44: 13.61319444 | BG44: 13.82962963 | BH44: 13.96736111 | BI44: 14.0755787 | BJ44: 14.29988426 | BK44: 14.45335648 | BL44: 14.6599537 | BM44: 14.81145833 | BN44: 3.559909091 | DG44: 0.2333333333
A45: 42 | B45: 42826 | C45: 42887 | D45: 42979 | E45: 42887 | F45: 43009 | G45: 43101 | H45: 42856 | I45: 43009 | J45: 43101 | K45: 42856 | W45: 1 | X45: 0.5 | Y45: 0.4 | Z45: 0.5 | AA45: 0.3 | AB45: 0.5 | AC45: 0.5 | AD45: 0.3 | AE45: 0.5 | AF45: 0.5 | AR45: -0.001086956522 | AS45: 47.16630435 | AU45: 0.6163043478 | AV45: 0.5836956522 | AW45: 0.55 | AX45: 0.5173913043 | AY45: 0.4836956522 | AZ45: 0.45 | BA45: 0.4173913043 | BB45: 0.3836956522 | BC45: 0.3510869565 | BD45: 0.3173913043 | BE45: 13.38769932 | BF45: 13.58268793 | BG45: 13.78314351 | BH45: 13.91070615 | BI45: 14.01093394 | BJ45: 14.21867882 | BK45: 14.36082005 | BL45: 14.55216401 | BM45: 14.69248292 | BN45: 3.1346 | DG45: 0.239869281
A46: 43 | B46: 43070 | C46: 43040 | D46: 43070 | E46: 43040 | F46: 43070 | G46: 43070 | H46: 43040 | I46: 43009 | J46: 42979 | K46: 42856 | W46: 1 | X46: 1 | Y46: 1 | Z46: 1 | AA46: 1 | AB46: 1 | AC46: 1 | AD46: 0.3 | AE46: 0.4 | AF46: 0.5 | AR46: 0.002336448598 | AS46: -99.56074766 | AU46: 0.5 | AV46: 0.5700934579 | AW46: 0.6425233645 | AX46: 0.7126168224 | AY46: 0.785046729 | AZ46: 0.8574766355 | BA46: 0.9275700935 | BB46: 1 | BC46: 1.070093458 | BD46: 1.142523364 | BE46: 14.13092369 | BF46: 14.4746988 | BG46: 14.82811245 | BH46: 15.05301205 | BI46: 15.22971888 | BJ46: 15.59598394 | BK46: 15.84658635 | BL46: 16.18393574 | BM46: 16.4313253 | BN46: 3.663666667 | DG46: 0.24
A47: 44 | B47: 43070 | C47: 43009 | D47: 42917 | E47: 42948 | F47: 42826 | G47: 42948 | H47: 43101 | I47: 42917 | J47: 43040 | K47: 42917 | W47: 1 | X47: 0.3 | Y47: 1 | Z47: 1 | AA47: 1 | AB47: 1 | AC47: 0.5 | AD47: 1 | AE47: 1 | AF47: 1 | AR47: 0 | AS47: 1 | AU47: 1 | AV47: 1 | AW47: 1 | AX47: 1 | AY47: 1 | AZ47: 1 | BA47: 1 | BB47: 1 | BC47: 1 | BD47: 1 | BE47: 15.2 | BF47: 15.56954474 | BG47: 15.94945055 | BH47: 16.19120879 | BI47: 16.3811617 | BJ47: 16.77488226 | BK47: 17.04427002 | BL47: 17.40690738 | BM47: 17.67284144 | BN47: 3.930986607 | DG47: 0.2491803279
A48: 45 | B48: 43040 | C48: 43070 | D48: 42887 | E48: 43009 | F48: 43040 | G48: 42979 | H48: 43070 | I48: 42887 | J48: 43040 | K48: 42979 | W48: 1 | X48: 1 | Y48: 0.5 | Z48: 0.3 | AA48: 1 | AB48: 0.4 | AC48: 1 | AD48: 0.5 | AE48: 1 | AF48: 0.4 | AR48: 0.003267973856 | AS48: -139.8529412 | AU48: 0.1013071895 | AV48: 0.1993464052 | AW48: 0.3006535948 | AX48: 0.3986928105 | AY48: 0.5 | AZ48: 0.6013071895 | BA48: 0.6993464052 | BB48: 0.8006535948 | BC48: 0.8986928105 | BD48: 1 | BE48: 15.74857143 | BF48: 15.97090909 | BG48: 16.19948052 | BH48: 16.34493506 | BI48: 16.45922078 | BJ48: 16.6961039 | BK48: 16.85818182 | BL48: 17.07636364 | BM48: 17.23636364 | BN48: 3.836 | DG48: 0.25
A49: 46 | B49: 42917 | C49: 43070 | D49: 42856 | E49: 42887 | F49: 42948 | G49: 42887 | H49: 43040 | I49: 42948 | J49: 42887 | K49: 42856 | W49: 1 | X49: 1 | Y49: 0.5 | Z49: 0.5 | AA49: 1 | AB49: 0.5 | AC49: 1 | AD49: 1 | AE49: 0.5 | AF49: 0.5 | AR49: 0.002732240437 | AS49: -116.4685792 | AU49: 0.5423497268 | AV49: 0.6243169399 | AW49: 0.7090163934 | AX49: 0.7909836066 | AY49: 0.8756830601 | AZ49: 0.9603825137 | BA49: 1.042349727 | BB49: 1.12704918 | BC49: 1.209016393 | BD49: 1.293715847 | BE49: 15 | BF49: 15.27435897 | BG49: 15.55641026 | BH49: 15.73589744 | BI49: 15.87692308 | BJ49: 16.16923077 | BK49: 16.36923077 | BL49: 16.63846154 | BM49: 16.83589744 | BN49: 3.6995 | DG49: 0.25
A50: 47 | B50: 42856 | C50: 42948 | D50: 42856 | E50: 43101 | F50: 42917 | G50: 42917 | H50: 42856 | I50: 42948 | J50: 42826 | K50: 43009 | W50: 0.5 | X50: 1 | Y50: 0.5 | Z50: 0.5 | AA50: 1 | AB50: 1 | AC50: 0.5 | AD50: 1 | AE50: 1 | AF50: 0.3 | AR50: 0 | AS50: 0.75 | AU50: 0.75 | AV50: 0.75 | AW50: 0.75 | AX50: 0.75 | AY50: 0.75 | AZ50: 0.75 | BA50: 0.75 | BB50: 0.75 | BC50: 0.75 | BD50: 0.75 | BE50: 15.77644162 | BF50: 16.05060546 | BG50: 16.33245614 | BH50: 16.51181566 | BI50: 16.652741 | BJ50: 16.94484079 | BK50: 17.14469854 | BL50: 17.41373783 | BM50: 17.6110333 | BN50: 3.547307692 | DG50: 0.2505434783
A51: 48 | B51: 42917 | C51: 42917 | D51: 43070 | E51: 42917 | F51: 43070 | G51: 42856 | H51: 43009 | I51: 42948 | J51: 42948 | K51: 42826 | W51: 1 | X51: 1 | Y51: 1 | Z51: 1 | AA51: 1 | AB51: 0.5 | AC51: 0.3 | AD51: 1 | AE51: 1 | AF51: 1 | AR51: 0 | AS51: 1 | AU51: 1 | AV51: 1 | AW51: 1 | AX51: 1 | AY51: 1 | AZ51: 1 | BA51: 1 | BB51: 1 | BC51: 1 | BD51: 1 | BE51: 14.47596017 | BF51: 14.74992888 | BG51: 15.03157895 | BH51: 15.21081081 | BI51: 15.35163585 | BJ51: 15.64352774 | BK51: 15.84324324 | BL51: 16.11209104 | BM51: 16.30924609 | BN51: 3.78075 | DG51: 0.260130719
A52: 49 | B52: 43009 | C52: 43040 | D52: 42979 | E52: 43040 | F52: 43009 | G52: 43101 | H52: 43101 | I52: 43101 | J52: 42948 | K52: 42856 | W52: 0.3 | X52: 1 | Y52: 0.4 | Z52: 1 | AA52: 0.3 | AB52: 0.5 | AC52: 0.5 | AD52: 0.5 | AE52: 1 | AF52: 0.5 | AR52: 0 | AS52: 0.5 | AU52: 0.5 | AV52: 0.5 | AW52: 0.5 | AX52: 0.5 | AY52: 0.5 | AZ52: 0.5 | BA52: 0.5 | BB52: 0.5 | BC52: 0.5 | BD52: 0.5 | BE52: 14.90185185 | BF52: 15.1 | BG52: 15.3037037 | BH52: 15.43333333 | BI52: 15.53518519 | BJ52: 15.7462963 | BK52: 15.89074074 | BL52: 16.08518519 | BM52: 16.22777778 | BN52: 3.766625 | DG52: 0.260130719
A53: 50 | B53: 42948 | C53: 43070 | D53: 43101 | E53: 43070 | F53: 42948 | G53: 43070 | H53: 43040 | I53: 43040 | J53: 43070 | K53: 42917 | W53: 1 | X53: 1 | Y53: 0.5 | Z53: 1 | AA53: 1 | AB53: 1 | AC53: 1 | AD53: 1 | AE53: 1 | AF53: 1 | AR53: 0 | AS53: 1 | AU53: 1 | AV53: 1 | AW53: 1 | AX53: 1 | AY53: 1 | AZ53: 1 | BA53: 1 | BB53: 1 | BC53: 1 | BD53: 1 | BE53: 13.80440967 | BF53: 14.07837838 | BG53: 14.36002845 | BH53: 14.53926031 | BI53: 14.68008535 | BJ53: 14.97197724 | BK53: 15.17169275 | BL53: 15.44054054 | BM53: 15.63769559 | BN53: 3.7895625 | DG53: 0.2673913043
A54: 51 | B54: 43101 | C54: 42948 | D54: 43070 | E54: 43040 | F54: 43009 | G54: 42887 | H54: 43070 | I54: 42979 | J54: 42826 | K54: 42917 | W54: 0.5 | X54: 1 | Y54: 1 | Z54: 1 | AA54: 0.3 | AB54: 0.5 | AC54: 1 | AD54: 0.4 | AE54: 1 | AF54: 1 | AR54: 0 | AS54: 1 | AU54: 1 | AV54: 1 | AW54: 1 | AX54: 1 | AY54: 1 | AZ54: 1 | BA54: 1 | BB54: 1 | BC54: 1 | BD54: 1 | BE54: 14.1 | BF54: 14.51566416 | BG54: 14.94298246 | BH54: 15.21491228 | BI54: 15.42857143 | BJ54: 15.87142857 | BK54: 16.17443609 | BL54: 16.58233083 | BM54: 16.88145363 | BN54: 3.46475 | DG54: 0.2702614379
A55: 52 | B55: 42917 | C55: 43070 | D55: 42948 | E55: 42917 | F55: 42917 | G55: 42856 | H55: 42826 | I55: 43101 | J55: 42887 | K55: 42826 | W55: 1 | X55: 1 | Y55: 1 | Z55: 1 | AA55: 1 | AB55: 0.5 | AC55: 1 | AD55: 0.5 | AE55: 0.5 | AF55: 1 | AR55: 0 | AS55: 1 | AU55: 1 | AV55: 1 | AW55: 1 | AX55: 1 | AY55: 1 | AZ55: 1 | BA55: 1 | BB55: 1 | BC55: 1 | BD55: 1 | BE55: 15 | BF55: 15.28245614 | BG55: 15.57283161 | BH55: 15.757616 | BI55: 15.90280374 | BJ55: 16.20373832 | BK55: 16.40964092 | BL55: 16.68681751 | BM55: 16.89008034 | BN55: 3.4306 | DG55: 0.2709907341
A56: 53 | B56: 42917 | C56: 42856 | D56: 43009 | E56: 42887 | F56: 43101 | G56: 42979 | H56: 43040 | I56: 42979 | J56: 42856 | K56: 42917 | W56: 1 | X56: 0.5 | Y56: 0.3 | Z56: 0.5 | AA56: 0.5 | AB56: 0.4 | AC56: 1 | AD56: 0.4 | AE56: 0.5 | AF56: 1 | AR56: 0 | AS56: 0.5 | AU56: 0.5 | AV56: 0.5 | AW56: 0.5 | AX56: 0.5 | AY56: 0.5 | AZ56: 0.5 | BA56: 0.5 | BB56: 0.5 | BC56: 0.5 | BD56: 0.5 | BE56: 15.1 | BF56: 15.45473945 | BG56: 15.81942486 | BH56: 16.05149739 | BI56: 16.2338401 | BJ56: 16.61178679 | BK56: 16.8703819 | BL56: 17.2184907 | BM56: 17.47377049 | BN56: 2.89425 | DG56: 0.2726087996
A57: 54 | B57: 42887 | C57: 42856 | D57: 43070 | E57: 43101 | F57: 42979 | G57: 42856 | H57: 42917 | I57: 43009 | J57: 42979 | K57: 43070 | W57: 0.5 | X57: 0.5 | Y57: 1 | Z57: 0.5 | AA57: 0.4 | AB57: 0.5 | AC57: 1 | AD57: 0.3 | AE57: 0.4 | AF57: 1 | AR57: 0 | AS57: 0.5 | AU57: 0.5 | AV57: 0.5 | AW57: 0.5 | AX57: 0.5 | AY57: 0.5 | AZ57: 0.5 | BA57: 0.5 | BB57: 0.5 | BC57: 0.5 | BD57: 0.5 | BE57: 14.02632911 | BF57: 14.30553253 | BG57: 14.59256409 | BH57: 14.77522053 | BI57: 14.91873631 | BJ57: 15.21620538 | BK57: 15.41973684 | BL57: 15.69372151 | BM57: 15.8946436 | BN57: 3.666571429 | DG57: 0.2745901639
A58: 55 | B58: 42887 | C58: 42979 | D58: 42856 | E58: 43009 | F58: 42979 | G58: 42917 | H58: 42856 | I58: 42826 | J58: 42856 | K58: 42856 | W58: 0.5 | X58: 0.4 | Y58: 0.5 | Z58: 0.3 | AA58: 0.4 | AB58: 1 | AC58: 0.5 | AD58: 1 | AE58: 0.5 | AF58: 0.5 | AR58: -0.001086956522 | AS58: 47.09945652 | AU58: 0.5494565217 | AV58: 0.5168478261 | AW58: 0.4831521739 | AX58: 0.4505434783 | AY58: 0.4168478261 | AZ58: 0.3831521739 | BA58: 0.3505434783 | BB58: 0.3168478261 | BC58: 0.2842391304 | BD58: 0.2505434783 | BE58: 13.521875 | BF58: 13.85625 | BG58: 14.2 | BH58: 14.41875 | BI58: 14.590625 | BJ58: 14.946875 | BK58: 15.190625 | BL58: 15.51875 | BM58: 15.759375 | BN58: 3.707545455 | DG58: 0.2781818182
A59: 56 | B59: 43040 | C59: 43070 | D59: 43009 | E59: 43070 | F59: 42856 | G59: 43040 | H59: 42887 | I59: 42887 | J59: 43009 | K59: 43040 | W59: 1 | X59: 1 | Y59: 0.3 | Z59: 1 | AA59: 0.5 | AB59: 1 | AC59: 0.5 | AD59: 0.5 | AE59: 0.3 | AF59: 1 | AR59: 0.002732240437 | AS59: -116.8032787 | AU59: 0.2076502732 | AV59: 0.2896174863 | AW59: 0.3743169399 | AX59: 0.456284153 | AY59: 0.5409836066 | AZ59: 0.6256830601 | BA59: 0.7076502732 | BB59: 0.7923497268 | BC59: 0.8743169399 | BD59: 0.9590163934 | BE59: 14.4726257 | BF59: 14.83128492 | BG59: 15.2 | BH59: 15.43463687 | BI59: 15.61899441 | BJ59: 16.00111732 | BK59: 16.26256983 | BL59: 16.61452514 | BM59: 16.8726257 | BN59: 2.9905 | DG59: 0.2797385621
A60: 57 | B60: 43009 | C60: 42979 | D60: 42979 | E60: 42826 | F60: 43040 | G60: 43101 | H60: 43070 | I60: 43070 | J60: 42856 | K60: 42856 | W60: 0.3 | X60: 0.4 | Y60: 0.4 | Z60: 1 | AA60: 1 | AB60: 0.5 | AC60: 1 | AD60: 1 | AE60: 0.5 | AF60: 0.5 | AR60: 0 | AS60: 0.5 | AU60: 0.5 | AV60: 0.5 | AW60: 0.5 | AX60: 0.5 | AY60: 0.5 | AZ60: 0.5 | BA60: 0.5 | BB60: 0.5 | BC60: 0.5 | BD60: 0.5 | BE60: 13.36410256 | BF60: 13.63846154 | BG60: 13.92051282 | BH60: 14.1 | BI60: 14.24102564 | BJ60: 14.53333333 | BK60: 14.73333333 | BL60: 15.0025641 | BM60: 15.2 | BN60: 3.09325 | DG60: 0.2797385621
A61: 58 | B61: 43040 | C61: 42856 | D61: 42948 | E61: 42979 | F61: 42826 | G61: 43101 | H61: 42948 | I61: 42856 | J61: 43070 | K61: 42948 | W61: 1 | X61: 0.5 | Y61: 1 | Z61: 0.4 | AA61: 1 | AB61: 0.5 | AC61: 1 | AD61: 0.5 | AE61: 1 | AF61: 1 | AR61: 0 | AS61: 1 | AU61: 1 | AV61: 1 | AW61: 1 | AX61: 1 | AY61: 1 | AZ61: 1 | BA61: 1 | BB61: 1 | BC61: 1 | BD61: 1 | BE61: 14.76788475 | BF61: 15.03858046 | BG61: 15.31686578 | BH61: 15.49395643 | BI61: 15.63309909 | BJ61: 15.92150387 | BK61: 16.11883345 | BL61: 16.38446943 | BM61: 16.57926915 | BN61: 3.699125 | DG61: 0.2836956522
A62: 59 | B62: 42948 | C62: 42826 | D62: 43009 | E62: 43040 | F62: 42856 | G62: 43040 | H62: 42856 | I62: 43009 | J62: 42948 | K62: 42887 | W62: 1 | X62: 1 | Y62: 0.3 | Z62: 1 | AA62: 0.5 | AB62: 1 | AC62: 0.5 | AD62: 0.3 | AE62: 1 | AF62: 0.5 | AR62: 0 | AS62: 0.75 | AU62: 0.75 | AV62: 0.75 | AW62: 0.75 | AX62: 0.75 | AY62: 0.75 | AZ62: 0.75 | BA62: 0.75 | BB62: 0.75 | BC62: 0.75 | BD62: 0.75 | BE62: 14.15606407 | BF62: 14.47437071 | BG62: 14.80160183 | BH62: 15.00983982 | BI62: 15.17345538 | BJ62: 15.51258581 | BK62: 15.74462243 | BL62: 16.05697941 | BM62: 16.28604119 | BN62: 3.6038 | DG62: 0.2836956522
A63: 60 | B63: 42979 | C63: 42979 | D63: 43070 | E63: 42887 | F63: 43070 | G63: 42887 | H63: 43040 | I63: 42887 | J63: 42917 | K63: 43101 | W63: 0.4 | X63: 0.4 | Y63: 1 | Z63: 0.5 | AA63: 1 | AB63: 0.5 | AC63: 1 | AD63: 0.5 | AE63: 1 | AF63: 0.5 | AR63: 0.0004098360656 | AS63: -17.11434426 | AU63: 0.437295082 | AV63: 0.4495901639 | AW63: 0.462295082 | AX63: 0.4745901639 | AY63: 0.487295082 | AZ63: 0.5 | BA63: 0.512295082 | BB63: 0.525 | BC63: 0.537295082 | BD63: 0.55 | BE63: 15.1 | BF63: 15.5204757 | BG63: 15.95274043 | BH63: 16.22781799 | BI63: 16.44395036 | BJ63: 16.89193382 | BK63: 17.19844881 | BL63: 17.61106515 | BM63: 17.91365047 | BN63: 3.703090909 | DG63: 0.2890909091
A64: 61 | B64: 42917 | C64: 43101 | D64: 42887 | E64: 42826 | F64: 42856 | G64: 43040 | H64: 43070 | I64: 43070 | J64: 43040 | K64: 42856 | W64: 1 | X64: 0.5 | Y64: 0.5 | Z64: 1 | AA64: 0.5 | AB64: 1 | AC64: 1 | AD64: 1 | AE64: 1 | AF64: 0.5 | AR64: 0 | AS64: 1 | AU64: 1 | AV64: 1 | AW64: 1 | AX64: 1 | AY64: 1 | AZ64: 1 | BA64: 1 | BB64: 1 | BC64: 1 | BD64: 1 | BE64: 14.4362425 | BF64: 14.78554297 | BG64: 15.14463691 | BH64: 15.37315123 | BI64: 15.5526982 | BJ64: 15.9248501 | BK64: 16.17948035 | BL64: 16.52225183 | BM64: 16.77361759 | BN64: 3.7865 | DG64: 0.2916666667
A65: 62 | B65: 43101 | C65: 43040 | D65: 43040 | E65: 43009 | F65: 42979 | G65: 42856 | H65: 42887 | I65: 42917 | J65: 43009 | K65: 43101 | W65: 0.5 | X65: 1 | Y65: 1 | Z65: 0.3 | AA65: 0.4 | AB65: 0.5 | AC65: 0.5 | AD65: 1 | AE65: 0.3 | AF65: 0.5 | AR65: 0 | AS65: 0.5 | AU65: 0.5 | AV65: 0.5 | AW65: 0.5 | AX65: 0.5 | AY65: 0.5 | AZ65: 0.5 | BA65: 0.5 | BB65: 0.5 | BC65: 0.5 | BD65: 0.5 | BE65: 15.3 | BF65: 15.65865922 | BG65: 16.0273743 | BH65: 16.26201117 | BI65: 16.44636872 | BJ65: 16.82849162 | BK65: 17.08994413 | BL65: 17.44189944 | BM65: 17.7 | BN65: 3.841764706 | DG65: 0.2991803279
A66: 63 | B66: 43101 | C66: 42856 | D66: 42856 | E66: 42917 | F66: 42917 | G66: 42979 | H66: 43070 | I66: 42887 | J66: 43009 | K66: 42887 | W66: 0.5 | X66: 0.5 | Y66: 0.5 | Z66: 1 | AA66: 1 | AB66: 0.4 | AC66: 1 | AD66: 0.5 | AE66: 0.3 | AF66: 0.5 | AR66: 0 | AS66: 0.5 | AU66: 0.5 | AV66: 0.5 | AW66: 0.5 | AX66: 0.5 | AY66: 0.5 | AZ66: 0.5 | BA66: 0.5 | BB66: 0.5 | BC66: 0.5 | BD66: 0.5 | BE66: 13.74010695 | BF66: 14.13428402 | BG66: 14.53951277 | BH66: 14.79738562 | BI66: 15 | BJ66: 15.41996435 | BK66: 15.70730838 | BL66: 16.09411765 | BM66: 16.37777778 | BN66: 3.446624332 | DG66: 0.3
A67: 64 | B67: 42887 | C67: 42917 | D67: 42979 | E67: 43101 | F67: 42887 | G67: 43040 | H67: 43101 | I67: 43101 | J67: 43040 | K67: 43009 | W67: 0.5 | X67: 1 | Y67: 0.4 | Z67: 0.5 | AA67: 0.5 | AB67: 1 | AC67: 0.5 | AD67: 0.5 | AE67: 1 | AF67: 0.3 | AR67: 0 | AS67: 0.5 | AU67: 0.5 | AV67: 0.5 | AW67: 0.5 | AX67: 0.5 | AY67: 0.5 | AZ67: 0.5 | BA67: 0.5 | BB67: 0.5 | BC67: 0.5 | BD67: 0.5 | BE67: 14.72145215 | BF67: 14.95741814 | BG67: 15.2 | BH67: 15.35437027 | BI67: 15.4756612 | BJ67: 15.72706422 | BK67: 15.89907682 | BL67: 16.13063223 | BM67: 16.30043953 | BN67: 3.8 | DG67: 0.3
A68: 65 | B68: 43009 | C68: 42887 | D68: 43040 | E68: 43040 | F68: 43040 | G68: 42948 | H68: 43101 | I68: 43070 | J68: 43101 | K68: 43009 | W68: 0.3 | X68: 0.5 | Y68: 1 | Z68: 1 | AA68: 1 | AB68: 1 | AC68: 0.5 | AD68: 1 | AE68: 0.5 | AF68: 0.3 | AR68: 0 | AS68: 0.75 | AU68: 0.75 | AV68: 0.75 | AW68: 0.75 | AX68: 0.75 | AY68: 0.75 | AZ68: 0.75 | BA68: 0.75 | BB68: 0.75 | BC68: 0.75 | BD68: 0.75 | BE68: 13.89470513 | BF68: 14.21771756 | BG68: 14.54978641 | BH68: 14.76110295 | BI68: 14.92713738 | BJ68: 15.27128146 | BK68: 15.50674847 | BL68: 15.82372328 | BM68: 16.05617148 | BN68: 3.478 | DG68: 0.3
A69: 66 | B69: 42948 | C69: 43040 | D69: 43070 | E69: 43009 | F69: 42948 | G69: 42887 | H69: 42856 | I69: 43009 | J69: 42917 | K69: 43009 | W69: 1 | X69: 1 | Y69: 1 | Z69: 0.3 | AA69: 1 | AB69: 0.5 | AC69: 0.5 | AD69: 0.3 | AE69: 1 | AF69: 0.3 | AR69: 0 | AS69: 0.75 | AU69: 0.75 | AV69: 0.75 | AW69: 0.75 | AX69: 0.75 | AY69: 0.75 | AZ69: 0.75 | BA69: 0.75 | BB69: 0.75 | BC69: 0.75 | BD69: 0.75 | BE69: 15 | BF69: 15.334375 | BG69: 15.678125 | BH69: 15.896875 | BI69: 16.06875 | BJ69: 16.425 | BK69: 16.66875 | BL69: 16.996875 | BM69: 17.2375 | BN69: 3.799 | DG69: 0.3
A70: 67 | B70: 42979 | C70: 42826 | D70: 42887 | E70: 42948 | F70: 42917 | G70: 43009 | H70: 42948 | I70: 42979 | J70: 42948 | K70: 42917 | W70: 0.4 | X70: 1 | Y70: 0.5 | Z70: 1 | AA70: 1 | AB70: 0.3 | AC70: 1 | AD70: 0.4 | AE70: 1 | AF70: 1 | AR70: -0.003333333333 | AS70: 144.16 | AU70: 1.406666667 | AV70: 1.306666667 | AW70: 1.203333333 | AX70: 1.103333333 | AY70: 1 | AZ70: 0.8966666667 | BA70: 0.7966666667 | BB70: 0.6933333333 | BC70: 0.5933333333 | BD70: 0.49 | BE70: 14.27406593 | BF70: 14.34461538 | BG70: 14.41714286 | BH70: 14.4632967 | BI70: 14.49956044 | BJ70: 14.57472527 | BK70: 14.62615385 | BL70: 14.69538462 | BM70: 14.74615385 | BN70: 3.12475 | DG70: 0.3
A71: 68 | B71: 42979 | C71: 43040 | D71: 42826 | E71: 42826 | F71: 43101 | G71: 43040 | H71: 42948 | I71: 42917 | J71: 43009 | K71: 42917 | W71: 0.4 | X71: 1 | Y71: 1 | Z71: 1 | AA71: 0.5 | AB71: 1 | AC71: 1 | AD71: 1 | AE71: 0.3 | AF71: 1 | AR71: 0 | AS71: 1 | AU71: 1 | AV71: 1 | AW71: 1 | AX71: 1 | AY71: 1 | AZ71: 1 | BA71: 1 | BB71: 1 | BC71: 1 | BD71: 1 | BE71: 14.75100154 | BF71: 15.1 | BG71: 15.45878347 | BH71: 15.68710022 | BI71: 15.86649195 | BJ71: 16.23832209 | BK71: 16.49273219 | BL71: 16.83520732 | BM71: 17.08635574 | BN71: 4.299916667 | DG71: 0.3
A72: 69 | B72: 43070 | C72: 43070 | D72: 42856 | E72: 43009 | F72: 43101 | G72: 42887 | H72: 42856 | I72: 42887 | J72: 42917 | K72: 43101 | W72: 1 | X72: 1 | Y72: 0.5 | Z72: 0.3 | AA72: 0.5 | AB72: 0.5 | AC72: 0.5 | AD72: 0.5 | AE72: 1 | AF72: 0.5 | AR72: 0 | AS72: 0.5 | AU72: 0.5 | AV72: 0.5 | AW72: 0.5 | AX72: 0.5 | AY72: 0.5 | AZ72: 0.5 | BA72: 0.5 | BB72: 0.5 | BC72: 0.5 | BD72: 0.5 | BE72: 15 | BF72: 15.37495726 | BG72: 15.76042735 | BH72: 16.0057265 | BI72: 16.19846154 | BJ72: 16.59794872 | BK72: 16.87128205 | BL72: 17.23923077 | BM72: 17.50905983 | BN72: 3.426727273 | DG72: 0.3005434783
A73: 70 | B73: 43101 | C73: 43070 | D73: 42826 | E73: 43009 | F73: 42856 | G73: 43070 | H73: 42917 | I73: 42826 | J73: 42887 | K73: 42826 | W73: 0.5 | X73: 1 | Y73: 1 | Z73: 0.3 | AA73: 0.5 | AB73: 1 | AC73: 1 | AD73: 1 | AE73: 0.5 | AF73: 1 | AR73: 0 | AS73: 1 | AU73: 1 | AV73: 1 | AW73: 1 | AX73: 1 | AY73: 1 | AZ73: 1 | BA73: 1 | BB73: 1 | BC73: 1 | BD73: 1 | BE73: 15 | BF73: 15.41326433 | BG73: 15.83811551 | BH73: 16.10847536 | BI73: 16.32090095 | BJ73: 16.76120126 | BK73: 17.06245937 | BL73: 17.46799914 | BM73: 17.76539496 | BN73: 3.922285714 | DG73: 0.3054545455
A74: 71 | B74: 43009 | C74: 42979 | D74: 43040 | E74: 43040 | F74: 42887 | G74: 42948 | H74: 42917 | I74: 42948 | J74: 43101 | K74: 43101 | W74: 0.3 | X74: 0.4 | Y74: 1 | Z74: 1 | AA74: 0.5 | AB74: 1 | AC74: 1 | AD74: 1 | AE74: 0.5 | AF74: 0.5 | AR74: 0 | AS74: 0.75 | AU74: 0.75 | AV74: 0.75 | AW74: 0.75 | AX74: 0.75 | AY74: 0.75 | AZ74: 0.75 | BA74: 0.75 | BB74: 0.75 | BC74: 0.75 | BD74: 0.75 | BE74: 14.47884615 | BF74: 14.68461538 | BG74: 14.89615385 | BH74: 15.03076923 | BI74: 15.13653846 | BJ74: 15.35576923 | BK74: 15.50576923 | BL74: 15.70769231 | BM74: 15.85576923 | BN74: 3.842 | DG74: 0.310130719
A75: 72 | B75: 42979 | C75: 43101 | D75: 43009 | E75: 43009 | F75: 42948 | G75: 43040 | H75: 42826 | I75: 42948 | J75: 42887 | K75: 42856 | W75: 0.4 | X75: 0.5 | Y75: 0.3 | Z75: 0.3 | AA75: 1 | AB75: 1 | AC75: 1 | AD75: 1 | AE75: 0.5 | AF75: 0.5 | AR75: -0.001086956522 | AS75: 47.19945652 | AU75: 0.6494565217 | AV75: 0.6168478261 | AW75: 0.5831521739 | AX75: 0.5505434783 | AY75: 0.5168478261 | AZ75: 0.4831521739 | BA75: 0.4505434783 | BB75: 0.4168478261 | BC75: 0.3842391304 | BD75: 0.3505434783 | BE75: 13.90336907 | BF75: 14.23108729 | BG75: 14.56799387 | BH75: 14.78238897 | BI75: 14.95084227 | BJ75: 15.3 | BK75: 15.5388974 | BL75: 15.86049005 | BM75: 16.09632466 | BN75: 3.4246 | DG75: 0.3125668211
A76: 73 | B76: 43040 | C76: 42826 | D76: 42887 | E76: 43101 | F76: 43040 | G76: 43070 | H76: 43101 | I76: 42826 | J76: 43101 | K76: 43040 | W76: 1 | X76: 1 | Y76: 0.5 | Z76: 0.5 | AA76: 1 | AB76: 1 | AC76: 0.5 | AD76: 1 | AE76: 0.5 | AF76: 1 | AR76: -0.001818181818 | AS76: 79.25454545 | AU76: 1.389090909 | AV76: 1.334545455 | AW76: 1.278181818 | AX76: 1.223636364 | AY76: 1.167272727 | AZ76: 1.110909091 | BA76: 1.056363636 | BB76: 1 | BC76: 0.9454545455 | BD76: 0.8890909091 | BE76: 15 | BF76: 15.32771822 | BG76: 15.66462481 | BH76: 15.87901991 | BI76: 16.0474732 | BJ76: 16.39663093 | BK76: 16.63552833 | BL76: 16.95712098 | BM76: 17.19295559 | BN76: 3.560450549 | DG76: 0.3134146341
A77: 74 | B77: 42856 | C77: 42856 | D77: 42826 | E77: 42826 | F77: 42948 | G77: 42948 | H77: 42856 | I77: 42948 | J77: 42917 | K77: 42826 | W77: 0.5 | X77: 0.5 | Y77: 1 | Z77: 1 | AA77: 1 | AB77: 1 | AC77: 0.5 | AD77: 1 | AE77: 1 | AF77: 1 | AR77: 0 | AS77: 1 | AU77: 1 | AV77: 1 | AW77: 1 | AX77: 1 | AY77: 1 | AZ77: 1 | BA77: 1 | BB77: 1 | BC77: 1 | BD77: 1 | BE77: 13.57944147 | BF77: 13.97361854 | BG77: 14.3788473 | BH77: 14.63672014 | BI77: 14.83933452 | BJ77: 15.25929887 | BK77: 15.5466429 | BL77: 15.93345217 | BM77: 16.2171123 | BN77: 4.0231 | DG77: 0.3134146341
A78: 75 | B78: 42887 | C78: 42856 | D78: 42979 | E78: 42856 | F78: 43101 | G78: 43070 | H78: 42979 | I78: 42917 | J78: 42948 | K78: 43070 | W78: 0.5 | X78: 0.5 | Y78: 0.4 | Z78: 0.5 | AA78: 0.5 | AB78: 1 | AC78: 0.4 | AD78: 1 | AE78: 1 | AF78: 1 | AR78: 0 | AS78: 0.5 | AU78: 0.5 | AV78: 0.5 | AW78: 0.5 | AX78: 0.5 | AY78: 0.5 | AZ78: 0.5 | BA78: 0.5 | BB78: 0.5 | BC78: 0.5 | BD78: 0.5 | BE78: 14.30512821 | BF78: 14.57948718 | BG78: 14.86153846 | BH78: 15.04102564 | BI78: 15.18205128 | BJ78: 15.47435897 | BK78: 15.67435897 | BL78: 15.94358974 | BM78: 16.14102564 | BN78: 4.024714286 | DG78: 0.3134146341
A79: 76 | B79: 42917 | C79: 42948 | D79: 42887 | E79: 43040 | F79: 42826 | G79: 42979 | H79: 43101 | I79: 43009 | J79: 43040 | K79: 42948 | W79: 1 | X79: 1 | Y79: 0.5 | Z79: 1 | AA79: 1 | AB79: 0.4 | AC79: 0.5 | AD79: 0.3 | AE79: 1 | AF79: 1 | AR79: 0 | AS79: 1 | AU79: 1 | AV79: 1 | AW79: 1 | AX79: 1 | AY79: 1 | AZ79: 1 | BA79: 1 | BB79: 1 | BC79: 1 | BD79: 1 | BE79: 14.33163233 | BF79: 14.54710453 | BG79: 14.768618 | BH79: 14.90958112 | BI79: 15.02033786 | BJ79: 15.24990637 | BK79: 15.40697956 | BL79: 15.61842424 | BM79: 15.77348367 | BN79: 3.573428571 | DG79: 0.3168478261
A80: 77 | B80: 43070 | C80: 43040 | D80: 42948 | E80: 42948 | F80: 42887 | G80: 43040 | H80: 42979 | I80: 42826 | J80: 43070 | K80: 42826 | W80: 1 | X80: 1 | Y80: 1 | Z80: 1 | AA80: 0.5 | AB80: 1 | AC80: 0.4 | AD80: 1 | AE80: 1 | AF80: 1 | AR80: 0 | AS80: 1 | AU80: 1 | AV80: 1 | AW80: 1 | AX80: 1 | AY80: 1 | AZ80: 1 | BA80: 1 | BB80: 1 | BC80: 1 | BD80: 1 | BE80: 14.66439114 | BF80: 15 | BG80: 15.34501845 | BH80: 15.56457565 | BI80: 15.73708487 | BJ80: 16.09464945 | BK80: 16.33929889 | BL80: 16.66863469 | BM80: 16.9101476 | BN80: 3.577227273 | DG80: 0.3168478261
A81: 78 | B81: 42948 | C81: 42856 | D81: 42856 | E81: 43040 | F81: 42948 | G81: 43070 | H81: 43040 | I81: 42948 | J81: 42887 | K81: 42948 | W81: 1 | X81: 0.5 | Y81: 0.5 | Z81: 1 | AA81: 1 | AB81: 1 | AC81: 1 | AD81: 1 | AE81: 0.5 | AF81: 1 | AR81: 0.002717391304 | AS81: -115.7065217 | AU81: 0.6684782609 | AV81: 0.75 | AW81: 0.8342391304 | AX81: 0.9157608696 | AY81: 1 | AZ81: 1.08423913 | BA81: 1.16576087 | BB81: 1.25 | BC81: 1.331521739 | BD81: 1.41576087 | BE81: 15.18933824 | BF81: 15.38602941 | BG81: 15.58823529 | BH81: 15.71691176 | BI81: 15.81801471 | BJ81: 16.02757353 | BK81: 16.17095588 | BL81: 16.36397059 | BM81: 16.50551471 | BN81: 3.584958333 | DG81: 0.3168478261
A82: 79 | B82: 42979 | C82: 42826 | D82: 43040 | E82: 43040 | F82: 42979 | G82: 43009 | H82: 42917 | I82: 42979 | J82: 43040 | K82: 42826 | W82: 0.4 | X82: 1 | Y82: 1 | Z82: 1 | AA82: 0.4 | AB82: 0.3 | AC82: 1 | AD82: 0.4 | AE82: 1 | AF82: 1 | AR82: 0 | AS82: 1 | AU82: 1 | AV82: 1 | AW82: 1 | AX82: 1 | AY82: 1 | AZ82: 1 | BA82: 1 | BB82: 1 | BC82: 1 | BD82: 1 | BE82: 15.95945946 | BF82: 16.24864865 | BG82: 16.54594595 | BH82: 16.73513514 | BI82: 16.88378378 | BJ82: 17.19189189 | BK82: 17.4027027 | BL82: 17.68648649 | BM82: 17.89459459 | BN82: 3.551409091 | DG82: 0.3168478261
A83: 80 | B83: 42979 | C83: 42856 | D83: 42887 | E83: 42856 | F83: 42826 | G83: 42887 | H83: 43101 | I83: 42979 | J83: 42856 | K83: 42887 | W83: 0.4 | X83: 0.5 | Y83: 0.5 | Z83: 0.5 | AA83: 1 | AB83: 0.5 | AC83: 0.5 | AD83: 0.4 | AE83: 0.5 | AF83: 0.5 | AR83: -0.0008130081301 | AS83: 35.36747967 | AU83: 0.5495934959 | AV83: 0.525203252 | AW83: 0.5 | AX83: 0.4756097561 | AY83: 0.4504065041 | AZ83: 0.425203252 | BA83: 0.4008130081 | BB83: 0.3756097561 | BC83: 0.3512195122 | BD83: 0.3260162602 | BE83: 14.1 | BF83: 14.41747253 | BG83: 14.74384615 | BH83: 14.95153846 | BI83: 15.11472527 | BJ83: 15.45296703 | BK83: 15.6843956 | BL83: 15.99593407 | BM83: 16.2243956 | BN83: 3.594604167 | DG83: 0.3168478261
A84: 81 | B84: 43009 | C84: 42887 | D84: 43009 | E84: 43101 | F84: 42917 | G84: 42917 | H84: 43070 | I84: 42979 | J84: 42856 | K84: 42887 | W84: 0.3 | X84: 0.5 | Y84: 0.3 | Z84: 0.5 | AA84: 1 | AB84: 1 | AC84: 1 | AD84: 0.4 | AE84: 0.5 | AF84: 0.5 | AR84: 0 | AS84: 0.5 | AU84: 0.5 | AV84: 0.5 | AW84: 0.5 | AX84: 0.5 | AY84: 0.5 | AZ84: 0.5 | BA84: 0.5 | BB84: 0.5 | BC84: 0.5 | BD84: 0.5 | BE84: 13.81098901 | BF84: 14.01809441 | BG84: 14.23100649 | BH84: 14.366496 | BI84: 14.47295205 | BJ84: 14.69360639 | BK84: 14.84458042 | BL84: 15.04781469 | BM84: 15.19685315 | BN84: 3.6165 | DG84: 0.3172727273
A85: 82 | B85: 43009 | C85: 42979 | D85: 42826 | E85: 43009 | F85: 42917 | G85: 43040 | H85: 43070 | I85: 42856 | J85: 42887 | K85: 42887 | W85: 0.3 | X85: 0.4 | Y85: 1 | Z85: 0.3 | AA85: 1 | AB85: 1 | AC85: 1 | AD85: 0.5 | AE85: 0.5 | AF85: 0.5 | AR85: 0 | AS85: 0.5 | AU85: 0.5 | AV85: 0.5 | AW85: 0.5 | AX85: 0.5 | AY85: 0.5 | AZ85: 0.5 | BA85: 0.5 | BB85: 0.5 | BC85: 0.5 | BD85: 0.5 | BE85: 15.31913568 | BF85: 15.54678148 | BG85: 15.78080987 | BH85: 15.92973703 | BI85: 16.04675123 | BJ85: 16.28928975 | BK85: 16.45523715 | BL85: 16.67862789 | BM85: 16.84244777 | BN85: 3.6846875 | DG85: 0.3173913043
A86: 83 | B86: 43101 | C86: 43101 | D86: 43070 | E86: 43070 | F86: 42979 | G86: 43040 | H86: 43101 | I86: 43070 | J86: 42826 | K86: 42887 | W86: 0.5 | X86: 0.5 | Y86: 1 | Z86: 1 | AA86: 0.4 | AB86: 1 | AC86: 0.5 | AD86: 1 | AE86: 1 | AF86: 0.5 | AR86: 0 | AS86: 0.75 | AU86: 0.75 | AV86: 0.75 | AW86: 0.75 | AX86: 0.75 | AY86: 0.75 | AZ86: 0.75 | BA86: 0.75 | BB86: 0.75 | BC86: 0.75 | BD86: 0.75 | BE86: 13.56372688 | BF86: 13.83769559 | BG86: 14.11934566 | BH86: 14.29857752 | BI86: 14.43940256 | BJ86: 14.73129445 | BK86: 14.93100996 | BL86: 15.19985775 | BM86: 15.3970128 | BN86: 3.6865 | DG86: 0.3173913043
A87: 84 | B87: 42887 | C87: 42917 | D87: 42948 | E87: 43009 | F87: 42979 | G87: 42917 | H87: 42948 | I87: 43101 | J87: 42917 | K87: 42979 | W87: 0.5 | X87: 1 | Y87: 1 | Z87: 0.3 | AA87: 0.4 | AB87: 1 | AC87: 1 | AD87: 0.5 | AE87: 1 | AF87: 0.4 | AR87: -0.002717391304 | AS87: 117.4565217 | AU87: 1.081521739 | AV87: 1 | AW87: 0.9157608696 | AX87: 0.8342391304 | AY87: 0.75 | AZ87: 0.6657608696 | BA87: 0.5842391304 | BB87: 0.5 | BC87: 0.4184782609 | BD87: 0.3342391304 | BE87: 13.98892241 | BF87: 14.18518162 | BG87: 14.38694342 | BH87: 14.51533729 | BI87: 14.61621819 | BJ87: 14.82531678 | BK87: 14.96838424 | BL87: 15.16097505 | BM87: 15.3022083 | BN87: 3.596653846 | DG87: 0.3173913043
A88: 85 | B88: 42887 | C88: 42826 | D88: 43070 | E88: 43009 | F88: 42917 | G88: 43040 | H88: 42917 | I88: 42917 | J88: 42856 | K88: 43101 | W88: 0.5 | X88: 1 | Y88: 1 | Z88: 0.3 | AA88: 1 | AB88: 1 | AC88: 1 | AD88: 1 | AE88: 0.5 | AF88: 0.5 | AR88: 0 | AS88: 1 | AU88: 1 | AV88: 1 | AW88: 1 | AX88: 1 | AY88: 1 | AZ88: 1 | BA88: 1 | BB88: 1 | BC88: 1 | BD88: 1 | BE88: 14.28888889 | BF88: 14.48703704 | BG88: 14.69074074 | BH88: 14.82037037 | BI88: 14.92222222 | BJ88: 15.13333333 | BK88: 15.27777778 | BL88: 15.47222222 | BM88: 15.61481481 | BN88: 3.629583333 | DG88: 0.3173913043
A89: 86 | B89: 43009 | C89: 42856 | D89: 42917 | E89: 42917 | F89: 43040 | G89: 42917 | H89: 43040 | I89: 43101 | J89: 42979 | K89: 42887 | W89: 0.3 | X89: 0.5 | Y89: 1 | Z89: 1 | AA89: 1 | AB89: 1 | AC89: 1 | AD89: 0.5 | AE89: 0.4 | AF89: 0.5 | AR89: 0 | AS89: 0.75 | AU89: 0.75 | AV89: 0.75 | AW89: 0.75 | AX89: 0.75 | AY89: 0.75 | AZ89: 0.75 | BA89: 0.75 | BB89: 0.75 | BC89: 0.75 | BD89: 0.75 | BE89: 13.45784734 | BF89: 13.8 | BG89: 14.15174572 | BH89: 14.37558391 | BI89: 14.55145677 | BJ89: 14.91599325 | BK89: 15.16541295 | BL89: 15.50117023 | BM89: 15.74739224 | BN89: 3.622375 | DG89: 0.3202614379
A90: 87 | B90: 43009 | C90: 43101 | D90: 42979 | E90: 42887 | F90: 42826 | G90: 42979 | H90: 42979 | I90: 42948 | J90: 43040 | K90: 42856 | W90: 0.3 | X90: 0.5 | Y90: 0.4 | Z90: 0.5 | AA90: 1 | AB90: 0.4 | AC90: 0.4 | AD90: 1 | AE90: 1 | AF90: 0.5 | AR90: -0.0009499823259 | AS90: 41.32929039 | AU90: 0.6453472959 | AV90: 0.6168478261 | AW90: 0.587398374 | AX90: 0.5588989042 | AY90: 0.5294494521 | AZ90: 0.5 | BA90: 0.4715005302 | BB90: 0.4420510781 | BC90: 0.4135516083 | BD90: 0.3841021562 | BE90: 13.24662921 | BF90: 13.66741573 | BG90: 14.1 | BH90: 14.3752809 | BI90: 14.59157303 | BJ90: 15.03988764 | BK90: 15.34662921 | BL90: 15.75955056 | BM90: 16.06235955 | BN90: 3.866954545 | DG90: 0.3245901639
